Workbook

Sheet ГОЛОВНА
B9: ЗМІСТ | K9: Рівень знижки
K10: (введіть значення)
B12: Alpha1,ALPHA2,MAGHA3 | D12: ='ALPHA2, MAGNA3'!G2 -> Регулюємі циркуляційні насоси для систем опалення | F12: ПОШУК | K12: DH | L12: 0
B13: UPS,UPD | D13: ='UPS, UPSD'!G2 -> Циркуляційні насоси для систем опалення | K13: DC | L13: 0
B14: Comfort,UP,UPN,Solar | D14: ='Comfort, UP, UP N, Solar'!G2 -> Циркуляційні насоси для систем гарячого водопостачання | K14: CB | L14: 0
B15: MQ, Scala, JP, Hydrojet, SB, SBA | D15: ='MQ, JP, Hydrojet, SB, SBA, UPA'!G2 -> Насоси і насосні установки для систем водопостачання | K15: CW | L15: 0
B16: SQ, SQE, SP, SP-NE | D16: ='SQ, SQE, SP, SP-NE'!G12 -> Глибинні насоси та пакети постійного тиску | K16: DD | L16: 0
B17: Unilift AP, KP, Sololift2 | D17: ='Sololift, Unilift AP, KP'!G13 -> Дренажні та каналізаційні насоси та насосні станції | K17: WW | L17: 0
B18: SEG, AutoADAPT | D18: ='SEG, AutoADAPT'!G2 -> Каналізаційні насоси з ріжучим механізмом | K18: WS | L18: 0
B19: Multilift | D19: =Multilift!G2 -> Компактні каналізаційні станції для встановлення у приміщенні | K19: GI | L19: 0
B20: SE, SL | D20: Каналізаційні насоси
B21: DP, EF | D21: ='DP, EF'!G2 -> Дренажні насоси
B22: TP (E), TPD (E) | D22: ='TP (E), TPD (E)'!G2 -> Ін-лайн насоси для систем опалення та кондиціонування
B23: NB (E), NK (E) | D23: ='NB (E), NK (E)'!G2 -> Насоси для водопостачання, пожежогасіння та промисловості
B24: LS | D24: =LS!G2 -> Насоси для систем водопостачання | H24: Ціни зазначено в Євро без ПДВ.
B25: MTR | D25: =MTR!G2 -> Напівзанурені насоси | H25: УВАГА! Грундфос залишає за собою право змінювати ціни на продукцію. Актуальна ціна продажу та строки поставки зазначені в Комерційних пропозиціях та Рахунках-Специфікаціях. У випадку, якщо Ви не змогли знайти потрібну Вам модель насоса\аксесуара\т.п. - зверніться до Вашого торгового представника Грундфос.
B26: CM (E), CMB (E) | D26: ='CM (E), CMB (E)'!G2 -> Самовсмоктуючі насоси для систем водопостачання
B27: CR (E), CRI (E),CRN (E) | D27: ='CR (E), CRI (E),CRN (E)'!G2 -> Насоси для водопостачання, пожежогасіння та промисловості
B28: HYDRO Boosters | D28: ='HYDRO Boosters'!G2 -> Станції підвищення тиску
B29: Controls | D29: =Шафи!G2 -> Шафи керування
B30: Dosing | D30: =Dosing!G2 -> Дозатори
B31: GT | D31: Мембранні баки
B35: Актуальну інформацію щодо цін, наявності на складі, статусу замовлення тощо дізнавайтесь на MyGrundfos:
B37: https://ua.grundfos.com/mygrundfos.html

Sheet ALPHA2, MAGNA3
A1: АРТИКУЛ | B1: НАЙМЕНУВАННЯ (УКР) | C1: PRICE GROUP | D1: ДОСТАВКА | E1: ДОДАТКОВО | F1: ЦІНА (ЕВРО БЕЗ ПДВ) | G1: ЦІНА ЗІ ЗНИЖКОЮ | H1: НА ГОЛОВНУ
A2: ALPHA2, ALPHA2 L | G2: Регулюємі циркуляційні насоси для систем опалення
A3: 98989298 | B3: Циркуляційний насос ALPHA Solar 15-75 13 | C3: DH | F3: 242.78 | G3: =IFERROR(F3*(1-VLOOKUP(C3,ГОЛОВНА!K:L,2,0)), "-") -> 242.78
A4: 98989297 | B4: Циркуляційний насос ALPHA Solar 25-145 1 | C4: DH | F4: 269.75 | G4: =IFERROR(F4*(1-VLOOKUP(C4,ГОЛОВНА!K:L,2,0)), "-") -> 269.75
A5: 98989299 | B5: Циркуляційний насос ALPHA Solar 25-75 13 | C5: DH | F5: 251.77 | G5: =IFERROR(F5*(1-VLOOKUP(C5,ГОЛОВНА!K:L,2,0)), "-") -> 251.77
A6: 98989300 | B6: Циркуляційний насос ALPHA Solar 25-75 18 | C6: DH | F6: 251.77 | G6: =IFERROR(F6*(1-VLOOKUP(C6,ГОЛОВНА!K:L,2,0)), "-") -> 251.77
A7: 99160550 | B7: Циркуляційний насос ALPHA1 L 15-40 130 1 | C7: DH | D7: S | F7: 155.67 | G7: =IFERROR(F7*(1-VLOOKUP(C7,ГОЛОВНА!K:L,2,0)), "-") -> 155.67
A8: 99160574 | B8: Циркуляційний насос ALPHA1 L 15-60 130 1 | C8: DH | D8: S | F8: 179.02 | G8: =IFERROR(F8*(1-VLOOKUP(C8,ГОЛОВНА!K:L,2,0)), "-") -> 179.02
A9: 99160578 | B9: Циркуляційний насос ALPHA1 L 25-40 130 1 | C9: DH | D9: S | F9: 143.79 | G9: =IFERROR(F9*(1-VLOOKUP(C9,ГОЛОВНА!K:L,2,0)), "-") -> 143.79
A10: 99160579 | B10: Циркуляційний насос ALPHA1 L 25-40 180 1 | C10: DH | D10: S | F10: 143.77 | G10: =IFERROR(F10*(1-VLOOKUP(C10,ГОЛОВНА!K:L,2,0)), "-") -> 143.77
A11: 99160583 | B11: Циркуляційний насос ALPHA1 L 25-60 130 1 | C11: DH | D11: S | F11: 165.38 | G11: =IFERROR(F11*(1-VLOOKUP(C11,ГОЛОВНА!K:L,2,0)), "-") -> 165.38
A12: 99160584 | B12: Циркуляційний насос ALPHA1 L 25-60 180 1 | C12: DH | D12: S | F12: 165.34 | G12: =IFERROR(F12*(1-VLOOKUP(C12,ГОЛОВНА!K:L,2,0)), "-") -> 165.34
A13: 99160587 | B13: Циркуляційний насос ALPHA1 L 32-40 180 1 | C13: DH | D13: S | F13: 158.17 | G13: =IFERROR(F13*(1-VLOOKUP(C13,ГОЛОВНА!K:L,2,0)), "-") -> 158.17
A14: 99160590 | B14: Циркуляційний насос ALPHA1 L 32-60 180 1 | C14: DH | D14: S | F14: 174.46 | G14: =IFERROR(F14*(1-VLOOKUP(C14,ГОЛОВНА!K:L,2,0)), "-") -> 174.46
A15: 99411107 | B15: Циркул.насос ALPHA2 15-40 130 1x230V 50H | C15: DH | D15: S | F15: 211.42 | G15: =IFERROR(F15*(1-VLOOKUP(C15,ГОЛОВНА!K:L,2,0)), "-") -> 211.42
A16: 99411113 | B16: Циркул.насос ALPHA2 15-50 130 1x230V 50H | C16: DH | F16: 232.57 | G16: =IFERROR(F16*(1-VLOOKUP(C16,ГОЛОВНА!K:L,2,0)), "-") -> 232.57
A17: 99411114 | B17: Циркул.насос ALPHA2 15-60 130 1x230V 50H | C17: DH | D17: S | F17: 243.12 | G17: =IFERROR(F17*(1-VLOOKUP(C17,ГОЛОВНА!K:L,2,0)), "-") -> 243.12
A18: 99411116 | B18: Циркул.насос ALPHA2 15-80 130 1x230V 50H | C18: DH | D18: S | F18: 275.25 | G18: =IFERROR(F18*(1-VLOOKUP(C18,ГОЛОВНА!K:L,2,0)), "-") -> 275.25
A19: 97660453 | B19: Циркуляційний насос ALPHA2 20-40 N 150 1 | C19: DH | F19: 345.94 | G19: =IFERROR(F19*(1-VLOOKUP(C19,ГОЛОВНА!K:L,2,0)), "-") -> 345.94
A20: 97660456 | B20: Циркуляційний насос ALPHA2 20-60 N 150 1 | C20: DH | F20: 397.83 | G20: =IFERROR(F20*(1-VLOOKUP(C20,ГОЛОВНА!K:L,2,0)), "-") -> 397.83
A21: 99411143 | B21: Циркул.насос ALPHA2 25-40 130 1x230V 50H | C21: DH | D21: S | F21: 188.87 | G21: =IFERROR(F21*(1-VLOOKUP(C21,ГОЛОВНА!K:L,2,0)), "-") -> 188.87
A22: 99411165 | B22: Циркул.насос ALPHA2 25-40 180 1x230V 50H | C22: DH | D22: S | F22: 189.97 | G22: =IFERROR(F22*(1-VLOOKUP(C22,ГОЛОВНА!K:L,2,0)), "-") -> 189.97
A23: 99411272 | B23: Циркул.насос ALPHA2 25-40 N 130 1x230V | C23: DH | F23: 358.91 | G23: =IFERROR(F23*(1-VLOOKUP(C23,ГОЛОВНА!K:L,2,0)), "-") -> 358.91
A24: 99411365 | B24: Циркул.насос ALPHA2 25-40 N 180 1x230V | C24: DH | D24: S | F24: 358.91 | G24: =IFERROR(F24*(1-VLOOKUP(C24,ГОЛОВНА!K:L,2,0)), "-") -> 358.91
A25: 99411146 | B25: Циркул.насос ALPHA2 25-50 130 1x230V 50H | C25: DH | F25: 211.44 | G25: =IFERROR(F25*(1-VLOOKUP(C25,ГОЛОВНА!K:L,2,0)), "-") -> 211.44
A26: 99411173 | B26: Циркул.насос ALPHA2 25-50 180 1x230V 50H | C26: DH | F26: 211.44 | G26: =IFERROR(F26*(1-VLOOKUP(C26,ГОЛОВНА!K:L,2,0)), "-") -> 211.44
A27: 99411286 | B27: Циркул.насос ALPHA2 25-50 N 130 1x230V | C27: DH | F27: 394.82 | G27: =IFERROR(F27*(1-VLOOKUP(C27,ГОЛОВНА!K:L,2,0)), "-") -> 394.82
A28: 99411371 | B28: Циркул.насос ALPHA2 25-50 N 180 1x230V | C28: DH | F28: 394.82 | G28: =IFERROR(F28*(1-VLOOKUP(C28,ГОЛОВНА!K:L,2,0)), "-") -> 394.82
A29: 99411150 | B29: Циркул.насос ALPHA2 25-60 130 1x230V 50H | C29: DH | D29: S | F29: 218.25 | G29: =IFERROR(F29*(1-VLOOKUP(C29,ГОЛОВНА!K:L,2,0)), "-") -> 218.25
A30: 99411175 | B30: Циркуляційний насос ALPHA2 25-60 180 1x2 | C30: DH | D30: S | F30: 215.96 | G30: =IFERROR(F30*(1-VLOOKUP(C30,ГОЛОВНА!K:L,2,0)), "-") -> 215.96
A31: 99411287 | B31: Циркул.насос ALPHA2 25-60 N 130 1x230V | C31: DH | D31: S | F31: 412.75 | G31: =IFERROR(F31*(1-VLOOKUP(C31,ГОЛОВНА!K:L,2,0)), "-") -> 412.75
A32: 99411424 | B32: Циркул.насос ALPHA2 25-60 N 180 1x230V | C32: DH | D32: S | F32: 412.75 | G32: =IFERROR(F32*(1-VLOOKUP(C32,ГОЛОВНА!K:L,2,0)), "-") -> 412.75
A33: 99411163 | B33: Циркул.насос ALPHA2 25-80 130 1x230V 50H | C33: DH | D33: S | F33: 272.01 | G33: =IFERROR(F33*(1-VLOOKUP(C33,ГОЛОВНА!K:L,2,0)), "-") -> 272.01
A34: 99411178 | B34: Циркул.насос ALPHA2 25-80 180 1x230V 50H | C34: DH | D34: S | F34: 270.46 | G34: =IFERROR(F34*(1-VLOOKUP(C34,ГОЛОВНА!K:L,2,0)), "-") -> 270.46
A35: 99411289 | B35: Циркул.насос ALPHA2 25-80 N 130 1x230V | C35: DH | F35: 517.58 | G35: =IFERROR(F35*(1-VLOOKUP(C35,ГОЛОВНА!K:L,2,0)), "-") -> 517.58
A36: 99411428 | B36: Циркул.насос ALPHA2 25-80 N 180 1x230V | C36: DH | F36: 514 | G36: =IFERROR(F36*(1-VLOOKUP(C36,ГОЛОВНА!K:L,2,0)), "-") -> 514
A37: 99411207 | B37: Циркул.насос ALPHA2 32-40 180 1x230V 50H | C37: DH | D37: S | F37: 211.42 | G37: =IFERROR(F37*(1-VLOOKUP(C37,ГОЛОВНА!K:L,2,0)), "-") -> 211.42
A38: 99411215 | B38: Циркул.насос ALPHA2 32-50 180 1x230V 50H | C38: DH | F38: 232.57 | G38: =IFERROR(F38*(1-VLOOKUP(C38,ГОЛОВНА!K:L,2,0)), "-") -> 232.57
A39: 99411221 | B39: Циркул.насос ALPHA2 32-60 180 1x230V 50H | C39: DH | D39: S | F39: 240.28 | G39: =IFERROR(F39*(1-VLOOKUP(C39,ГОЛОВНА!K:L,2,0)), "-") -> 240.28
A40: 99411448 | B40: Цирк.насос ALPHA2 32-60 N 180 1x230V | C40: DH | F40: 473.55 | G40: =IFERROR(F40*(1-VLOOKUP(C40,ГОЛОВНА!K:L,2,0)), "-") -> 473.55
A41: 99411263 | B41: Цирк.насос ALPHA2 32-80 180 1x230V 50Hz | C41: DH | D41: S | F41: 293.14 | G41: =IFERROR(F41*(1-VLOOKUP(C41,ГОЛОВНА!K:L,2,0)), "-") -> 293.14
A42: 95047561 | B42: Циркуляційний насос ALPHA2 L 25-40 130 1 | C42: DH | D42: S | F42: 143.79 | G42: =IFERROR(F42*(1-VLOOKUP(C42,ГОЛОВНА!K:L,2,0)), "-") -> 143.79
A43: 95047562 | B43: Циркуляційний насос ALPHA2 L 25-40 180 1 | C43: DH | D43: S | F43: 143.77 | G43: =IFERROR(F43*(1-VLOOKUP(C43,ГОЛОВНА!K:L,2,0)), "-") -> 143.77
A44: 95047564 | B44: Циркуляційний насос ALPHA2 L 25-60 180 1 | C44: DH | D44: S | F44: 165.34 | G44: =IFERROR(F44*(1-VLOOKUP(C44,ГОЛОВНА!K:L,2,0)), "-") -> 165.34
A45: 95047565 | B45: Циркуляційний насос ALPHA2 L 32-40 180 1 | C45: DH | F45: 158.17 | G45: =IFERROR(F45*(1-VLOOKUP(C45,ГОЛОВНА!K:L,2,0)), "-") -> 158.17
A46: 95047566 | B46: Циркуляційний насос ALPHA2 L 32-60 180 1 | C46: DH | D46: S | F46: 174.46 | G46: =IFERROR(F46*(1-VLOOKUP(C46,ГОЛОВНА!K:L,2,0)), "-") -> 174.46
A47: 99371948 | B47: Циркул.насос ALPHA3 15-40 130 1x230V 50H | C47: DH | F47: 274.7 | G47: =IFERROR(F47*(1-VLOOKUP(C47,ГОЛОВНА!K:L,2,0)), "-") -> 274.7
A48: 99371950 | B48: Циркул.насос ALPHA3 15-60 130 1x230V 50H | C48: DH | F48: 315.91 | G48: =IFERROR(F48*(1-VLOOKUP(C48,ГОЛОВНА!K:L,2,0)), "-") -> 315.91
A49: 99371951 | B49: Циркул.насос ALPHA3 15-80 130 1x230V 50H | C49: DH | F49: 353.82 | G49: =IFERROR(F49*(1-VLOOKUP(C49,ГОЛОВНА!K:L,2,0)), "-") -> 353.82
A50: 99371952 | B50: Цирк.насос ALPHA3 25-40 130 1x230V 50Hz | C50: DH | F50: 249.72 | G50: =IFERROR(F50*(1-VLOOKUP(C50,ГОЛОВНА!K:L,2,0)), "-") -> 249.72
A51: 99371954 | B51: Цирк.насос ALPHA3 25-60 130 1x230V 50Hz | C51: DH | F51: 287.21 | G51: =IFERROR(F51*(1-VLOOKUP(C51,ГОЛОВНА!K:L,2,0)), "-") -> 287.21
A52: 99371955 | B52: Цирк.насос ALPHA3 25-80 130 1x230V | C52: DH | F52: 315.91 | G52: =IFERROR(F52*(1-VLOOKUP(C52,ГОЛОВНА!K:L,2,0)), "-") -> 315.91
A53: 99371956 | B53: Циркуляційний насос ALPHA3 25-40 180 1x2 | C53: DH | F53: 249.74 | G53: =IFERROR(F53*(1-VLOOKUP(C53,ГОЛОВНА!K:L,2,0)), "-") -> 249.74
A54: 99371959 | B54: Циркуляц.насос ALPHA3 25-60 180 1x230V 5 | C54: DH | F54: 287.21 | G54: =IFERROR(F54*(1-VLOOKUP(C54,ГОЛОВНА!K:L,2,0)), "-") -> 287.21
A55: 99371961 | B55: Циркул.насос ALPHA3 25-80 180 1x230V 50H | C55: DH | F55: 353.82 | G55: =IFERROR(F55*(1-VLOOKUP(C55,ГОЛОВНА!K:L,2,0)), "-") -> 353.82
A56: 99371962 | B56: ALPHA3 32-40 180 1x230V 50Hz 6H | C56: DH | F56: 274.7 | G56: =IFERROR(F56*(1-VLOOKUP(C56,ГОЛОВНА!K:L,2,0)), "-") -> 274.7
A57: 99371964 | B57: Цирк.наcoc ALPHA3 32-60 180 1x230V 50Hz | C57: DH | F57: 315.91 | G57: =IFERROR(F57*(1-VLOOKUP(C57,ГОЛОВНА!K:L,2,0)), "-") -> 315.91
A58: 99371965 | B58: Циркул.насос ALPHA3 32-80 180 1x230V 50H | C58: DH | F58: 353.82 | G58: =IFERROR(F58*(1-VLOOKUP(C58,ГОЛОВНА!K:L,2,0)), "-") -> 353.82
A60: MAGNA3, MAGNA1 | G60: Регулюємі циркуляційні насоси для систем опалення
A61: 99224456 | B61: Циркуляційний насос MAGNA1 25-100 180 1X | C61: CB | E61: PN16 | F61: 659.75 | G61: =IFERROR(F61*(1-VLOOKUP(C61,ГОЛОВНА!K:L,2,0)), "-") -> 659.75
A62: 99224457 | B62: Циркуляційний насос MAGNA1 25-120 180 1X | C62: CB | E62: PN16 | F62: 742.22 | G62: =IFERROR(F62*(1-VLOOKUP(C62,ГОЛОВНА!K:L,2,0)), "-") -> 742.22
A63: 99224458 | B63: Циркуляційний насос MAGNA1 32-40 180 1X2 | C63: CB | E63: PN16 | F63: 540.61 | G63: =IFERROR(F63*(1-VLOOKUP(C63,ГОЛОВНА!K:L,2,0)), "-") -> 540.61
A64: 99224459 | B64: Циркуляційний насос MAGNA1 32-60 180 1X2 | C64: CB | E64: PN16 | F64: 632.26 | G64: =IFERROR(F64*(1-VLOOKUP(C64,ГОЛОВНА!K:L,2,0)), "-") -> 632.26
A65: 99224460 | B65: Циркуляційний насос MAGNA1 32-80 180 1X2 | C65: CB | E65: PN16 | F65: 659.75 | G65: =IFERROR(F65*(1-VLOOKUP(C65,ГОЛОВНА!K:L,2,0)), "-") -> 659.75
A66: 99224462 | B66: Циркуляційний насос MAGNA1 32-100 F 220 | C66: CB | E66: PN16 | F66: 843.01 | G66: =IFERROR(F66*(1-VLOOKUP(C66,ГОЛОВНА!K:L,2,0)), "-") -> 843.01
A67: 99224463 | B67: Циркуляційний насос MAGNA1 32-120 F 220 | C67: CB | E67: PN16 | F67: 939.54 | G67: =IFERROR(F67*(1-VLOOKUP(C67,ГОЛОВНА!K:L,2,0)), "-") -> 939.54
A68: 99224464 | B68: Циркуляційний насос MAGNA1 40-40 F 220 1 | C68: CB | E68: PN16 | F68: 742.22 | G68: =IFERROR(F68*(1-VLOOKUP(C68,ГОЛОВНА!K:L,2,0)), "-") -> 742.22
A69: 99224465 | B69: Циркуляційний насос MAGNA1 40-60 F 220 1 | C69: CB | E69: PN16 | F69: 815.52 | G69: =IFERROR(F69*(1-VLOOKUP(C69,ГОЛОВНА!K:L,2,0)), "-") -> 815.52
A70: 99224466 | B70: Циркуляційний насос MAGNA1 40-80 F 220 1 | C70: CB | E70: PN16 | F70: 939.54 | G70: =IFERROR(F70*(1-VLOOKUP(C70,ГОЛОВНА!K:L,2,0)), "-") -> 939.54
A71: 99224467 | B71: Циркуляційний насос MAGNA1 40-100 F 220 | C71: CB | E71: PN16 | F71: 1036.12 | G71: =IFERROR(F71*(1-VLOOKUP(C71,ГОЛОВНА!K:L,2,0)), "-") -> 1036.12
A72: 99224468 | B72: Циркуляційний насос MAGNA1 40-120 F 250 | C72: CB | E72: PN16 | F72: 1150.28 | G72: =IFERROR(F72*(1-VLOOKUP(C72,ГОЛОВНА!K:L,2,0)), "-") -> 1150.28
A73: 99224469 | B73: Циркуляційний насос MAGNA1 40-150 F 250 | C73: CB | E73: PN16 | F73: 1404.93 | G73: =IFERROR(F73*(1-VLOOKUP(C73,ГОЛОВНА!K:L,2,0)), "-") -> 1404.93
A74: 99224470 | B74: Циркуляційний насос MAGNA1 40-180 F 250 | C74: CB | E74: PN16 | F74: 1615.64 | G74: =IFERROR(F74*(1-VLOOKUP(C74,ГОЛОВНА!K:L,2,0)), "-") -> 1615.64
A75: 99224471 | B75: Циркуляційний насос MAGNA1 50-60 F 240 1 | C75: CB | E75: PN16 | F75: 1220.52 | G75: =IFERROR(F75*(1-VLOOKUP(C75,ГОЛОВНА!K:L,2,0)), "-") -> 1220.52
A76: 99224472 | B76: Циркуляційний насос MAGNA1 50-80 F 240 1 | C76: CB | E76: PN16 | F76: 1343.46 | G76: =IFERROR(F76*(1-VLOOKUP(C76,ГОЛОВНА!K:L,2,0)), "-") -> 1343.46
A77: 99224473 | B77: Циркуляційний насос MAGNA1 50-100 F 280 | C77: CB | E77: PN16 | F77: 1422.47 | G77: =IFERROR(F77*(1-VLOOKUP(C77,ГОЛОВНА!K:L,2,0)), "-") -> 1422.47
A78: 99224474 | B78: Циркуляційний насос MAGNA1 50-120 F 280 | C78: CB | E78: PN16 | F78: 1501.5 | G78: =IFERROR(F78*(1-VLOOKUP(C78,ГОЛОВНА!K:L,2,0)), "-") -> 1501.5
A79: 99224475 | B79: Циркуляційний насос MAGNA1 50-150 F 280 | C79: CB | E79: PN16 | F79: 1729.81 | G79: =IFERROR(F79*(1-VLOOKUP(C79,ГОЛОВНА!K:L,2,0)), "-") -> 1729.81
A80: 99224476 | B80: Циркуляційний насос MAGNA1 50-180 F 280 | C80: CB | E80: PN16 | F80: 2028.33 | G80: =IFERROR(F80*(1-VLOOKUP(C80,ГОЛОВНА!K:L,2,0)), "-") -> 2028.33
A81: 99224477 | B81: Циркуляційний насос MAGNA1 65-40 F 340 1 | C81: CB | E81: PN16 | F81: 1299.55 | G81: =IFERROR(F81*(1-VLOOKUP(C81,ГОЛОВНА!K:L,2,0)), "-") -> 1299.55
A82: 99224479 | B82: Циркуляційний насос MAGNA1 65-80 F 340 1 | C82: CB | E82: PN16 | F82: 1615.64 | G82: =IFERROR(F82*(1-VLOOKUP(C82,ГОЛОВНА!K:L,2,0)), "-") -> 1615.64
A83: 99224480 | B83: Циркуляційний насос MAGNA1 65-100 F 340 | C83: CB | E83: PN16 | F83: 1703.47 | G83: =IFERROR(F83*(1-VLOOKUP(C83,ГОЛОВНА!K:L,2,0)), "-") -> 1703.47
A84: 99224481 | B84: Циркуляційний насос MAGNA1 65-120 F 340 | C84: CB | E84: PN16 | F84: 1826.4 | G84: =IFERROR(F84*(1-VLOOKUP(C84,ГОЛОВНА!K:L,2,0)), "-") -> 1826.4
A85: 99224482 | B85: Циркуляційний насос MAGNA1 65-150 F 340 | C85: CB | E85: PN16 | F85: 2107.37 | G85: =IFERROR(F85*(1-VLOOKUP(C85,ГОЛОВНА!K:L,2,0)), "-") -> 2107.37
A86: 99224483 | B86: Циркуляційний насос MAGNA1 80-60 F 360 1 | C86: CB | E86: PN16 | F86: 1712.24 | G86: =IFERROR(F86*(1-VLOOKUP(C86,ГОЛОВНА!K:L,2,0)), "-") -> 1712.24
A87: 99224484 | B87: Циркуляційний насос MAGNA1 80-80 F 360 1 | C87: CB | E87: PN16 | F87: 1843.94 | G87: =IFERROR(F87*(1-VLOOKUP(C87,ГОЛОВНА!K:L,2,0)), "-") -> 1843.94
A88: 99224485 | B88: Циркуляційний насос MAGNA1 80-100 F 360 | C88: CB | E88: PN16 | F88: 2010.78 | G88: =IFERROR(F88*(1-VLOOKUP(C88,ГОЛОВНА!K:L,2,0)), "-") -> 2010.78
A89: 99224486 | B89: Циркуляційний насос MAGNA1 80-120 F 360 | C89: CB | E89: PN16 | F89: 2256.64 | G89: =IFERROR(F89*(1-VLOOKUP(C89,ГОЛОВНА!K:L,2,0)), "-") -> 2256.64
A90: 99224487 | B90: Циркуляційний насос MAGNA1 100-40 F 450 | C90: CB | E90: PN16 | F90: 1826.4 | G90: =IFERROR(F90*(1-VLOOKUP(C90,ГОЛОВНА!K:L,2,0)), "-") -> 1826.4
A91: 99224488 | B91: Циркуляційний насос MAGNA1 100-60 F 450 | C91: CB | E91: PN16 | F91: 1993.24 | G91: =IFERROR(F91*(1-VLOOKUP(C91,ГОЛОВНА!K:L,2,0)), "-") -> 1993.24
A92: 99224489 | B92: Циркуляційний насос MAGNA1 100-80 F 450 | C92: CB | E92: PN16 | F92: 2160.05 | G92: =IFERROR(F92*(1-VLOOKUP(C92,ГОЛОВНА!K:L,2,0)), "-") -> 2160.05
A93: 99224490 | B93: Циркуляційний насос MAGNA1 100-100 F 450 | C93: CB | E93: PN16 | F93: 2353.22 | G93: =IFERROR(F93*(1-VLOOKUP(C93,ГОЛОВНА!K:L,2,0)), "-") -> 2353.22
A94: 99224491 | B94: Циркуляційний насос MAGNA1 D 32-40 180 1 | C94: CB | E94: PN16 | F94: 1000.53 | G94: =IFERROR(F94*(1-VLOOKUP(C94,ГОЛОВНА!K:L,2,0)), "-") -> 1000.53
A95: 99224492 | B95: Циркуляційний насос MAGNA1 D 32-60 180 1 | C95: CB | E95: PN16 | F95: 1170.12 | G95: =IFERROR(F95*(1-VLOOKUP(C95,ГОЛОВНА!K:L,2,0)), "-") -> 1170.12
A96: 99224494 | B96: Циркуляційний насос MAGNA1 D 32-100 180 | C96: CB | E96: PN16 | F96: 1339.69 | G96: =IFERROR(F96*(1-VLOOKUP(C96,ГОЛОВНА!K:L,2,0)), "-") -> 1339.69
A97: 99224496 | B97: Циркуляційний насос MAGNA1 D 32-120 F 22 | C97: CB | E97: PN16 | F97: 1738.79 | G97: =IFERROR(F97*(1-VLOOKUP(C97,ГОЛОВНА!K:L,2,0)), "-") -> 1738.79
A98: 99224497 | B98: Циркуляційний насос MAGNA1 D 40-40 F 220 | C98: CB | E98: PN16 | F98: 1373.64 | G98: =IFERROR(F98*(1-VLOOKUP(C98,ГОЛОВНА!K:L,2,0)), "-") -> 1373.64
A99: 99224498 | B99: Циркуляційний насос MAGNA1 D 40-60 F 220 | C99: CB | E99: PN16 | F99: 1507.23 | G99: =IFERROR(F99*(1-VLOOKUP(C99,ГОЛОВНА!K:L,2,0)), "-") -> 1507.23
A100: 99224499 | B100: Циркуляційний насос MAGNA1 D 40-80 F 220 | C100: CB | E100: PN16 | F100: 1738.78 | G100: =IFERROR(F100*(1-VLOOKUP(C100,ГОЛОВНА!K:L,2,0)), "-") -> 1738.78
A101: 99224500 | B101: Циркуляційний насос MAGNA1 D 40-100 F 22 | C101: CB | E101: PN16 | F101: 1917.55 | G101: =IFERROR(F101*(1-VLOOKUP(C101,ГОЛОВНА!K:L,2,0)), "-") -> 1917.55
A102: 99224501 | B102: Циркуляційний насос MAGNA1 D 40-120 F 25 | C102: CB | E102: PN16 | F102: 2128.78 | G102: =IFERROR(F102*(1-VLOOKUP(C102,ГОЛОВНА!K:L,2,0)), "-") -> 2128.78
A103: 99224502 | B103: Циркуляційний насос MAGNA1 D 40-150 F 25 | C103: CB | E103: PN16 | F103: 2600.05 | G103: =IFERROR(F103*(1-VLOOKUP(C103,ГОЛОВНА!K:L,2,0)), "-") -> 2600.05
A104: 99224503 | B104: Циркуляційний насос MAGNA1 D 40-180 F 25 | C104: CB | E104: PN16 | F104: 2990.06 | G104: =IFERROR(F104*(1-VLOOKUP(C104,ГОЛОВНА!K:L,2,0)), "-") -> 2990.06
A105: 99224504 | B105: Циркуляційний насос MAGNA1 D 50-60 F 240 | C105: CB | E105: PN16 | F105: 2258.78 | G105: =IFERROR(F105*(1-VLOOKUP(C105,ГОЛОВНА!K:L,2,0)), "-") -> 2258.78
A106: 99224505 | B106: Циркуляційний насос MAGNA1 D 50-80 F 240 | C106: CB | E106: PN16 | F106: 2486.31 | G106: =IFERROR(F106*(1-VLOOKUP(C106,ГОЛОВНА!K:L,2,0)), "-") -> 2486.31
A107: 99224506 | B107: Циркуляційний насос MAGNA1 D 50-100 F 28 | C107: CB | E107: PN16 | F107: 2632.55 | G107: =IFERROR(F107*(1-VLOOKUP(C107,ГОЛОВНА!K:L,2,0)), "-") -> 2632.55
A108: 99224507 | B108: Циркуляційний насос MAGNA1 D 50-120 F 28 | C108: CB | E108: PN16 | F108: 2778.8 | G108: =IFERROR(F108*(1-VLOOKUP(C108,ГОЛОВНА!K:L,2,0)), "-") -> 2778.8
A109: 99224508 | B109: Циркуляційний насос MAGNA1 D 50-150 F 28 | C109: CB | E109: PN16 | F109: 3201.31 | G109: =IFERROR(F109*(1-VLOOKUP(C109,ГОЛОВНА!K:L,2,0)), "-") -> 3201.31
A110: 99224509 | B110: Циркуляційний насос MAGNA1 D 50-180 F 28 | C110: CB | E110: PN16 | F110: 3753.83 | G110: =IFERROR(F110*(1-VLOOKUP(C110,ГОЛОВНА!K:L,2,0)), "-") -> 3753.83
A111: 99224510 | B111: Циркуляційний насос MAGNA1 D 65-40 F 340 | C111: CB | E111: PN16 | F111: 2405.04 | G111: =IFERROR(F111*(1-VLOOKUP(C111,ГОЛОВНА!K:L,2,0)), "-") -> 2405.04
A112: 99224511 | B112: Циркуляційний насос MAGNA1 D 65-60 F 340 | C112: CB | E112: PN16 | F112: 2746.3 | G112: =IFERROR(F112*(1-VLOOKUP(C112,ГОЛОВНА!K:L,2,0)), "-") -> 2746.3
A113: 99224512 | B113: Циркуляційний насос MAGNA1 D 65-80 F 340 | C113: CB | E113: PN16 | F113: 2990.06 | G113: =IFERROR(F113*(1-VLOOKUP(C113,ГОЛОВНА!K:L,2,0)), "-") -> 2990.06
A114: 99224513 | B114: Циркуляційний насос MAGNA1 D 65-100 F 34 | C114: CB | E114: PN16 | F114: 3152.56 | G114: =IFERROR(F114*(1-VLOOKUP(C114,ГОЛОВНА!K:L,2,0)), "-") -> 3152.56
A115: 99224514 | B115: Циркуляційний насос MAGNA1 D 65-120 F 34 | C115: CB | E115: PN16 | F115: 3380.06 | G115: =IFERROR(F115*(1-VLOOKUP(C115,ГОЛОВНА!K:L,2,0)), "-") -> 3380.06
A116: 99224515 | B116: Циркуляційний насос MAGNA1 D 65-150 F 34 | C116: CB | E116: PN16 | F116: 3900.07 | G116: =IFERROR(F116*(1-VLOOKUP(C116,ГОЛОВНА!K:L,2,0)), "-") -> 3900.07
A117: 99224516 | B117: Циркуляційний насос MAGNA1 D 80-60 F 360 | C117: CB | E117: PN16 | F117: 3168.81 | G117: =IFERROR(F117*(1-VLOOKUP(C117,ГОЛОВНА!K:L,2,0)), "-") -> 3168.81
A118: 99224517 | B118: Циркуляційний насос MAGNA1 D 80-80 F 360 | C118: CB | E118: PN16 | F118: 3412.56 | G118: =IFERROR(F118*(1-VLOOKUP(C118,ГОЛОВНА!K:L,2,0)), "-") -> 3412.56
A119: 99224518 | B119: Циркуляційний насос MAGNA1 D 80-100 F 36 | C119: CB | E119: PN16 | F119: 3721.32 | G119: =IFERROR(F119*(1-VLOOKUP(C119,ГОЛОВНА!K:L,2,0)), "-") -> 3721.32
A120: 99224519 | B120: Циркуляційний насос MAGNA1 D 80-120 F 36 | C120: CB | E120: PN16 | F120: 4176.31 | G120: =IFERROR(F120*(1-VLOOKUP(C120,ГОЛОВНА!K:L,2,0)), "-") -> 4176.31
A121: 99224520 | B121: Циркуляційний насос MAGNA1 D 100-40 F 45 | C121: CB | E121: PN16 | F121: 3380.06 | G121: =IFERROR(F121*(1-VLOOKUP(C121,ГОЛОВНА!K:L,2,0)), "-") -> 3380.06
A122: 99224521 | B122: Циркуляційний насос MAGNA1 D 100-60 F 45 | C122: CB | E122: PN16 | F122: 3688.8 | G122: =IFERROR(F122*(1-VLOOKUP(C122,ГОЛОВНА!K:L,2,0)), "-") -> 3688.8
A123: 99224522 | B123: Циркуляційний насос MAGNA1 D 100-80 F 45 | C123: CB | E123: PN16 | F123: 3997.56 | G123: =IFERROR(F123*(1-VLOOKUP(C123,ГОЛОВНА!K:L,2,0)), "-") -> 3997.56
A124: 99224523 | B124: Циркуляційний насос MAGNA1 D 100-100 F 4 | C124: CB | E124: PN16 | F124: 4355.07 | G124: =IFERROR(F124*(1-VLOOKUP(C124,ГОЛОВНА!K:L,2,0)), "-") -> 4355.07
A125: 99224524 | B125: Циркуляційний насос MAGNA1 D 100-120 F 4 | C125: CB | E125: PN16 | F125: 4940.08 | G125: =IFERROR(F125*(1-VLOOKUP(C125,ГОЛОВНА!K:L,2,0)), "-") -> 4940.08
A126: 99224598 | B126: Циркуляційний насос MAGNA1 32-40 F 220 1 | C126: CB | E126: PN16 | F126: 595.62 | G126: =IFERROR(F126*(1-VLOOKUP(C126,ГОЛОВНА!K:L,2,0)), "-") -> 595.62
A127: 99224600 | B127: Циркуляційний насос MAGNA1 D 32-40 F 220 | C127: CB | E127: PN16 | F127: 1102.26 | G127: =IFERROR(F127*(1-VLOOKUP(C127,ГОЛОВНА!K:L,2,0)), "-") -> 1102.26
A128: 99224602 | B128: Циркуляційний насос MAGNA1 32-60 F 220 1 | C128: CB | E128: PN16 | F128: 696.43 | G128: =IFERROR(F128*(1-VLOOKUP(C128,ГОЛОВНА!K:L,2,0)), "-") -> 696.43
A129: 99224604 | B129: Циркуляційний насос MAGNA1 D 32-60 F 220 | C129: CB | E129: PN16 | F129: 1288.84 | G129: =IFERROR(F129*(1-VLOOKUP(C129,ГОЛОВНА!K:L,2,0)), "-") -> 1288.84
A130: 99224606 | B130: Циркуляційний насос MAGNA1 32-80 F 220 1 | C130: CB | E130: PN16 | F130: 733.07 | G130: =IFERROR(F130*(1-VLOOKUP(C130,ГОЛОВНА!K:L,2,0)), "-") -> 733.07
A131: 99224608 | B131: Циркуляційний насос MAGNA1 D 32-80 F 220 | C131: CB | E131: PN16 | F131: 1356.65 | G131: =IFERROR(F131*(1-VLOOKUP(C131,ГОЛОВНА!K:L,2,0)), "-") -> 1356.65
A132: 99224610 | B132: Циркуляційний насос MAGNA1 100-120 F 450 | C132: CB | E132: PN16 | F132: 2669.33 | G132: =IFERROR(F132*(1-VLOOKUP(C132,ГОЛОВНА!K:L,2,0)), "-") -> 2669.33
A133: 99224611 | B133: Циркуляційний насос MAGNA1 32-120 180 1X | C133: CB | E133: PN16 | F133: 783.46 | G133: =IFERROR(F133*(1-VLOOKUP(C133,ГОЛОВНА!K:L,2,0)), "-") -> 783.46
A134: 99231362 | B134: Циркуляційний насос MAGNA1 D 50-40 F 240 | C134: CB | E134: PN16 | F134: 1917.55 | G134: =IFERROR(F134*(1-VLOOKUP(C134,ГОЛОВНА!K:L,2,0)), "-") -> 1917.55
A135: 99231368 | B135: Циркуляційний насос MAGNA1 D 80-40 F 360 | C135: CB | E135: PN16 | F135: 2876.3 | G135: =IFERROR(F135*(1-VLOOKUP(C135,ГОЛОВНА!K:L,2,0)), "-") -> 2876.3
A136: 99221291 | B136: Циркуляційний насос MAGNA1 40-40 F 220 1 | C136: CB | E136: PN6/10 | F136: 634.59 | G136: =IFERROR(F136*(1-VLOOKUP(C136,ГОЛОВНА!K:L,2,0)), "-") -> 634.59
A137: 99224454 | B137: Циркуляційний насос MAGNA1 25-60 180 1X2 | C137: CB | E137: PN16 | F137: 522.49 | G137: =IFERROR(F137*(1-VLOOKUP(C137,ГОЛОВНА!K:L,2,0)), "-") -> 522.49
A138: 99221256 | B138: Циркуляційний насос MAGNA1 32-100 N 180 | C138: CB | E138: PN6/10 | F138: 959.32 | G138: =IFERROR(F138*(1-VLOOKUP(C138,ГОЛОВНА!K:L,2,0)), "-") -> 959.32
A139: 99221253 | B139: Циркуляційний насос MAGNA1 32-40 N 180 1 | C139: CB | E139: PN6/10 | F139: 716.47 | G139: =IFERROR(F139*(1-VLOOKUP(C139,ГОЛОВНА!K:L,2,0)), "-") -> 716.47
A140: 99221234 | B140: Циркуляційний насос MAGNA1 32-60 180 1x2 | C140: CB | E140: PN6/14 | F140: 540.58 | G140: =IFERROR(F140*(1-VLOOKUP(C140,ГОЛОВНА!K:L,2,0)), "-") -> 540.58
A141: 99221265 | B141: Циркуляційний насос MAGNA1 32-40 F N 220 | C141: CB | E141: PN6/10 | F141: 789.29 | G141: =IFERROR(F141*(1-VLOOKUP(C141,ГОЛОВНА!K:L,2,0)), "-") -> 789.29
A142: 99224453 | B142: Циркуляційний насос MAGNA1 25-40 180 1X2 | C142: CB | E142: PN16 | F142: 439.97 | G142: =IFERROR(F142*(1-VLOOKUP(C142,ГОЛОВНА!K:L,2,0)), "-") -> 439.97
A143: 99221226 | B143: Циркуляційний насос MAGNA1 25-100 N 180 | C143: CB | E143: PN10 | F143: 874.29 | G143: =IFERROR(F143*(1-VLOOKUP(C143,ГОЛОВНА!K:L,2,0)), "-") -> 874.29
A144: 99224461 | B144: Циркуляційний насос MAGNA1 32-100 180 1X | C144: CB | E144: PN16 | F144: 724.12 | G144: =IFERROR(F144*(1-VLOOKUP(C144,ГОЛОВНА!K:L,2,0)), "-") -> 724.12
A145: 99221237 | B145: Циркуляційний насос MAGNA1 32-100 F 220 | C145: CB | D145: FT | E145: PN6/10 | F145: 720.74 | G145: =IFERROR(F145*(1-VLOOKUP(C145,ГОЛОВНА!K:L,2,0)), "-") -> 720.74
A146: 99221233 | B146: Циркуляційний насос MAGNA1 32-40 180 1x2 | C146: CB | E146: PN6/20 | F146: 462.2 | G146: =IFERROR(F146*(1-VLOOKUP(C146,ГОЛОВНА!K:L,2,0)), "-") -> 462.2
A147: 99221271 | B147: Циркуляційний насос MAGNA1 32-60 F N 220 | C147: CB | E147: PN6/10 | F147: 922.87 | G147: =IFERROR(F147*(1-VLOOKUP(C147,ГОЛОВНА!K:L,2,0)), "-") -> 922.87
A148: 99224455 | B148: Циркуляційний насос MAGNA1 25-80 180 1X2 | C148: CB | E148: PN16 | F148: 595.81 | G148: =IFERROR(F148*(1-VLOOKUP(C148,ГОЛОВНА!K:L,2,0)), "-") -> 595.81
A149: 99221277 | B149: Циркуляційний насос MAGNA1 32-80 F N 220 | C149: CB | E149: PN6/10 | F149: 971.44 | G149: =IFERROR(F149*(1-VLOOKUP(C149,ГОЛОВНА!K:L,2,0)), "-") -> 971.44
A150: 99221223 | B150: Циркуляційний насос MAGNA1 25-40 N 180 1 | C150: CB | E150: PN6/24 | F150: 582.85 | G150: =IFERROR(F150*(1-VLOOKUP(C150,ГОЛОВНА!K:L,2,0)), "-") -> 582.85
A151: 99221292 | B151: Циркуляційний насос MAGNA1 40-60 F 220 1 | C151: CB | D151: FT | E151: PN6/10 | F151: 697.24 | G151: =IFERROR(F151*(1-VLOOKUP(C151,ГОЛОВНА!K:L,2,0)), "-") -> 697.24
A152: 99221254 | B152: Циркуляційний насос MAGNA1 32-60 N 180 1 | C152: CB | E152: PN10 | F152: 837.85 | G152: =IFERROR(F152*(1-VLOOKUP(C152,ГОЛОВНА!K:L,2,0)), "-") -> 837.85
A153: 99221224 | B153: Циркуляційний насос MAGNA1 25-60 N 180 1 | C153: CB | E153: PN10 | F153: 692.15 | G153: =IFERROR(F153*(1-VLOOKUP(C153,ГОЛОВНА!K:L,2,0)), "-") -> 692.15
A154: 99221227 | B154: Циркуляційний насос MAGNA1 25-120 N 180 | C154: CB | E154: PN10 | F154: 983.57 | G154: =IFERROR(F154*(1-VLOOKUP(C154,ГОЛОВНА!K:L,2,0)), "-") -> 983.57
A155: 99221299 | B155: Циркуляційний насос MAGNA1 40-40 F N 220 | C155: CB | E155: PN6/10 | F155: 983.57 | G155: =IFERROR(F155*(1-VLOOKUP(C155,ГОЛОВНА!K:L,2,0)), "-") -> 983.57
A156: 99221255 | B156: Циркуляційний насос MAGNA1 32-80 N 180 1 | C156: CB | E156: PN10 | F156: 874.28 | G156: =IFERROR(F156*(1-VLOOKUP(C156,ГОЛОВНА!K:L,2,0)), "-") -> 874.28
A157: 99221300 | B157: Циркуляційний насос MAGNA1 40-60 F N 220 | C157: CB | E157: PN6/10 | F157: 1080.72 | G157: =IFERROR(F157*(1-VLOOKUP(C157,ГОЛОВНА!K:L,2,0)), "-") -> 1080.72
A158: 99221257 | B158: Циркуляційний насос MAGNA1 32-100 F N 22 | C158: CB | E158: PN6/10 | F158: 1117.15 | G158: =IFERROR(F158*(1-VLOOKUP(C158,ГОЛОВНА!K:L,2,0)), "-") -> 1117.15
A159: 99221374 | B159: Циркуляційний насос MAGNA1 65-120 F 340 | C159: CB | D159: FT | E159: PN6/10 | F159: 1591.84 | G159: =IFERROR(F159*(1-VLOOKUP(C159,ГОЛОВНА!K:L,2,0)), "-") -> 1591.84
A160: 99221305 | B160: Циркуляційний насос MAGNA1 40-120 F 250 | C160: CB | D160: FT | E160: PN6/10 | F160: 999.69 | G160: =IFERROR(F160*(1-VLOOKUP(C160,ГОЛОВНА!K:L,2,0)), "-") -> 999.69
A161: 99221289 | B161: Циркуляційний насос MAGNA1 32-120 F N 22 | C161: CB | E161: PN6/10 | F161: 1250.85 | G161: =IFERROR(F161*(1-VLOOKUP(C161,ГОЛОВНА!K:L,2,0)), "-") -> 1250.85
A162: 99221442 | B162: Циркуляційний насос MAGNA1 100-120 F 450 | C162: CB | E162: PN6 | F162: 2285.25 | G162: =IFERROR(F162*(1-VLOOKUP(C162,ГОЛОВНА!K:L,2,0)), "-") -> 2285.25
A163: 99221447 | B163: Циркуляційний насос MAGNA1 100-120 F 450 | C163: CB | E163: PN10 | F163: 2399.52 | G163: =IFERROR(F163*(1-VLOOKUP(C163,ГОЛОВНА!K:L,2,0)), "-") -> 2399.52
A164: 99221446 | B164: Циркуляційний насос MAGNA1 100-100 F 450 | C164: CB | E164: PN10 | F164: 2114.43 | G164: =IFERROR(F164*(1-VLOOKUP(C164,ГОЛОВНА!K:L,2,0)), "-") -> 2114.43
A165: 99221441 | B165: Циркуляційний насос MAGNA1 100-100 F 450 | C165: CB | E165: PN6 | F165: 2013.73 | G165: =IFERROR(F165*(1-VLOOKUP(C165,ГОЛОВНА!K:L,2,0)), "-") -> 2013.73
A166: 99224478 | B166: Циркуляційний насос MAGNA1 65-60 F 340 1 | C166: CB | E166: PN16 | F166: 1485.53 | G166: =IFERROR(F166*(1-VLOOKUP(C166,ГОЛОВНА!K:L,2,0)), "-") -> 1485.53
A167: 99221413 | B167: Циркуляційний насос MAGNA1 80-120 F 360 | C167: CB | E167: PN10 | F167: 2027.34 | G167: =IFERROR(F167*(1-VLOOKUP(C167,ГОЛОВНА!K:L,2,0)), "-") -> 2027.34
A168: 99221440 | B168: Циркуляційний насос MAGNA1 100-80 F 450 | C168: CB | E168: PN6 | F168: 1847.81 | G168: =IFERROR(F168*(1-VLOOKUP(C168,ГОЛОВНА!K:L,2,0)), "-") -> 1847.81
A169: 99221445 | B169: Циркуляційний насос MAGNA1 100-80 F 450 | C169: CB | E169: PN10 | F169: 1940.19 | G169: =IFERROR(F169*(1-VLOOKUP(C169,ГОЛОВНА!K:L,2,0)), "-") -> 1940.19
A170: 99221399 | B170: Циркуляційний насос MAGNA1 65-150 F N 34 | C170: CB | E170: PN6/10 | F170: 2793.99 | G170: =IFERROR(F170*(1-VLOOKUP(C170,ГОЛОВНА!K:L,2,0)), "-") -> 2793.99
A171: 99221338 | B171: Циркуляційний насос MAGNA1 50-180 F 280 | C171: CB | D171: FT | E171: PN6/10 | F171: 1734.7 | G171: =IFERROR(F171*(1-VLOOKUP(C171,ГОЛОВНА!K:L,2,0)), "-") -> 1734.7
A172: 99221363 | B172: Циркуляційний насос MAGNA1 50-180 F N 28 | C172: CB | E172: PN6/10 | F172: 2688.77 | G172: =IFERROR(F172*(1-VLOOKUP(C172,ГОЛОВНА!K:L,2,0)), "-") -> 2688.77
A173: 99221412 | B173: Циркуляційний насос MAGNA1 80-100 F 360 | C173: CB | E173: PN10 | F173: 1805.57 | G173: =IFERROR(F173*(1-VLOOKUP(C173,ГОЛОВНА!K:L,2,0)), "-") -> 1805.57
A174: 99221408 | B174: Циркуляційний насос MAGNA1 80-100 F 360 | C174: CB | E174: PN6 | F174: 1719.6 | G174: =IFERROR(F174*(1-VLOOKUP(C174,ГОЛОВНА!K:L,2,0)), "-") -> 1719.6
A175: 99221444 | B175: Циркуляційний насос MAGNA1 100-60 F 450 | C175: CB | E175: PN10 | F175: 1789.74 | G175: =IFERROR(F175*(1-VLOOKUP(C175,ГОЛОВНА!K:L,2,0)), "-") -> 1789.74
A176: 99221439 | B176: Циркуляційний насос MAGNA1 100-60 F 450 | C176: CB | E176: PN6 | F176: 1704.49 | G176: =IFERROR(F176*(1-VLOOKUP(C176,ГОЛОВНА!K:L,2,0)), "-") -> 1704.49
A177: 99221411 | B177: Циркуляційний насос MAGNA1 80-80 F 360 1 | C177: CB | E177: PN10 | F177: 1655.12 | G177: =IFERROR(F177*(1-VLOOKUP(C177,ГОЛОВНА!K:L,2,0)), "-") -> 1655.12
A178: 99221323 | B178: Циркуляційний насос MAGNA1 40-80 F N 220 | C178: CB | E178: PN6/10 | F178: 1244.9 | G178: =IFERROR(F178*(1-VLOOKUP(C178,ГОЛОВНА!K:L,2,0)), "-") -> 1244.9
A179: 99221407 | B179: Циркуляційний насос MAGNA1 80-80 F 360 1 | C179: CB | E179: PN6 | F179: 1576.28 | G179: =IFERROR(F179*(1-VLOOKUP(C179,ГОЛОВНА!K:L,2,0)), "-") -> 1576.28
A180: 99221324 | B180: Циркуляційний насос MAGNA1 40-100 F N 22 | C180: CB | E180: PN6/10 | F180: 1372.84 | G180: =IFERROR(F180*(1-VLOOKUP(C180,ГОЛОВНА!K:L,2,0)), "-") -> 1372.84
A181: 99221438 | B181: Циркуляційний насос MAGNA1 100-40 F 450 | C181: CB | E181: PN6 | F181: 1561.22 | G181: =IFERROR(F181*(1-VLOOKUP(C181,ГОЛОВНА!K:L,2,0)), "-") -> 1561.22
A182: 99221398 | B182: Циркуляційний насос MAGNA1 65-120 F N 34 | C182: CB | E182: PN6/10 | F182: 2419.88 | G182: =IFERROR(F182*(1-VLOOKUP(C182,ГОЛОВНА!K:L,2,0)), "-") -> 2419.88
A183: 99221443 | B183: Циркуляційний насос MAGNA1 100-40 F 450 | C183: CB | E183: PN10 | F183: 1639.27 | G183: =IFERROR(F183*(1-VLOOKUP(C183,ГОЛОВНА!K:L,2,0)), "-") -> 1639.27
A184: 99221337 | B184: Циркуляційний насос MAGNA1 50-150 F 280 | C184: CB | D184: FT | E184: PN6/10 | F184: 1478.26 | G184: =IFERROR(F184*(1-VLOOKUP(C184,ГОЛОВНА!K:L,2,0)), "-") -> 1478.26
A185: 99221362 | B185: Циркуляційний насос MAGNA1 50-150 F N 28 | C185: CB | E185: PN6/10 | F185: 2291.29 | G185: =IFERROR(F185*(1-VLOOKUP(C185,ГОЛОВНА!K:L,2,0)), "-") -> 2291.29
A186: 99221410 | B186: Циркуляційний насос MAGNA1 80-60 F 360 1 | C186: CB | E186: PN10 | F186: 1536.33 | G186: =IFERROR(F186*(1-VLOOKUP(C186,ГОЛОВНА!K:L,2,0)), "-") -> 1536.33
A187: 99221406 | B187: Циркуляційний насос MAGNA1 80-60 F 360 1 | C187: CB | E187: PN6 | F187: 1463.15 | G187: =IFERROR(F187*(1-VLOOKUP(C187,ГОЛОВНА!K:L,2,0)), "-") -> 1463.15
A188: 99221397 | B188: Циркуляційний насос MAGNA1 65-100 F N 34 | C188: CB | E188: PN6/10 | F188: 2256.21 | G188: =IFERROR(F188*(1-VLOOKUP(C188,ГОЛОВНА!K:L,2,0)), "-") -> 2256.21
A189: 99221327 | B189: Циркуляційний насос MAGNA1 40-180 F N 25 | C189: CB | E189: PN6/10 | F189: 2139.33 | G189: =IFERROR(F189*(1-VLOOKUP(C189,ГОЛОВНА!K:L,2,0)), "-") -> 2139.33
A190: 99221396 | B190: Циркуляційний насос MAGNA1 65-80 F N 340 | C190: CB | E190: PN6/10 | F190: 2139.33 | G190: =IFERROR(F190*(1-VLOOKUP(C190,ГОЛОВНА!K:L,2,0)), "-") -> 2139.33
A191: 99221307 | B191: Циркуляційний насос MAGNA1 40-180 F 250 | C191: CB | D191: FT | E191: PN6/10 | F191: 1380.2 | G191: =IFERROR(F191*(1-VLOOKUP(C191,ГОЛОВНА!K:L,2,0)), "-") -> 1380.2
A192: 99221372 | B192: Циркуляційний насос MAGNA1 65-80 F 340 1 | C192: CB | D192: FT | E192: PN6/10 | F192: 1380.2 | G192: =IFERROR(F192*(1-VLOOKUP(C192,ГОЛОВНА!K:L,2,0)), "-") -> 1380.2
A193: 99221361 | B193: Циркуляційний насос MAGNA1 50-120 F N 28 | C193: CB | E193: PN6/10 | F193: 1987.35 | G193: =IFERROR(F193*(1-VLOOKUP(C193,ГОЛОВНА!K:L,2,0)), "-") -> 1987.35
A194: 99221395 | B194: Циркуляційний насос MAGNA1 65-60 F N 340 | C194: CB | E194: PN6/10 | F194: 1963.97 | G194: =IFERROR(F194*(1-VLOOKUP(C194,ГОЛОВНА!K:L,2,0)), "-") -> 1963.97
A195: 99221371 | B195: Циркуляційний насос MAGNA1 65-60 F 340 1 | C195: CB | D195: FT | E195: PN6/10 | F195: 1267.06 | G195: =IFERROR(F195*(1-VLOOKUP(C195,ГОЛОВНА!K:L,2,0)), "-") -> 1267.06
A196: 99221360 | B196: Циркуляційний насос MAGNA1 50-100 F N 28 | C196: CB | E196: PN6/10 | F196: 1882.12 | G196: =IFERROR(F196*(1-VLOOKUP(C196,ГОЛОВНА!K:L,2,0)), "-") -> 1882.12
A197: 99221335 | B197: Циркуляційний насос MAGNA1 50-100 F 280 | C197: CB | D197: FT | E197: PN6/10 | F197: 1214.28 | G197: =IFERROR(F197*(1-VLOOKUP(C197,ГОЛОВНА!K:L,2,0)), "-") -> 1214.28
A198: 99221326 | B198: Циркуляційний насос MAGNA1 40-150 F N 25 | C198: CB | E198: PN6/10 | F198: 1858.75 | G198: =IFERROR(F198*(1-VLOOKUP(C198,ГОЛОВНА!K:L,2,0)), "-") -> 1858.75
A199: 99221334 | B199: Циркуляційний насос MAGNA1 50-80 F 240 1 | C199: CB | D199: FT | E199: PN6/10 | F199: 1146.4 | G199: =IFERROR(F199*(1-VLOOKUP(C199,ГОЛОВНА!K:L,2,0)), "-") -> 1146.4
A200: 99221359 | B200: Циркуляційний насос MAGNA1 50-80 F N 240 | C200: CB | E200: PN6/10 | F200: 1776.9 | G200: =IFERROR(F200*(1-VLOOKUP(C200,ГОЛОВНА!K:L,2,0)), "-") -> 1776.9
A201: 99221394 | B201: Циркуляційний насос MAGNA1 65-40 F N 340 | C201: CB | E201: PN6/10 | F201: 1718.48 | G201: =IFERROR(F201*(1-VLOOKUP(C201,ГОЛОВНА!K:L,2,0)), "-") -> 1718.48
... 272 more rows

Sheet UPS, UPSD
A1: АРТИКУЛ | B1: НАЙМЕНУВАННЯ (УКР) | C1: PRICE GROUP | D1: ДОСТАВКА | E1: ДОДАТКОВО | F1: ЦІНА (ЕВРО БЕЗ ПДВ) | G1: ЦІНА ЗІ ЗНИЖКОЮ | H1: НА ГОЛОВНУ
A2: UPS, UPSD серія 100 | G2: Циркуляційні насоси для систем опалення
A3: 52588336 | B3: Циркуляційний насос UPS25-120 180 1x230B | C3: DH | F3: 273.54 | G3: =IFERROR(F3*(1-VLOOKUP(C3,ГОЛОВНА!K:L,2,0)), "-") -> 273.54
A4: 95906404 | B4: Циркуляційний насос UPS25-55 180 1x230B | C4: DH | D4: S | F4: 201.94 | G4: =IFERROR(F4*(1-VLOOKUP(C4,ГОЛОВНА!K:L,2,0)), "-") -> 201.94
A5: 95906429 | B5: Циркуляційний насос UPS25-80 180 1x230V | C5: DH | D5: S | F5: 205.13 | G5: =IFERROR(F5*(1-VLOOKUP(C5,ГОЛОВНА!K:L,2,0)), "-") -> 205.13
A6: 95906409 | B6: Циркуляційний насос UPS32-55 180 1x230V | C6: DH | D6: S | F6: 264.14 | G6: =IFERROR(F6*(1-VLOOKUP(C6,ГОЛОВНА!K:L,2,0)), "-") -> 264.14
A7: 95906442 | B7: Циркуляційний насос UPS32-80 180 | C7: DH | D7: S | F7: 304.96 | G7: =IFERROR(F7*(1-VLOOKUP(C7,ГОЛОВНА!K:L,2,0)), "-") -> 304.96
A8: 95906413 | B8: Циркуляційний насос UPSD32-50 180 1x230V | C8: DH | F8: 404.52 | G8: =IFERROR(F8*(1-VLOOKUP(C8,ГОЛОВНА!K:L,2,0)), "-") -> 404.52
A9: 95906455 | B9: Циркуляційний насос UPSD 32-80 180 | C9: DH | F9: 530.15 | G9: =IFERROR(F9*(1-VLOOKUP(C9,ГОЛОВНА!K:L,2,0)), "-") -> 530.15
A10: 59502503 | B10: Циркуляційний насос UPS15 -20 130 1x230V | C10: DH | F10: 124.51 | G10: =IFERROR(F10*(1-VLOOKUP(C10,ГОЛОВНА!K:L,2,0)), "-") -> 124.51
A11: 59503000 | B11: Циркуляційний насос UPS15-30 130 1x230B | C11: DH | F11: 124.51 | G11: =IFERROR(F11*(1-VLOOKUP(C11,ГОЛОВНА!K:L,2,0)), "-") -> 124.51
A12: 96281368 | B12: Циркуляційний насос UPS15-40 130 1x230В | C12: DH | F12: 112.75 | G12: =IFERROR(F12*(1-VLOOKUP(C12,ГОЛОВНА!K:L,2,0)), "-") -> 112.75
A13: 96281418 | B13: Циркуляційний насос UPS15-50 130 1x230В | C13: DH | F13: 118.62 | G13: =IFERROR(F13*(1-VLOOKUP(C13,ГОЛОВНА!K:L,2,0)), "-") -> 118.62
A14: 96281471 | B14: Циркуляційний насос UPS15-60 130 1х230В | C14: DH | D14: S | F14: 129.41 | G14: =IFERROR(F14*(1-VLOOKUP(C14,ГОЛОВНА!K:L,2,0)), "-") -> 129.41
A15: 96281371 | B15: Циркуляційний насос UPS20-40 130 1x230В | C15: DH | F15: 103.94 | G15: =IFERROR(F15*(1-VLOOKUP(C15,ГОЛОВНА!K:L,2,0)), "-") -> 103.94
A16: 96281420 | B16: Циркуляційний насос UPS 20-50 130 1x230B | C16: DH | F16: 115.77 | G16: =IFERROR(F16*(1-VLOOKUP(C16,ГОЛОВНА!K:L,2,0)), "-") -> 115.77
A17: 96281472 | B17: Циркуляційний насос UPS20-60 130 1x230В | C17: DH | F17: 120.51 | G17: =IFERROR(F17*(1-VLOOKUP(C17,ГОЛОВНА!K:L,2,0)), "-") -> 120.51
A18: 96913106 | B18: Циркуляційний насос UPS20-60 N 150 1x230 | C18: DH | F18: 265.22 | G18: =IFERROR(F18*(1-VLOOKUP(C18,ГОЛОВНА!K:L,2,0)), "-") -> 265.22
A19: 96913096 | B19: Циркуляційний насос UPS20-60N 150 1x240 | C19: DH | F19: 255.18 | G19: =IFERROR(F19*(1-VLOOKUP(C19,ГОЛОВНА!K:L,2,0)), "-") -> 255.18
A20: 59542500 | B20: Циркуляційний насос UPS25-20 180 1x230V | C20: DH | F20: 112.74 | G20: =IFERROR(F20*(1-VLOOKUP(C20,ГОЛОВНА!K:L,2,0)), "-") -> 112.74
A21: 59543000 | B21: Циркуляційний насос UPS25-30 180 1x230B | C21: DH | F21: 112.74 | G21: =IFERROR(F21*(1-VLOOKUP(C21,ГОЛОВНА!K:L,2,0)), "-") -> 112.74
A22: 99150118 | B22: Циркуляційний насос UPS25-40 130 1x230В | C22: DH | D22: S | F22: 66.03 | G22: =IFERROR(F22*(1-VLOOKUP(C22,ГОЛОВНА!K:L,2,0)), "-") -> 66.03
A23: 96281376 | B23: Циркуляційний насос UPS25-40 130 1x230В | C23: DH | D23: S | F23: 78.34 | G23: =IFERROR(F23*(1-VLOOKUP(C23,ГОЛОВНА!K:L,2,0)), "-") -> 78.34
A24: 98367575 | B24: Насос UPS25-40 180 1x230V з к-том G1½x1 | C24: DH | D24: S | F24: 66.24 | G24: =IFERROR(F24*(1-VLOOKUP(C24,ГОЛОВНА!K:L,2,0)), "-") -> 66.24
A25: 59544505 | B25: Циркуляційний насос UPS25-40 K 180 1x230 | C25: DH | F25: 137.24 | G25: =IFERROR(F25*(1-VLOOKUP(C25,ГОЛОВНА!K:L,2,0)), "-") -> 137.24
A26: 96913060 | B26: Циркуляційний насос UPS25-40 N 180 1x230 | C26: DH | D26: S | F26: 173.8 | G26: =IFERROR(F26*(1-VLOOKUP(C26,ГОЛОВНА!K:L,2,0)), "-") -> 173.8
A27: 96281424 | B27: Циркуляційний насос UPS25-50 130 1x230В | C27: DH | F27: 107.83 | G27: =IFERROR(F27*(1-VLOOKUP(C27,ГОЛОВНА!K:L,2,0)), "-") -> 107.83
A28: 96281432 | B28: Циркуляційний насос UPS25-50 180 1x230В | C28: DH | D28: S | F28: 107.83 | G28: =IFERROR(F28*(1-VLOOKUP(C28,ГОЛОВНА!K:L,2,0)), "-") -> 107.83
A29: 99150120 | B29: Циркуляційний насос UPS25-60 130 1x230В | C29: DH | D29: S | F29: 71.7 | G29: =IFERROR(F29*(1-VLOOKUP(C29,ГОЛОВНА!K:L,2,0)), "-") -> 71.7
A30: 96281476 | B30: Циркуляційний насос UPS25-60 130 1x230В | C30: DH | D30: S | F30: 117.64 | G30: =IFERROR(F30*(1-VLOOKUP(C30,ГОЛОВНА!K:L,2,0)), "-") -> 117.64
A31: 99309993 | B31: Циркуляц. насос UPS25-60 180 1x230V 50Hz | C31: DH | F31: 69.63 | G31: =IFERROR(F31*(1-VLOOKUP(C31,ГОЛОВНА!K:L,2,0)), "-") -> 69.63
A32: 98368443 | B32: Насос UPS25-60 180 1x230V з к-том G1½x1 | C32: DH | D32: S | F32: 72.4 | G32: =IFERROR(F32*(1-VLOOKUP(C32,ГОЛОВНА!K:L,2,0)), "-") -> 72.4
A33: 96913090 | B33: Циркуляц. насос UPS25-60 N 180 | C33: DH | F33: 241.12 | G33: =IFERROR(F33*(1-VLOOKUP(C33,ГОЛОВНА!K:L,2,0)), "-") -> 241.12
A34: 96913085 | B34: Циркуляційний насос UPS25-60 N 180 1x230 | C34: DH | D34: S | F34: 229.45 | G34: =IFERROR(F34*(1-VLOOKUP(C34,ГОЛОВНА!K:L,2,0)), "-") -> 229.45
A35: 96913058 | B35: Циркуляційний насос UPS25-60 N 180 3x400 | C35: DH | F35: 361.68 | G35: =IFERROR(F35*(1-VLOOKUP(C35,ГОЛОВНА!K:L,2,0)), "-") -> 361.68
A36: 96621356 | B36: Циркуляційний насос UPS 25-70 130 1x230V | C36: DH | F36: 132.36 | G36: =IFERROR(F36*(1-VLOOKUP(C36,ГОЛОВНА!K:L,2,0)), "-") -> 132.36
A37: 96621354 | B37: Циркуляційний насос UPS25-70 180 1x230В | C37: DH | D37: S | F37: 108.03 | G37: =IFERROR(F37*(1-VLOOKUP(C37,ГОЛОВНА!K:L,2,0)), "-") -> 108.03
A38: 59582800 | B38: Циркуляційний насос UPS32-20 180 3x400V | C38: DH | F38: 195.12 | G38: =IFERROR(F38*(1-VLOOKUP(C38,ГОЛОВНА!K:L,2,0)), "-") -> 195.12
A39: 59583000 | B39: Циркуляційний насос UPS32-30 180 1x230V | C39: DH | F39: 130.08 | G39: =IFERROR(F39*(1-VLOOKUP(C39,ГОЛОВНА!K:L,2,0)), "-") -> 130.08
A40: 98368439 | B40: Насос UPS32-40 180 1x230V з к-том G2x1¼ | C40: DH | D40: S | F40: 84.27 | G40: =IFERROR(F40*(1-VLOOKUP(C40,ГОЛОВНА!K:L,2,0)), "-") -> 84.27
A41: 96281435 | B41: Циркуляційний насос UPS32-50 180 1x230В | C41: DH | D41: S | F41: 125.16 | G41: =IFERROR(F41*(1-VLOOKUP(C41,ГОЛОВНА!K:L,2,0)), "-") -> 125.16
A42: 59585800 | B42: Циркуляційний насос UPS32-50 180 3x400V | C42: DH | F42: 178.13 | G42: =IFERROR(F42*(1-VLOOKUP(C42,ГОЛОВНА!K:L,2,0)), "-") -> 178.13
A43: 98368440 | B43: Насос UPS32-60 180 1x230V з к-том G2x1¼ | C43: DH | D43: S | F43: 100.75 | G43: =IFERROR(F43*(1-VLOOKUP(C43,ГОЛОВНА!K:L,2,0)), "-") -> 100.75
A44: 59586800 | B44: Циркуляційний насос UPS32 -60 180 3x400V | C44: DH | F44: 204 | G44: =IFERROR(F44*(1-VLOOKUP(C44,ГОЛОВНА!K:L,2,0)), "-") -> 204
A45: 96621355 | B45: Циркуляційний насос UPS32-70 180 1x230В | C45: DH | D45: S | F45: 117.51 | G45: =IFERROR(F45*(1-VLOOKUP(C45,ГОЛОВНА!K:L,2,0)), "-") -> 117.51
A46: 95906448 | B46: Циркуляційний насос UPS32-80 N 180 1x230 | C46: DH | D46: S | F46: 467.31 | G46: =IFERROR(F46*(1-VLOOKUP(C46,ГОЛОВНА!K:L,2,0)), "-") -> 467.31
A48: UPS, серія 200, | G48: Циркуляційні насоси для систем опалення і кондиціонування
A49: 96401837 | B49: Циркуляційний насос UPS32-120 F 1x230-24 | C49: CB | D49: S | F49: 406.75 | G49: =IFERROR(F49*(1-VLOOKUP(C49,ГОЛОВНА!K:L,2,0)), "-") -> 406.75
A50: 96401839 | B50: Циркуляційний насос UPS32-120 F 3x400-41 | C50: CB | D50: S | F50: 369.77 | G50: =IFERROR(F50*(1-VLOOKUP(C50,ГОЛОВНА!K:L,2,0)), "-") -> 369.77
A51: 96401844 | B51: Циркуляційний насос UPS32-120 F B 1x230- | C51: CB | F51: 1080.05 | G51: =IFERROR(F51*(1-VLOOKUP(C51,ГОЛОВНА!K:L,2,0)), "-") -> 1080.05
A52: 96401846 | B52: Циркуляційний насос UPS32-120 F B 3x400- | C52: CB | F52: 982.04 | G52: =IFERROR(F52*(1-VLOOKUP(C52,ГОЛОВНА!K:L,2,0)), "-") -> 982.04
A53: 96401771 | B53: Циркуляційний насос UPS32-60 F 1x230-240 | C53: CB | D53: S | F53: 446.49 | G53: =IFERROR(F53*(1-VLOOKUP(C53,ГОЛОВНА!K:L,2,0)), "-") -> 446.49
A54: 96401777 | B54: Циркуляційний насос UPS32-60 F 3x400-415 | C54: CB | D54: S | F54: 417.29 | G54: =IFERROR(F54*(1-VLOOKUP(C54,ГОЛОВНА!K:L,2,0)), "-") -> 417.29
A55: 96401797 | B55: Циркуляційний насос UPS32-60 F B 1x230-2 | C55: CB | F55: 918.2 | G55: =IFERROR(F55*(1-VLOOKUP(C55,ГОЛОВНА!K:L,2,0)), "-") -> 918.2
A56: 96401808 | B56: Циркуляційний насос UPS32-60 F B 3x400-4 | C56: CB | F56: 834.72 | G56: =IFERROR(F56*(1-VLOOKUP(C56,ГОЛОВНА!K:L,2,0)), "-") -> 834.72
A57: 96401942 | B57: Циркуляційний насос UPS40-120 F 1x230-24 | C57: CB | D57: S | F57: 630.04 | G57: =IFERROR(F57*(1-VLOOKUP(C57,ГОЛОВНА!K:L,2,0)), "-") -> 630.04
A58: 96401949 | B58: Циркуляційний насос UPS40-120 F B 1x230- | C58: CB | F58: 1260.05 | G58: =IFERROR(F58*(1-VLOOKUP(C58,ГОЛОВНА!K:L,2,0)), "-") -> 1260.05
A59: 96401951 | B59: Циркуляційний насос UPS40-120 F B 3x400- | C59: CB | F59: 1145.52 | G59: =IFERROR(F59*(1-VLOOKUP(C59,ГОЛОВНА!K:L,2,0)), "-") -> 1145.52
A60: 96401944 | B60: Циркуляційний насос UPS40-120 F 3x400-41 | C60: CB | D60: S | F60: 572.79 | G60: =IFERROR(F60*(1-VLOOKUP(C60,ГОЛОВНА!K:L,2,0)), "-") -> 572.79
A61: 96401977 | B61: Циркуляційний насос UPS40-180 F 1x230-24 | C61: CB | D61: S | F61: 717.24 | G61: =IFERROR(F61*(1-VLOOKUP(C61,ГОЛОВНА!K:L,2,0)), "-") -> 717.24
A62: 96401979 | B62: Циркуляційний насос UPS40-180 F 3x400-41 | C62: CB | D62: S | F62: 658.7 | G62: =IFERROR(F62*(1-VLOOKUP(C62,ГОЛОВНА!K:L,2,0)), "-") -> 658.7
A63: 96401983 | B63: Циркуляційний насос UPS40-180 F B 1x230- | C63: CB | F63: 1449.08 | G63: =IFERROR(F63*(1-VLOOKUP(C63,ГОЛОВНА!K:L,2,0)), "-") -> 1449.08
A64: 96401985 | B64: Циркуляційний насос UPS40-180 F B 3x400- | C64: CB | F64: 1317.34 | G64: =IFERROR(F64*(1-VLOOKUP(C64,ГОЛОВНА!K:L,2,0)), "-") -> 1317.34
A65: 96430299 | B65: Циркуляційний насос UPS40-185 F 1x230-24 | C65: CB | D65: S | F65: 787.55 | G65: =IFERROR(F65*(1-VLOOKUP(C65,ГОЛОВНА!K:L,2,0)), "-") -> 787.55
A66: 96430296 | B66: Циркуляційний насос UPS40-185 F 3x400-41 | C66: CB | D66: S | F66: 708.73 | G66: =IFERROR(F66*(1-VLOOKUP(C66,ГОЛОВНА!K:L,2,0)), "-") -> 708.73
A67: 96401915 | B67: Циркуляційний насос UPS40-60/2 F 1x230-2 | C67: CB | D67: S | F67: 530.14 | G67: =IFERROR(F67*(1-VLOOKUP(C67,ГОЛОВНА!K:L,2,0)), "-") -> 530.14
A68: 96401917 | B68: Циркуляційний насос UPS40-60/2 F 3x400-4 | C68: CB | D68: S | F68: 481.93 | G68: =IFERROR(F68*(1-VLOOKUP(C68,ГОЛОВНА!K:L,2,0)), "-") -> 481.93
A69: 96401921 | B69: Циркуляційний насос UPS40-60/2 F B 1x230 | C69: CB | F69: 1071.08 | G69: =IFERROR(F69*(1-VLOOKUP(C69,ГОЛОВНА!K:L,2,0)), "-") -> 1071.08
A70: 96401923 | B70: Циркуляційний насос UPS40-60/2 F B 3x400 | C70: CB | F70: 973.71 | G70: =IFERROR(F70*(1-VLOOKUP(C70,ГОЛОВНА!K:L,2,0)), "-") -> 973.71
A71: 96402101 | B71: Циркуляційний насос UPS50-120 F 1x230-24 | C71: CB | D71: S | F71: 765.04 | G71: =IFERROR(F71*(1-VLOOKUP(C71,ГОЛОВНА!K:L,2,0)), "-") -> 765.04
A72: 96402103 | B72: Циркуляційний насос UPS50-120 F 3x400-41 | C72: CB | D72: S | F72: 695.49 | G72: =IFERROR(F72*(1-VLOOKUP(C72,ГОЛОВНА!K:L,2,0)), "-") -> 695.49
A73: 96402108 | B73: Циркуляційний насос UPS50-120 F B 1x230- | C73: CB | F73: 1530.09 | G73: =IFERROR(F73*(1-VLOOKUP(C73,ГОЛОВНА!K:L,2,0)), "-") -> 1530.09
A74: 96402110 | B74: Циркуляційний насос UPS50-120 F B 3x400- | C74: CB | F74: 1391 | G74: =IFERROR(F74*(1-VLOOKUP(C74,ГОЛОВНА!K:L,2,0)), "-") -> 1391
A75: 96402134 | B75: Циркуляційний насос UPS50-180 F 1x230-24 | C75: CB | D75: S | F75: 879.81 | G75: =IFERROR(F75*(1-VLOOKUP(C75,ГОЛОВНА!K:L,2,0)), "-") -> 879.81
A76: 96402136 | B76: Циркуляційний насос UPS50-180 F 3x400-41 | C76: CB | D76: S | F76: 799.84 | G76: =IFERROR(F76*(1-VLOOKUP(C76,ГОЛОВНА!K:L,2,0)), "-") -> 799.84
A77: 96402140 | B77: Циркуляційний насос UPS50-180 F B 1x230- | C77: CB | F77: 1759.61 | G77: =IFERROR(F77*(1-VLOOKUP(C77,ГОЛОВНА!K:L,2,0)), "-") -> 1759.61
A78: 96402142 | B78: Циркуляційний насос UPS50-180 F B 3x400- | C78: CB | F78: 1599.65 | G78: =IFERROR(F78*(1-VLOOKUP(C78,ГОЛОВНА!K:L,2,0)), "-") -> 1599.65
A79: 96430300 | B79: Циркуляційний насос UPS50-185 F 1x230-24 | C79: CB | F79: 956.77 | G79: =IFERROR(F79*(1-VLOOKUP(C79,ГОЛОВНА!K:L,2,0)), "-") -> 956.77
A80: 96430297 | B80: Циркуляційний насос UPS50-185 F 3x400-41 | C80: CB | D80: S | F80: 869.77 | G80: =IFERROR(F80*(1-VLOOKUP(C80,ГОЛОВНА!K:L,2,0)), "-") -> 869.77
A81: 96402053 | B81: Циркуляційний насос UPS50-60/2 F 1x230-2 | C81: CB | D81: S | F81: 650.28 | G81: =IFERROR(F81*(1-VLOOKUP(C81,ГОЛОВНА!K:L,2,0)), "-") -> 650.28
A82: 96402055 | B82: Циркуляційний насос UPS50-60/2 F 3x400-4 | C82: CB | D82: S | F82: 591.18 | G82: =IFERROR(F82*(1-VLOOKUP(C82,ГОЛОВНА!K:L,2,0)), "-") -> 591.18
A83: 96402064 | B83: Циркуляційний насос UPS50-60/2 F B 1x230 | C83: CB | F83: 1300.58 | G83: =IFERROR(F83*(1-VLOOKUP(C83,ГОЛОВНА!K:L,2,0)), "-") -> 1300.58
A84: 96402072 | B84: Циркуляційний насос UPS50-60/2 F B 3x400 | C84: CB | F84: 1182.34 | G84: =IFERROR(F84*(1-VLOOKUP(C84,ГОЛОВНА!K:L,2,0)), "-") -> 1182.34
A85: 96402278 | B85: Циркуляційний насос UPS65-120 F 1x230-24 | C85: CB | F85: 900.05 | G85: =IFERROR(F85*(1-VLOOKUP(C85,ГОЛОВНА!K:L,2,0)), "-") -> 900.05
A86: 96402280 | B86: Циркуляційний насос UPS65-120 F 3x400-41 | C86: CB | D86: S | F86: 818.23 | G86: =IFERROR(F86*(1-VLOOKUP(C86,ГОЛОВНА!K:L,2,0)), "-") -> 818.23
A87: 96402285 | B87: Циркуляційний насос UPS65-120 F B 1x230- | C87: CB | F87: 1800.11 | G87: =IFERROR(F87*(1-VLOOKUP(C87,ГОЛОВНА!K:L,2,0)), "-") -> 1800.11
A88: 96402287 | B88: Циркуляційний насос UPS65-120 F B 3x400- | C88: CB | F88: 1636.47 | G88: =IFERROR(F88*(1-VLOOKUP(C88,ГОЛОВНА!K:L,2,0)), "-") -> 1636.47
A89: 96402316 | B89: Циркуляційний насос UPS65-180 F 3x400-41 | C89: CB | D89: S | F89: 931.27 | G89: =IFERROR(F89*(1-VLOOKUP(C89,ГОЛОВНА!K:L,2,0)), "-") -> 931.27
A90: 96402320 | B90: Циркуляційний насос UPS65-180 F B 3x400- | C90: CB | F90: 1881.94 | G90: =IFERROR(F90*(1-VLOOKUP(C90,ГОЛОВНА!K:L,2,0)), "-") -> 1881.94
A91: 96430298 | B91: Циркуляційний насос UPS65-185 F 3x400-41 | C91: CB | D91: S | F91: 1022.79 | G91: =IFERROR(F91*(1-VLOOKUP(C91,ГОЛОВНА!K:L,2,0)), "-") -> 1022.79
A92: 96402258 | B92: Циркуляційний насос UPS65-60/2 F 1x230-2 | C92: CB | F92: 765.04 | G92: =IFERROR(F92*(1-VLOOKUP(C92,ГОЛОВНА!K:L,2,0)), "-") -> 765.04
A93: 96402260 | B93: Циркуляційний насос UPS65-60/2 F 3x400-4 | C93: CB | D93: S | F93: 695.49 | G93: =IFERROR(F93*(1-VLOOKUP(C93,ГОЛОВНА!K:L,2,0)), "-") -> 695.49
A94: 96402262 | B94: Циркуляційний насос UPS65-60/2 F B 1x230 | C94: CB | F94: 1530.09 | G94: =IFERROR(F94*(1-VLOOKUP(C94,ГОЛОВНА!K:L,2,0)), "-") -> 1530.09
A95: 96402264 | B95: Циркуляційний насос UPS65-60/2 F B 3x400 | C95: CB | F95: 1391 | G95: =IFERROR(F95*(1-VLOOKUP(C95,ГОЛОВНА!K:L,2,0)), "-") -> 1391
A96: 96402441 | B96: Циркуляційний насос UPS80-120 F 3x400-41 | C96: CB | D96: S | F96: 1052.96 | G96: =IFERROR(F96*(1-VLOOKUP(C96,ГОЛОВНА!K:L,2,0)), "-") -> 1052.96
A97: 96402440 | B97: Циркуляційний насос UPS80-120 F 3x400-41 | C97: CB | D97: S | F97: 1022.79 | G97: =IFERROR(F97*(1-VLOOKUP(C97,ГОЛОВНА!K:L,2,0)), "-") -> 1022.79
A98: 96402445 | B98: Циркуляційний насос UPS80-120 F B 3x400- | C98: CB | F98: 2127.42 | G98: =IFERROR(F98*(1-VLOOKUP(C98,ГОЛОВНА!K:L,2,0)), "-") -> 2127.42
A99: 96404924 | B99: Циркуляційний насос UPS80-120 FB 3x400-4 | C99: CB | F99: 2045.59 | G99: =IFERROR(F99*(1-VLOOKUP(C99,ГОЛОВНА!K:L,2,0)), "-") -> 2045.59
A100: 96402392 | B100: Циркуляційний насос UPS80-60 F 3x400-415 | C100: CB | F100: 1000.32 | G100: =IFERROR(F100*(1-VLOOKUP(C100,ГОЛОВНА!K:L,2,0)), "-") -> 1000.32
A101: 96402391 | B101: Циркуляційний насос UPS80-60 F 3x400-415 | C101: CB | F101: 961.85 | G101: =IFERROR(F101*(1-VLOOKUP(C101,ГОЛОВНА!K:L,2,0)), "-") -> 961.85
A102: 96402401 | B102: Циркуляційний насос UPS80-60 F B 3x400-4 | C102: CB | F102: 2021.03 | G102: =IFERROR(F102*(1-VLOOKUP(C102,ГОЛОВНА!K:L,2,0)), "-") -> 2021.03
A103: 96404916 | B103: Циркуляційний насос UPS80-60 FB 3x400-41 | C103: CB | F103: 1943.3 | G103: =IFERROR(F103*(1-VLOOKUP(C103,ГОЛОВНА!K:L,2,0)), "-") -> 1943.3
A104: 95906500 | B104: Циркуляційний насос UPS32-100 180 1x230V | C104: DH | D104: S | F104: 367.61 | G104: =IFERROR(F104*(1-VLOOKUP(C104,ГОЛОВНА!K:L,2,0)), "-") -> 367.61
A105: 95906480 | B105: Циркуляційний насос UPS25-100 180 1x230 | C105: DH | D105: S | F105: 376 | G105: =IFERROR(F105*(1-VLOOKUP(C105,ГОЛОВНА!K:L,2,0)), "-") -> 376
A106: 95906483 | B106: Циркуляційний насос UPS32 -100 F 220 1x2 | C106: DH | F106: 422.59 | G106: =IFERROR(F106*(1-VLOOKUP(C106,ГОЛОВНА!K:L,2,0)), "-") -> 422.59
A107: 95906489 | B107: Циркуляційний насос UPS32 -100 N 180 1x2 | C107: DH | D107: S | F107: 565.82 | G107: =IFERROR(F107*(1-VLOOKUP(C107,ГОЛОВНА!K:L,2,0)), "-") -> 565.82
A108: 95906415 | B108: Циркуляційний насос UPS32-50 F 220 1x230 | C108: DH | F108: 317.87 | G108: =IFERROR(F108*(1-VLOOKUP(C108,ГОЛОВНА!K:L,2,0)), "-") -> 317.87
A109: 95906458 | B109: Циркуляційний насос UPS32-80 F 220 1x230 | C109: DH | D109: S | F109: 381.41 | G109: =IFERROR(F109*(1-VLOOKUP(C109,ГОЛОВНА!K:L,2,0)), "-") -> 381.41
A110: 95906486 | B110: Циркуляційний насос UPS40 -100 F 250 1x2 | C110: DH | F110: 459.16 | G110: =IFERROR(F110*(1-VLOOKUP(C110,ГОЛОВНА!K:L,2,0)), "-") -> 459.16
A111: 95906420 | B111: Циркуляційний насос UPS40-50 F 250 1x230 | C111: DH | F111: 337.31 | G111: =IFERROR(F111*(1-VLOOKUP(C111,ГОЛОВНА!K:L,2,0)), "-") -> 337.31
A112: 95906422 | B112: Циркуляційний насос UPS40-50 FN 250 1x23 | C112: DH | F112: 627.31 | G112: =IFERROR(F112*(1-VLOOKUP(C112,ГОЛОВНА!K:L,2,0)), "-") -> 627.31
A113: 95906462 | B113: Циркуляційний насос UPS40-80 F 250 1x230 | C113: DH | D113: S | F113: 404.27 | G113: =IFERROR(F113*(1-VLOOKUP(C113,ГОЛОВНА!K:L,2,0)), "-") -> 404.27
A114: 95906753 | B114: Циркуляційний насос UPS40-80 FN 250 1x23 | C114: DH | F114: 737.95 | G114: =IFERROR(F114*(1-VLOOKUP(C114,ГОЛОВНА!K:L,2,0)), "-") -> 737.95
A116: Здвоєнні насоси UPS, UPSD серія 200 | G116: Циркуляційні насоси для систем опалення і кондиціонування
A117: 96408893 | B117: Циркуляційний насос UPSD32-120 F 1x230-2 | C117: CB | F117: 999.72 | G117: =IFERROR(F117*(1-VLOOKUP(C117,ГОЛОВНА!K:L,2,0)), "-") -> 999.72
A118: 96401841 | B118: Циркуляційний насос UPSD32-120 F 1x230-2 | C118: CB | F118: 1053.78 | G118: =IFERROR(F118*(1-VLOOKUP(C118,ГОЛОВНА!K:L,2,0)), "-") -> 1053.78
A119: 96408961 | B119: Циркуляційний насос UPSD32-120 F 3x400-4 | C119: CB | F119: 908.84 | G119: =IFERROR(F119*(1-VLOOKUP(C119,ГОЛОВНА!K:L,2,0)), "-") -> 908.84
A120: 96401843 | B120: Циркуляційний насос UPSD32-120 F 3x400-4 | C120: CB | F120: 957.95 | G120: =IFERROR(F120*(1-VLOOKUP(C120,ГОЛОВНА!K:L,2,0)), "-") -> 957.95
A121: 96408898 | B121: Циркуляційний насос UPSD32-60 F 1x230-24 | C121: CB | F121: 849.77 | G121: =IFERROR(F121*(1-VLOOKUP(C121,ГОЛОВНА!K:L,2,0)), "-") -> 849.77
A122: 96401783 | B122: Циркуляційний насос UPSD32-60 F 1x230-24 | C122: CB | F122: 895.7 | G122: =IFERROR(F122*(1-VLOOKUP(C122,ГОЛОВНА!K:L,2,0)), "-") -> 895.7
A123: 96408900 | B123: Циркуляційний насос UPSD32-60 F | C123: CB | F123: 772.53 | G123: =IFERROR(F123*(1-VLOOKUP(C123,ГОЛОВНА!K:L,2,0)), "-") -> 772.53
A124: 96401792 | B124: Циркуляційний насос UPSD32 -60 F 3x400-4 | C124: CB | F124: 814.29 | G124: =IFERROR(F124*(1-VLOOKUP(C124,ГОЛОВНА!K:L,2,0)), "-") -> 814.29
A125: 96408901 | B125: Циркуляційний насос UPSD40-120 F 1x230-2 | C125: CB | F125: 1166.35 | G125: =IFERROR(F125*(1-VLOOKUP(C125,ГОЛОВНА!K:L,2,0)), "-") -> 1166.35
A126: 96401946 | B126: Циркуляційний насос UPSD40-120 F 1x230-2 | C126: CB | F126: 1229.39 | G126: =IFERROR(F126*(1-VLOOKUP(C126,ГОЛОВНА!K:L,2,0)), "-") -> 1229.39
A127: 96408903 | B127: Циркуляційний насос UPSD40-120 F 3x400-4 | C127: CB | F127: 1060.32 | G127: =IFERROR(F127*(1-VLOOKUP(C127,ГОЛОВНА!K:L,2,0)), "-") -> 1060.32
A128: 96401948 | B128: Циркуляційний насос UPSD40-120 F | C128: CB | F128: 1117.65 | G128: =IFERROR(F128*(1-VLOOKUP(C128,ГОЛОВНА!K:L,2,0)), "-") -> 1117.65
A129: 96408907 | B129: Циркуляційний насос UPSD40-60 F 1x230-24 | C129: CB | F129: 991.4 | G129: =IFERROR(F129*(1-VLOOKUP(C129,ГОЛОВНА!K:L,2,0)), "-") -> 991.4
A130: 96401918 | B130: Циркуляційний насос UPSD40-60 F 1x230-24 | C130: CB | F130: 1044.99 | G130: =IFERROR(F130*(1-VLOOKUP(C130,ГОЛОВНА!K:L,2,0)), "-") -> 1044.99
A131: 96408909 | B131: Циркуляційний насос UPSD40-60 F 3x400-41 | C131: CB | F131: 901.27 | G131: =IFERROR(F131*(1-VLOOKUP(C131,ГОЛОВНА!K:L,2,0)), "-") -> 901.27
A132: 96401920 | B132: Циркуляційний насос UPSD40-60/2 F 3x400 | C132: CB | F132: 949.99 | G132: =IFERROR(F132*(1-VLOOKUP(C132,ГОЛОВНА!K:L,2,0)), "-") -> 949.99
A133: 96408910 | B133: Циркуляційний насос UPSD50-120 F 1x230-2 | C133: CB | F133: 1416.27 | G133: =IFERROR(F133*(1-VLOOKUP(C133,ГОЛОВНА!K:L,2,0)), "-") -> 1416.27
A134: 96402105 | B134: Циркуляційний насос UPSD 50-120 F 1x230- | C134: CB | F134: 1492.83 | G134: =IFERROR(F134*(1-VLOOKUP(C134,ГОЛОВНА!K:L,2,0)), "-") -> 1492.83
A135: 96408912 | B135: Циркуляційний насос UPSD50-120 F 3x400-4 | C135: CB | D135: S | F135: 1287.52 | G135: =IFERROR(F135*(1-VLOOKUP(C135,ГОЛОВНА!K:L,2,0)), "-") -> 1287.52
A136: 96402107 | B136: Циркуляційний насос UPSD50-120 F 3x400-4 | C136: CB | F136: 1357.12 | G136: =IFERROR(F136*(1-VLOOKUP(C136,ГОЛОВНА!K:L,2,0)), "-") -> 1357.12
A137: 96408913 | B137: Циркуляційний насос UPSD50-180 F 1x230-2 | C137: CB | F137: 1628.71 | G137: =IFERROR(F137*(1-VLOOKUP(C137,ГОЛОВНА!K:L,2,0)), "-") -> 1628.71
A138: 96402137 | B138: Циркуляційний насос UPSD50-180 F 1x230-2 | C138: CB | F138: 1716.77 | G138: =IFERROR(F138*(1-VLOOKUP(C138,ГОЛОВНА!K:L,2,0)), "-") -> 1716.77
A139: 96408915 | B139: Циркуляційний насос UPSD50-180 F 3x400-4 | C139: CB | D139: S | F139: 1480.66 | G139: =IFERROR(F139*(1-VLOOKUP(C139,ГОЛОВНА!K:L,2,0)), "-") -> 1480.66
A140: 96402139 | B140: Циркуляційний насос UPSD50-180 F 3x400-4 | C140: CB | F140: 1560.71 | G140: =IFERROR(F140*(1-VLOOKUP(C140,ГОЛОВНА!K:L,2,0)), "-") -> 1560.71
A141: 96408919 | B141: Циркуляційний насос UPSD50-60/2 F 1x230- | C141: CB | F141: 1203.84 | G141: =IFERROR(F141*(1-VLOOKUP(C141,ГОЛОВНА!K:L,2,0)), "-") -> 1203.84
A142: 96402057 | B142: Циркуляційний насос UPSD50-60/2 F 1x230- | C142: CB | F142: 1268.93 | G142: =IFERROR(F142*(1-VLOOKUP(C142,ГОЛОВНА!K:L,2,0)), "-") -> 1268.93
A143: 96408921 | B143: Циркуляційний насос UPSD50-60/2 F | C143: CB | F143: 1094.4 | G143: =IFERROR(F143*(1-VLOOKUP(C143,ГОЛОВНА!K:L,2,0)), "-") -> 1094.4
A144: 96402060 | B144: Циркуляційний насос UPSD50-60/2 F 3x400- | C144: CB | F144: 1153.55 | G144: =IFERROR(F144*(1-VLOOKUP(C144,ГОЛОВНА!K:L,2,0)), "-") -> 1153.55
A145: 96408925 | B145: Циркуляційний насос UPSD65-120 F 1x230-2 | C145: CB | F145: 1666.2 | G145: =IFERROR(F145*(1-VLOOKUP(C145,ГОЛОВНА!K:L,2,0)), "-") -> 1666.2
A146: 96402282 | B146: Циркуляційний насос UPSD65-120 F 1x230-2 | C146: CB | F146: 1756.28 | G146: =IFERROR(F146*(1-VLOOKUP(C146,ГОЛОВНА!K:L,2,0)), "-") -> 1756.28
A147: 96408927 | B147: Циркуляційний насос UPSD65-120 F 3x400-4 | C147: CB | F147: 1514.76 | G147: =IFERROR(F147*(1-VLOOKUP(C147,ГОЛОВНА!K:L,2,0)), "-") -> 1514.76
A148: 96402284 | B148: Циркуляційний насос UPSD65-120 F 3x400-4 | C148: CB | F148: 1596.62 | G148: =IFERROR(F148*(1-VLOOKUP(C148,ГОЛОВНА!K:L,2,0)), "-") -> 1596.62
A149: 96408929 | B149: Циркуляційний насос UPSD65-180 F 3x400-4 | C149: CB | F149: 1741.96 | G149: =IFERROR(F149*(1-VLOOKUP(C149,ГОЛОВНА!K:L,2,0)), "-") -> 1741.96
A150: 96402318 | B150: Циркуляційний насос UPSD65-180 F 3x400-4 | C150: CB | D150: S | F150: 1836.11 | G150: =IFERROR(F150*(1-VLOOKUP(C150,ГОЛОВНА!K:L,2,0)), "-") -> 1836.11
A151: 96408933 | B151: Циркуляційний насос UPSD65-60/2 1x230-24 | C151: CB | F151: 1416.27 | G151: =IFERROR(F151*(1-VLOOKUP(C151,ГОЛОВНА!K:L,2,0)), "-") -> 1416.27
A152: 96408935 | B152: Циркуляційний насос UPSD65-60/2 3x400-41 | C152: CB | F152: 1287.53 | G152: =IFERROR(F152*(1-VLOOKUP(C152,ГОЛОВНА!K:L,2,0)), "-") -> 1287.53
A153: 96404983 | B153: Циркуляційний насос UPSD65-60/2 F 3x400- | C153: CB | F153: 1357.12 | G153: =IFERROR(F153*(1-VLOOKUP(C153,ГОЛОВНА!K:L,2,0)), "-") -> 1357.12
A154: 96408943 | B154: Циркуляційний насос UPSD80-120 F 3x400-4 | C154: CB | F154: 1969.16 | G154: =IFERROR(F154*(1-VLOOKUP(C154,ГОЛОВНА!K:L,2,0)), "-") -> 1969.16
A155: 96403132 | B155: Циркуляційний насос UPSD80-120F 3x400-41 | C155: CB | F155: 2075.61 | G155: =IFERROR(F155*(1-VLOOKUP(C155,ГОЛОВНА!K:L,2,0)), "-") -> 2075.61
A156: 96408944 | B156: Циркуляційний насос UPSD80-120 F 3x400-4 | C156: CB | F156: 1893.41 | G156: =IFERROR(F156*(1-VLOOKUP(C156,ГОЛОВНА!K:L,2,0)), "-") -> 1893.41
A157: 96403131 | B157: Циркуляційний насос UPSD80-120 F 3x400-4 | C157: CB | F157: 1995.77 | G157: =IFERROR(F157*(1-VLOOKUP(C157,ГОЛОВНА!K:L,2,0)), "-") -> 1995.77
A158: 96408951 | B158: Циркуляційний насос UPSD80-60 F 3x400-41 | C158: CB | F158: 1870.71 | G158: =IFERROR(F158*(1-VLOOKUP(C158,ГОЛОВНА!K:L,2,0)), "-") -> 1870.71
A159: 96402398 | B159: Циркуляційний насос UPSD80-60 F 3x400-41 | C159: CB | F159: 1971.82 | G159: =IFERROR(F159*(1-VLOOKUP(C159,ГОЛОВНА!K:L,2,0)), "-") -> 1971.82
A160: 96408952 | B160: Циркуляційний насос UPSD80-60 F 3x400-41 | C160: CB | F160: 1798.76 | G160: =IFERROR(F160*(1-VLOOKUP(C160,ГОЛОВНА!K:L,2,0)), "-") -> 1798.76
A161: 96402397 | B161: Циркуляційний насос UPSD80-60 F 3x400-41 | C161: CB | F161: 1895.97 | G161: =IFERROR(F161*(1-VLOOKUP(C161,ГОЛОВНА!K:L,2,0)), "-") -> 1895.97
A162: 95906484 | B162: Циркуляційний насос UPSD 32-100 F 220 1x | C162: DH | F162: 902.23 | G162: =IFERROR(F162*(1-VLOOKUP(C162,ГОЛОВНА!K:L,2,0)), "-") -> 902.23
A163: 95906416 | B163: Циркуляційний насос UPSD32-50 F 220 1x23 | C163: DH | F163: 455.05 | G163: =IFERROR(F163*(1-VLOOKUP(C163,ГОЛОВНА!K:L,2,0)), "-") -> 455.05
A164: 95906459 | B164: Циркуляційний насос UPSD32-80 F220 | C164: DH | F164: 549.09 | G164: =IFERROR(F164*(1-VLOOKUP(C164,ГОЛОВНА!K:L,2,0)), "-") -> 549.09
A165: 95906487 | B165: Циркуляційний насос UPSD 40-100 F 250 1x | C165: DH | F165: 910.96 | G165: =IFERROR(F165*(1-VLOOKUP(C165,ГОЛОВНА!K:L,2,0)), "-") -> 910.96
A166: 95906423 | B166: Циркуляційний насос UPSD40-50 F 250 1x23 | C166: DH | F166: 639.28 | G166: =IFERROR(F166*(1-VLOOKUP(C166,ГОЛОВНА!K:L,2,0)), "-") -> 639.28
A167: 95906465 | B167: Циркуляційний насос UPSD40-80 F 250 1x23 | C167: DH | F167: 713.07 | G167: =IFERROR(F167*(1-VLOOKUP(C167,ГОЛОВНА!K:L,2,0)), "-") -> 713.07
B169: Аксесуари
A170: 505821 | B170: Комплект теплоізоляції до UPS 25/32-30/4 | C170: CB | F170: 15.83 | G170: =IFERROR(F170*(1-VLOOKUP(C170,ГОЛОВНА!K:L,2,0)), "-") -> 15.83
A171: 519801 | B171: К-кт з'єднувальних елементів G1 1/4""-22 | C171: CB | F171: 26.42 | G171: =IFERROR(F171*(1-VLOOKUP(C171,ГОЛОВНА!K:L,2,0)), "-") -> 26.42
A172: 519802 | B172: Елемент з'єднувальний з кульк-м клап-м G | C172: CB | F172: 26.42 | G172: =IFERROR(F172*(1-VLOOKUP(C172,ГОЛОВНА!K:L,2,0)), "-") -> 26.42
A173: 519805 | B173: З'єднувальний елемент G 1 1/2 x Rp 3/4 | C173: CB | F173: 24 | G173: =IFERROR(F173*(1-VLOOKUP(C173,ГОЛОВНА!K:L,2,0)), "-") -> 24
A174: 519806 | B174: З’єднув. елемент з кульк. клапаном G 1 1 | C174: CB | F174: 24.48 | G174: =IFERROR(F174*(1-VLOOKUP(C174,ГОЛОВНА!K:L,2,0)), "-") -> 24.48
A175: 519807 | B175: Комплект з'єднань з кульк овим клапаном | C175: CB | F175: 28.85 | G175: =IFERROR(F175*(1-VLOOKUP(C175,ГОЛОВНА!K:L,2,0)), "-") -> 28.85
A176: 529922 | B176: Комплект з'єднань G1 1/2"Rp1" | C176: CB | F176: 11.74 | G176: =IFERROR(F176*(1-VLOOKUP(C176,ГОЛОВНА!K:L,2,0)), "-") -> 11.74
A177: 529972 | B177: Комплект зєднань G11/2"x1" | C177: CB | F177: 12.11 | G177: =IFERROR(F177*(1-VLOOKUP(C177,ГОЛОВНА!K:L,2,0)), "-") -> 12.11
A178: 529982 | B178: Комплект з'єднань 3/4' | C178: CB | F178: 28.29 | G178: =IFERROR(F178*(1-VLOOKUP(C178,ГОЛОВНА!K:L,2,0)), "-") -> 28.29
A179: 529983 | B179: Комплект з'єднань G 1 1/4 "x Rp 1", лату | C179: CB | F179: 48.23 | G179: =IFERROR(F179*(1-VLOOKUP(C179,ГОЛОВНА!K:L,2,0)), "-") -> 48.23
A180: 539702 | B180: Фланці сталеві приварювальні, DN 40 | C180: CB | F180: 56.94 | G180: =IFERROR(F180*(1-VLOOKUP(C180,ГОЛОВНА!K:L,2,0)), "-") -> 56.94
A181: 539703 | B181: Комплект різьбових фланці PN10 UPS32 1 1 | C181: CB | F181: 56.59 | G181: =IFERROR(F181*(1-VLOOKUP(C181,ГОЛОВНА!K:L,2,0)), "-") -> 56.59
A182: 539704 | B182: Фланцы стальные приварные DN 32 | C182: CB | F182: 72.22 | G182: =IFERROR(F182*(1-VLOOKUP(C182,ГОЛОВНА!K:L,2,0)), "-") -> 72.22
A183: 549802 | B183: Фланцы стальные приварные DN 50 | C183: CB | F183: 66.02 | G183: =IFERROR(F183*(1-VLOOKUP(C183,ГОЛОВНА!K:L,2,0)), "-") -> 66.02
A184: 559802 | B184: Фланцы стальные приварные DN 65 | C184: CB | F184: 106.02 | G184: =IFERROR(F184*(1-VLOOKUP(C184,ГОЛОВНА!K:L,2,0)), "-") -> 106.02
A185: 95906254 | B185: Блок тривоги до UPS XX 100 | C185: CB | F185: 122.38 | G185: =IFERROR(F185*(1-VLOOKUP(C185,ГОЛОВНА!K:L,2,0)), "-") -> 122.38
A186: 95906653 | B186: Теплоізолятор для UPS XX- 100 | C186: CB | F186: 43.68 | G186: =IFERROR(F186*(1-VLOOKUP(C186,ГОЛОВНА!K:L,2,0)), "-") -> 43.68
A187: 95906655 | B187: Термоізоляція до насосів серії UPS | C187: CB | F187: 25.08 | G187: =IFERROR(F187*(1-VLOOKUP(C187,ГОЛОВНА!K:L,2,0)), "-") -> 25.08
A188: 96433906 | B188: Фланец для удаления возду ха | C188: CB | F188: 21.77 | G188: =IFERROR(F188*(1-VLOOKUP(C188,ГОЛОВНА!K:L,2,0)), "-") -> 21.77
A189: 96433911 | B189: Подовжувач R1/2"-G11/4" L=35мм 2-шт | C189: CB | F189: 20.99 | G189: =IFERROR(F189*(1-VLOOKUP(C189,ГОЛОВНА!K:L,2,0)), "-") -> 20.99
A190: 96433912 | B190: Подовжувачі, R1/2"-G11/2" L=25мм 2 шт. | C190: CB | F190: 20.99 | G190: =IFERROR(F190*(1-VLOOKUP(C190,ГОЛОВНА!K:L,2,0)), "-") -> 20.99
A191: 96406992 | B191: Реле часу TS 3/T з 24 годинною шкалою | C191: CB | F191: 60.85 | G191: =IFERROR(F191*(1-VLOOKUP(C191,ГОЛОВНА!K:L,2,0)), "-") -> 60.85
B194: Примітка
A195: S | B195: - складська позиція (зазвичай є на скаді)
A196: FT | B196: - швидка поставка (зазвичай до 3-х тижнів)

Sheet Comfort, UP, UP N, Solar
A1: АРТИКУЛ | B1: НАЙМЕНУВАННЯ (УКР) | C1: PRICE GROUP | D1: ДОСТАВКА | E1: ДОДАТКОВО | F1: ЦІНА (ЕВРО БЕЗ ПДВ) | G1: ЦІНА ЗІ ЗНИЖКОЮ | H1: НА ГОЛОВНУ
A2: Comfort, UP, UPS, Solar | G2: Циркуляційні насоси для систем гарячого водопостачання
A3: 97916771 | B3: Циркуляційний насос COMFORT15-14B PM | C3: DH | D3: S | E3: реле часу 98465228 | F3: 109.33 | G3: =IFERROR(F3*(1-VLOOKUP(C3,ГОЛОВНА!K:L,2,0)), "-") -> 109.33
A4: 97916757 | B4: Циркуляційний насос COMFORT15-14BA PM | C4: DH | D4: S | F4: 179.25 | G4: =IFERROR(F4*(1-VLOOKUP(C4,ГОЛОВНА!K:L,2,0)), "-") -> 179.25
A5: 59640506 | B5: Циркуляційний насос UP20-07 N 150 1x230B | C5: DH | F5: 193.1820575 | G5: =IFERROR(F5*(1-VLOOKUP(C5,ГОЛОВНА!K:L,2,0)), "-") -> 193.1820575
A6: 97916772 | B6: Циркуляційний насос COMFORT 15-14 BX PM | C6: DH | D6: S | E6: реле часу 98465228 | F6: 127.81 | G6: =IFERROR(F6*(1-VLOOKUP(C6,ГОЛОВНА!K:L,2,0)), "-") -> 127.81
A7: 97916749 | B7: Циркуляційний насос COMFORT15-14BXA PM | C7: DH | D7: S | F7: 202.47 | G7: =IFERROR(F7*(1-VLOOKUP(C7,ГОЛОВНА!K:L,2,0)), "-") -> 202.47
A8: 59641500 | B8: Циркуляційний насос UP20-15 N 150 1x230B | C8: DH | F8: 193.1820575 | G8: =IFERROR(F8*(1-VLOOKUP(C8,ГОЛОВНА!K:L,2,0)), "-") -> 193.1820575
A9: 59643500 | B9: Циркуляційний насос UP20-30 N 150 1x230B | C9: DH | F9: 214.64853 | G9: =IFERROR(F9*(1-VLOOKUP(C9,ГОЛОВНА!K:L,2,0)), "-") -> 214.64853
A10: 95906472 | B10: Циркуляційний насос UP20-45 N 150 1x230B | C10: DH | D10: S | F10: 244.7977 | G10: =IFERROR(F10*(1-VLOOKUP(C10,ГОЛОВНА!K:L,2,0)), "-") -> 244.7977
A11: 95906408 | B11: Циркуляційний насос UPS25-55 N 180 1x230 | C11: DH | F11: 323.69 | G11: =IFERROR(F11*(1-VLOOKUP(C11,ГОЛОВНА!K:L,2,0)), "-") -> 323.69
A12: 95906439 | B12: Циркуляційний насос UPS25-80 N 180 1x230 | C12: DH | D12: S | F12: 387.67 | G12: =IFERROR(F12*(1-VLOOKUP(C12,ГОЛОВНА!K:L,2,0)), "-") -> 387.67
A13: 95906752 | B13: Циркуляційний насос UPS32-55 N 180 1x230 | C13: DH | F13: 409.51 | G13: =IFERROR(F13*(1-VLOOKUP(C13,ГОЛОВНА!K:L,2,0)), "-") -> 409.51
A14: 95906448 | B14: Циркуляційний насос UPS32-80 N 180 1x230 | C14: DH | D14: S | F14: 467.31 | G14: =IFERROR(F14*(1-VLOOKUP(C14,ГОЛОВНА!K:L,2,0)), "-") -> 467.31
B16: Аксесуари
A17: 98465228 | B17: Модуль керування з реле часу TS4/T | C17: CB | F17: 48.83 | G17: =IFERROR(F17*(1-VLOOKUP(C17,ГОЛОВНА!K:L,2,0)), "-") -> 48.83
A18: 505821 | B18: Комплект теплоізоляції до UPS 25/32-30/4 | C18: CB | F18: 15.83 | G18: =IFERROR(F18*(1-VLOOKUP(C18,ГОЛОВНА!K:L,2,0)), "-") -> 15.83
A19: 519801 | B19: К-кт з'єднувальних елементів G1 1/4""-22 | C19: CB | F19: 26.42 | G19: =IFERROR(F19*(1-VLOOKUP(C19,ГОЛОВНА!K:L,2,0)), "-") -> 26.42
A20: 519802 | B20: Елемент з'єднувальний з кульк-м клап-м G | C20: CB | F20: 26.42 | G20: =IFERROR(F20*(1-VLOOKUP(C20,ГОЛОВНА!K:L,2,0)), "-") -> 26.42
A21: 519805 | B21: З'єднувальний елемент G 1 1/2 x Rp 3/4 | C21: CB | F21: 24 | G21: =IFERROR(F21*(1-VLOOKUP(C21,ГОЛОВНА!K:L,2,0)), "-") -> 24
A22: 519806 | B22: З’єднув. елемент з кульк. клапаном G 1 1 | C22: CB | F22: 24.48 | G22: =IFERROR(F22*(1-VLOOKUP(C22,ГОЛОВНА!K:L,2,0)), "-") -> 24.48
A23: 519807 | B23: Комплект з'єднань з кульк овим клапаном | C23: CB | F23: 28.85 | G23: =IFERROR(F23*(1-VLOOKUP(C23,ГОЛОВНА!K:L,2,0)), "-") -> 28.85
A24: 529922 | B24: Комплект з'єднань G1 1/2"Rp1" | C24: CB | F24: 11.74 | G24: =IFERROR(F24*(1-VLOOKUP(C24,ГОЛОВНА!K:L,2,0)), "-") -> 11.74
A25: 529972 | B25: Комплект зєднань G11/2"x1" | C25: CB | F25: 12.11 | G25: =IFERROR(F25*(1-VLOOKUP(C25,ГОЛОВНА!K:L,2,0)), "-") -> 12.11
A26: 529982 | B26: Комплект з'єднань 3/4' | C26: CB | F26: 28.29 | G26: =IFERROR(F26*(1-VLOOKUP(C26,ГОЛОВНА!K:L,2,0)), "-") -> 28.29
A27: 529983 | B27: Комплект з'єднань G 1 1/4 "x Rp 1", лату | C27: CB | F27: 48.23 | G27: =IFERROR(F27*(1-VLOOKUP(C27,ГОЛОВНА!K:L,2,0)), "-") -> 48.23
A28: 539702 | B28: Фланці сталеві приварювальні, DN 40 | C28: CB | F28: 56.94 | G28: =IFERROR(F28*(1-VLOOKUP(C28,ГОЛОВНА!K:L,2,0)), "-") -> 56.94
A29: 539703 | B29: Комплект різьбових фланці PN10 UPS32 1 1 | C29: CB | F29: 56.59 | G29: =IFERROR(F29*(1-VLOOKUP(C29,ГОЛОВНА!K:L,2,0)), "-") -> 56.59
A30: 539704 | B30: Фланцы стальные приварные DN 32 | C30: CB | F30: 72.22 | G30: =IFERROR(F30*(1-VLOOKUP(C30,ГОЛОВНА!K:L,2,0)), "-") -> 72.22
A31: 549802 | B31: Фланцы стальные приварные DN 50 | C31: CB | F31: 66.02 | G31: =IFERROR(F31*(1-VLOOKUP(C31,ГОЛОВНА!K:L,2,0)), "-") -> 66.02
A32: 559802 | B32: Фланцы стальные приварные DN 65 | C32: CB | F32: 106.02 | G32: =IFERROR(F32*(1-VLOOKUP(C32,ГОЛОВНА!K:L,2,0)), "-") -> 106.02
A33: 95906254 | B33: Блок тривоги до UPS XX 100 | C33: CB | F33: 122.38 | G33: =IFERROR(F33*(1-VLOOKUP(C33,ГОЛОВНА!K:L,2,0)), "-") -> 122.38
A34: 95906653 | B34: Теплоізолятор для UPS XX- 100 | C34: CB | F34: 43.68 | G34: =IFERROR(F34*(1-VLOOKUP(C34,ГОЛОВНА!K:L,2,0)), "-") -> 43.68
A35: 95906655 | B35: Термоізоляція до насосів серії UPS | C35: CB | F35: 25.08 | G35: =IFERROR(F35*(1-VLOOKUP(C35,ГОЛОВНА!K:L,2,0)), "-") -> 25.08
A36: 96433906 | B36: Фланец для удаления возду ха | C36: CB | F36: 21.77 | G36: =IFERROR(F36*(1-VLOOKUP(C36,ГОЛОВНА!K:L,2,0)), "-") -> 21.77
A37: 96433911 | B37: Подовжувач R1/2"-G11/4" L=35мм 2-шт | C37: CB | F37: 20.99 | G37: =IFERROR(F37*(1-VLOOKUP(C37,ГОЛОВНА!K:L,2,0)), "-") -> 20.99
A38: 96433912 | B38: Подовжувачі, R1/2"-G11/2" L=25мм 2 шт. | C38: CB | F38: 20.99 | G38: =IFERROR(F38*(1-VLOOKUP(C38,ГОЛОВНА!K:L,2,0)), "-") -> 20.99
B41: Примітка:
A42: S | B42: - складська позиція (зазвичай є на скаді)
A43: FT | B43: - швидка поставка (зазвичай до 3-х тижнів)

Sheet MQ, JP, Hydrojet, SB, SBA, UPA
A1: АРТИКУЛ | B1: НАЙМЕНУВАННЯ (УКР) | C1: PRICE GROUP | D1: ДОСТАВКА | E1: ПРИМІТКИ | F1: ЦІНА (ЕВРО БЕЗ ПДВ) | G1: ЦІНА ЗІ ЗНИЖКОЮ | H1: НА ГОЛОВНУ
A2: MQ, JP, Hydrojet | G2: Насоси і насосні установки для систем водопостачання
A3: 96515412 | B3: Насосна установка MQ3-35 A-O-A-BVBP, 1x2 | C3: DC | D3: S | F3: 324.79 | G3: =IFERROR(F3*(1-VLOOKUP(C3,ГОЛОВНА!K:L,2,0)), "-") -> 324.79
A4: 96515415 | B4: Насосна установка MQ3-45 A-O-A-BVBP, 1x2 | C4: DC | D4: S | F4: 339.88 | G4: =IFERROR(F4*(1-VLOOKUP(C4,ГОЛОВНА!K:L,2,0)), "-") -> 339.88
A5: 98562862 | B5: Насосна установка SCALA2 3-45 AKCCDE 1x2 | C5: DC | D5: S | F5: 397.96 | G5: =IFERROR(F5*(1-VLOOKUP(C5,ГОЛОВНА!K:L,2,0)), "-") -> 397.96
A6: 99463874 | B6: Насос водопостJP 3-42 PT-H 1x230 1,5м SH | C6: DC | E6: Об'єм баку 20 л | F6: 235.74 | G6: =IFERROR(F6*(1-VLOOKUP(C6,ГОЛОВНА!K:L,2,0)), "-") -> 235.74
A7: 99463875 | B7: Насос.установка JP 4-47 PT-H 1x230V 1,5м | C7: DC | E7: Об'єм баку 20 л | F7: 246.9 | G7: =IFERROR(F7*(1-VLOOKUP(C7,ГОЛОВНА!K:L,2,0)), "-") -> 246.9
A8: 99594664 | B8: Насос.установка JP 4-47 PT-H 60L, 230V | C8: DC | E8: Об'єм баку 60 л | F8: 335.71 | G8: =IFERROR(F8*(1-VLOOKUP(C8,ГОЛОВНА!K:L,2,0)), "-") -> 335.71
A9: 99463876 | B9: Насос водопостJP 4-54 PT-H 1x230 1,5м SC | C9: DC | E9: Об'єм баку 20 л | F9: 258.04 | G9: =IFERROR(F9*(1-VLOOKUP(C9,ГОЛОВНА!K:L,2,0)), "-") -> 258.04
A10: 99463877 | B10: Насос.установка JP 5-48 PT-H 1x230V 1,5м | C10: DC | E10: Об'єм баку 20 л | F10: 273.98 | G10: =IFERROR(F10*(1-VLOOKUP(C10,ГОЛОВНА!K:L,2,0)), "-") -> 273.98
A11: 99594666 | B11: Насос.установка JP 5-48 PT-H 60L, 230V | C11: DC | E11: Об'єм баку 60 л | F11: 364.29 | G11: =IFERROR(F11*(1-VLOOKUP(C11,ГОЛОВНА!K:L,2,0)), "-") -> 364.29
A12: 99515135 | B12: Насос водопостJP 3-42 PM1 1x230 1,5м SCH | C12: DC | F12: 246.9 | G12: =IFERROR(F12*(1-VLOOKUP(C12,ГОЛОВНА!K:L,2,0)), "-") -> 246.9
A13: 99515137 | B13: Насос водопостJP 4-54 PM1 1x230 1,5м SCH | C13: DC | F13: 273.98 | G13: =IFERROR(F13*(1-VLOOKUP(C13,ГОЛОВНА!K:L,2,0)), "-") -> 273.98
A14: 99458766 | B14: Насос водопост JP 3-42 1x230 1,5м SCHUKO | C14: DC | F14: 150.51 | G14: =IFERROR(F14*(1-VLOOKUP(C14,ГОЛОВНА!K:L,2,0)), "-") -> 150.51
A15: 99458767 | B15: Насос водопостJP 4-47 1x230 1,5м SCHUKO | C15: DC | F15: 175.21 | G15: =IFERROR(F15*(1-VLOOKUP(C15,ГОЛОВНА!K:L,2,0)), "-") -> 175.21
A16: 99458768 | B16: Насос водопост JP 4-54 1x230 1,5м SCHUKO | C16: DC | F16: 182.19 | G16: =IFERROR(F16*(1-VLOOKUP(C16,ГОЛОВНА!K:L,2,0)), "-") -> 182.19
A17: 99458769 | B17: Насос водопост JP 5-48 1x230 1,5м SCHUKO | C17: DC | F17: 191.15 | G17: =IFERROR(F17*(1-VLOOKUP(C17,ГОЛОВНА!K:L,2,0)), "-") -> 191.15
A19: SB, SBA | G19: Насоси і насосні установки для систем водопостачання
A20: 97686699 | B20: Насос для колодязів SB3-25 A 1x230V 50Hz | C20: DC | F20: 257.21 | G20: =IFERROR(F20*(1-VLOOKUP(C20,ГОЛОВНА!K:L,2,0)), "-") -> 257.21
A21: 97686701 | B21: Насос для колодязів SB 3-35 A 1x220-240V | C21: DC | F21: 276.25 | G21: =IFERROR(F21*(1-VLOOKUP(C21,ГОЛОВНА!K:L,2,0)), "-") -> 276.25
A22: 97686703 | B22: Насос для колодязів SB3-35 AW 1x230V 50H | C22: DC | F22: 352.48 | G22: =IFERROR(F22*(1-VLOOKUP(C22,ГОЛОВНА!K:L,2,0)), "-") -> 352.48
A23: 97686705 | B23: Насос для колодязів SB 3-45 A 1x22 | C23: DC | D23: S | F23: 304.85 | G23: =IFERROR(F23*(1-VLOOKUP(C23,ГОЛОВНА!K:L,2,0)), "-") -> 304.85
A24: 97686707 | B24: Насос для колодязів SB3-45 AW 1x220-240V | C24: DC | F24: 371.53 | G24: =IFERROR(F24*(1-VLOOKUP(C24,ГОЛОВНА!K:L,2,0)), "-") -> 371.53
A25: 97904043 | B25: Насос для колодязів SB Booster 3-45AW,PM | C25: DC | F25: 438.2 | G25: =IFERROR(F25*(1-VLOOKUP(C25,ГОЛОВНА!K:L,2,0)), "-") -> 438.2
A26: 97896286 | B26: Насос для колодязів SBA3-35 A 1x220-240V | C26: DC | F26: 325.87 | G26: =IFERROR(F26*(1-VLOOKUP(C26,ГОЛОВНА!K:L,2,0)), "-") -> 325.87
A27: 97896288 | B27: Насос для колодязів SBA3-35 AW 1x220-240 | C27: DC | F27: 428.69 | G27: =IFERROR(F27*(1-VLOOKUP(C27,ГОЛОВНА!K:L,2,0)), "-") -> 428.69
A28: 97896290 | B28: Насос для колодязів SBA 3-45 A 1x220-240 | C28: DC | D28: S | F28: 342.15 | G28: =IFERROR(F28*(1-VLOOKUP(C28,ГОЛОВНА!K:L,2,0)), "-") -> 342.15
A29: 97896312 | B29: Насос для колодязів SBA3-45 AW 1x220-240 | C29: DC | F29: 416.21 | G29: =IFERROR(F29*(1-VLOOKUP(C29,ГОЛОВНА!K:L,2,0)), "-") -> 416.21
A31: UPA | G31: Насоси для підвищення тиску
A32: 96621403 | B32: Насос для підвищ. тиску UPA15-90N 160 1x | C32: DC | F32: 179.32 | G32: =IFERROR(F32*(1-VLOOKUP(C32,ГОЛОВНА!K:L,2,0)), "-") -> 179.32
A33: 98699677 | B33: Насос для підвищ. тиску UPA15-120 AUTO 1 | C33: DC | F33: 130.03 | G33: =IFERROR(F33*(1-VLOOKUP(C33,ГОЛОВНА!K:L,2,0)), "-") -> 130.03
B35: Аксесуари
A36: 96848670 | B36: Реле тиску PM 1 15 1x230V 50Hz | C36: DC | F36: 86.56 | G36: =IFERROR(F36*(1-VLOOKUP(C36,ГОЛОВНА!K:L,2,0)), "-") -> 86.56
A37: 96848693 | B37: Реле тиску PM 1 15 1x230V 50/60Hz | C37: DC | D37: S | F37: 86.56 | G37: =IFERROR(F37*(1-VLOOKUP(C37,ГОЛОВНА!K:L,2,0)), "-") -> 86.56
A38: 96848722 | B38: Реле тиску PM 1 22 1x230V 50/60Hz | C38: DC | D38: S | F38: 86.56 | G38: =IFERROR(F38*(1-VLOOKUP(C38,ГОЛОВНА!K:L,2,0)), "-") -> 86.56
A39: 96848738 | B39: Реле тиску PM 2 AD 1x230V 50Hz | C39: DC | F39: 149.25 | G39: =IFERROR(F39*(1-VLOOKUP(C39,ГОЛОВНА!K:L,2,0)), "-") -> 149.25
A40: 96848740 | B40: Реле тиску PM 2 AD 1x230V 50/60Hz | C40: DC | D40: S | F40: 149.25 | G40: =IFERROR(F40*(1-VLOOKUP(C40,ГОЛОВНА!K:L,2,0)), "-") -> 149.25
B44: Примітка:
A45: S | B45: - складська позиція (зазвичай є на скаді)
A46: FT | B46: - швидка поставка (зазвичай до 3-х тижнів)

Sheet Basic Line
A1: АРТИКУЛ | B1: НАЙМЕНУВАННЯ (УКР) | C1: PRICE GROUP | D1: ДОСТАВКА | E1: ДОДАТКОВО | F1: ЦІНА (ЕВРО БЕЗ ПДВ) | G1: ЦІНА ЗІ ЗНИЖКОЮ | H1: НА ГОЛОВНУ
A2: JPBASIC, JPBASIC PT, PF BASIC | G2: Насоси і насосні установки для систем водопостачання
A4: 98904963 | B4: Насос водопостач NS 3-40 1x230V 50Hz IT | C4: DC | F4: 164.25 | G4: =IFERROR(F4*(1-VLOOKUP(C4,ГОЛОВНА!K:L,2,0)), "-") -> 164.25
A5: 98904964 | B5: Насос водопостач NS 4-23 1x230V 50Hz IT | C5: DC | F5: 119.26 | G5: =IFERROR(F5*(1-VLOOKUP(C5,ГОЛОВНА!K:L,2,0)), "-") -> 119.26
A6: 98904967 | B6: Насос водопостач NS 5-50 1x230V 50Hz IT | C6: DC | F6: 267.59 | G6: =IFERROR(F6*(1-VLOOKUP(C6,ГОЛОВНА!K:L,2,0)), "-") -> 267.59
A7: 98904968 | B7: Насос водопостач NS 5-60 1x230V 50Hz IT | C7: DC | F7: 290.41 | G7: =IFERROR(F7*(1-VLOOKUP(C7,ГОЛОВНА!K:L,2,0)), "-") -> 290.41
A8: 98904970 | B8: Насос водопостач NS 6-40 1x230V 50Hz IT | C8: DC | F8: 258.65 | G8: =IFERROR(F8*(1-VLOOKUP(C8,ГОЛОВНА!K:L,2,0)), "-") -> 258.65
A9: 98904981 | B9: Насос водопостач NS 13-18 1x230V 50Hz IT | C9: DC | F9: 150.65 | G9: =IFERROR(F9*(1-VLOOKUP(C9,ГОЛОВНА!K:L,2,0)), "-") -> 150.65
A10: 98904982 | B10: Насос водопостач NS 30-18 1x230V 50Hz IT | C10: DC | F10: 254.84 | G10: =IFERROR(F10*(1-VLOOKUP(C10,ГОЛОВНА!K:L,2,0)), "-") -> 254.84
A11: 98907044 | B11: Насос водопостач NS 30-30 3x400V 50Hz IT | C11: DC | F11: 434.84 | G11: =IFERROR(F11*(1-VLOOKUP(C11,ГОЛОВНА!K:L,2,0)), "-") -> 434.84
A12: 98907045 | B12: Насос водопостач NS 30-36 3x400V 50Hz IT | C12: DC | F12: 442.77 | G12: =IFERROR(F12*(1-VLOOKUP(C12,ГОЛОВНА!K:L,2,0)), "-") -> 442.77
A13: 98863989 | B13: Насос для брудн води KPC 300 A 1x220 50H | C13: DC | D13: S | F13: 125.6 | G13: =IFERROR(F13*(1-VLOOKUP(C13,ГОЛОВНА!K:L,2,0)), "-") -> 125.6
A14: 98864015 | B14: Насос для брудн води KPC 600 A 1x220 50H | C14: DC | D14: S | F14: 161.24 | G14: =IFERROR(F14*(1-VLOOKUP(C14,ГОЛОВНА!K:L,2,0)), "-") -> 161.24
B17: Примітка:
A18: S | B18: - складська позиція (зазвичай є на скаді)
A19: FT | B19: - швидка поставка (зазвичай до 3-х тижнів)

Sheet SQ, SQE, SP, SP-NE
A1: АРТИКУЛ | B1: НАЙМЕНУВАННЯ (УКР) | C1: PRICE GROUP | D1: ДОСТАВКА | E1: ДОДАТКОВО | F1: ЦІНА (ЕВРО БЕЗ ПДВ) | G1: ЦІНА ЗІ ЗНИЖКОЮ | H1: НА ГОЛОВНУ
A2: SQE | G2: Пакети постійного тиску
A3: 96160961 | B3: Глиб.насос SQE2-70 +60м+пакет пост.тиску | C3: DC | F3: 1621.36 | G3: =IFERROR(F3*(1-VLOOKUP(C3,ГОЛОВНА!K:L,2,0)),"-") -> 1621.36
A4: 96160962 | B4: Комплект пост. тиску SQE2-85+90m.3x2.5mm | C4: DC | F4: 1762.61 | G4: =IFERROR(F4*(1-VLOOKUP(C4,ГОЛОВНА!K:L,2,0)),"-") -> 1762.61
A5: 96524501 | B5: Глиб.насос SQE3-65 +40м+пакет пост.тиску | C5: DC | D5: S | F5: 1609.29 | G5: =IFERROR(F5*(1-VLOOKUP(C5,ГОЛОВНА!K:L,2,0)),"-") -> 1609.29
A6: 96524503 | B6: Глиб.насос SQE5-70 +40м+пакет пост.тиску | C6: DC | D6: S | F6: 1676.4 | G6: =IFERROR(F6*(1-VLOOKUP(C6,ГОЛОВНА!K:L,2,0)),"-") -> 1676.4
A7: 96524505 | B7: Глиб.насос SQE2-55 +40м+пакет пост.тиску | C7: DC | D7: S | F7: 1446.95 | G7: =IFERROR(F7*(1-VLOOKUP(C7,ГОЛОВНА!K:L,2,0)),"-") -> 1446.95
A8: 96524506 | B8: Глиб.насос SQE2-85+60м+пакет пост.тиску | C8: DC | D8: S | F8: 1793.01 | G8: =IFERROR(F8*(1-VLOOKUP(C8,ГОЛОВНА!K:L,2,0)),"-") -> 1793.01
A9: 96524507 | B9: Глиб.насос SQE2-115 +80м+пакет пост.тиск | C9: DC | D9: S | F9: 1959.77 | G9: =IFERROR(F9*(1-VLOOKUP(C9,ГОЛОВНА!K:L,2,0)),"-") -> 1959.77
A10: 96524508 | B10: Глиб.насос SQE3-105+80m+пакет пост.тиск | C10: DC | D10: S | F10: 1877.14 | G10: =IFERROR(F10*(1-VLOOKUP(C10,ГОЛОВНА!K:L,2,0)),"-") -> 1877.14
A12: SQ, SQE | G12: Глибинні насоси та пакети постійного тиску
A13: 96510071 | B13: Глибинний насос SQE1-35 0,7кВт 220-240В | C13: DC | F13: 613.13 | G13: =IFERROR(F13*(1-VLOOKUP(C13,ГОЛОВНА!K:L,2,0)),"-") -> 613.13
A14: 96510141 | B14: Глибинний насос SQE1-50 0,7кВт 220-240В | C14: DC | F14: 665.36 | G14: =IFERROR(F14*(1-VLOOKUP(C14,ГОЛОВНА!K:L,2,0)),"-") -> 665.36
A15: 96510142 | B15: Глибинний насос SQE1-65 0,7кВт 220-240В | C15: DC | F15: 715.11 | G15: =IFERROR(F15*(1-VLOOKUP(C15,ГОЛОВНА!K:L,2,0)),"-") -> 715.11
A16: 96510143 | B16: Глибинний насос SQE1-80 1,15кВт 220-240В | C16: DC | F16: 861.87 | G16: =IFERROR(F16*(1-VLOOKUP(C16,ГОЛОВНА!K:L,2,0)),"-") -> 861.87
A17: 96510144 | B17: Глибинний насос SQE1-95 1,15кВт 220-240В | C17: DC | F17: 897.96 | G17: =IFERROR(F17*(1-VLOOKUP(C17,ГОЛОВНА!K:L,2,0)),"-") -> 897.96
A18: 96510145 | B18: Глибинний насос SQE1-110 1,15кВт 220-240 | C18: DC | F18: 928.62 | G18: =IFERROR(F18*(1-VLOOKUP(C18,ГОЛОВНА!K:L,2,0)),"-") -> 928.62
A19: 96510146 | B19: Глибинний насос SQE1-125 1,68кВт 220-240 | C19: DC | F19: 1113.06 | G19: =IFERROR(F19*(1-VLOOKUP(C19,ГОЛОВНА!K:L,2,0)),"-") -> 1113.06
A20: 96510147 | B20: Глибинний насос SQE1-140 1,68кВт 220-240 | C20: DC | F20: 1149.14 | G20: =IFERROR(F20*(1-VLOOKUP(C20,ГОЛОВНА!K:L,2,0)),"-") -> 1149.14
A21: 96510148 | B21: Глибинний насос SQE1-155 1,85кВт 220-240 | C21: DC | F21: 1185.23 | G21: =IFERROR(F21*(1-VLOOKUP(C21,ГОЛОВНА!K:L,2,0)),"-") -> 1185.23
A22: 96510150 | B22: Глибинний насос SQE2-35 0,7кВт 220-240В | C22: DC | F22: 636.75 | G22: =IFERROR(F22*(1-VLOOKUP(C22,ГОЛОВНА!K:L,2,0)),"-") -> 636.75
A23: 96510151 | B23: Глибинний насос SQE2-55 0,7кВт 220-240В | C23: DC | F23: 710.88 | G23: =IFERROR(F23*(1-VLOOKUP(C23,ГОЛОВНА!K:L,2,0)),"-") -> 710.88
A24: 96510152 | B24: Глибинний насос SQE2-70 1,15кВт 220-240В | C24: DC | F24: 747.45 | G24: =IFERROR(F24*(1-VLOOKUP(C24,ГОЛОВНА!K:L,2,0)),"-") -> 747.45
A25: 96510153 | B25: Глибинний насос SQE2-85 1,15кВт 220-240В | C25: DC | F25: 835.75 | G25: =IFERROR(F25*(1-VLOOKUP(C25,ГОЛОВНА!K:L,2,0)),"-") -> 835.75
A26: 96510154 | B26: Глибинний насос SQE2-100 1,68кВт 220-240 | C26: DC | F26: 1037.25 | G26: =IFERROR(F26*(1-VLOOKUP(C26,ГОЛОВНА!K:L,2,0)),"-") -> 1037.25
A27: 96510155 | B27: Глибинний насос SQE2-115 1,85кВт 220-240 | C27: DC | F27: 1073.32 | G27: =IFERROR(F27*(1-VLOOKUP(C27,ГОЛОВНА!K:L,2,0)),"-") -> 1073.32
A28: 96510156 | B28: Глибинний насос SQE3-30 0,7кВт 220-240В | C28: DC | F28: 610.61 | G28: =IFERROR(F28*(1-VLOOKUP(C28,ГОЛОВНА!K:L,2,0)),"-") -> 610.61
A29: 96510157 | B29: Глибинний насос SQE3-40 0,7кВт 220-240В | C29: DC | F29: 646.7 | G29: =IFERROR(F29*(1-VLOOKUP(C29,ГОЛОВНА!K:L,2,0)),"-") -> 646.7
A30: 96510158 | B30: Глибинний насос SQE3-55 1,15кВт 220-240В | C30: DC | F30: 747.45 | G30: =IFERROR(F30*(1-VLOOKUP(C30,ГОЛОВНА!K:L,2,0)),"-") -> 747.45
A31: 96510159 | B31: Глибинний насос SQE3-65 1,15кВт 220-240В | C31: DC | F31: 879.74 | G31: =IFERROR(F31*(1-VLOOKUP(C31,ГОЛОВНА!K:L,2,0)),"-") -> 879.74
A32: 96510160 | B32: Глибинний насос SQE3-80 1,68кВт 220-240В | C32: DC | F32: 1091.84 | G32: =IFERROR(F32*(1-VLOOKUP(C32,ГОЛОВНА!K:L,2,0)),"-") -> 1091.84
A33: 96510161 | B33: Глибинний насос SQE3-95 1,68кВт 220-240В | C33: DC | F33: 1073.32 | G33: =IFERROR(F33*(1-VLOOKUP(C33,ГОЛОВНА!K:L,2,0)),"-") -> 1073.32
A34: 96510162 | B34: Глибинний насос SQE3-105 1,85кВт 220-240 | C34: DC | D34: S | F34: 1167.74 | G34: =IFERROR(F34*(1-VLOOKUP(C34,ГОЛОВНА!K:L,2,0)),"-") -> 1167.74
A35: 96510163 | B35: Глибинний насос SQE5-15 0,7кВт 220-240В | C35: DC | F35: 603.16 | G35: =IFERROR(F35*(1-VLOOKUP(C35,ГОЛОВНА!K:L,2,0)),"-") -> 603.16
A36: 96510164 | B36: Глибинний насос SQE5-25 0,7кВт 220-240В | C36: DC | F36: 629.3 | G36: =IFERROR(F36*(1-VLOOKUP(C36,ГОЛОВНА!K:L,2,0)),"-") -> 629.3
A37: 96510165 | B37: Глибинний насос SQE5-35 1,15кВт 220-240В | C37: DC | F37: 747.45 | G37: =IFERROR(F37*(1-VLOOKUP(C37,ГОЛОВНА!K:L,2,0)),"-") -> 747.45
A38: 96510166 | B38: Глибинний насос SQE5-50 1,68кВт 220-240В | C38: DC | F38: 835.75 | G38: =IFERROR(F38*(1-VLOOKUP(C38,ГОЛОВНА!K:L,2,0)),"-") -> 835.75
A39: 96510167 | B39: Глибинний насос SQE5-60 1,68кВт 220-240В | C39: DC | F39: 1129.81 | G39: =IFERROR(F39*(1-VLOOKUP(C39,ГОЛОВНА!K:L,2,0)),"-") -> 1129.81
A40: 96510168 | B40: Глибинний насос SQE5-70 1,85кВт 220-240В | C40: DC | F40: 1167.74 | G40: =IFERROR(F40*(1-VLOOKUP(C40,ГОЛОВНА!K:L,2,0)),"-") -> 1167.74
A41: 96510169 | B41: Глибинний насос SQE7-15 0,7кВт 220-240В | C41: DC | F41: 825.76 | G41: =IFERROR(F41*(1-VLOOKUP(C41,ГОЛОВНА!K:L,2,0)),"-") -> 825.76
A42: 96510170 | B42: Глибинний насос SQE7-30 1,15кВт 220-240В | C42: DC | F42: 897.96 | G42: =IFERROR(F42*(1-VLOOKUP(C42,ГОЛОВНА!K:L,2,0)),"-") -> 897.96
A43: 96510171 | B43: Глибинний насос SQE7-40 1,68кВт 220-240В | C43: DC | F43: 1149.14 | G43: =IFERROR(F43*(1-VLOOKUP(C43,ГОЛОВНА!K:L,2,0)),"-") -> 1149.14
A44: 97778403 | B44: Глибинний насос SQE 2- 35 NE 0.70kW 200 | C44: DC | F44: 847.81 | G44: =IFERROR(F44*(1-VLOOKUP(C44,ГОЛОВНА!K:L,2,0)),"-") -> 847.81
A45: 96524509 | B45: Занурений насос SQE5-50 + 40m 3x1,5mm | C45: DC | F45: 1626.57 | G45: =IFERROR(F45*(1-VLOOKUP(C45,ГОЛОВНА!K:L,2,0)),"-") -> 1626.57
A46: 96510178 | B46: Глибинний насос SQ1-35 0,7кВт 220-240В | C46: DC | F46: 540.74 | G46: =IFERROR(F46*(1-VLOOKUP(C46,ГОЛОВНА!K:L,2,0)),"-") -> 540.74
A47: 96510179 | B47: Глибинний насос SQ1-50 0,7кВт 220-240В | C47: DC | D47: FT | F47: 584.11 | G47: =IFERROR(F47*(1-VLOOKUP(C47,ГОЛОВНА!K:L,2,0)),"-") -> 584.11
A48: 96510190 | B48: Глибинний насос SQ1-65 0,7кВт 220-240В | C48: DC | D48: S | F48: 628.72 | G48: =IFERROR(F48*(1-VLOOKUP(C48,ГОЛОВНА!K:L,2,0)),"-") -> 628.72
A49: 96510191 | B49: Глибинний насос SQ1-80 1,15кВт 220-240В | C49: DC | F49: 758.76 | G49: =IFERROR(F49*(1-VLOOKUP(C49,ГОЛОВНА!K:L,2,0)),"-") -> 758.76
A50: 96510192 | B50: Глибинний насос SQ1-95 1,15кВт 220-240В | C50: DC | F50: 790.11 | G50: =IFERROR(F50*(1-VLOOKUP(C50,ГОЛОВНА!K:L,2,0)),"-") -> 790.11
A51: 96510193 | B51: Глибинний насос SQ1-110 1,15кВт 220-240В | C51: DC | F51: 821.44 | G51: =IFERROR(F51*(1-VLOOKUP(C51,ГОЛОВНА!K:L,2,0)),"-") -> 821.44
A52: 96510194 | B52: Глибинний насос SQ1-125 1,68кВт 220-240В | C52: DC | F52: 979.17 | G52: =IFERROR(F52*(1-VLOOKUP(C52,ГОЛОВНА!K:L,2,0)),"-") -> 979.17
A53: 96510195 | B53: Глибинний насос SQ1-140 1,68кВт 220-240В | C53: DC | F53: 1011.69 | G53: =IFERROR(F53*(1-VLOOKUP(C53,ГОЛОВНА!K:L,2,0)),"-") -> 1011.69
A54: 96510196 | B54: Глибинний насос SQ1-155 1,85кВт 220-240В | C54: DC | F54: 1043.01 | G54: =IFERROR(F54*(1-VLOOKUP(C54,ГОЛОВНА!K:L,2,0)),"-") -> 1043.01
A55: 96510198 | B55: Глибинний насос SQ2-35 0,7кВт 220-240В | C55: DC | D55: FT | F55: 571.04 | G55: =IFERROR(F55*(1-VLOOKUP(C55,ГОЛОВНА!K:L,2,0)),"-") -> 571.04
A56: 96510199 | B56: Глибинний насос SQ2-55 0,7кВт 220-240В | C56: DC | D56: S | F56: 606.68 | G56: =IFERROR(F56*(1-VLOOKUP(C56,ГОЛОВНА!K:L,2,0)),"-") -> 606.68
A57: 96510200 | B57: Глибинний насос SQ2-70 1,15кВт 220-240В | C57: DC | D57: S | F57: 671.88 | G57: =IFERROR(F57*(1-VLOOKUP(C57,ГОЛОВНА!K:L,2,0)),"-") -> 671.88
A58: 96510201 | B58: Глибинний насос SQ2-85 1,15кВт 220-240В | C58: DC | D58: S | F58: 751.92 | G58: =IFERROR(F58*(1-VLOOKUP(C58,ГОЛОВНА!K:L,2,0)),"-") -> 751.92
A59: 96510202 | B59: Глибинний насос SQ2-100 1,68кВт 220-240В | C59: DC | D59: S | F59: 932.76 | G59: =IFERROR(F59*(1-VLOOKUP(C59,ГОЛОВНА!K:L,2,0)),"-") -> 932.76
A60: 96510203 | B60: Глибинний насос SQ2-115 1,85кВт 220-240В | C60: DC | D60: S | F60: 965.98 | G60: =IFERROR(F60*(1-VLOOKUP(C60,ГОЛОВНА!K:L,2,0)),"-") -> 965.98
A61: 96524434 | B61: Глибинний насос з кабелем SQ2-70 (30м, 3 | C61: DC | F61: 811.2 | G61: =IFERROR(F61*(1-VLOOKUP(C61,ГОЛОВНА!K:L,2,0)),"-") -> 811.2
A62: 96160906 | B62: SQ pump cpl. with fitting s | C62: DC | F62: 730.89 | G62: =IFERROR(F62*(1-VLOOKUP(C62,ГОЛОВНА!K:L,2,0)),"-") -> 730.89
A63: 96160907 | B63: SQ pump cpl. with fitting s | C63: DC | F63: 876.13 | G63: =IFERROR(F63*(1-VLOOKUP(C63,ГОЛОВНА!K:L,2,0)),"-") -> 876.13
A64: 96160908 | B64: Пакет для водопостачання SQ3-40 з кабеле | C64: DC | F64: 930.2 | G64: =IFERROR(F64*(1-VLOOKUP(C64,ГОЛОВНА!K:L,2,0)),"-") -> 930.2
A65: 96510204 | B65: Глибинний насос SQ3-30 0,7кВт 220-240В | C65: DC | F65: 537.17 | G65: =IFERROR(F65*(1-VLOOKUP(C65,ГОЛОВНА!K:L,2,0)),"-") -> 537.17
A66: 96510205 | B66: Глибинний насос SQ3-40 0,7кВт 220-240В | C66: DC | D66: FT | F66: 568.52 | G66: =IFERROR(F66*(1-VLOOKUP(C66,ГОЛОВНА!K:L,2,0)),"-") -> 568.52
A67: 96510206 | B67: Глибинний насос SQ3-55 1,15кВт 220-240В | C67: DC | D67: S | F67: 657.58 | G67: =IFERROR(F67*(1-VLOOKUP(C67,ГОЛОВНА!K:L,2,0)),"-") -> 657.58
A68: 96510207 | B68: Глибинний насос SQ3-65 1,15кВт 220-240В | C68: DC | D68: S | F68: 735.92 | G68: =IFERROR(F68*(1-VLOOKUP(C68,ГОЛОВНА!K:L,2,0)),"-") -> 735.92
A69: 96510208 | B69: Глибинний насос SQ3-80 1,68кВт 220-240В | C69: DC | D69: S | F69: 912.92 | G69: =IFERROR(F69*(1-VLOOKUP(C69,ГОЛОВНА!K:L,2,0)),"-") -> 912.92
A70: 96510209 | B70: Глибинний насос SQ3-95 1,68кВт 220-240В | C70: DC | D70: S | F70: 945.42 | G70: =IFERROR(F70*(1-VLOOKUP(C70,ГОЛОВНА!K:L,2,0)),"-") -> 945.42
A71: 96510210 | B71: Глибинний насос SQ3-105 1,85кВт 220-240В | C71: DC | D71: S | F71: 976.76 | G71: =IFERROR(F71*(1-VLOOKUP(C71,ГОЛОВНА!K:L,2,0)),"-") -> 976.76
A72: 96524445 | B72: Глибинний насос з кабелем SQ3-80 (30м, 3 | C72: DC | F72: 1049.04 | G72: =IFERROR(F72*(1-VLOOKUP(C72,ГОЛОВНА!K:L,2,0)),"-") -> 1049.04
A73: 96510211 | B73: Глибинний насос SQ5-15 0,7кВт 220-240В | C73: DC | F73: 531.17 | G73: =IFERROR(F73*(1-VLOOKUP(C73,ГОЛОВНА!K:L,2,0)),"-") -> 531.17
A74: 96510212 | B74: Глибинний насос SQ5-25 0,7кВт 220-240В | C74: DC | F74: 543.26 | G74: =IFERROR(F74*(1-VLOOKUP(C74,ГОЛОВНА!K:L,2,0)),"-") -> 543.26
A75: 96510213 | B75: Глибинний насос SQ5-35 1,15кВт 220-240В | C75: DC | D75: FT | F75: 657.58 | G75: =IFERROR(F75*(1-VLOOKUP(C75,ГОЛОВНА!K:L,2,0)),"-") -> 657.58
A76: 96510214 | B76: Глибинний насос SQ5-50 1,68кВт 220-240В | C76: DC | F76: 735.92 | G76: =IFERROR(F76*(1-VLOOKUP(C76,ГОЛОВНА!K:L,2,0)),"-") -> 735.92
A77: 96510215 | B77: Глибинний насос SQ5-60 1,68кВт 220-240В | C77: DC | F77: 945.42 | G77: =IFERROR(F77*(1-VLOOKUP(C77,ГОЛОВНА!K:L,2,0)),"-") -> 945.42
A78: 96510217 | B78: Глибинний насос SQ5-70 1,85кВт 220-240В | C78: DC | D78: S | F78: 976.76 | G78: =IFERROR(F78*(1-VLOOKUP(C78,ГОЛОВНА!K:L,2,0)),"-") -> 976.76
A79: 96510218 | B79: Глибинний насос SQ7-15 0,7кВт 220-240В | C79: DC | F79: 727.44 | G79: =IFERROR(F79*(1-VLOOKUP(C79,ГОЛОВНА!K:L,2,0)),"-") -> 727.44
A80: 96510219 | B80: Глибинний насос SQ7-30 1,15кВт 220-240В | C80: DC | F80: 790.11 | G80: =IFERROR(F80*(1-VLOOKUP(C80,ГОЛОВНА!K:L,2,0)),"-") -> 790.11
A81: 96510220 | B81: Глибинний насос SQ7-40 1,68кВт 220-240В | C81: DC | F81: 1011.69 | G81: =IFERROR(F81*(1-VLOOKUP(C81,ГОЛОВНА!K:L,2,0)),"-") -> 1011.69
A82: 96160370 | B82: Занурений насос SQ 1- 35 N 0.70kW 200 | C82: DC | F82: 605.8 | G82: =IFERROR(F82*(1-VLOOKUP(C82,ГОЛОВНА!K:L,2,0)),"-") -> 605.8
A83: 96160371 | B83: Глибинний насос SQ 1- 50 N 0.70kW 200 | C83: DC | F83: 654.37 | G83: =IFERROR(F83*(1-VLOOKUP(C83,ГОЛОВНА!K:L,2,0)),"-") -> 654.37
A84: 96160372 | B84: Занурений насос SQ 1- 65 N 0.70kW 200 | C84: DC | F84: 728.9 | G84: =IFERROR(F84*(1-VLOOKUP(C84,ГОЛОВНА!K:L,2,0)),"-") -> 728.9
A85: 96160373 | B85: Занурений насос SQ 1- 80 N 1.15kW 200 | C85: DC | F85: 849.96 | G85: =IFERROR(F85*(1-VLOOKUP(C85,ГОЛОВНА!K:L,2,0)),"-") -> 849.96
A86: 96160374 | B86: Насос SQ 1- 95 N 1.15kW 200-240V 50/60 | C86: DC | F86: 885.11 | G86: =IFERROR(F86*(1-VLOOKUP(C86,ГОЛОВНА!K:L,2,0)),"-") -> 885.11
A87: 96160375 | B87: Занурений насос SQ 1-110 N 1.15kW 200 | C87: DC | F87: 920.19 | G87: =IFERROR(F87*(1-VLOOKUP(C87,ГОЛОВНА!K:L,2,0)),"-") -> 920.19
A88: 96160376 | B88: Занурений насос SQ 1-125 N 1.68kW 200 | C88: DC | F88: 1096.94 | G88: =IFERROR(F88*(1-VLOOKUP(C88,ГОЛОВНА!K:L,2,0)),"-") -> 1096.94
A89: 96160377 | B89: Занурений насос SQ 1-140 N 1.68kW 200 | C89: DC | F89: 1133.4 | G89: =IFERROR(F89*(1-VLOOKUP(C89,ГОЛОВНА!K:L,2,0)),"-") -> 1133.4
A90: 96160378 | B90: Занурений насос SQ 1-155 N 1.73kW 200 | C90: DC | F90: 1168.42 | G90: =IFERROR(F90*(1-VLOOKUP(C90,ГОЛОВНА!K:L,2,0)),"-") -> 1168.42
A91: 96160379 | B91: Занурений насос SQ 2- 35 N 0.70kW 200 | C91: DC | F91: 626.02 | G91: =IFERROR(F91*(1-VLOOKUP(C91,ГОЛОВНА!K:L,2,0)),"-") -> 626.02
A92: 96160380 | B92: Занурений насос SQ 2- 55 N 0.70kW 200 | C92: DC | F92: 665.18 | G92: =IFERROR(F92*(1-VLOOKUP(C92,ГОЛОВНА!K:L,2,0)),"-") -> 665.18
A93: 96160381 | B93: Глибинний насос SQ 2- 70 N 1.15kW 200 | C93: DC | F93: 736.69 | G93: =IFERROR(F93*(1-VLOOKUP(C93,ГОЛОВНА!K:L,2,0)),"-") -> 736.69
A94: 96160382 | B94: Занурений насос SQ 2- 85 N 1.15kW 200 | C94: DC | F94: 824.37 | G94: =IFERROR(F94*(1-VLOOKUP(C94,ГОЛОВНА!K:L,2,0)),"-") -> 824.37
A95: 96160383 | B95: Занурений насос SQ 2-100 N 1.68kW 200 | C95: DC | F95: 1022.68 | G95: =IFERROR(F95*(1-VLOOKUP(C95,ГОЛОВНА!K:L,2,0)),"-") -> 1022.68
A96: 96160384 | B96: Глибинний насос SQ2-115 N 1.85кВт 200-24 | C96: DC | F96: 1059.14 | G96: =IFERROR(F96*(1-VLOOKUP(C96,ГОЛОВНА!K:L,2,0)),"-") -> 1059.14
A97: 96160386 | B97: Занурений насос SQ 3- 30 N 0.63kW 200 | C97: DC | F97: 601.8 | G97: =IFERROR(F97*(1-VLOOKUP(C97,ГОЛОВНА!K:L,2,0)),"-") -> 601.8
A98: 96160387 | B98: Глибинний насос SQ3-40 N 0.63kW 200-240V | C98: DC | F98: 636.84 | G98: =IFERROR(F98*(1-VLOOKUP(C98,ГОЛОВНА!K:L,2,0)),"-") -> 636.84
A99: 96160388 | B99: Занурений насос SQ 3- 55 N 1.15kW 200 | C99: DC | F99: 736.69 | G99: =IFERROR(F99*(1-VLOOKUP(C99,ГОЛОВНА!K:L,2,0)),"-") -> 736.69
A100: 96160389 | B100: Занурений насос SQ 3- 65 N 1.05kW 200 | C100: DC | F100: 824.37 | G100: =IFERROR(F100*(1-VLOOKUP(C100,ГОЛОВНА!K:L,2,0)),"-") -> 824.37
A101: 96160390 | B101: Занурений насос SQ 3- 80 N 1.68kW 200 | C101: DC | F101: 1022.68 | G101: =IFERROR(F101*(1-VLOOKUP(C101,ГОЛОВНА!K:L,2,0)),"-") -> 1022.68
A102: 96160391 | B102: Занурений насос SQ 3- 95 N 1.68kW 200 | C102: DC | F102: 1059.14 | G102: =IFERROR(F102*(1-VLOOKUP(C102,ГОЛОВНА!K:L,2,0)),"-") -> 1059.14
A103: 96160392 | B103: Занурений насос SQ 3-105 N 1.85kW 200 | C103: DC | F103: 1094.22 | G103: =IFERROR(F103*(1-VLOOKUP(C103,ГОЛОВНА!K:L,2,0)),"-") -> 1094.22
A104: 96160393 | B104: Занурений насос SQ 5- 15 N 0.70kW 200 | C104: DC | F104: 595 | G104: =IFERROR(F104*(1-VLOOKUP(C104,ГОЛОВНА!K:L,2,0)),"-") -> 595
A105: 96160394 | B105: Занурений насос SQ 5- 25 N 0.70kW 200 | C105: DC | F105: 619.31 | G105: =IFERROR(F105*(1-VLOOKUP(C105,ГОЛОВНА!K:L,2,0)),"-") -> 619.31
A106: 96160395 | B106: Занурений насос SQ 5- 35 N 1.15kW 200 | C106: DC | F106: 736.69 | G106: =IFERROR(F106*(1-VLOOKUP(C106,ГОЛОВНА!K:L,2,0)),"-") -> 736.69
A107: 96160396 | B107: Занурений насос SQ 5- 50 N 1.68kW 200 | C107: DC | F107: 821.67 | G107: =IFERROR(F107*(1-VLOOKUP(C107,ГОЛОВНА!K:L,2,0)),"-") -> 821.67
A108: 96160397 | B108: Занурений насос SQ 5- 60 N 1.68kW 200 | C108: DC | F108: 1059.14 | G108: =IFERROR(F108*(1-VLOOKUP(C108,ГОЛОВНА!K:L,2,0)),"-") -> 1059.14
A109: 96160398 | B109: Занурений насос SQ 5- 70 N 1.85kW 200 | C109: DC | F109: 1094.22 | G109: =IFERROR(F109*(1-VLOOKUP(C109,ГОЛОВНА!K:L,2,0)),"-") -> 1094.22
A110: 96160399 | B110: Занурений насос SQ 7- 15 N 0.70kW 200 | C110: DC | F110: 814.91 | G110: =IFERROR(F110*(1-VLOOKUP(C110,ГОЛОВНА!K:L,2,0)),"-") -> 814.91
A111: 96160400 | B111: Занурений насос SQ 7- 30 N 1.15kW 200 | C111: DC | F111: 885.11 | G111: =IFERROR(F111*(1-VLOOKUP(C111,ГОЛОВНА!K:L,2,0)),"-") -> 885.11
A112: 96160401 | B112: Занурений насос SQ 7- 40 N 1.68kW 200 | C112: DC | F112: 1133.4 | G112: =IFERROR(F112*(1-VLOOKUP(C112,ГОЛОВНА!K:L,2,0)),"-") -> 1133.4
B114: Аксесуари
A115: 96524504 | B115: Комплект пост. тиску без насоса SQE | C115: DC | D115: S | F115: 565.82 | G115: =IFERROR(F115*(1-VLOOKUP(C115,ГОЛОВНА!K:L,2,0)),"-") -> 565.82
A116: 00ID8952 | B116: Реле тиску FF4-4 DAY 0,22-4 bar | C116: CW | D116: S | F116: 60.73684211 | G116: =IFERROR(F116*(1-VLOOKUP(C116,ГОЛОВНА!K:L,2,0)),"-") -> 60.73684211
A117: 00ID8953 | B117: Реле тиску FF4-8 DAY 0,5-8 bar | C117: CW | D117: S | F117: 60.73684211 | G117: =IFERROR(F117*(1-VLOOKUP(C117,ГОЛОВНА!K:L,2,0)),"-") -> 60.73684211
A118: 00ID8954 | B118: Реле тиску FF4-16 DAY 1-16 bar | C118: CW | F118: 84.10526316 | G118: =IFERROR(F118*(1-VLOOKUP(C118,ГОЛОВНА!K:L,2,0)),"-") -> 84.10526316
A119: 96021473 | B119: Термоусадкова муфта 3х1,5-6мм2 | C119: DC | F119: 25.52 | G119: =IFERROR(F119*(1-VLOOKUP(C119,ГОЛОВНА!K:L,2,0)),"-") -> 25.52
A120: 96436753 | B120: Блок керування CU301 в зборі | C120: DC | F120: 268.53 | G120: =IFERROR(F120*(1-VLOOKUP(C120,ГОЛОВНА!K:L,2,0)),"-") -> 268.53
A121: 97512995 | B121: Накладні хомути (2шт.) D68/D88 | C121: DC | F121: 78.01 | G121: =IFERROR(F121*(1-VLOOKUP(C121,ГОЛОВНА!K:L,2,0)),"-") -> 78.01
A122: 98148594 | B122: Кожух охолодження SQ/SQE | C122: DC | F122: 246.43 | G122: =IFERROR(F122*(1-VLOOKUP(C122,ГОЛОВНА!K:L,2,0)),"-") -> 246.43
A123: 00ID7946 | B123: Кабель для питної води 3x1.5 мм2 | C123: WS | F123: 2.87 | G123: =IFERROR(F123*(1-VLOOKUP(C123,ГОЛОВНА!K:L,2,0)),"-") -> 2.87
A124: 00ID7947 | B124: Кабель для питної води 3x2.5 мм2 | C124: WS | F124: 4.19 | G124: =IFERROR(F124*(1-VLOOKUP(C124,ГОЛОВНА!K:L,2,0)),"-") -> 4.19
A126: SP, SP-NE | G126: Глибинні насоси для професійного водопостачання
A127: 98779739 | B127: Глиб. насос SP9-10 Rp2 4"3X380-415/50 2 | C127: CW | F127: 1262.030877 | G127: =IFERROR(F127*(1-VLOOKUP(C127,ГОЛОВНА!K:L,2,0)),"-") -> 1262.030877
A128: 98699312 | B128: Глиб. насос SP11- 3 Rp2 4"3X380-415/50 | C128: CW | F128: 679.8415 | G128: =IFERROR(F128*(1-VLOOKUP(C128,ГОЛОВНА!K:L,2,0)),"-") -> 679.8415
A129: 98699313 | B129: Глиб. насос SP11- 5 Rp2 4"3X380-415/50 | C129: CW | F129: 837.33275 | G129: =IFERROR(F129*(1-VLOOKUP(C129,ГОЛОВНА!K:L,2,0)),"-") -> 837.33275
A130: 98699315 | B130: Глиб. насос SP11-11 Rp2 4"3X380-415/50 | C130: CW | F130: 1341.11 | G130: =IFERROR(F130*(1-VLOOKUP(C130,ГОЛОВНА!K:L,2,0)),"-") -> 1341.11
A131: 98699317 | B131: Глиб. насос SP11-20 Rp2 4"3X380-415/50 | C131: CW | F131: 2245.90825 | G131: =IFERROR(F131*(1-VLOOKUP(C131,ГОЛОВНА!K:L,2,0)),"-") -> 2245.90825
A132: 98699293 | B132: Глиб. насос SP11- 3 Rp2 4"1X230/50 0.75 | C132: CW | F132: 679.8415 | G132: =IFERROR(F132*(1-VLOOKUP(C132,ГОЛОВНА!K:L,2,0)),"-") -> 679.8415
A133: 98699321 | B133: Глиб. насос SP11- 3N Rp2 4"3X380-415/50 | C133: CW | F133: 1623.13875 | G133: =IFERROR(F133*(1-VLOOKUP(C133,ГОЛОВНА!K:L,2,0)),"-") -> 1623.13875
A134: 98699294 | B134: Глиб. насос SP11- 5 Rp2 4"1X230/50 1.10 | C134: CW | F134: 837.33275 | G134: =IFERROR(F134*(1-VLOOKUP(C134,ГОЛОВНА!K:L,2,0)),"-") -> 837.33275
A135: 98699322 | B135: Глиб. насос SP11- 5N Rp2 4"3X380-415/50 | C135: CW | F135: 1825.49425 | G135: =IFERROR(F135*(1-VLOOKUP(C135,ГОЛОВНА!K:L,2,0)),"-") -> 1825.49425
A136: 98699295 | B136: Глиб. насос SP11- 7 Rp2 4"1X230/50 1.5k | C136: CW | F136: 1008.805 | G136: =IFERROR(F136*(1-VLOOKUP(C136,ГОЛОВНА!K:L,2,0)),"-") -> 1008.805
A137: 98699314 | B137: Глибинний насос SP11- 7 Rp2 4"3X380-415/ | C137: CW | F137: 1008.805 | G137: =IFERROR(F137*(1-VLOOKUP(C137,ГОЛОВНА!K:L,2,0)),"-") -> 1008.805
A138: 98699323 | B138: Глиб. насос SP11- 7N Rp2 4"3X380-415/50 | C138: CW | F138: 2014.207 | G138: =IFERROR(F138*(1-VLOOKUP(C138,ГОЛОВНА!K:L,2,0)),"-") -> 2014.207
A139: 98699296 | B139: Глибинний насосSP11-11 Rp2 4"1X220- | C139: CW | F139: 1567.05075 | G139: =IFERROR(F139*(1-VLOOKUP(C139,ГОЛОВНА!K:L,2,0)),"-") -> 1567.05075
A140: 98699324 | B140: Глиб. насос SP11-11N Rp2 4"3X380-415/50 | C140: CW | F140: 2408.1145 | G140: =IFERROR(F140*(1-VLOOKUP(C140,ГОЛОВНА!K:L,2,0)),"-") -> 2408.1145
A141: 98699316 | B141: Глиб. насос SP11-15 Rp2 4"3X380-415/50 | C141: CW | F141: 1839.793 | G141: =IFERROR(F141*(1-VLOOKUP(C141,ГОЛОВНА!K:L,2,0)),"-") -> 1839.793
A142: 98699325 | B142: Глиб. насос SP11-15N Rp2 4"3X380-415/50 | C142: CW | F142: за запитом | G142: =IFERROR(F142*(1-VLOOKUP(C142,ГОЛОВНА!K:L,2,0)),"-") -> -
A143: 98699318 | B143: Глиб. насос SP11-24 Rp2 4"3X380-415/50 | C143: CW | F143: за запитом | G143: =IFERROR(F143*(1-VLOOKUP(C143,ГОЛОВНА!K:L,2,0)),"-") -> -
A144: 98699336 | B144: Глиб. насос SP14- 4 Rp2 4"1X230/50 1.10 | C144: CW | F144: 779.2631579 | G144: =IFERROR(F144*(1-VLOOKUP(C144,ГОЛОВНА!K:L,2,0)),"-") -> 779.2631579
A145: 98699353 | B145: Глиб. насос SP14- 4 Rp2 4"3X380-415/50 | C145: CW | F145: 779.2631579 | G145: =IFERROR(F145*(1-VLOOKUP(C145,ГОЛОВНА!K:L,2,0)),"-") -> 779.2631579
A146: 98699362 | B146: Глиб. насос SP14- 4N Rp2 4"3X380-415/50 | C146: CW | F146: 1728.578947 | G146: =IFERROR(F146*(1-VLOOKUP(C146,ГОЛОВНА!K:L,2,0)),"-") -> 1728.578947
A147: 98699337 | B147: Глиб. насос SP14- 6 Rp2 4"1X230/50 1.5k | C147: CW | F147: 957.4385965 | G147: =IFERROR(F147*(1-VLOOKUP(C147,ГОЛОВНА!K:L,2,0)),"-") -> 957.4385965
A148: 98699354 | B148: Глиб. насос SP14- 6 Rp2 4"3X380-415/50 | C148: CW | F148: 957.4385965 | G148: =IFERROR(F148*(1-VLOOKUP(C148,ГОЛОВНА!K:L,2,0)),"-") -> 957.4385965
A149: 98699363 | B149: Глиб. насос SP14- 6N Rp2 4"3X380-415/50 | C149: CW | F149: 1928.192982 | G149: =IFERROR(F149*(1-VLOOKUP(C149,ГОЛОВНА!K:L,2,0)),"-") -> 1928.192982
A150: 98699338 | B150: Глиб. насос SP14- 8 Rp2 4"1X220-230/50 | C150: CW | F150: 1391 | G150: =IFERROR(F150*(1-VLOOKUP(C150,ГОЛОВНА!K:L,2,0)),"-") -> 1391
A151: 98699355 | B151: Глиб. насос SP14- 8 Rp2 4"3X380-415/50 | C151: CW | F151: 1168.754386 | G151: =IFERROR(F151*(1-VLOOKUP(C151,ГОЛОВНА!K:L,2,0)),"-") -> 1168.754386
A152: 98699364 | B152: Глиб. насос SP14- 8N Rp2 4"3X380-415/50 | C152: CW | F152: 2142.631579 | G152: =IFERROR(F152*(1-VLOOKUP(C152,ГОЛОВНА!K:L,2,0)),"-") -> 2142.631579
A153: 98699365 | B153: Глиб. насос SP14-11N Rp2 4"3X380-415/50 | C153: CW | F153: 2475.561404 | G153: =IFERROR(F153*(1-VLOOKUP(C153,ГОЛОВНА!K:L,2,0)),"-") -> 2475.561404
A154: 98699357 | B154: Глиб. насос SP14-13 Rp2 4"3X380-415/50 | C154: CW | F154: 1744.859649 | G154: =IFERROR(F154*(1-VLOOKUP(C154,ГОЛОВНА!K:L,2,0)),"-") -> 1744.859649
A155: 98699366 | B155: Глиб. насос SP14-13N Rp2 4"3X380-415/50 | C155: CW | F155: за запитом | G155: =IFERROR(F155*(1-VLOOKUP(C155,ГОЛОВНА!K:L,2,0)),"-") -> -
A156: 98699358 | B156: Глиб. насос SP14-15 Rp2 4"3X380-415/50 | C156: CW | F156: 1967.403509 | G156: =IFERROR(F156*(1-VLOOKUP(C156,ГОЛОВНА!K:L,2,0)),"-") -> 1967.403509
A157: 98699359 | B157: Глиб. насос SP14-17 Rp2 4"3X380-415/50 | C157: CW | F157: 2093.894737 | G157: =IFERROR(F157*(1-VLOOKUP(C157,ГОЛОВНА!K:L,2,0)),"-") -> 2093.894737
A158: 98699360 | B158: Глиб. насос SP14-20 Rp2 4"3X380-415/50 | C158: CW | F158: 2374.929825 | G158: =IFERROR(F158*(1-VLOOKUP(C158,ГОЛОВНА!K:L,2,0)),"-") -> 2374.929825
A159: 98699371 | B159: Глиб. насос SP14-20 Rp2 6"3X380-415/50 | C159: CW | F159: за запитом | G159: =IFERROR(F159*(1-VLOOKUP(C159,ГОЛОВНА!K:L,2,0)),"-") -> -
A160: 98699361 | B160: Глиб. насос SP14-23 Rp2 4"3X380-415/50 | C160: CW | F160: за запитом | G160: =IFERROR(F160*(1-VLOOKUP(C160,ГОЛОВНА!K:L,2,0)),"-") -> -
A161: 12A02104 | B161: Глиб. насос SP17- 4 Rp2½ 4"1X220-230/50 | C161: WS | F161: 1554.12 | G161: =IFERROR(F161*(1-VLOOKUP(C161,ГОЛОВНА!K:L,2,0)),"-") -> 1554.12
A162: 08001K09 | B162: Глибинна помпа SP1A- 9 0.37kW 380-415V 5 | C162: CW | F162: 577.772 | G162: =IFERROR(F162*(1-VLOOKUP(C162,ГОЛОВНА!K:L,2,0)),"-") -> 577.772
A163: 08001K14 | B163: Глибинна помпа SP1A-14 0.37kW 380-415V 5 | C163: CW | F163: 643.79225 | G163: =IFERROR(F163*(1-VLOOKUP(C163,ГОЛОВНА!K:L,2,0)),"-") -> 643.79225
A164: 09001K06 | B164: Глибинна помпа SP2A- 6 0.37kW 380-415V 5 | C164: CW | D164: FT | F164: 561.659 | G164: =IFERROR(F164*(1-VLOOKUP(C164,ГОЛОВНА!K:L,2,0)),"-") -> 561.659
A165: 09001K09 | B165: Глибинна помпа SP2A- 9 0.37kW 380-415V 5 | C165: CW | D165: FT | F165: 590.728 | G165: =IFERROR(F165*(1-VLOOKUP(C165,ГОЛОВНА!K:L,2,0)),"-") -> 590.728
A166: 09001K13 | B166: Глибинна помпа SP2A-13 0.55kW 380-415V 5 | C166: CW | D166: FT | F166: 650.90575 | G166: =IFERROR(F166*(1-VLOOKUP(C166,ГОЛОВНА!K:L,2,0)),"-") -> 650.90575
A167: 9007513 | B167: Глибинна помпа SP2A-13, 0.55kW 1x220-240 | C167: CW | F167: 661.07375 | G167: =IFERROR(F167*(1-VLOOKUP(C167,ГОЛОВНА!K:L,2,0)),"-") -> 661.07375
A168: 09001K18 | B168: Глибинна помпа SP2A-18 0.75kW 380-415V 5 | C168: CW | D168: FT | F168: 716.83375 | G168: =IFERROR(F168*(1-VLOOKUP(C168,ГОЛОВНА!K:L,2,0)),"-") -> 716.83375
A169: 09001K23 | B169: Глибинна помпа SP2A-23 1.1kW 380-415V 50 | C169: CW | F169: 810.324 | G169: =IFERROR(F169*(1-VLOOKUP(C169,ГОЛОВНА!K:L,2,0)),"-") -> 810.324
A170: 09001K28 | B170: Глибинна помпа SP2A-28 1.5kW 380-415V 50 | C170: CW | F170: 909.7695 | G170: =IFERROR(F170*(1-VLOOKUP(C170,ГОЛОВНА!K:L,2,0)),"-") -> 909.7695
A171: 09001K33 | B171: Глибинна помпа SP2A-33 1,5kW 380-415V 50 | C171: CW | F171: 958.1085 | G171: =IFERROR(F171*(1-VLOOKUP(C171,ГОЛОВНА!K:L,2,0)),"-") -> 958.1085
A172: 09101K40 | B172: Глибинна помпа SP2A-40 2.2kW 3x380x415V | C172: CW | F172: 1779.96375 | G172: =IFERROR(F172*(1-VLOOKUP(C172,ГОЛОВНА!K:L,2,0)),"-") -> 1779.96375
A173: 09101K48 | B173: Глибинна помпа SP2A-48 2.2KW 3x380-415V | C173: CW | F173: 1996.34125 | G173: =IFERROR(F173*(1-VLOOKUP(C173,ГОЛОВНА!K:L,2,0)),"-") -> 1996.34125
A174: 09101K55 | B174: Глибинна помпа SP2A-55 3.0KW 3x380-415V | C174: CW | F174: 2411.661 | G174: =IFERROR(F174*(1-VLOOKUP(C174,ГОЛОВНА!K:L,2,0)),"-") -> 2411.661
A175: 09101K65 | B175: Глибинна помпа SP2A-65 3.0kW 3x380-415V | C175: CW | F175: за запитом | G175: =IFERROR(F175*(1-VLOOKUP(C175,ГОЛОВНА!K:L,2,0)),"-") -> -
A176: 10001K06 | B176: Глибинна помпа SP3A- 6 0.37kW 380-415V 5 | C176: CW | D176: FT | F176: 583.1929825 | G176: =IFERROR(F176*(1-VLOOKUP(C176,ГОЛОВНА!K:L,2,0)),"-") -> 583.1929825
A177: 10201906 | B177: Глибинна помпа SP3A- 6N 0.75kW 3x380-415 | C177: CW | F177: 1515.947368 | G177: =IFERROR(F177*(1-VLOOKUP(C177,ГОЛОВНА!K:L,2,0)),"-") -> 1515.947368
A178: 10221906 | B178: Глибинна помпа SP3A- 6NE 0.75kW 3x380-41 | C178: WS | F178: 1825.64 | G178: =IFERROR(F178*(1-VLOOKUP(C178,ГОЛОВНА!K:L,2,0)),"-") -> 1825.64
A179: 10001K09 | B179: Глибинна помпа SP3A- 9 0.55kW 380-415V 5 | C179: CW | D179: FT | F179: 616.5263158 | G179: =IFERROR(F179*(1-VLOOKUP(C179,ГОЛОВНА!K:L,2,0)),"-") -> 616.5263158
A180: 10201909 | B180: Глибинна помпа SP3A- 9N 0.75kW 3x380-415 | C180: CW | F180: 1560.157895 | G180: =IFERROR(F180*(1-VLOOKUP(C180,ГОЛОВНА!K:L,2,0)),"-") -> 1560.157895
A181: 10221909 | B181: Глибинна помпа SP3A- 9NE 0.75kW 3x380-41 | C181: WS | F181: 1904.48 | G181: =IFERROR(F181*(1-VLOOKUP(C181,ГОЛОВНА!K:L,2,0)),"-") -> 1904.48
A182: 10001K12 | B182: Глибинна помпа SP3A-12 0.75kW 380-415V 5 | C182: CW | D182: FT | F182: 681.754386 | G182: =IFERROR(F182*(1-VLOOKUP(C182,ГОЛОВНА!K:L,2,0)),"-") -> 681.754386
A183: 10201912 | B183: Глибинна помпа SP3A-12N 0.75kW 3x380-415 | C183: CW | F183: 1604.350877 | G183: =IFERROR(F183*(1-VLOOKUP(C183,ГОЛОВНА!K:L,2,0)),"-") -> 1604.350877
A184: 10221912 | B184: Глибинна помпа SP3A-12NE 0.75kW 3x380-41 | C184: WS | F184: 1936.96 | G184: =IFERROR(F184*(1-VLOOKUP(C184,ГОЛОВНА!K:L,2,0)),"-") -> 1936.96
A185: 10001K15 | B185: Глибинна помпа SP3A-15 1.1kW 380-415V 50 | C185: CW | D185: FT | F185: 756.9824561 | G185: =IFERROR(F185*(1-VLOOKUP(C185,ГОЛОВНА!K:L,2,0)),"-") -> 756.9824561
A186: 10201915 | B186: Глибинна помпа SP3A-15N 1.1kW 3x380-415V | C186: CW | F186: 1665.807018 | G186: =IFERROR(F186*(1-VLOOKUP(C186,ГОЛОВНА!K:L,2,0)),"-") -> 1665.807018
A187: 10221915 | B187: Глибинна помпа SP3A-15NE 1.1kW 3x380-415 | C187: WS | F187: 2018.05 | G187: =IFERROR(F187*(1-VLOOKUP(C187,ГОЛОВНА!K:L,2,0)),"-") -> 2018.05
A188: 10201918 | B188: Глибинна помпа SP3A-18N 1.1kW 3x380-415V | C188: WS | F188: 1689.38 | G188: =IFERROR(F188*(1-VLOOKUP(C188,ГОЛОВНА!K:L,2,0)),"-") -> 1689.38
A189: 10221918 | B189: Глибинна помпа SP3A-18NE 1.1kW 3x380-415 | C189: WS | F189: 2074.9 | G189: =IFERROR(F189*(1-VLOOKUP(C189,ГОЛОВНА!K:L,2,0)),"-") -> 2074.9
A190: 10201922 | B190: Глибинна помпа SP3A-22N 1.5kW 3x380-415V | C190: CW | F190: 1772.894737 | G190: =IFERROR(F190*(1-VLOOKUP(C190,ГОЛОВНА!K:L,2,0)),"-") -> 1772.894737
A191: 10221922 | B191: Глибинна помпа SP3A-22NE 1.5kW 3x380-415 | C191: WS | F191: 2153.67 | G191: =IFERROR(F191*(1-VLOOKUP(C191,ГОЛОВНА!K:L,2,0)),"-") -> 2153.67
A192: 10001K25 | B192: Глибинна помпа SP3A-25 1.5kW 380-415V 50 | C192: CW | F192: 893.62575 | G192: =IFERROR(F192*(1-VLOOKUP(C192,ГОЛОВНА!K:L,2,0)),"-") -> 893.62575
A193: 10201925 | B193: Глибинна помпа SP3A-25N 1.5kW 3x380-415V | C193: WS | F193: 1795.24 | G193: =IFERROR(F193*(1-VLOOKUP(C193,ГОЛОВНА!K:L,2,0)),"-") -> 1795.24
A194: 10221925 | B194: Глибинна помпа SP3A-25NE 1.5kW 3x380-415 | C194: WS | F194: 2210.53 | G194: =IFERROR(F194*(1-VLOOKUP(C194,ГОЛОВНА!K:L,2,0)),"-") -> 2210.53
A195: 10201929 | B195: Глибинна помпа SP3A-29N 2.2kW 3x380-415V | C195: CW | F195: 1904.385965 | G195: =IFERROR(F195*(1-VLOOKUP(C195,ГОЛОВНА!K:L,2,0)),"-") -> 1904.385965
A196: 10221929 | B196: Глибинна помпа SP3A-29NE 2.2kW 3x380-415 | C196: WS | F196: 2342.91 | G196: =IFERROR(F196*(1-VLOOKUP(C196,ГОЛОВНА!K:L,2,0)),"-") -> 2342.91
A197: 10101K39 | B197: Глибинна помпа SP3A-39 3.0KW 3x380-415V | C197: CW | F197: 2053.754386 | G197: =IFERROR(F197*(1-VLOOKUP(C197,ГОЛОВНА!K:L,2,0)),"-") -> 2053.754386
A198: 10201939 | B198: Глибинна помпа SP3A-39N 3.0kW 3x380-415V | C198: WS | F198: за запитом | G198: =IFERROR(F198*(1-VLOOKUP(C198,ГОЛОВНА!K:L,2,0)),"-") -> -
A199: 10101K45 | B199: Глибинна помпа SP3A-45 3.0KW 3x380-415V | C199: CW | F199: 2201.052632 | G199: =IFERROR(F199*(1-VLOOKUP(C199,ГОЛОВНА!K:L,2,0)),"-") -> 2201.052632
A200: 10101K52 | B200: Глибинна помпа SP3A-52 4.0KW 3x380-415V | C200: CW | F200: 2467.631579 | G200: =IFERROR(F200*(1-VLOOKUP(C200,ГОЛОВНА!K:L,2,0)),"-") -> 2467.631579
A201: 10101K60 | B201: Глибинна помпа SP3A-60 4.0kW 3x380-415V | C201: CW | F201: за запитом | G201: =IFERROR(F201*(1-VLOOKUP(C201,ГОЛОВНА!K:L,2,0)),"-") -> -
A202: 05001K04 | B202: Глибинна помпа SP5A- 4 0.37kW 380-415V 5 | C202: CW | F202: 576.6315789 | G202: =IFERROR(F202*(1-VLOOKUP(C202,ГОЛОВНА!K:L,2,0)),"-") -> 576.6315789
A203: 5201904 | B203: Глибинна помпа SP5A- 4N 0.75kW 3x380-415 | C203: CW | F203: 1506.175439 | G203: =IFERROR(F203*(1-VLOOKUP(C203,ГОЛОВНА!K:L,2,0)),"-") -> 1506.175439
... 413 more rows

Sheet Sololift, Unilift AP, KP
A1: АРТИКУЛ | B1: НАЙМЕНУВАННЯ (УКР) | C1: PRICE GROUP | D1: ДОСТАВКА | E1: ДОДАТКОВО | F1: ЦІНА (ЕВРО БЕЗ ПДВ) | G1: ЦІНА ЗІ ЗНИЖКОЮ | H1: НА ГОЛОВНУ
A2: Conlift, Sololift, Liftaway | G2: Дренажні та каналізаційні насоси та насосні станції
A3: 97775317 | B3: Каналізаційна установка Sololift2 C-3 | C3: DC | D3: S | F3: 328.66 | G3: =IFERROR(F3*(1-VLOOKUP(C3,ГОЛОВНА!K:L,2,0)), "-") -> 328.66
A4: 97775316 | B4: Каналізаційна установка Sololift2 CWC-3 | C4: DC | D4: S | F4: 365.2 | G4: =IFERROR(F4*(1-VLOOKUP(C4,ГОЛОВНА!K:L,2,0)), "-") -> 365.2
A5: 97775318 | B5: Каналізаційна установка Sololift2 D-2 | C5: DC | D5: S | F5: 260.39 | G5: =IFERROR(F5*(1-VLOOKUP(C5,ГОЛОВНА!K:L,2,0)), "-") -> 260.39
A6: 97775314 | B6: Каналізаційна установка Sololift2 WC-1 | C6: DC | D6: S | F6: 290.56 | G6: =IFERROR(F6*(1-VLOOKUP(C6,ГОЛОВНА!K:L,2,0)), "-") -> 290.56
A7: 97775315 | B7: Каналізаційна установка Sololift2 WC-3 | C7: DC | D7: S | F7: 352.48 | G7: =IFERROR(F7*(1-VLOOKUP(C7,ГОЛОВНА!K:L,2,0)), "-") -> 352.48
A8: 97936156 | B8: Дренажна установка CONLIFT1 | C8: DC | D8: S | F8: 87.4 | G8: =IFERROR(F8*(1-VLOOKUP(C8,ГОЛОВНА!K:L,2,0)), "-") -> 87.4
A9: 96003974 | B9: Каналізаційна установка Liftaway B 40-1 | C9: DC | F9: 784.5 | G9: =IFERROR(F9*(1-VLOOKUP(C9,ГОЛОВНА!K:L,2,0)), "-") -> 784.5
A10: 96003975 | B10: Каналізаційна установка Liftaway B 40-1- | C10: DC | F10: 814.11 | G10: =IFERROR(F10*(1-VLOOKUP(C10,ГОЛОВНА!K:L,2,0)), "-") -> 814.11
A11: 96003985 | B11: Каналізаційна установка Liftaway C 40-1 | C11: DC | F11: 209.87 | G11: =IFERROR(F11*(1-VLOOKUP(C11,ГОЛОВНА!K:L,2,0)), "-") -> 209.87
A13: Unilift KP,CC, KPC, AP, AP B | G13: Дренажні та каналізаційні насоси та насосні станції
A14: 98863989 | B14: Насос для брудн води KPC 300 A 1x220 50H | C14: DC | D14: S | F14: 125.6 | G14: =IFERROR(F14*(1-VLOOKUP(C14,ГОЛОВНА!K:L,2,0)), "-") -> 125.6
A15: 98864015 | B15: Насос KPC 600 A 1x220 50Hz Schuko EU HU | C15: DC | D15: S | F15: 161.24 | G15: =IFERROR(F15*(1-VLOOKUP(C15,ГОЛОВНА!K:L,2,0)), "-") -> 161.24
A16: 96280966 | B16: Насос для брудної води Unilift CC5 - A1 | C16: DC | F16: 148.03 | G16: =IFERROR(F16*(1-VLOOKUP(C16,ГОЛОВНА!K:L,2,0)), "-") -> 148.03
A17: 96280965 | B17: Насос для брудної води Unilift CC5 - M1 | C17: DC | F17: 139 | G17: =IFERROR(F17*(1-VLOOKUP(C17,ГОЛОВНА!K:L,2,0)), "-") -> 139
A18: 96280968 | B18: Насос для брудної води Unilift CC7 - A1 | C18: DC | D18: S | F18: 171.49 | G18: =IFERROR(F18*(1-VLOOKUP(C18,ГОЛОВНА!K:L,2,0)), "-") -> 171.49
A19: 96280967 | B19: Насос для брудної води Unilift CC7 - M1 | C19: DC | F19: 162.25 | G19: =IFERROR(F19*(1-VLOOKUP(C19,ГОЛОВНА!K:L,2,0)), "-") -> 162.25
A20: 96280970 | B20: Насос для брудної води Unilift CC9 - A1 | C20: DC | D20: S | F20: 222.05 | G20: =IFERROR(F20*(1-VLOOKUP(C20,ГОЛОВНА!K:L,2,0)), "-") -> 222.05
A21: 96280969 | B21: Насос для брудної води Unilift CC9 - M1 | C21: DC | F21: 209.42 | G21: =IFERROR(F21*(1-VLOOKUP(C21,ГОЛОВНА!K:L,2,0)), "-") -> 209.42
A22: 011H1800 | B22: Насос для брудної води KP150-A-1, кабель | C22: DC | D22: S | F22: 234.24 | G22: =IFERROR(F22*(1-VLOOKUP(C22,ГОЛОВНА!K:L,2,0)), "-") -> 234.24
A23: 011H1600 | B23: Насос для брудної води KP150-A-1, кабель | C23: DC | D23: S | F23: 219.15 | G23: =IFERROR(F23*(1-VLOOKUP(C23,ГОЛОВНА!K:L,2,0)), "-") -> 219.15
A24: 011H1400 | B24: Насос для брудної води KP150-AV-1, кабел | C24: DC | F24: 231.72 | G24: =IFERROR(F24*(1-VLOOKUP(C24,ГОЛОВНА!K:L,2,0)), "-") -> 231.72
A25: 011H1900 | B25: Насос для брудної води KP150-AV-1, кабел | C25: DC | F25: 246.85 | G25: =IFERROR(F25*(1-VLOOKUP(C25,ГОЛОВНА!K:L,2,0)), "-") -> 246.85
A26: 011H6300 | B26: Насос для брудної води KP150-M-1 1x220-2 | C26: DC | F26: 215.3 | G26: =IFERROR(F26*(1-VLOOKUP(C26,ГОЛОВНА!K:L,2,0)), "-") -> 215.3
A27: 011H1300 | B27: Насос для брудної води KP150-M-1, кабель | C27: DC | F27: 220.4 | G27: =IFERROR(F27*(1-VLOOKUP(C27,ГОЛОВНА!K:L,2,0)), "-") -> 220.4
A28: 012H1800 | B28: Насос для брудної води KP250-A-1, кабель | C28: DC | D28: S | F28: 277.34 | G28: =IFERROR(F28*(1-VLOOKUP(C28,ГОЛОВНА!K:L,2,0)), "-") -> 277.34
A29: 012H1600 | B29: Насос для брудної води KP250-A-1, кабель | C29: DC | D29: S | F29: 263.25 | G29: =IFERROR(F29*(1-VLOOKUP(C29,ГОЛОВНА!K:L,2,0)), "-") -> 263.25
A30: 012H1400 | B30: Насос для брудної води KP250-AV-1, кабел | C30: DC | F30: 276.05 | G30: =IFERROR(F30*(1-VLOOKUP(C30,ГОЛОВНА!K:L,2,0)), "-") -> 276.05
A31: 012H1900 | B31: Насос для брудної води KP250-AV-1, кабел | C31: DC | F31: 291.38 | G31: =IFERROR(F31*(1-VLOOKUP(C31,ГОЛОВНА!K:L,2,0)), "-") -> 291.38
A32: 012H1300 | B32: Насос для брудної води KP250-M-1, кабель | C32: DC | F32: 261.4 | G32: =IFERROR(F32*(1-VLOOKUP(C32,ГОЛОВНА!K:L,2,0)), "-") -> 261.4
A33: 012M6300 | B33: Насос для брудної води KP250-M-3 3x380-4 | C33: DC | F33: 257.61 | G33: =IFERROR(F33*(1-VLOOKUP(C33,ГОЛОВНА!K:L,2,0)), "-") -> 257.61
A34: 012M6100 | B34: Насос для брудної води UNILIFT KP250-M-3 | C34: DC | F34: 250.48 | G34: =IFERROR(F34*(1-VLOOKUP(C34,ГОЛОВНА!K:L,2,0)), "-") -> 250.48
A35: 013N1800 | B35: Насос для брудної води KP350-A-1, кабель | C35: DC | F35: 359.63 | G35: =IFERROR(F35*(1-VLOOKUP(C35,ГОЛОВНА!K:L,2,0)), "-") -> 359.63
A36: 013N1600 | B36: Насос для брудної води KP350-A-1, кабель | C36: DC | D36: S | F36: 335.18 | G36: =IFERROR(F36*(1-VLOOKUP(C36,ГОЛОВНА!K:L,2,0)), "-") -> 335.18
A37: 013N1400 | B37: Насос для брудної води KP350-AV-1, кабел | C37: DC | F37: 387.82 | G37: =IFERROR(F37*(1-VLOOKUP(C37,ГОЛОВНА!K:L,2,0)), "-") -> 387.82
A38: 013N1900 | B38: Насос для брудної води KP350-AV-1, кабел | C38: DC | F38: 412.22 | G38: =IFERROR(F38*(1-VLOOKUP(C38,ГОЛОВНА!K:L,2,0)), "-") -> 412.22
A39: 013N1300 | B39: Насос для брудної води KP350-M-1, кабель | C39: DC | F39: 332.47 | G39: =IFERROR(F39*(1-VLOOKUP(C39,ГОЛОВНА!K:L,2,0)), "-") -> 332.47
A40: 013M6300 | B40: Помпа для брудної води UNILIFT KP350-M-3 | C40: DC | F40: 345.17 | G40: =IFERROR(F40*(1-VLOOKUP(C40,ГОЛОВНА!K:L,2,0)), "-") -> 345.17
A41: 96011016 | B41: Насос для брудної води AP12.40.04.1, 1x2 | C41: CW | F41: 486.72125 | G41: =IFERROR(F41*(1-VLOOKUP(C41,ГОЛОВНА!K:L,2,0)), "-") -> 486.72125
A42: 96011024 | B42: Насос для брудної води AP12.40.04.3 3x40 | C42: CW | F42: 470.07525 | G42: =IFERROR(F42*(1-VLOOKUP(C42,ГОЛОВНА!K:L,2,0)), "-") -> 470.07525
A43: 96011018 | B43: Насос для брудної води AP12.40.04.A1, 1x | C43: CW | F43: 526.891 | G43: =IFERROR(F43*(1-VLOOKUP(C43,ГОЛОВНА!K:L,2,0)), "-") -> 526.891
A44: 96011015 | B44: Насос для брудної води AP 12.40.04.A1 1x | C44: CW | F44: 495.2185 | G44: =IFERROR(F44*(1-VLOOKUP(C44,ГОЛОВНА!K:L,2,0)), "-") -> 495.2185
A45: 96011017 | B45: Насос для брудної води AP12.40.04.A1 1x2 | C45: CW | D45: S | F45: 497.79125 | G45: =IFERROR(F45*(1-VLOOKUP(C45,ГОЛОВНА!K:L,2,0)), "-") -> 497.79125
A46: 96023871 | B46: Насос для брудної води AP12.40.04.A3 | C46: CW | F46: 622.61575 | G46: =IFERROR(F46*(1-VLOOKUP(C46,ГОЛОВНА!K:L,2,0)), "-") -> 622.61575
A47: 96001720 | B47: Насос для брудної води AP12.40.06.1 1x23 | C47: CW | F47: 507.52875 | G47: =IFERROR(F47*(1-VLOOKUP(C47,ГОЛОВНА!K:L,2,0)), "-") -> 507.52875
A48: 96001652 | B48: Насос для брудної води AP12.40.06.3 3x40 | C48: CW | F48: 490.8725 | G48: =IFERROR(F48*(1-VLOOKUP(C48,ГОЛОВНА!K:L,2,0)), "-") -> 490.8725
A49: 96010979 | B49: Помпа для брудної води AP12.40.06.A1 1X2 | C49: CW | F49: 560.19325 | G49: =IFERROR(F49*(1-VLOOKUP(C49,ГОЛОВНА!K:L,2,0)), "-") -> 560.19325
A50: 96001735 | B50: Насос для брудної води AP12.40.06.A1 1x2 | C50: CW | D50: S | F50: 524.185 | G50: =IFERROR(F50*(1-VLOOKUP(C50,ГОЛОВНА!K:L,2,0)), "-") -> 524.185
A51: 96023872 | B51: Насос для брудної води AP12.40.06.A3 3x4 | C51: CW | F51: 657.24025 | G51: =IFERROR(F51*(1-VLOOKUP(C51,ГОЛОВНА!K:L,2,0)), "-") -> 657.24025
A52: 96001869 | B52: Насос для брудної води AP12.40.08.1 1x23 | C52: CW | F52: 567.1735 | G52: =IFERROR(F52*(1-VLOOKUP(C52,ГОЛОВНА!K:L,2,0)), "-") -> 567.1735
A53: 96001791 | B53: Насос для брудної води AP12.40.08.3 3x40 | C53: CW | F53: 547.391 | G53: =IFERROR(F53*(1-VLOOKUP(C53,ГОЛОВНА!K:L,2,0)), "-") -> 547.391
A54: 96404181 | B54: Насос для брудної води AP 12.40.08.A1 1X | C54: CW | F54: 619.52025 | G54: =IFERROR(F54*(1-VLOOKUP(C54,ГОЛОВНА!K:L,2,0)), "-") -> 619.52025
A55: 96010980 | B55: Насос для брудної води AP12.40.08.A1 1X2 | C55: CW | F55: 619.52025 | G55: =IFERROR(F55*(1-VLOOKUP(C55,ГОЛОВНА!K:L,2,0)), "-") -> 619.52025
A56: 96001798 | B56: Насос для брудної води AP12.40.08 | C56: CW | F56: 585.57225 | G56: =IFERROR(F56*(1-VLOOKUP(C56,ГОЛОВНА!K:L,2,0)), "-") -> 585.57225
A57: 96010925 | B57: Насос дренажний UNILIFT AP12.40.08.A3 3x | C57: CW | F57: 664.733 | G57: =IFERROR(F57*(1-VLOOKUP(C57,ГОЛОВНА!K:L,2,0)), "-") -> 664.733
A58: 96023873 | B58: Насос для брудної води AP12.40.08.A3 3X4 | C58: CW | F58: 690.22475 | G58: =IFERROR(F58*(1-VLOOKUP(C58,ГОЛОВНА!K:L,2,0)), "-") -> 690.22475
A59: 96001958 | B59: Насос для брудної води AP12.50.11.1 1x23 | C59: CW | F59: 800.57625 | G59: =IFERROR(F59*(1-VLOOKUP(C59,ГОЛОВНА!K:L,2,0)), "-") -> 800.57625
A60: 96001975 | B60: Насос для брудної води AP12.50.11.3 3x40 | C60: CW | F60: 772.2555 | G60: =IFERROR(F60*(1-VLOOKUP(C60,ГОЛОВНА!K:L,2,0)), "-") -> 772.2555
A61: 96010981 | B61: Насос для брудної води AP12.50.11.A1 1x2 | C61: CW | F61: 862.77325 | G61: =IFERROR(F61*(1-VLOOKUP(C61,ГОЛОВНА!K:L,2,0)), "-") -> 862.77325
A62: 96001965 | B62: Насос для брудної води AP12.50.11.A1 1x2 | C62: CW | D62: S | F62: 824.56125 | G62: =IFERROR(F62*(1-VLOOKUP(C62,ГОЛОВНА!K:L,2,0)), "-") -> 824.56125
A63: 96023874 | B63: Насос для брудної води AP12.50.11.A3 3x4 | C63: CW | F63: 923.5865 | G63: =IFERROR(F63*(1-VLOOKUP(C63,ГОЛОВНА!K:L,2,0)), "-") -> 923.5865
A64: 96001796 | B64: Помпа для брудної води AP35.40.06.1V | C64: CW | F64: 579.7862275 | G64: =IFERROR(F64*(1-VLOOKUP(C64,ГОЛОВНА!K:L,2,0)), "-") -> 579.7862275
A65: 96000169 | B65: Насос для брудної води AP 35.40.06.3V 3x | C65: CW | F65: 560.8671875 | G65: =IFERROR(F65*(1-VLOOKUP(C65,ГОЛОВНА!K:L,2,0)), "-") -> 560.8671875
A66: 96010982 | B66: Насос для брудної води AP35.40.06.A1, 10 | C66: CW | F66: 643.92304 | G66: =IFERROR(F66*(1-VLOOKUP(C66,ГОЛОВНА!K:L,2,0)), "-") -> 643.92304
A67: 96023875 | B67: Помпа для брудної води AP35.40.06.A3V 3x | C67: CW | F67: 710.9314925 | G67: =IFERROR(F67*(1-VLOOKUP(C67,ГОЛОВНА!K:L,2,0)), "-") -> 710.9314925
A68: 96001672 | B68: Помпа для брудної води AP35.40.08.1V | C68: CW | F68: 635.1708725 | G68: =IFERROR(F68*(1-VLOOKUP(C68,ГОЛОВНА!K:L,2,0)), "-") -> 635.1708725
A69: 96001718 | B69: Насос для брудної води AP 35.40.08.3V 3x | C69: CW | F69: 613.30629 | G69: =IFERROR(F69*(1-VLOOKUP(C69,ГОЛОВНА!K:L,2,0)), "-") -> 613.30629
A70: 96010983 | B70: Насос для брудної води AP35.40.08.A1V 10 | C70: CW | F70: 683.218055 | G70: =IFERROR(F70*(1-VLOOKUP(C70,ГОЛОВНА!K:L,2,0)), "-") -> 683.218055
A71: 96001897 | B71: Помпа для брудної води AP35.40.08.A1V | C71: CW | F71: 654.1532575 | G71: =IFERROR(F71*(1-VLOOKUP(C71,ГОЛОВНА!K:L,2,0)), "-") -> 654.1532575
A72: 96023876 | B72: Помпа для брудної води AP35.40.08.A3V | C72: CW | F72: 790.7921805 | G72: =IFERROR(F72*(1-VLOOKUP(C72,ГОЛОВНА!K:L,2,0)), "-") -> 790.7921805
A73: 96004563 | B73: Насос для брудної води AP35B.50.06.1V 1x | C73: CW | F73: 384.59025 | G73: =IFERROR(F73*(1-VLOOKUP(C73,ГОЛОВНА!K:L,2,0)), "-") -> 384.59025
A74: 96468190 | B74: Помпа для брудної води UNILIFT AP35B.50. | C74: CW | F74: 430.254 | G74: =IFERROR(F74*(1-VLOOKUP(C74,ГОЛОВНА!K:L,2,0)), "-") -> 430.254
A75: 96004565 | B75: Помпа для брудної води AP35B.50.06.3V 3x | C75: CW | F75: 422.43325 | G75: =IFERROR(F75*(1-VLOOKUP(C75,ГОЛОВНА!K:L,2,0)), "-") -> 422.43325
A76: 96468356 | B76: Насос для брудної води AP35B.50.06.A1V 1 | C76: CW | D76: S | F76: 450.836 | G76: =IFERROR(F76*(1-VLOOKUP(C76,ГОЛОВНА!K:L,2,0)), "-") -> 450.836
A77: 96004562 | B77: Насос для брудної води AP35B.50.06.A1V 1 | C77: CW | F77: 439.971 | G77: =IFERROR(F77*(1-VLOOKUP(C77,ГОЛОВНА!K:L,2,0)), "-") -> 439.971
A78: 96004575 | B78: Помпа для брудної води UNILIFT AP35B.50. | C78: CW | F78: 464.66325 | G78: =IFERROR(F78*(1-VLOOKUP(C78,ГОЛОВНА!K:L,2,0)), "-") -> 464.66325
A79: 96468193 | B79: Насос для брудної води AP35B.50.08.3V | C79: CW | F79: 511.09575 | G79: =IFERROR(F79*(1-VLOOKUP(C79,ГОЛОВНА!K:L,2,0)), "-") -> 511.09575
A80: 96004577 | B80: Помпа для брудної води AP35B.50.08.3V 3x | C80: CW | F80: 502.58825 | G80: =IFERROR(F80*(1-VLOOKUP(C80,ГОЛОВНА!K:L,2,0)), "-") -> 502.58825
A81: 96468355 | B81: Насос для брудної води AP35B.50.08.A1V 1 | C81: CW | F81: 531.28825 | G81: =IFERROR(F81*(1-VLOOKUP(C81,ГОЛОВНА!K:L,2,0)), "-") -> 531.28825
A82: 96004574 | B82: Помпа для брудної води AP35B.50.08.A1V 1 | C82: CW | F82: 520.09525 | G82: =IFERROR(F82*(1-VLOOKUP(C82,ГОЛОВНА!K:L,2,0)), "-") -> 520.09525
A83: 96010595 | B83: Помпа для брудної води AP50.50.08.1V | C83: CW | F83: 833.284 | G83: =IFERROR(F83*(1-VLOOKUP(C83,ГОЛОВНА!K:L,2,0)), "-") -> 833.284
A84: 96010563 | B84: Помпа для брудної води AP50.50.08.3V | C84: CW | F84: 805.63975 | G84: =IFERROR(F84*(1-VLOOKUP(C84,ГОЛОВНА!K:L,2,0)), "-") -> 805.63975
A85: 96010984 | B85: Помпа для брудної води AP50.50.08.A1V | C85: CW | F85: 908.07825 | G85: =IFERROR(F85*(1-VLOOKUP(C85,ГОЛОВНА!K:L,2,0)), "-") -> 908.07825
A86: 96010584 | B86: Помпа для брудної води AP50.50.08.A1V | C86: CW | F86: 859.51375 | G86: =IFERROR(F86*(1-VLOOKUP(C86,ГОЛОВНА!K:L,2,0)), "-") -> 859.51375
A87: 96023877 | B87: Помпа для брудної води AP50.50.08.A3V | C87: CW | F87: 971.7 | G87: =IFERROR(F87*(1-VLOOKUP(C87,ГОЛОВНА!K:L,2,0)), "-") -> 971.7
A88: 96010577 | B88: Помпа для брудної води AP50.50.11.1V | C88: CW | F88: 1260.16575 | G88: =IFERROR(F88*(1-VLOOKUP(C88,ГОЛОВНА!K:L,2,0)), "-") -> 1260.16575
A89: 96010562 | B89: Помпа для брудної води AP50.50.11.3V | C89: CW | F89: 1220.8365 | G89: =IFERROR(F89*(1-VLOOKUP(C89,ГОЛОВНА!K:L,2,0)), "-") -> 1220.8365
A90: 96010985 | B90: Помпа для брудної води AP50.50.11.A1V | C90: CW | F90: 1332.9715 | G90: =IFERROR(F90*(1-VLOOKUP(C90,ГОЛОВНА!K:L,2,0)), "-") -> 1332.9715
A91: 96023878 | B91: Насос для брудної води AP50.50.11.A3V | C91: CW | F91: 1385.40025 | G91: =IFERROR(F91*(1-VLOOKUP(C91,ГОЛОВНА!K:L,2,0)), "-") -> 1385.40025
A92: 96004587 | B92: Насос для брудної води AP50B.50.08.1V 1x | C92: CW | F92: 594.0695 | G92: =IFERROR(F92*(1-VLOOKUP(C92,ГОЛОВНА!K:L,2,0)), "-") -> 594.0695
A93: 96468194 | B93: Насос брудної води UNILIFT AP50B.50.08.3 | C93: CW | D93: S | F93: 594.3155 | G93: =IFERROR(F93*(1-VLOOKUP(C93,ГОЛОВНА!K:L,2,0)), "-") -> 594.3155
A94: 96004589 | B94: Насос для брудної води AP50B.50.08.3V 3x | C94: CW | F94: 584.15775 | G94: =IFERROR(F94*(1-VLOOKUP(C94,ГОЛОВНА!K:L,2,0)), "-") -> 584.15775
A95: 96468354 | B95: Насос для брудної води AP50B.50.08.A1V 1 | C95: CW | F95: 665.6555 | G95: =IFERROR(F95*(1-VLOOKUP(C95,ГОЛОВНА!K:L,2,0)), "-") -> 665.6555
A96: 96004586 | B96: Помпа для брудної води AP50B.50.08.A1V 1 | C96: CW | F96: 647.81025 | G96: =IFERROR(F96*(1-VLOOKUP(C96,ГОЛОВНА!K:L,2,0)), "-") -> 647.81025
A97: 96004599 | B97: Насос для брудної води AP50B.50.11.1V 1x | C97: CW | F97: 734.0435 | G97: =IFERROR(F97*(1-VLOOKUP(C97,ГОЛОВНА!K:L,2,0)), "-") -> 734.0435
A98: 96468195 | B98: Помпа для брудної води UNILIFT AP50B.50. | C98: CW | F98: 700.4235 | G98: =IFERROR(F98*(1-VLOOKUP(C98,ГОЛОВНА!K:L,2,0)), "-") -> 700.4235
A99: 96004601 | B99: Помпа для брудної води AP50B.50.11.3V 3x | C99: CW | F99: 688.8 | G99: =IFERROR(F99*(1-VLOOKUP(C99,ГОЛОВНА!K:L,2,0)), "-") -> 688.8
A100: 96468352 | B100: Насос для брудн води UNILIFT AP50B.50.11 | C100: CW | F100: 808.34575 | G100: =IFERROR(F100*(1-VLOOKUP(C100,ГОЛОВНА!K:L,2,0)), "-") -> 808.34575
A101: 96004598 | B101: Насос для брудної води AP50B.50.11.A1V 1 | C101: CW | F101: 790.65425 | G101: =IFERROR(F101*(1-VLOOKUP(C101,ГОЛОВНА!K:L,2,0)), "-") -> 790.65425
A102: 96468196 | B102: Насос UNILIFT AP50В.50.15.3.V | C102: CW | F102: 819.4465 | G102: =IFERROR(F102*(1-VLOOKUP(C102,ГОЛОВНА!K:L,2,0)), "-") -> 819.4465
A103: 96004609 | B103: Помпа для брудної води AP50B.50.15.3V 3x | C103: CW | F103: 809.012 | G103: =IFERROR(F103*(1-VLOOKUP(C103,ГОЛОВНА!K:L,2,0)), "-") -> 809.012
B105: Аксесуари
A106: 330767 | B106: Ніпель R 1 1/2 | C106: CW | F106: 31.10875 | G106: =IFERROR(F106*(1-VLOOKUP(C106,ГОЛОВНА!K:L,2,0)), "-") -> 31.10875
A107: 91070765 | B107: Труба направляюча 1 1/2 6 м | C107: CW | F107: 162.565 | G107: =IFERROR(F107*(1-VLOOKUP(C107,ГОЛОВНА!K:L,2,0)), "-") -> 162.565
A108: 91071763 | B108: Ланцюг KETTE-ABLAЯ 4MM 3M | C108: CW | F108: 43.49075 | G108: =IFERROR(F108*(1-VLOOKUP(C108,ГОЛОВНА!K:L,2,0)), "-") -> 43.49075
A109: 91071766 | B109: Ланцюг 6мм 6м M.SCHAKEL 1.4401 | C109: CW | F109: 132.5524812 | G109: =IFERROR(F109*(1-VLOOKUP(C109,ГОЛОВНА!K:L,2,0)), "-") -> 132.5524812
A110: 91072171 | B110: Двосторонній ніпель 210 R2" 100 1.4571 | C110: CW | F110: 25.461 | G110: =IFERROR(F110*(1-VLOOKUP(C110,ГОЛОВНА!K:L,2,0)), "-") -> 25.461
A111: 91072424 | B111: Комплект нап. труб 11/2" 2 шт 6м 1.4541 | C111: CW | F111: 588.38075 | G111: =IFERROR(F111*(1-VLOOKUP(C111,ГОЛОВНА!K:L,2,0)), "-") -> 588.38075
A112: 91076761 | B112: Зворотний клапан кульовий Rp1 1/2" | C112: WW | F112: 191.59 | G112: =IFERROR(F112*(1-VLOOKUP(C112,ГОЛОВНА!K:L,2,0)), "-") -> 191.59
A113: 96001977 | B113: Муфта Storz 1 1/2 | C113: CW | F113: 34.317 | G113: =IFERROR(F113*(1-VLOOKUP(C113,ГОЛОВНА!K:L,2,0)), "-") -> 34.317
A114: 96001979 | B114: Коліно 90 R/Rp11/2 | C114: CW | F114: 19.73125 | G114: =IFERROR(F114*(1-VLOOKUP(C114,ГОЛОВНА!K:L,2,0)), "-") -> 19.73125
A115: 96001980 | B115: Коліно оцинк 2 R /RP 90* | C115: CW | F115: 21.7095 | G115: =IFERROR(F115*(1-VLOOKUP(C115,ГОЛОВНА!K:L,2,0)), "-") -> 21.7095
A116: 96001981 | B116: Коліно оцинк 2 1/2 R /RP 90* | C116: CW | F116: 39.47275 | G116: =IFERROR(F116*(1-VLOOKUP(C116,ГОЛОВНА!K:L,2,0)), "-") -> 39.47275
A117: 96001984 | B117: Муфта STORZ 3 | C117: CW | F117: 43.419 | G117: =IFERROR(F117*(1-VLOOKUP(C117,ГОЛОВНА!K:L,2,0)), "-") -> 43.419
A118: 96001993 | B118: Ніпель R 2 | C118: CW | F118: 11.90025 | G118: =IFERROR(F118*(1-VLOOKUP(C118,ГОЛОВНА!K:L,2,0)), "-") -> 11.90025
A119: 96001994 | B119: Ніпель R 2 1/2 | C119: CW | F119: 29.602 | G119: =IFERROR(F119*(1-VLOOKUP(C119,ГОЛОВНА!K:L,2,0)), "-") -> 29.602
A120: 96001996 | B120: Флан. різьбовий Rp 2 1/2 DN 65 GW | C120: CW | F120: 43.88025 | G120: =IFERROR(F120*(1-VLOOKUP(C120,ГОЛОВНА!K:L,2,0)), "-") -> 43.88025
A121: 96001999 | B121: Набір прокладок DN80 | C121: CW | F121: 40.5408 | G121: =IFERROR(F121*(1-VLOOKUP(C121,ГОЛОВНА!K:L,2,0)), "-") -> 40.5408
A122: 96002002 | B122: Зворотній клапан Rp2", PN10 | C122: CW | D122: S | F122: 101.721 | G122: =IFERROR(F122*(1-VLOOKUP(C122,ГОЛОВНА!K:L,2,0)), "-") -> 101.721
A123: 96002005 | B123: Клапан запірний Rp2'/Rp2''(латунь) | C123: CW | D123: S | F123: 55.186 | G123: =IFERROR(F123*(1-VLOOKUP(C123,ГОЛОВНА!K:L,2,0)), "-") -> 55.186
A124: 96002006 | B124: Відсічний клапан 2 1/2 | C124: WW | F124: 113.38 | G124: =IFERROR(F124*(1-VLOOKUP(C124,ГОЛОВНА!K:L,2,0)), "-") -> 113.38
A125: 96002008 | B125: Кульовий зворотний клапан DN 65 PN 10 | C125: WW | D125: S | F125: 136.33 | G125: =IFERROR(F125*(1-VLOOKUP(C125,ГОЛОВНА!K:L,2,0)), "-") -> 136.33
A126: 96002009 | B126: Зворотний клапан кульовий DN 80 PN10 (SE | C126: WW | D126: S | F126: 162.94 | G126: =IFERROR(F126*(1-VLOOKUP(C126,ГОЛОВНА!K:L,2,0)), "-") -> 162.94
A127: 96002010 | B127: Засувка клинова DN 65 PN 10 | C127: WW | D127: S | F127: 149.78 | G127: =IFERROR(F127*(1-VLOOKUP(C127,ГОЛОВНА!K:L,2,0)), "-") -> 149.78
A128: 96002011 | B128: Запірний клапан DN80 PN10/16 (SEV, M/MD) | C128: WW | D128: S | F128: 184.3 | G128: =IFERROR(F128*(1-VLOOKUP(C128,ГОЛОВНА!K:L,2,0)), "-") -> 184.3
A129: 96002085 | B129: Кульовий зворотний клапан DN100 PN10 | C129: WW | F129: 244.29 | G129: =IFERROR(F129*(1-VLOOKUP(C129,ГОЛОВНА!K:L,2,0)), "-") -> 244.29
A130: 96003605 | B130: Монтажний комплект до фланця DN150 | C130: CW | F130: 66.8606475 | G130: =IFERROR(F130*(1-VLOOKUP(C130,ГОЛОВНА!K:L,2,0)), "-") -> 66.8606475
A131: 96003632 | B131: Ніпель R 1 1/2 | C131: CW | F131: 21.65825 | G131: =IFERROR(F131*(1-VLOOKUP(C131,ГОЛОВНА!K:L,2,0)), "-") -> 21.65825
A132: 96003823 | B132: Монтажний комплект DN100 | C132: CW | F132: 46.6113625 | G132: =IFERROR(F132*(1-VLOOKUP(C132,ГОЛОВНА!K:L,2,0)), "-") -> 46.6113625
A133: 96003826 | B133: Клапан зворотній DN80 | C133: WW | F133: 461.2 | G133: =IFERROR(F133*(1-VLOOKUP(C133,ГОЛОВНА!K:L,2,0)), "-") -> 461.2
A134: 96003827 | B134: Зворотній капан DN100 PN10 | C134: CW | F134: 467.523 | G134: =IFERROR(F134*(1-VLOOKUP(C134,ГОЛОВНА!K:L,2,0)), "-") -> 467.523
A135: 96003837 | B135: 8 шт. М20 х 75 мм, DN 200 | C135: CW | F135: 76.9958475 | G135: =IFERROR(F135*(1-VLOOKUP(C135,ГОЛОВНА!K:L,2,0)), "-") -> 76.9958475
A136: 96004422 | B136: Кульовий зворотній клапан DN300 PN10 | C136: WW | F136: 2707.77 | G136: =IFERROR(F136*(1-VLOOKUP(C136,ГОЛОВНА!K:L,2,0)), "-") -> 2707.77
A137: 96004423 | B137: Засувка клинова DN250 PN10 | C137: WW | F137: 791.6 | G137: =IFERROR(F137*(1-VLOOKUP(C137,ГОЛОВНА!K:L,2,0)), "-") -> 791.6
A138: 96004445 | B138: Авт. муфта підвісна 2" (з коліном 90) | C138: WW | F138: 155.38 | G138: =IFERROR(F138*(1-VLOOKUP(C138,ГОЛОВНА!K:L,2,0)), "-") -> 155.38
A139: 96005259 | B139: Напірний шланг з муфтою Storz L=20м 3 | C139: WW | F139: 317.25 | G139: =IFERROR(F139*(1-VLOOKUP(C139,ГОЛОВНА!K:L,2,0)), "-") -> 317.25
A140: 96005308 | B140: Зворотній клапан R 1 1/4 | C140: WW | F140: 38.93 | G140: =IFERROR(F140*(1-VLOOKUP(C140,ГОЛОВНА!K:L,2,0)), "-") -> 38.93
A141: 96005309 | B141: Зворотний клапан Rp 1 1/2" | C141: CW | F141: 84.36775 | G141: =IFERROR(F141*(1-VLOOKUP(C141,ГОЛОВНА!K:L,2,0)), "-") -> 84.36775
A142: 96489959 | B142: Фланець різьбовий DN40, Rp 1 1/2" | C142: CW | F142: 25.30725 | G142: =IFERROR(F142*(1-VLOOKUP(C142,ГОЛОВНА!K:L,2,0)), "-") -> 25.30725
A143: 96489973 | B143: Клапан запірний Rp/Rp 1 1/2" | C143: CW | D143: S | F143: 73.2055 | G143: =IFERROR(F143*(1-VLOOKUP(C143,ГОЛОВНА!K:L,2,0)), "-") -> 73.2055
A144: 91070503 | B144: Кабельна муфта роз'ємна MS6 (4x6..16мм2) | C144: WS | F144: 369.28 | G144: =IFERROR(F144*(1-VLOOKUP(C144,ГОЛОВНА!K:L,2,0)), "-") -> 369.28
A145: 00ID7948 | B145: Кабель для питної води 3x4.0 мм2 | C145: WS | F145: 6.58 | G145: =IFERROR(F145*(1-VLOOKUP(C145,ГОЛОВНА!K:L,2,0)), "-") -> 6.58
A146: 00RM4098 | B146: Кабель для питної води 3x6.0мм2 | C146: WS | F146: 8.43 | G146: =IFERROR(F146*(1-VLOOKUP(C146,ГОЛОВНА!K:L,2,0)), "-") -> 8.43
A147: 00ID7803 | B147: Поплавцевий вимикач REIFA-E w/3m-cable | C147: CW | F147: 24.03879699 | G147: =IFERROR(F147*(1-VLOOKUP(C147,ГОЛОВНА!K:L,2,0)), "-") -> 24.03879699
A148: 00ID7805 | B148: Поплавцевий вимикач REIFA SAS, 5 м | C148: CW | F148: 33.38507 | G148: =IFERROR(F148*(1-VLOOKUP(C148,ГОЛОВНА!K:L,2,0)), "-") -> 33.38507
A149: 00ID7942 | B149: Поплавцевий вимикач Reifa E 20,0 м | C149: CW | F149: 78.724715 | G149: =IFERROR(F149*(1-VLOOKUP(C149,ГОЛОВНА!K:L,2,0)), "-") -> 78.724715
A150: 15211 | B150: Зворотній клапан до насоса KP | C150: CW | F150: 19.0445 | G150: =IFERROR(F150*(1-VLOOKUP(C150,ГОЛОВНА!K:L,2,0)), "-") -> 19.0445
A151: 00ID7809 | B151: Поплавцевий вимикач з кабелем 10 м | C151: CW | F151: 53.12657 | G151: =IFERROR(F151*(1-VLOOKUP(C151,ГОЛОВНА!K:L,2,0)), "-") -> 53.12657
A152: 00ID8961 | B152: Запобіжний вимикач для підключення | C152: CW | F152: 157.4605 | G152: =IFERROR(F152*(1-VLOOKUP(C152,ГОЛОВНА!K:L,2,0)), "-") -> 157.4605
A153: 00ID8962 | B153: Муфта швидкого монтажу MS 1 1/4 PN40 | C153: CW | F153: 15.5595 | G153: =IFERROR(F153*(1-VLOOKUP(C153,ГОЛОВНА!K:L,2,0)), "-") -> 15.5595
A154: 00ID8963 | B154: Муфта швидкого монтажа PN20 | C154: CW | F154: 8.2205 | G154: =IFERROR(F154*(1-VLOOKUP(C154,ГОЛОВНА!K:L,2,0)), "-") -> 8.2205
A155: 00ID9052 | B155: Муфта швидкого монтажу R 1 1/4 --> STORZ | C155: CW | F155: 12.55625 | G155: =IFERROR(F155*(1-VLOOKUP(C155,ГОЛОВНА!K:L,2,0)), "-") -> 12.55625
A156: 00ID9053 | B156: Хомут для шланга, 1 1/4 | C156: CW | D156: S | F156: 2.6855 | G156: =IFERROR(F156*(1-VLOOKUP(C156,ГОЛОВНА!K:L,2,0)), "-") -> 2.6855
B163: Примітка:
A164: S | B164: - складська позиція (зазвичай є на скаді)
A165: FT | B165: - швидка поставка (зазвичай до 3-х тижнів)

Sheet SEG, AutoADAPT
A1: АРТИКУЛ | B1: НАЙМЕНУВАННЯ (УКР) | C1: PRICE GROUP | D1: ДОСТАВКА | E1: ДОДАТКОВО | F1: ЦІНА (ЕВРО БЕЗ ПДВ) | G1: ЦІНА ЗІ ЗНИЖКОЮ | H1: НА ГОЛОВНУ
A2: SEG | G2: Каналізаційні насоси з ріжучим механізмом
A3: 96075893 | B3: Каналізаційний насос SEG.40.09.2.1.502 | C3: CW | D3: S | F3: 1255.94275 | G3: =IFERROR(F3*(1-VLOOKUP(C3,ГОЛОВНА!K:L,2,0)), "-") -> 1255.94275
A4: 96076212 | B4: Каналізаційний насос SEG.40.09.2.1.502 ( | C4: CW | F4: 1316.617112 | G4: =IFERROR(F4*(1-VLOOKUP(C4,ГОЛОВНА!K:L,2,0)), "-") -> 1316.617112
A5: 96075897 | B5: Каналізаційний насос SEG.40.09.2.50B | C5: CW | D5: S | F5: 1255.94275 | G5: =IFERROR(F5*(1-VLOOKUP(C5,ГОЛОВНА!K:L,2,0)), "-") -> 1255.94275
A6: 96878505 | B6: Каналізаційний насос SEG.40.09.E.2.1.502 | C6: CW | D6: S | F6: 1777.416625 | G6: =IFERROR(F6*(1-VLOOKUP(C6,ГОЛОВНА!K:L,2,0)), "-") -> 1777.416625
A7: 96878506 | B7: Каналізаційний насос SEG.40.09.E.2.50B | C7: CW | D7: S | F7: 1777.416625 | G7: =IFERROR(F7*(1-VLOOKUP(C7,ГОЛОВНА!K:L,2,0)), "-") -> 1777.416625
A8: 96878507 | B8: Каналізаційний насос SEG.40.09.E.Ex.2.1. | C8: CW | F8: 1940.37338 | G8: =IFERROR(F8*(1-VLOOKUP(C8,ГОЛОВНА!K:L,2,0)), "-") -> 1940.37338
A9: 96878508 | B9: Каналізаційний насос SEG.40.09.E.Ex.2.50 | C9: CW | F9: 1940.37338 | G9: =IFERROR(F9*(1-VLOOKUP(C9,ГОЛОВНА!K:L,2,0)), "-") -> 1940.37338
A10: 96075894 | B10: Каналізаційний насос SEG.40.09.EX.2.1.50 | C10: CW | F10: 1388.781725 | G10: =IFERROR(F10*(1-VLOOKUP(C10,ГОЛОВНА!K:L,2,0)), "-") -> 1388.781725
A11: 96076213 | B11: Каналізаційний насос SEG. 40.09.Ex.2.1.5 | C11: CW | F11: 1422.083975 | G11: =IFERROR(F11*(1-VLOOKUP(C11,ГОЛОВНА!K:L,2,0)), "-") -> 1422.083975
A12: 96075898 | B12: Каналізаційний насос SEG.40.09.EX.2.50B | C12: CW | F12: 1388.781725 | G12: =IFERROR(F12*(1-VLOOKUP(C12,ГОЛОВНА!K:L,2,0)), "-") -> 1388.781725
A13: 96076215 | B13: Каналізаційний насос SEG.40.09.EX.2.50B | C13: CW | F13: 1415.1765 | G13: =IFERROR(F13*(1-VLOOKUP(C13,ГОЛОВНА!K:L,2,0)), "-") -> 1415.1765
A14: 96075901 | B14: Каналізаційний насос SEG.40.12.2.1.502 | C14: CW | D14: S | F14: 1255.94275 | G14: =IFERROR(F14*(1-VLOOKUP(C14,ГОЛОВНА!K:L,2,0)), "-") -> 1255.94275
A15: 96076216 | B15: Каналізаційний насос SEG. 40.12.2.1.502 | C15: CW | F15: 1317.844037 | G15: =IFERROR(F15*(1-VLOOKUP(C15,ГОЛОВНА!K:L,2,0)), "-") -> 1317.844037
A16: 96075905 | B16: Каналізаційний насос SEG.40.12.2.50B | C16: CW | D16: S | F16: 1255.94275 | G16: =IFERROR(F16*(1-VLOOKUP(C16,ГОЛОВНА!K:L,2,0)), "-") -> 1255.94275
A17: 96878509 | B17: Каналізаційний насос SEG.40.12.E.2.1.502 | C17: CW | D17: S | F17: 1777.416625 | G17: =IFERROR(F17*(1-VLOOKUP(C17,ГОЛОВНА!K:L,2,0)), "-") -> 1777.416625
A18: 96878510 | B18: Каналізаційний насос SEG.40.12.E.2.50B | C18: CW | D18: S | F18: 1777.416625 | G18: =IFERROR(F18*(1-VLOOKUP(C18,ГОЛОВНА!K:L,2,0)), "-") -> 1777.416625
A19: 96878512 | B19: Каналізаційний насос SEG.40.12.E.Ex.2.1. | C19: CW | F19: 1940.37338 | G19: =IFERROR(F19*(1-VLOOKUP(C19,ГОЛОВНА!K:L,2,0)), "-") -> 1940.37338
A20: 96878513 | B20: Каналізаційний насос SEG.40.12.E.Ex.2.50 | C20: CW | F20: 1940.37338 | G20: =IFERROR(F20*(1-VLOOKUP(C20,ГОЛОВНА!K:L,2,0)), "-") -> 1940.37338
A21: 96075902 | B21: Каналізаційний насос SEG.40.12.EX.2.1.50 | C21: CW | F21: 1388.781725 | G21: =IFERROR(F21*(1-VLOOKUP(C21,ГОЛОВНА!K:L,2,0)), "-") -> 1388.781725
A22: 96076217 | B22: Каналізаційний насос SEG. 40.12.Ex.2.1.5 | C22: CW | F22: 1415.1765 | G22: =IFERROR(F22*(1-VLOOKUP(C22,ГОЛОВНА!K:L,2,0)), "-") -> 1415.1765
A23: 96075906 | B23: Каналізаційний насос SEG.40.12.EX.2.50B | C23: CW | F23: 1388.781725 | G23: =IFERROR(F23*(1-VLOOKUP(C23,ГОЛОВНА!K:L,2,0)), "-") -> 1388.781725
A24: 96076164 | B24: Каналізаційний насос SEG.40.12.Ex.2.50B | C24: CW | F24: 1255.94275 | G24: =IFERROR(F24*(1-VLOOKUP(C24,ГОЛОВНА!K:L,2,0)), "-") -> 1255.94275
A25: 96076219 | B25: Каналізаційний насос SEG.40.12.EX.2.50B | C25: CW | F25: 1415.1765 | G25: =IFERROR(F25*(1-VLOOKUP(C25,ГОЛОВНА!K:L,2,0)), "-") -> 1415.1765
A26: 98280724 | B26: Каналізаційний насос SEG.40.15.2.1.502 | C26: CW | F26: 1376.872762 | G26: =IFERROR(F26*(1-VLOOKUP(C26,ГОЛОВНА!K:L,2,0)), "-") -> 1376.872762
A27: 96075909 | B27: Каналізаційний насос SEG.40.15.2.50B | C27: CW | D27: S | F27: 1418.05265 | G27: =IFERROR(F27*(1-VLOOKUP(C27,ГОЛОВНА!K:L,2,0)), "-") -> 1418.05265
A28: 98280726 | B28: Каналізаційний насос SEG.40.15.E.2.1.502 | C28: CW | F28: 1923.89753 | G28: =IFERROR(F28*(1-VLOOKUP(C28,ГОЛОВНА!K:L,2,0)), "-") -> 1923.89753
A29: 96878514 | B29: Каналізаційний насос SEG.40.15.E.2.50B | C29: CW | D29: S | F29: 1923.89753 | G29: =IFERROR(F29*(1-VLOOKUP(C29,ГОЛОВНА!K:L,2,0)), "-") -> 1923.89753
A30: 96878515 | B30: Каналізаційний насос SEG.40.15.E.Ex.2.50 | C30: CW | F30: 2037.214765 | G30: =IFERROR(F30*(1-VLOOKUP(C30,ГОЛОВНА!K:L,2,0)), "-") -> 2037.214765
A31: 96075910 | B31: Каналізаційний насос SEG.40.15.EX.2.50B | C31: CW | F31: 1512.535612 | G31: =IFERROR(F31*(1-VLOOKUP(C31,ГОЛОВНА!K:L,2,0)), "-") -> 1512.535612
A32: 96076221 | B32: Каналізаційний насос SEG.40.15.EX.2.50B | C32: CW | F32: 1613.756925 | G32: =IFERROR(F32*(1-VLOOKUP(C32,ГОЛОВНА!K:L,2,0)), "-") -> 1613.756925
A33: 96075913 | B33: Каналізаційний насос SEG.40.26.2.50B | C33: CW | D33: S | F33: 1760.082337 | G33: =IFERROR(F33*(1-VLOOKUP(C33,ГОЛОВНА!K:L,2,0)), "-") -> 1760.082337
A34: 96878516 | B34: Каналізаційний насос SEG.40.26.E.2.50B | C34: CW | D34: S | F34: 2294.88357 | G34: =IFERROR(F34*(1-VLOOKUP(C34,ГОЛОВНА!K:L,2,0)), "-") -> 2294.88357
A35: 96878517 | B35: Каналізаційний насос SEG.40.26.E.Ex.2.50 | C35: CW | F35: 2411.129845 | G35: =IFERROR(F35*(1-VLOOKUP(C35,ГОЛОВНА!K:L,2,0)), "-") -> 2411.129845
A36: 96075914 | B36: Каналізаційний насос SEG.40.26.EX.2.50B | C36: CW | F36: 1841.185975 | G36: =IFERROR(F36*(1-VLOOKUP(C36,ГОЛОВНА!K:L,2,0)), "-") -> 1841.185975
A37: 96076223 | B37: Каналізаційний насос SEG.40.26.EX.2.50B | C37: CW | F37: 1874.497962 | G37: =IFERROR(F37*(1-VLOOKUP(C37,ГОЛОВНА!K:L,2,0)), "-") -> 1874.497962
A38: 96075915 | B38: Каналізаційний насос SEG.40.31.2.50B | C38: CW | D38: S | F38: 1823.161862 | G38: =IFERROR(F38*(1-VLOOKUP(C38,ГОЛОВНА!K:L,2,0)), "-") -> 1823.161862
A39: 96878518 | B39: Каналізаційний насос SEG.40.31.E.2.50B | C39: CW | D39: S | F39: 2351.913135 | G39: =IFERROR(F39*(1-VLOOKUP(C39,ГОЛОВНА!K:L,2,0)), "-") -> 2351.913135
A40: 96878519 | B40: Каналізаційний насос SEG.40.31.E.Ex.2.50 | C40: CW | F40: 2468.08233 | G40: =IFERROR(F40*(1-VLOOKUP(C40,ГОЛОВНА!K:L,2,0)), "-") -> 2468.08233
A41: 96075916 | B41: Каналізаційний насос SEG.40.31.EX.2.50B | C41: CW | F41: 1904.216812 | G41: =IFERROR(F41*(1-VLOOKUP(C41,ГОЛОВНА!K:L,2,0)), "-") -> 1904.216812
A42: 96076225 | B42: Каналізаційний насос SEG.40.31.EX.2.50B | C42: CW | F42: 1928.107 | G42: =IFERROR(F42*(1-VLOOKUP(C42,ГОЛОВНА!K:L,2,0)), "-") -> 1928.107
A43: 96075917 | B43: Каналізаційний насос SEG.40.40.2.50B | C43: CW | D43: S | F43: 2127.030287 | G43: =IFERROR(F43*(1-VLOOKUP(C43,ГОЛОВНА!K:L,2,0)), "-") -> 2127.030287
A44: 96878520 | B44: Каналізаційний насос SEG.40.40.E.2.50B | C44: CW | D44: S | F44: 2626.57808 | G44: =IFERROR(F44*(1-VLOOKUP(C44,ГОЛОВНА!K:L,2,0)), "-") -> 2626.57808
A45: 96878521 | B45: Каналізаційний насос SEG.40.40.E.Ex.2.50 | C45: CW | F45: 2754.887375 | G45: =IFERROR(F45*(1-VLOOKUP(C45,ГОЛОВНА!K:L,2,0)), "-") -> 2754.887375
A46: 96075918 | B46: Каналізаційний насос SEG.40.40.EX.2.50B | C46: CW | F46: 2221.561937 | G46: =IFERROR(F46*(1-VLOOKUP(C46,ГОЛОВНА!K:L,2,0)), "-") -> 2221.561937
A47: 96076227 | B47: Каналізаційний насос SEG.40.40.EX.2.50B | C47: CW | F47: 2254.864187 | G47: =IFERROR(F47*(1-VLOOKUP(C47,ГОЛОВНА!K:L,2,0)), "-") -> 2254.864187
A48: 99274393 | B48: Каналізаційний насос SEG.50.26.Ex.2.50B | C48: CW | F48: 1839.5675 | G48: =IFERROR(F48*(1-VLOOKUP(C48,ГОЛОВНА!K:L,2,0)), "-") -> 1839.5675
A49: 99274394 | B49: Каналізаційний насос SEG.50.31.Ex.2.50B | C49: CW | F49: 1905.147 | G49: =IFERROR(F49*(1-VLOOKUP(C49,ГОЛОВНА!K:L,2,0)), "-") -> 1905.147
A50: 99274395 | B50: Каналізаційний насос SEG.50.40.Ex.2.50B | C50: CW | F50: 2222.364 | G50: =IFERROR(F50*(1-VLOOKUP(C50,ГОЛОВНА!K:L,2,0)), "-") -> 2222.364
A51: 99274435 | B51: Каналізаційний насос SEG.50.26.E.Ex.2.50 | C51: CW | F51: 2531.55771 | G51: =IFERROR(F51*(1-VLOOKUP(C51,ГОЛОВНА!K:L,2,0)), "-") -> 2531.55771
A52: 99274436 | B52: Каналізаційний насос SEG.50.31.E.2.50B | C52: CW | F52: 2469.228895 | G52: =IFERROR(F52*(1-VLOOKUP(C52,ГОЛОВНА!K:L,2,0)), "-") -> 2469.228895
A53: 99274434 | B53: Каналізаційний насос SEG.50.26.E.2.50B | C53: CW | F53: 2408.740365 | G53: =IFERROR(F53*(1-VLOOKUP(C53,ГОЛОВНА!K:L,2,0)), "-") -> 2408.740365
A54: 99274437 | B54: Каналізаційний насос SEG.50.31.E.Ex.2.50 | C54: CW | F54: 2592.04624 | G54: =IFERROR(F54*(1-VLOOKUP(C54,ГОЛОВНА!K:L,2,0)), "-") -> 2592.04624
A55: 99274439 | B55: Каналізаційний насос SEG.50.40.E.Ex.2.50 | C55: CW | F55: 2892.67751 | G55: =IFERROR(F55*(1-VLOOKUP(C55,ГОЛОВНА!K:L,2,0)), "-") -> 2892.67751
A56: 99274389 | B56: Каналізаційний насос SEG.50.40.EX.2.50B | C56: CW | F56: 2335.354362 | G56: =IFERROR(F56*(1-VLOOKUP(C56,ГОЛОВНА!K:L,2,0)), "-") -> 2335.354362
A57: 99274386 | B57: Каналізаційний насос SEG.50.31.2.50B | C57: CW | F57: 1916.4179 | G57: =IFERROR(F57*(1-VLOOKUP(C57,ГОЛОВНА!K:L,2,0)), "-") -> 1916.4179
A58: 99274385 | B58: Каналізаційний насос SEG.50.26.EX.2.50B | C58: CW | F58: 1936.029225 | G58: =IFERROR(F58*(1-VLOOKUP(C58,ГОЛОВНА!K:L,2,0)), "-") -> 1936.029225
A59: 99274387 | B59: Каналізаційний насос SEG.50.31.EX.2.50B | C59: CW | F59: 2001.981312 | G59: =IFERROR(F59*(1-VLOOKUP(C59,ГОЛОВНА!K:L,2,0)), "-") -> 2001.981312
A60: 99274388 | B60: Каналізаційний насос SEG.50.40.2.50B | C60: CW | F60: 2235.515775 | G60: =IFERROR(F60*(1-VLOOKUP(C60,ГОЛОВНА!K:L,2,0)), "-") -> 2235.515775
A61: 99274384 | B61: Каналізаційний насос SEG.50.26.2.50B | C61: CW | F61: 1850.456075 | G61: =IFERROR(F61*(1-VLOOKUP(C61,ГОЛОВНА!K:L,2,0)), "-") -> 1850.456075
A62: 99274438 | B62: Каналізаційний насос SEG.50.40.E.2.50B | C62: CW | F62: 2757.026345 | G62: =IFERROR(F62*(1-VLOOKUP(C62,ГОЛОВНА!K:L,2,0)), "-") -> 2757.026345
B64: Аксесуари
A65: 96001977 | B65: Муфта Storz 1 1/2 | C65: CW | F65: 34.317 | G65: =IFERROR(F65*(1-VLOOKUP(C65,ГОЛОВНА!K:L,2,0)), "-") -> 34.317
A66: 96002002 | B66: Зворотній клапан Rp2", PN10 | C66: CW | D66: S | F66: 101.721 | G66: =IFERROR(F66*(1-VLOOKUP(C66,ГОЛОВНА!K:L,2,0)), "-") -> 101.721
A67: 96489973 | B67: Клапан запірний Rp/Rp 1 1/2" | C67: CW | D67: S | F67: 73.2055 | G67: =IFERROR(F67*(1-VLOOKUP(C67,ГОЛОВНА!K:L,2,0)), "-") -> 73.2055
A68: 96489973 | B68: Клапан запірний Rp/Rp 1 1/2" | C68: CW | D68: S | F68: 73.2055 | G68: =IFERROR(F68*(1-VLOOKUP(C68,ГОЛОВНА!K:L,2,0)), "-") -> 73.2055
A69: 96003632 | B69: Ніпель R 1 1/2 | C69: CW | F69: 21.65825 | G69: =IFERROR(F69*(1-VLOOKUP(C69,ГОЛОВНА!K:L,2,0)), "-") -> 21.65825
A70: 96001993 | B70: Ніпель R 2 | C70: CW | F70: 11.90025 | G70: =IFERROR(F70*(1-VLOOKUP(C70,ГОЛОВНА!K:L,2,0)), "-") -> 11.90025
A71: 96001993 | B71: Ніпель R 2 | C71: CW | F71: 11.90025 | G71: =IFERROR(F71*(1-VLOOKUP(C71,ГОЛОВНА!K:L,2,0)), "-") -> 11.90025
A72: 96001980 | B72: Коліно оцинк 2 R /RP 90* | C72: CW | F72: 21.7095 | G72: =IFERROR(F72*(1-VLOOKUP(C72,ГОЛОВНА!K:L,2,0)), "-") -> 21.7095
A73: 96076063 | B73: Автоматична муфта DN40 (SEG) | C73: WW | D73: S | F73: 171.26 | G73: =IFERROR(F73*(1-VLOOKUP(C73,ГОЛОВНА!K:L,2,0)), "-") -> 171.26
A74: 96489959 | B74: Фланець різьбовий DN40, Rp 1 1/2" | C74: CW | F74: 25.30725 | G74: =IFERROR(F74*(1-VLOOKUP(C74,ГОЛОВНА!K:L,2,0)), "-") -> 25.30725
A75: 98538177 | B75: Ланцюг 500кг 6м нерж. компл. | C75: WW | F75: 169.06 | G75: =IFERROR(F75*(1-VLOOKUP(C75,ГОЛОВНА!K:L,2,0)), "-") -> 169.06
A76: 98538176 | B76: Ланцюг 500кг 4м нерж. компл. | C76: WW | F76: 121.07 | G76: =IFERROR(F76*(1-VLOOKUP(C76,ГОЛОВНА!K:L,2,0)), "-") -> 121.07
A77: 96004442 | B77: Автоматична трубна муфта Rp/Rp2, cpl. | C77: WW | F77: 153.01 | G77: =IFERROR(F77*(1-VLOOKUP(C77,ГОЛОВНА!K:L,2,0)), "-") -> 153.01
A78: 96076196 | B78: Опори для переносного монтажу SEG (3 шт) | C78: CW | D78: S | F78: 84.10125 | G78: =IFERROR(F78*(1-VLOOKUP(C78,ГОЛОВНА!K:L,2,0)), "-") -> 84.10125
A79: 96076196 | B79: Опори для переносного монтажу SEG (3 шт) | C79: CW | D79: S | F79: 84.10125 | G79: =IFERROR(F79*(1-VLOOKUP(C79,ГОЛОВНА!K:L,2,0)), "-") -> 84.10125
A80: 96914019 | B80: Пульт керування CU 100.400.3.5.A | C80: CW | D80: S | F80: 546.45825 | G80: =IFERROR(F80*(1-VLOOKUP(C80,ГОЛОВНА!K:L,2,0)), "-") -> 546.45825
A81: 99369644 | B81: Шафа керув LC 231 1x1-12 DOL 3x460 PI CE | C81: CW | F81: 640.18425 | G81: =IFERROR(F81*(1-VLOOKUP(C81,ГОЛОВНА!K:L,2,0)), "-") -> 640.18425
A82: 99369650 | B82: Шафа керування LC 231 2x 1-9 DOL | C82: CW | F82: 802.76975 | G82: =IFERROR(F82*(1-VLOOKUP(C82,ГОЛОВНА!K:L,2,0)), "-") -> 802.76975
A83: 99301298 | B83: Шафа керув LC 241 1x3,2-12 DOL 30 150 1x | C83: CW | F83: 1627.43 | G83: =IFERROR(F83*(1-VLOOKUP(C83,ГОЛОВНА!K:L,2,0)), "-") -> 1627.43
A84: 99301302 | B84: Шафа керув LC 241 1x3,2-12 DOL 30 1x230 | C84: CW | F84: 1507.63 | G84: =IFERROR(F84*(1-VLOOKUP(C84,ГОЛОВНА!K:L,2,0)), "-") -> 1507.63
A85: 99301308 | B85: Шафа керув LC 241 2x3,2-12 DOL 30 150 1x | C85: CW | F85: 1836.59 | G85: =IFERROR(F85*(1-VLOOKUP(C85,ГОЛОВНА!K:L,2,0)), "-") -> 1836.59
A86: 99301310 | B86: Шафа керув LC 241 2x 3,2-12 DOL 30 1x230 | C86: CW | F86: 1691.73 | G86: =IFERROR(F86*(1-VLOOKUP(C86,ГОЛОВНА!K:L,2,0)), "-") -> 1691.73
A87: 99301399 | B87: Шафа керув LC 241 1x1-5 DOL 3x400 PI OPT | C87: CW | F87: 1384.44 | G87: =IFERROR(F87*(1-VLOOKUP(C87,ГОЛОВНА!K:L,2,0)), "-") -> 1384.44
A88: 99301401 | B88: Шафа керув LC 241 1x3,2-12 DOL 3x400 PI | C88: CW | F88: 1496.13 | G88: =IFERROR(F88*(1-VLOOKUP(C88,ГОЛОВНА!K:L,2,0)), "-") -> 1496.13
A89: 99301414 | B89: Шафа керув LC 241 1x9-23 DOL 3x400 PI OP | C89: CW | F89: 1759.76 | G89: =IFERROR(F89*(1-VLOOKUP(C89,ГОЛОВНА!K:L,2,0)), "-") -> 1759.76
A90: 99301417 | B90: Шафа керув LC 241 2x1-5 DOL 3x400 PI OPT | C90: CW | F90: 1518.46 | G90: =IFERROR(F90*(1-VLOOKUP(C90,ГОЛОВНА!K:L,2,0)), "-") -> 1518.46
A91: 99301419 | B91: Шафа керув LC 241 2x 3,2-12 DOL 3x400 PI | C91: CW | F91: 1659.57 | G91: =IFERROR(F91*(1-VLOOKUP(C91,ГОЛОВНА!K:L,2,0)), "-") -> 1659.57
A92: 96003332 | B92: Поплавцевий вимикач MS1+10м кабель | C92: CW | D92: S | F92: 91.6334625 | G92: =IFERROR(F92*(1-VLOOKUP(C92,ГОЛОВНА!K:L,2,0)), "-") -> 91.6334625
A93: 62500013 | B93: Поплавцевий вимикач MS1 + 10м каб, 2 шт. | C93: CW | F93: 232.269715 | G93: =IFERROR(F93*(1-VLOOKUP(C93,ГОЛОВНА!K:L,2,0)), "-") -> 232.269715
A94: 62500014 | B94: Поплавцевий вимикач МS1 + 10м каб, 3 шт. | C94: CW | F94: 370.78924 | G94: =IFERROR(F94*(1-VLOOKUP(C94,ГОЛОВНА!K:L,2,0)), "-") -> 370.78924
A95: 62500015 | B95: Поплавцевий вимикач МS1 + 10м каб, 4шт. | C95: CW | F95: 466.6780925 | G95: =IFERROR(F95*(1-VLOOKUP(C95,ГОЛОВНА!K:L,2,0)), "-") -> 466.6780925
A96: 96003421 | B96: Поплавцевий вимикач MS1 (Ex) з кабел 10м | C96: CW | F96: 127.8700825 | G96: =IFERROR(F96*(1-VLOOKUP(C96,ГОЛОВНА!K:L,2,0)), "-") -> 127.8700825
A97: 62500016 | B97: Поплавцевий вимикач, к-т 2 шт., вибухоза | C97: CW | F97: 309.0093125 | G97: =IFERROR(F97*(1-VLOOKUP(C97,ГОЛОВНА!K:L,2,0)), "-") -> 309.0093125
A98: 62500017 | B98: Поплавцевий вимикач, к-т 3 шт., вибухоза | C98: CW | F98: 490.1485425 | G98: =IFERROR(F98*(1-VLOOKUP(C98,ГОЛОВНА!K:L,2,0)), "-") -> 490.1485425
A99: 62500018 | B99: Поплавцевий вимикач, к-т 4 шт., вибухоза | C99: CW | F99: 628.635165 | G99: =IFERROR(F99*(1-VLOOKUP(C99,ГОЛОВНА!K:L,2,0)), "-") -> 628.635165
B103: Примітка:
A104: S | B104: - складська позиція (зазвичай є на скаді)
A105: FT | B105: - швидка поставка (зазвичай до 3-х тижнів)

Sheet Multilift
A1: АРТИКУЛ | B1: НАЙМЕНУВАННЯ (УКР) | C1: PRICE GROUP | D1: ДОСТАВКА | E1: ДОДАТКОВО | F1: ЦІНА (ЕВРО БЕЗ ПДВ) | G1: ЦІНА ЗІ ЗНИЖКОЮ | H1: НА ГОЛОВНУ
A2: Multilift | G2: Компактні каналізаційні станції для встановлення у приміщенні
A3: 97901064 | B3: Каналізаційна установка M.12.1.4 1x230V | C3: CW | F3: 2662.01725 | G3: =IFERROR(F3*(1-VLOOKUP(C3,ГОЛОВНА!K:L,2,0)), "-") -> 2662.01725
A4: 97901076 | B4: Каналізаційна установка M.12.1.4 1x230V | C4: CW | F4: 2763.00025 | G4: =IFERROR(F4*(1-VLOOKUP(C4,ГОЛОВНА!K:L,2,0)), "-") -> 2763.00025
A5: 97901065 | B5: Каналізаційна установка M.12.3.4 3x400V | C5: CW | F5: 2662.01725 | G5: =IFERROR(F5*(1-VLOOKUP(C5,ГОЛОВНА!K:L,2,0)), "-") -> 2662.01725
A6: 97901066 | B6: Каналізаційна установка M.15.1.4 1x230V | C6: CW | F6: 2918.3595 | G6: =IFERROR(F6*(1-VLOOKUP(C6,ГОЛОВНА!K:L,2,0)), "-") -> 2918.3595
A7: 97901067 | B7: Каналізаційна установка M.15.3.4 3x400V | C7: CW | F7: 2918.3595 | G7: =IFERROR(F7*(1-VLOOKUP(C7,ГОЛОВНА!K:L,2,0)), "-") -> 2918.3595
A8: 97901068 | B8: Каналізаційна установка M.22.3.4 3x400V | C8: CW | F8: 3115.53875 | G8: =IFERROR(F8*(1-VLOOKUP(C8,ГОЛОВНА!K:L,2,0)), "-") -> 3115.53875
A9: 97901037 | B9: Каналізаційна установка MSS.11.1.2 1x230 | C9: CW | D9: S | F9: 1656.36925 | G9: =IFERROR(F9*(1-VLOOKUP(C9,ГОЛОВНА!K:L,2,0)), "-") -> 1656.36925
A10: 97901028 | B10: Каналізаційна установка MSS.11.1.2 1x230 | C10: CW | F10: 1735.25325 | G10: =IFERROR(F10*(1-VLOOKUP(C10,ГОЛОВНА!K:L,2,0)), "-") -> 1735.25325
A11: 97901027 | B11: Каналізаційна установка MSS.11.3.2 3x400 | C11: CW | F11: 1656.36925 | G11: =IFERROR(F11*(1-VLOOKUP(C11,ГОЛОВНА!K:L,2,0)), "-") -> 1656.36925
B16: Примітка:
A17: S | B17: - складська позиція (зазвичай є на скаді)
A18: FT | B18: - швидка поставка (зазвичай до 3-х тижнів)

Sheet SE, SL
A1: АРТИКУЛ | B1: НАЙМЕНУВАННЯ (УКР) | C1: PRICE GROUP | D1: ДОСТАВКА | E1: ДОДАТКОВО | F1: ЦІНА (ЕВРО БЕЗ ПДВ) | G1: ЦІНА ЗІ ЗНИЖКОЮ | H1: НА ГОЛОВНУ
A2: SE/SL | G2: Каналізаційні насоси
A3: 96106562 | B3: Насос для стічн вод SL1.50.65.09.2.1.5 | C3: CW | F3: 1089.168587 | G3: =IFERROR(F3*(1-VLOOKUP(C3,ГОЛОВНА!K:L,2,0)), "-") -> 1089.168587
A4: 96106566 | B4: Насос для стічн вод SL1.50.65.09.2.50B | C4: CW | F4: 1089.168587 | G4: =IFERROR(F4*(1-VLOOKUP(C4,ГОЛОВНА!K:L,2,0)), "-") -> 1089.168587
A5: 96106564 | B5: Насос для стічн вод SL1.50.65.09.A.2.1.502 | C5: CW | F5: 1517.45305 | G5: =IFERROR(F5*(1-VLOOKUP(C5,ГОЛОВНА!K:L,2,0)), "-") -> 1517.45305
A6: 96106570 | B6: Насос для стічн вод SL1.50.65.09.A.2.50B | C6: CW | F6: 1383.3482 | G6: =IFERROR(F6*(1-VLOOKUP(C6,ГОЛОВНА!K:L,2,0)), "-") -> 1383.3482
A7: 96878450 | B7: Насос для стічн вод SL1.50.65.09.E.2.1. | C7: CW | F7: 1677.001987 | G7: =IFERROR(F7*(1-VLOOKUP(C7,ГОЛОВНА!K:L,2,0)), "-") -> 1677.001987
A8: 96878451 | B8: Насос для стічн вод SL1.50.65.09.E.2.50 | C8: CW | F8: 1677.001987 | G8: =IFERROR(F8*(1-VLOOKUP(C8,ГОЛОВНА!K:L,2,0)), "-") -> 1677.001987
A9: 96878452 | B9: Насос для стічн вод SL1.50.65.09.E.Ex.2 | C9: CW | F9: 1846.638975 | G9: =IFERROR(F9*(1-VLOOKUP(C9,ГОЛОВНА!K:L,2,0)), "-") -> 1846.638975
A10: 96878453 | B10: Насос для стічн вод SL1.50.65.09.E.Ex.2 | C10: CW | F10: 1846.638975 | G10: =IFERROR(F10*(1-VLOOKUP(C10,ГОЛОВНА!K:L,2,0)), "-") -> 1846.638975
A11: 96106563 | B11: Насос для стічн вод SL1.50.65.09.EX.2. | C11: CW | F11: 1224.958025 | G11: =IFERROR(F11*(1-VLOOKUP(C11,ГОЛОВНА!K:L,2,0)), "-") -> 1224.958025
A12: 96106568 | B12: Насос для стічн вод SE1.50.65.09.Ex.2.50 | C12: CW | F12: 1224.958025 | G12: =IFERROR(F12*(1-VLOOKUP(C12,ГОЛОВНА!K:L,2,0)), "-") -> 1224.958025
A13: 96104125 | B13: Насос для стічн вод SL1.50.65.11.2.1.5 | C13: CW | F13: 1236.175625 | G13: =IFERROR(F13*(1-VLOOKUP(C13,ГОЛОВНА!K:L,2,0)), "-") -> 1236.175625
A14: 96104129 | B14: Насос для стічн вод SL1.50.65.11.2.50B | C14: CW | F14: 1236.175625 | G14: =IFERROR(F14*(1-VLOOKUP(C14,ГОЛОВНА!K:L,2,0)), "-") -> 1236.175625
A15: 96104127 | B15: Насос для стічн вод SL1.50.65.11.A.2.1.502 | C15: CW | F15: 1530.374712 | G15: =IFERROR(F15*(1-VLOOKUP(C15,ГОЛОВНА!K:L,2,0)), "-") -> 1530.374712
A16: 96104133 | B16: Насос для стічн вод SL1.50.65.11.A.2.50B | C16: CW | F16: 1530.374712 | G16: =IFERROR(F16*(1-VLOOKUP(C16,ГОЛОВНА!K:L,2,0)), "-") -> 1530.374712
A17: 96878454 | B17: Насос для стічн вод SL1.50.65.11.E.2.1. | C17: CW | F17: 1811.301587 | G17: =IFERROR(F17*(1-VLOOKUP(C17,ГОЛОВНА!K:L,2,0)), "-") -> 1811.301587
A18: 96878455 | B18: Насос для стічн вод SL1.50.65.11.E.2.50 | C18: CW | F18: 1811.301587 | G18: =IFERROR(F18*(1-VLOOKUP(C18,ГОЛОВНА!K:L,2,0)), "-") -> 1811.301587
A19: 96878456 | B19: Насос для стічн вод SL1.50.65.11.E.Ex.2 | C19: CW | F19: 1980.9191 | G19: =IFERROR(F19*(1-VLOOKUP(C19,ГОЛОВНА!K:L,2,0)), "-") -> 1980.9191
A20: 96878457 | B20: Насос для стічн вод SL1.50.65.11.E.Ex.2 | C20: CW | F20: 1980.9191 | G20: =IFERROR(F20*(1-VLOOKUP(C20,ГОЛОВНА!K:L,2,0)), "-") -> 1980.9191
A21: 96104126 | B21: Насос для стічн вод SL1.50.65.11.EX.2. | C21: CW | F21: 1371.945587 | G21: =IFERROR(F21*(1-VLOOKUP(C21,ГОЛОВНА!K:L,2,0)), "-") -> 1371.945587
A22: 96104131 | B22: Насос для стічн вод SL1.50.65.11.EX.2. | C22: CW | F22: 1371.945587 | G22: =IFERROR(F22*(1-VLOOKUP(C22,ГОЛОВНА!K:L,2,0)), "-") -> 1371.945587
A23: 96104118 | B23: Насос для стічн вод SL1.50.65.15.2.50B | C23: CW | F23: 1515.768462 | G23: =IFERROR(F23*(1-VLOOKUP(C23,ГОЛОВНА!K:L,2,0)), "-") -> 1515.768462
A24: 96104122 | B24: Насос для стічн вод SL1.50.65.15.A.2.50B | C24: CW | F24: 1809.987025 | G24: =IFERROR(F24*(1-VLOOKUP(C24,ГОЛОВНА!K:L,2,0)), "-") -> 1809.987025
A25: 96878458 | B25: Насос для стічн вод SL1.50.65.15.E.2.50 | C25: CW | F25: 2066.696737 | G25: =IFERROR(F25*(1-VLOOKUP(C25,ГОЛОВНА!K:L,2,0)), "-") -> 2066.696737
A26: 96878472 | B26: Насос для стічн вод SL1.50.65.15.E.Ex.2 | C26: CW | F26: 2236.304512 | G26: =IFERROR(F26*(1-VLOOKUP(C26,ГОЛОВНА!K:L,2,0)), "-") -> 2236.304512
A27: 96104120 | B27: Насос для стічн вод SL1.50.65.15.EX.2. | C27: CW | F27: 1651.538425 | G27: =IFERROR(F27*(1-VLOOKUP(C27,ГОЛОВНА!K:L,2,0)), "-") -> 1651.538425
A28: 96115119 | B28: Насос для стічн вод SLV 65.65.09.2.1.5 | C28: CW | F28: 1074.971312 | G28: =IFERROR(F28*(1-VLOOKUP(C28,ГОЛОВНА!K:L,2,0)), "-") -> 1074.971312
A29: 96115123 | B29: Насос для стічн вод SLV 65.65.09.2.50B | C29: CW | F29: 1074.971312 | G29: =IFERROR(F29*(1-VLOOKUP(C29,ГОЛОВНА!K:L,2,0)), "-") -> 1074.971312
A30: 96115121 | B30: Насос для стічн вод SLV.65.65.09.A.2.1.502 | C30: CW | F30: 1369.219087 | G30: =IFERROR(F30*(1-VLOOKUP(C30,ГОЛОВНА!K:L,2,0)), "-") -> 1369.219087
A31: 96115125 | B31: Насос для стічн вод SLV.65.65.09.A.2.50B | C31: CW | F31: 1369.219087 | G31: =IFERROR(F31*(1-VLOOKUP(C31,ГОЛОВНА!K:L,2,0)), "-") -> 1369.219087
A32: 96878474 | B32: Насос для стічн вод SLV.65.65.09.E.2.1 | C32: CW | F32: 1664.06085 | G32: =IFERROR(F32*(1-VLOOKUP(C32,ГОЛОВНА!K:L,2,0)), "-") -> 1664.06085
A33: 96878475 | B33: Насос для стічн вод SLV65.65.09.E.2.50 | C33: CW | F33: 1664.06085 | G33: =IFERROR(F33*(1-VLOOKUP(C33,ГОЛОВНА!K:L,2,0)), "-") -> 1664.06085
A34: 96878476 | B34: Насос для стічн вод SLV65.65.09.E.EX.2 | C34: CW | F34: 1833.717312 | G34: =IFERROR(F34*(1-VLOOKUP(C34,ГОЛОВНА!K:L,2,0)), "-") -> 1833.717312
A35: 96878477 | B35: Насос для стічн вод SLV65.65.09.E.EX.2 | C35: CW | F35: 1833.707575 | G35: =IFERROR(F35*(1-VLOOKUP(C35,ГОЛОВНА!K:L,2,0)), "-") -> 1833.707575
A36: 96115120 | B36: Насос для стічн вод SLV 65.65.09.EX.2. | C36: CW | F36: 1210.7997 | G36: =IFERROR(F36*(1-VLOOKUP(C36,ГОЛОВНА!K:L,2,0)), "-") -> 1210.7997
A37: 96115124 | B37: Насос для стічн вод SLV 65.65.09.EX.2. | C37: CW | F37: 1210.7997 | G37: =IFERROR(F37*(1-VLOOKUP(C37,ГОЛОВНА!K:L,2,0)), "-") -> 1210.7997
A38: 96106573 | B38: Насос для стічн вод SLV 65.65.11.2.1.5 | C38: CW | F38: 1206.758637 | G38: =IFERROR(F38*(1-VLOOKUP(C38,ГОЛОВНА!K:L,2,0)), "-") -> 1206.758637
A39: 96106577 | B39: Насос для стічн вод SLV 65.65.11.2.50B | C39: CW | F39: 1170.56435 | G39: =IFERROR(F39*(1-VLOOKUP(C39,ГОЛОВНА!K:L,2,0)), "-") -> 1170.56435
A40: 96106575 | B40: Насос для стічн вод SLV.65.65.11.A.2.1.502 | C40: CW | F40: 1500.957725 | G40: =IFERROR(F40*(1-VLOOKUP(C40,ГОЛОВНА!K:L,2,0)), "-") -> 1500.957725
A41: 96106579 | B41: Насос для стічн вод SLV.65.65.11.A.2.50B | C41: CW | F41: 1500.957725 | G41: =IFERROR(F41*(1-VLOOKUP(C41,ГОЛОВНА!K:L,2,0)), "-") -> 1500.957725
A42: 96882685 | B42: Насос для стічн вод SLV.65.65.11.E.2.1.5 | C42: CW | F42: 1784.387137 | G42: =IFERROR(F42*(1-VLOOKUP(C42,ГОЛОВНА!K:L,2,0)), "-") -> 1784.387137
A43: 96882686 | B43: Насос для стічн вод SLV65.65.11.E.2.50 | C43: CW | F43: 1784.387137 | G43: =IFERROR(F43*(1-VLOOKUP(C43,ГОЛОВНА!K:L,2,0)), "-") -> 1784.387137
A44: 96878480 | B44: Насос для стічн вод SLV65.65.11.E.EX.2 | C44: CW | F44: 1954.063075 | G44: =IFERROR(F44*(1-VLOOKUP(C44,ГОЛОВНА!K:L,2,0)), "-") -> 1954.063075
A45: 96878481 | B45: Насос для стічн вод SLV65.65.11.E.EX.2 | C45: CW | F45: 1954.063075 | G45: =IFERROR(F45*(1-VLOOKUP(C45,ГОЛОВНА!K:L,2,0)), "-") -> 1954.063075
A46: 96106574 | B46: Насос для стічн вод SLV 65.65.11.EX.2. | C46: CW | F46: 1342.56755 | G46: =IFERROR(F46*(1-VLOOKUP(C46,ГОЛОВНА!K:L,2,0)), "-") -> 1342.56755
A47: 96106578 | B47: Насос для стічн вод SLV 65.65.11.EX.2. | C47: CW | F47: 1342.56755 | G47: =IFERROR(F47*(1-VLOOKUP(C47,ГОЛОВНА!K:L,2,0)), "-") -> 1342.56755
A48: 96104192 | B48: Насос для стічн вод SLV 65.65.15.2.50B | C48: CW | F48: 1486.361212 | G48: =IFERROR(F48*(1-VLOOKUP(C48,ГОЛОВНА!K:L,2,0)), "-") -> 1486.361212
A49: 96104194 | B49: Насос для стічн вод SLV.65.65.15.A.2.50B | C49: CW | F49: 1780.540825 | G49: =IFERROR(F49*(1-VLOOKUP(C49,ГОЛОВНА!K:L,2,0)), "-") -> 1780.540825
A50: 96878503 | B50: Насос для стічн вод SLV65.65.15.E.2.50 | C50: CW | F50: 2039.8115 | G50: =IFERROR(F50*(1-VLOOKUP(C50,ГОЛОВНА!K:L,2,0)), "-") -> 2039.8115
A51: 96878504 | B51: Насос для стічн вод SLV65.65.15.E.EX.2 | C51: CW | F51: 2209.3998 | G51: =IFERROR(F51*(1-VLOOKUP(C51,ГОЛОВНА!K:L,2,0)), "-") -> 2209.3998
A52: 96104193 | B52: Насос для стічн вод SLV 65.65.15.EX.2. | C52: CW | F52: 1622.092225 | G52: =IFERROR(F52*(1-VLOOKUP(C52,ГОЛОВНА!K:L,2,0)), "-") -> 1622.092225
A53: 96106562 | B53: Насос для стічн вод SL1.50.65.09.2.1.5 | C53: CW | F53: 1089.168587 | G53: =IFERROR(F53*(1-VLOOKUP(C53,ГОЛОВНА!K:L,2,0)), "-") -> 1089.168587
A54: 96106566 | B54: Насос для стічн вод SL1.50.65.09.2.50B | C54: CW | F54: 1089.168587 | G54: =IFERROR(F54*(1-VLOOKUP(C54,ГОЛОВНА!K:L,2,0)), "-") -> 1089.168587
A55: 96106564 | B55: Насос для стічн вод SL1.50.65.09.A.2.1.502 | C55: CW | F55: 1517.45305 | G55: =IFERROR(F55*(1-VLOOKUP(C55,ГОЛОВНА!K:L,2,0)), "-") -> 1517.45305
A56: 96106570 | B56: Насос для стічн вод SL1.50.65.09.A.2.50B | C56: CW | F56: 1383.3482 | G56: =IFERROR(F56*(1-VLOOKUP(C56,ГОЛОВНА!K:L,2,0)), "-") -> 1383.3482
A57: 96878450 | B57: Насос для стічн вод SL1.50.65.09.E.2.1. | C57: CW | F57: 1677.001987 | G57: =IFERROR(F57*(1-VLOOKUP(C57,ГОЛОВНА!K:L,2,0)), "-") -> 1677.001987
A58: 96047509 | B58: Помпа для сточних вод SE1.50.65.22.2.50D | C58: WW | F58: 2748.01 | G58: =IFERROR(F58*(1-VLOOKUP(C58,ГОЛОВНА!K:L,2,0)), "-") -> 2748.01
A59: 96047511 | B59: Помпа для сточних вод SE1.50.65.22.Ex.2. | C59: WW | F59: 2986.91 | G59: =IFERROR(F59*(1-VLOOKUP(C59,ГОЛОВНА!K:L,2,0)), "-") -> 2986.91
A60: 96047517 | B60: Насос для сточних вод SE1.50.65.30.2.50D | C60: WW | F60: 2973.23 | G60: =IFERROR(F60*(1-VLOOKUP(C60,ГОЛОВНА!K:L,2,0)), "-") -> 2973.23
A61: 96047519 | B61: Помпа для сточних вод SE1.50.65.30.Ex.2. | C61: WW | F61: за запитом | G61: =IFERROR(F61*(1-VLOOKUP(C61,ГОЛОВНА!K:L,2,0)), "-") -> -
A62: 96047981 | B62: Помпа для сточних вод SE1.50.80.22.2.50D | C62: WW | F62: 2794.61 | G62: =IFERROR(F62*(1-VLOOKUP(C62,ГОЛОВНА!K:L,2,0)), "-") -> 2794.61
A63: 96047983 | B63: Насос для стічн вод SE1.50.80.22.Ex.2.50 | C63: WW | F63: 2995.54 | G63: =IFERROR(F63*(1-VLOOKUP(C63,ГОЛОВНА!K:L,2,0)), "-") -> 2995.54
A64: 96047989 | B64: Насос для стічних вод SE1.50.80.30.2.50D | C64: WW | F64: за запитом | G64: =IFERROR(F64*(1-VLOOKUP(C64,ГОЛОВНА!K:L,2,0)), "-") -> -
A65: 96048005 | B65: Насос для сточних вод SE1.80.100.15.4.50 | C65: WW | F65: 2793.79 | G65: =IFERROR(F65*(1-VLOOKUP(C65,ГОЛОВНА!K:L,2,0)), "-") -> 2793.79
A66: 96048009 | B66: Помпа для сточних вод SE1.80.100.15.Ex.4 | C66: WW | F66: за запитом | G66: =IFERROR(F66*(1-VLOOKUP(C66,ГОЛОВНА!K:L,2,0)), "-") -> -
A67: 96048021 | B67: Насос для стічних вод SE1.80.100.22.4.50 | C67: WW | F67: за запитом | G67: =IFERROR(F67*(1-VLOOKUP(C67,ГОЛОВНА!K:L,2,0)), "-") -> -
A68: 96047533 | B68: Насос для стічних вод SE1.80.80.15.4.50D | C68: WW | F68: за запитом | G68: =IFERROR(F68*(1-VLOOKUP(C68,ГОЛОВНА!K:L,2,0)), "-") -> -
A69: 96047697 | B69: Насос для стічних вод SEV.65.65.22.2.50D | C69: WW | F69: 2703.2 | G69: =IFERROR(F69*(1-VLOOKUP(C69,ГОЛОВНА!K:L,2,0)), "-") -> 2703.2
A70: 96047701 | B70: Насос для стічн вод SEV.65.65.22.Ex.2. | C70: WW | F70: 2961.06 | G70: =IFERROR(F70*(1-VLOOKUP(C70,ГОЛОВНА!K:L,2,0)), "-") -> 2961.06
A71: 96047713 | B71: Насос для стічн вод SEV.65.65.30.2.50D | C71: WW | F71: 2928.38 | G71: =IFERROR(F71*(1-VLOOKUP(C71,ГОЛОВНА!K:L,2,0)), "-") -> 2928.38
A72: 96047717 | B72: Насос для стічн вод SEV.65.65.30.Ex.2. | C72: WW | F72: за запитом | G72: =IFERROR(F72*(1-VLOOKUP(C72,ГОЛОВНА!K:L,2,0)), "-") -> -
A73: 96048169 | B73: Насос для стічних вод SEV.65.80.22.2.50D | C73: WW | F73: 2748.76 | G73: =IFERROR(F73*(1-VLOOKUP(C73,ГОЛОВНА!K:L,2,0)), "-") -> 2748.76
A74: 96048173 | B74: Насос для стічн вод SEV.65.80.22.Ex.2. | C74: WW | F74: за запитом | G74: =IFERROR(F74*(1-VLOOKUP(C74,ГОЛОВНА!K:L,2,0)), "-") -> -
A75: 96048185 | B75: Насос для стічних вод SEV.65.80.30.2.50D | C75: WW | F75: 2973.49 | G75: =IFERROR(F75*(1-VLOOKUP(C75,ГОЛОВНА!K:L,2,0)), "-") -> 2973.49
A76: 96047745 | B76: Насос для стічних вод SEV.80.80.11.4.50D | C76: WW | F76: 2779.28 | G76: =IFERROR(F76*(1-VLOOKUP(C76,ГОЛОВНА!K:L,2,0)), "-") -> 2779.28
A77: 96047748 | B77: Помпа для сточних вод SEV.80.80.11.Ex.4. | C77: WW | F77: 2914.12 | G77: =IFERROR(F77*(1-VLOOKUP(C77,ГОЛОВНА!K:L,2,0)), "-") -> 2914.12
A78: 96047757 | B78: Помпа для сточних вод SEV80.80.13.4.50D | C78: WW | F78: 2826.5 | G78: =IFERROR(F78*(1-VLOOKUP(C78,ГОЛОВНА!K:L,2,0)), "-") -> 2826.5
A79: 96047760 | B79: Помпа для сточних вод SEV.80.80.13.Ex.4. | C79: WW | F79: 2961.31 | G79: =IFERROR(F79*(1-VLOOKUP(C79,ГОЛОВНА!K:L,2,0)), "-") -> 2961.31
A80: 96047769 | B80: Помпа для сточних вод SEV.80.80.15.4.50D | C80: WW | F80: 2863.69 | G80: =IFERROR(F80*(1-VLOOKUP(C80,ГОЛОВНА!K:L,2,0)), "-") -> 2863.69
A81: 96047772 | B81: Помпа для сточних вод SEV.80.80.15.Ex.4. | C81: WW | F81: за запитом | G81: =IFERROR(F81*(1-VLOOKUP(C81,ГОЛОВНА!K:L,2,0)), "-") -> -
A82: 96047781 | B82: Насос для стічних вод SEV.80.80.22.4.50D | C82: WW | F82: 2915.83 | G82: =IFERROR(F82*(1-VLOOKUP(C82,ГОЛОВНА!K:L,2,0)), "-") -> 2915.83
A83: 96047785 | B83: Помпа для сточних вод SEV.80.80.22.Ex.4. | C83: WW | F83: за запитом | G83: =IFERROR(F83*(1-VLOOKUP(C83,ГОЛОВНА!K:L,2,0)), "-") -> -
A84: 98624257 | B84: Насос для стічн вод SL1.50.65.22.2.50D.C | C84: CW | F84: 1926.4875 | G84: =IFERROR(F84*(1-VLOOKUP(C84,ГОЛОВНА!K:L,2,0)), "-") -> 1926.4875
A85: 98626085 | B85: Насос для стічн вод SL1.50.65.22.2.51D.C | C85: CW | F85: 1926.4875 | G85: =IFERROR(F85*(1-VLOOKUP(C85,ГОЛОВНА!K:L,2,0)), "-") -> 1926.4875
A86: 98626303 | B86: Насос для стічн вод SL1.50.65.22.A.2.50D | C86: CW | F86: 2814.035 | G86: =IFERROR(F86*(1-VLOOKUP(C86,ГОЛОВНА!K:L,2,0)), "-") -> 2814.035
A87: 98626314 | B87: Насос для стічн вод SL1.50.65.22.A.2.51D | C87: CW | F87: 2814.035 | G87: =IFERROR(F87*(1-VLOOKUP(C87,ГОЛОВНА!K:L,2,0)), "-") -> 2814.035
A88: 98626482 | B88: Насос для стічн вод SL1.50.65.22.A.EX.2. | C88: CW | F88: 2917.26275 | G88: =IFERROR(F88*(1-VLOOKUP(C88,ГОЛОВНА!K:L,2,0)), "-") -> 2917.26275
A89: 98626487 | B89: Насос для стічн вод SL1.50.65.22.A.EX.2. | C89: CW | F89: 2675.64975 | G89: =IFERROR(F89*(1-VLOOKUP(C89,ГОЛОВНА!K:L,2,0)), "-") -> 2675.64975
A90: 98626698 | B90: Насос для стічн вод SL1.50.65.22.EX.2.50 | C90: CW | F90: 2029.71525 | G90: =IFERROR(F90*(1-VLOOKUP(C90,ГОЛОВНА!K:L,2,0)), "-") -> 2029.71525
A91: 98626703 | B91: Насос для стічн вод SL1.50.65.22.EX.2.51 | C91: CW | F91: 2058.528 | G91: =IFERROR(F91*(1-VLOOKUP(C91,ГОЛОВНА!K:L,2,0)), "-") -> 2058.528
A92: 98624258 | B92: Насос для стічн вод SL1.50.65.30.2.50D.C | C92: CW | F92: 2208.65975 | G92: =IFERROR(F92*(1-VLOOKUP(C92,ГОЛОВНА!K:L,2,0)), "-") -> 2208.65975
A93: 98626086 | B93: Насос для стічн вод SL1.50.65.30.2.51D.C | C93: CW | F93: 2208.65975 | G93: =IFERROR(F93*(1-VLOOKUP(C93,ГОЛОВНА!K:L,2,0)), "-") -> 2208.65975
A94: 98626304 | B94: Насос для стічн вод SL1.50.65.30.A.2.50D | C94: CW | F94: за запитом | G94: =IFERROR(F94*(1-VLOOKUP(C94,ГОЛОВНА!K:L,2,0)), "-") -> -
A95: 98626315 | B95: Насос для стічн вод SL1.50.65.30.A.2.51D | C95: CW | F95: за запитом | G95: =IFERROR(F95*(1-VLOOKUP(C95,ГОЛОВНА!K:L,2,0)), "-") -> -
A96: 98626483 | B96: Насос для стічн вод SL1.50.65.30.A.EX.2. | C96: CW | F96: за запитом | G96: =IFERROR(F96*(1-VLOOKUP(C96,ГОЛОВНА!K:L,2,0)), "-") -> -
A97: 98626488 | B97: Насос для стічн вод SL1.50.65.30.A.EX.2. | C97: CW | F97: за запитом | G97: =IFERROR(F97*(1-VLOOKUP(C97,ГОЛОВНА!K:L,2,0)), "-") -> -
A98: 98626699 | B98: Насос для стічн вод SL1.50.65.30.EX.2.50 | C98: CW | F98: 2311.867 | G98: =IFERROR(F98*(1-VLOOKUP(C98,ГОЛОВНА!K:L,2,0)), "-") -> 2311.867
A99: 98626704 | B99: Насос для стічн вод SL1.50.65.30.EX.2.51 | C99: CW | F99: 2309.2635 | G99: =IFERROR(F99*(1-VLOOKUP(C99,ГОЛОВНА!K:L,2,0)), "-") -> 2309.2635
A100: 98626080 | B100: Насос для стічн вод SL1.50.65.40.2.50D.C | C100: CW | F100: 2519.491 | G100: =IFERROR(F100*(1-VLOOKUP(C100,ГОЛОВНА!K:L,2,0)), "-") -> 2519.491
A101: 98624259 | B101: Насос для стічн вод SL1.50.65.40.2.51D.C | C101: CW | F101: 2489.53025 | G101: =IFERROR(F101*(1-VLOOKUP(C101,ГОЛОВНА!K:L,2,0)), "-") -> 2489.53025
A102: 98626701 | B102: Насос для стічн вод SL1.50.65.40.EX.2.50 | C102: CW | F102: 2603.87925 | G102: =IFERROR(F102*(1-VLOOKUP(C102,ГОЛОВНА!K:L,2,0)), "-") -> 2603.87925
A103: 98626705 | B103: Насос для стічн вод SL1.50.65.40.EX.2.51 | C103: CW | F103: 2489.53025 | G103: =IFERROR(F103*(1-VLOOKUP(C103,ГОЛОВНА!K:L,2,0)), "-") -> 2489.53025
A104: 98617678 | B104: Насос для стічн вод SL1.50.80.22.2.50D.C | C104: CW | F104: 1963.06975 | G104: =IFERROR(F104*(1-VLOOKUP(C104,ГОЛОВНА!K:L,2,0)), "-") -> 1963.06975
A105: 98626087 | B105: Насос для стічн вод SL1.50.80.22.2.51D.C | C105: CW | F105: 1963.06975 | G105: =IFERROR(F105*(1-VLOOKUP(C105,ГОЛОВНА!K:L,2,0)), "-") -> 1963.06975
A106: 98617680 | B106: Насос для стічн вод SL1.50.80.22.A.2.50D | C106: CW | F106: 2850.6275 | G106: =IFERROR(F106*(1-VLOOKUP(C106,ГОЛОВНА!K:L,2,0)), "-") -> 2850.6275
A107: 98626317 | B107: Насос для стічн вод SL1.50.80.22.A.2.51D | C107: CW | F107: 2850.6275 | G107: =IFERROR(F107*(1-VLOOKUP(C107,ГОЛОВНА!K:L,2,0)), "-") -> 2850.6275
A108: 98617691 | B108: Насос для стічн вод SL1.50.80.22.A.EX.2. | C108: CW | F108: 2953.8245 | G108: =IFERROR(F108*(1-VLOOKUP(C108,ГОЛОВНА!K:L,2,0)), "-") -> 2953.8245
A109: 98626490 | B109: Насос для стічн вод SL1.50.80.22.A.EX.2. | C109: CW | F109: 2953.8245 | G109: =IFERROR(F109*(1-VLOOKUP(C109,ГОЛОВНА!K:L,2,0)), "-") -> 2953.8245
A110: 98617679 | B110: Насос для стічн вод SL1.50.80.22.EX.2.50 | C110: CW | F110: 2066.28725 | G110: =IFERROR(F110*(1-VLOOKUP(C110,ГОЛОВНА!K:L,2,0)), "-") -> 2066.28725
A111: 98626706 | B111: Насос для стічн вод SL1.50.80.22.EX.2.51 | C111: CW | F111: 2097.8675 | G111: =IFERROR(F111*(1-VLOOKUP(C111,ГОЛОВНА!K:L,2,0)), "-") -> 2097.8675
A112: 98626076 | B112: Насос для стічн вод SL1.50.80.30.2.50D.C | C112: CW | F112: 2244.61675 | G112: =IFERROR(F112*(1-VLOOKUP(C112,ГОЛОВНА!K:L,2,0)), "-") -> 2244.61675
A113: 98626088 | B113: Насос для стічн вод SL1.50.80.30.2.51D.C | C113: CW | F113: 2244.61675 | G113: =IFERROR(F113*(1-VLOOKUP(C113,ГОЛОВНА!K:L,2,0)), "-") -> 2244.61675
A114: 98626306 | B114: Насос для стічн вод SL1.50.80.30.A.2.50D | C114: CW | F114: за запитом | G114: =IFERROR(F114*(1-VLOOKUP(C114,ГОЛОВНА!K:L,2,0)), "-") -> -
A115: 98626318 | B115: Насос для стічн вод SL1.50.80.30.A.2.51D | C115: CW | F115: за запитом | G115: =IFERROR(F115*(1-VLOOKUP(C115,ГОЛОВНА!K:L,2,0)), "-") -> -
A116: 98626484 | B116: Насос для стічн вод SL1.50.80.30.A.EX.2. | C116: CW | F116: за запитом | G116: =IFERROR(F116*(1-VLOOKUP(C116,ГОЛОВНА!K:L,2,0)), "-") -> -
A117: 98626491 | B117: Насос для стічн вод SL1.50.80.30.A.EX.2. | C117: CW | F117: 2992.55925 | G117: =IFERROR(F117*(1-VLOOKUP(C117,ГОЛОВНА!K:L,2,0)), "-") -> 2992.55925
A118: 98626700 | B118: Насос для стічн вод SL1.50.80.30.EX.2.50 | C118: CW | F118: 2347.8035 | G118: =IFERROR(F118*(1-VLOOKUP(C118,ГОЛОВНА!K:L,2,0)), "-") -> 2347.8035
A119: 98626707 | B119: Насос для стічн вод SL1.50.80.30.EX.2.51 | C119: CW | F119: 2344.052 | G119: =IFERROR(F119*(1-VLOOKUP(C119,ГОЛОВНА!K:L,2,0)), "-") -> 2344.052
A120: 98626084 | B120: Насос для стічн вод SL1.50.80.40.2.50D.C | C120: CW | F120: 2593.8855 | G120: =IFERROR(F120*(1-VLOOKUP(C120,ГОЛОВНА!K:L,2,0)), "-") -> 2593.8855
A121: 98624260 | B121: Насос для стічн вод SL1.50.80.40.2.51D.C | C121: CW | F121: 2525.518 | G121: =IFERROR(F121*(1-VLOOKUP(C121,ГОЛОВНА!K:L,2,0)), "-") -> 2525.518
A122: 98626702 | B122: Насос для стічн вод SL1.50.80.40.EX.2.50 | C122: CW | F122: 2641.64025 | G122: =IFERROR(F122*(1-VLOOKUP(C122,ГОЛОВНА!K:L,2,0)), "-") -> 2641.64025
A123: 98626708 | B123: Насос для стічн вод SL1.50.80.40.EX.2.51 | C123: CW | F123: 2525.518 | G123: =IFERROR(F123*(1-VLOOKUP(C123,ГОЛОВНА!K:L,2,0)), "-") -> 2525.518
A124: 98625977 | B124: Насос для стіч вод SL1.80.100.15.4.50D.C | C124: CW | F124: 2138.683 | G124: =IFERROR(F124*(1-VLOOKUP(C124,ГОЛОВНА!K:L,2,0)), "-") -> 2138.683
A125: 98626190 | B125: Насос для стічн вод SL1.80.100.15.A.4.50 | C125: CW | F125: за запитом | G125: =IFERROR(F125*(1-VLOOKUP(C125,ГОЛОВНА!K:L,2,0)), "-") -> -
A126: 98626400 | B126: Насос для стічн вод SL1.80.100.15.A.EX.4 | C126: CW | F126: за запитом | G126: =IFERROR(F126*(1-VLOOKUP(C126,ГОЛОВНА!K:L,2,0)), "-") -> -
A127: 98626616 | B127: Насос для стічн вод SL1.80.100.15.EX.4.5 | C127: CW | F127: 2241.9005 | G127: =IFERROR(F127*(1-VLOOKUP(C127,ГОЛОВНА!K:L,2,0)), "-") -> 2241.9005
A128: 98624695 | B128: Насос для стічн вод SL1.80.100.22.4.50D. | C128: CW | F128: 2629.21725 | G128: =IFERROR(F128*(1-VLOOKUP(C128,ГОЛОВНА!K:L,2,0)), "-") -> 2629.21725
A129: 98626058 | B129: Насос для стічн. вод SL1.80.100.22.4.51 | C129: CW | F129: 2629.21725 | G129: =IFERROR(F129*(1-VLOOKUP(C129,ГОЛОВНА!K:L,2,0)), "-") -> 2629.21725
A130: 98626620 | B130: Насос для стічн вод SL1.80.100.22.EX.4.5 | C130: CW | F130: 2732.43475 | G130: =IFERROR(F130*(1-VLOOKUP(C130,ГОЛОВНА!K:L,2,0)), "-") -> 2732.43475
A131: 98626684 | B131: Насос для стічн вод SL1.80.100.22.EX.4.5 | C131: CW | F131: 2486.486 | G131: =IFERROR(F131*(1-VLOOKUP(C131,ГОЛОВНА!K:L,2,0)), "-") -> 2486.486
A132: 98625966 | B132: Насос для стічн вод SL1.80.100.30.4.50D. | C132: CW | F132: за запитом | G132: =IFERROR(F132*(1-VLOOKUP(C132,ГОЛОВНА!K:L,2,0)), "-") -> -
A133: 98626050 | B133: Насос для стічн вод SL1.80.100.30.4.51D. | C133: CW | F133: за запитом | G133: =IFERROR(F133*(1-VLOOKUP(C133,ГОЛОВНА!K:L,2,0)), "-") -> -
A134: 98624693 | B134: Насос для стічн вод SL1.80.80.15.4.50D.C | C134: CW | F134: 2131.754 | G134: =IFERROR(F134*(1-VLOOKUP(C134,ГОЛОВНА!K:L,2,0)), "-") -> 2131.754
A135: 98625875 | B135: Насос для стічн вод SL1.80.80.15.4.50E.C | C135: CW | F135: 2205.25675 | G135: =IFERROR(F135*(1-VLOOKUP(C135,ГОЛОВНА!K:L,2,0)), "-") -> 2205.25675
A136: 98626189 | B136: Насос для стічн вод SL1.80.80.15.A.4.50D | C136: CW | F136: за запитом | G136: =IFERROR(F136*(1-VLOOKUP(C136,ГОЛОВНА!K:L,2,0)), "-") -> -
A137: 98626399 | B137: Насос для стічн вод SL1.80.80.15.A.EX.4. | C137: CW | F137: за запитом | G137: =IFERROR(F137*(1-VLOOKUP(C137,ГОЛОВНА!K:L,2,0)), "-") -> -
A138: 98626615 | B138: Насос для стічн вод SL1.80.80.15.EX.4.50 | C138: CW | F138: 2234.96125 | G138: =IFERROR(F138*(1-VLOOKUP(C138,ГОЛОВНА!K:L,2,0)), "-") -> 2234.96125
A139: 98624251 | B139: Насос для стічн. водSL1.80.80.22.4.50D.C | C139: CW | F139: 2616.05625 | G139: =IFERROR(F139*(1-VLOOKUP(C139,ГОЛОВНА!K:L,2,0)), "-") -> 2616.05625
A140: 98626057 | B140: Насос для стічн вод SL1.80.80.22.4.51D.C | C140: CW | F140: 2616.05625 | G140: =IFERROR(F140*(1-VLOOKUP(C140,ГОЛОВНА!K:L,2,0)), "-") -> 2616.05625
A141: 98626619 | B141: Насос для стічн вод SL1.80.80.22.EX.4.50 | C141: CW | F141: 2719.243 | G141: =IFERROR(F141*(1-VLOOKUP(C141,ГОЛОВНА!K:L,2,0)), "-") -> 2719.243
A142: 98626683 | B142: Насос для стічн вод SL1.80.80.22.EX.4.51 | C142: CW | F142: 2452.28175 | G142: =IFERROR(F142*(1-VLOOKUP(C142,ГОЛОВНА!K:L,2,0)), "-") -> 2452.28175
A143: 98624669 | B143: Насос для стічн вод SL1.80.80.30.4.50D.C | C143: CW | F143: за запитом | G143: =IFERROR(F143*(1-VLOOKUP(C143,ГОЛОВНА!K:L,2,0)), "-") -> -
A144: 98626049 | B144: Насос для стічн вод SL1.80.80.30.4.51D.C | C144: CW | F144: за запитом | G144: =IFERROR(F144*(1-VLOOKUP(C144,ГОЛОВНА!K:L,2,0)), "-") -> -
A145: 98625967 | B145: Насос для стічн вод SLV.100.100.30.4.50D | C145: CW | F145: 2616.709687 | G145: =IFERROR(F145*(1-VLOOKUP(C145,ГОЛОВНА!K:L,2,0)), "-") -> 2616.709687
A146: 98626809 | B146: Насос для стічн вод SLV.100.100.30.4.50D | C146: CW | F146: 2875.52475 | G146: =IFERROR(F146*(1-VLOOKUP(C146,ГОЛОВНА!K:L,2,0)), "-") -> 2875.52475
A147: 98626051 | B147: Насос для стічн вод SLV.100.100.30.4.51D | C147: CW | F147: 2616.709687 | G147: =IFERROR(F147*(1-VLOOKUP(C147,ГОЛОВНА!K:L,2,0)), "-") -> 2616.709687
A148: 98626869 | B148: Насос для стічн вод SLV.100.100.30.4.51D | C148: CW | F148: 2955.0545 | G148: =IFERROR(F148*(1-VLOOKUP(C148,ГОЛОВНА!K:L,2,0)), "-") -> 2955.0545
A149: 98626610 | B149: Насос для стічн вод SLV.100.100.30.EX.4. | C149: CW | F149: за запитом | G149: =IFERROR(F149*(1-VLOOKUP(C149,ГОЛОВНА!K:L,2,0)), "-") -> -
A150: 98627025 | B150: Насос для стічн вод SLV.100.100.30.EX.4. | C150: CW | F150: за запитом | G150: =IFERROR(F150*(1-VLOOKUP(C150,ГОЛОВНА!K:L,2,0)), "-") -> -
A151: 98627068 | B151: Насос для стічн вод SLV.100.100.30.EX.4. | C151: CW | F151: за запитом | G151: =IFERROR(F151*(1-VLOOKUP(C151,ГОЛОВНА!K:L,2,0)), "-") -> -
A152: 98626015 | B152: Насос для стічн вод SLV.100.100.40.4.50D | C152: CW | F152: 2902.6319 | G152: =IFERROR(F152*(1-VLOOKUP(C152,ГОЛОВНА!K:L,2,0)), "-") -> 2902.6319
A153: 98626056 | B153: Насос для стічн вод SLV.100.100.40.4.51D | C153: CW | F153: за запитом | G153: =IFERROR(F153*(1-VLOOKUP(C153,ГОЛОВНА!K:L,2,0)), "-") -> -
A154: 98626872 | B154: Насос для стічн вод SLV.100.100.40.4.51D | C154: CW | F154: за запитом | G154: =IFERROR(F154*(1-VLOOKUP(C154,ГОЛОВНА!K:L,2,0)), "-") -> -
A155: 98624199 | B155: Насос для стічн вод SLV.65.65.22.2.50D.C | C155: CW | F155: 2087.96477 | G155: =IFERROR(F155*(1-VLOOKUP(C155,ГОЛОВНА!K:L,2,0)), "-") -> 2087.96477
A156: 98626803 | B156: Насос для стічн вод SLV.65.65.22.2.50D.C | C156: CW | F156: 2188.6825 | G156: =IFERROR(F156*(1-VLOOKUP(C156,ГОЛОВНА!K:L,2,0)), "-") -> 2188.6825
A157: 98626044 | B157: Насос для стічн вод SLV.65.65.22.2.51D.C | C157: CW | F157: 2087.96477 | G157: =IFERROR(F157*(1-VLOOKUP(C157,ГОЛОВНА!K:L,2,0)), "-") -> 2087.96477
A158: 98626863 | B158: Насос для стічн вод SLV.65.65.22.2.51D.C | C158: CW | F158: 2250.21325 | G158: =IFERROR(F158*(1-VLOOKUP(C158,ГОЛОВНА!K:L,2,0)), "-") -> 2250.21325
A159: 98626169 | B159: Насос для стічн вод SLV.65.65.22.A.2.50D | C159: CW | F159: 2948.875902 | G159: =IFERROR(F159*(1-VLOOKUP(C159,ГОЛОВНА!K:L,2,0)), "-") -> 2948.875902
A160: 98626917 | B160: Насос для стічн вод SLV.65.65.22.A.2.50D | C160: CW | F160: за запитом | G160: =IFERROR(F160*(1-VLOOKUP(C160,ГОЛОВНА!K:L,2,0)), "-") -> -
A161: 98626267 | B161: Насос для стічн вод SLV.65.65.22.A.2.51D | C161: CW | F161: 2948.875902 | G161: =IFERROR(F161*(1-VLOOKUP(C161,ГОЛОВНА!K:L,2,0)), "-") -> 2948.875902
A162: 98626977 | B162: Насос для стічн вод SLV.65.65.22.A.2.51D | C162: CW | F162: 2740.20425 | G162: =IFERROR(F162*(1-VLOOKUP(C162,ГОЛОВНА!K:L,2,0)), "-") -> 2740.20425
A163: 98626390 | B163: Насос для стічн вод SLV.65.65.22.A.EX.2. | C163: CW | F163: за запитом | G163: =IFERROR(F163*(1-VLOOKUP(C163,ГОЛОВНА!K:L,2,0)), "-") -> -
A164: 98626606 | B164: Насос для стічн вод SLV.65.65.22.EX.2.50 | C164: CW | F164: 2188.06586 | G164: =IFERROR(F164*(1-VLOOKUP(C164,ГОЛОВНА!K:L,2,0)), "-") -> 2188.06586
A165: 98627023 | B165: Насос для стічн вод SLV.65.65.22.EX.2.50 | C165: CW | F165: 2291.91025 | G165: =IFERROR(F165*(1-VLOOKUP(C165,ГОЛОВНА!K:L,2,0)), "-") -> 2291.91025
A166: 98624165 | B166: Насос для стічн вод SLV.65.65.30.2.50D.C | C166: CW | F166: 2319.436113 | G166: =IFERROR(F166*(1-VLOOKUP(C166,ГОЛОВНА!K:L,2,0)), "-") -> 2319.436113
A167: 98626793 | B167: Насос для стічн вод SLV.65.65.30.2.50D.C | C167: CW | F167: 2267.51525 | G167: =IFERROR(F167*(1-VLOOKUP(C167,ГОЛОВНА!K:L,2,0)), "-") -> 2267.51525
A168: 98626037 | B168: Насос для стічн вод SLV.65.65.30.2.51D.C | C168: CW | F168: 2319.436113 | G168: =IFERROR(F168*(1-VLOOKUP(C168,ГОЛОВНА!K:L,2,0)), "-") -> 2319.436113
A169: 98626853 | B169: Насос для стічн вод SLV.65.65.30.2.51D.C | C169: CW | F169: 2331.301 | G169: =IFERROR(F169*(1-VLOOKUP(C169,ГОЛОВНА!K:L,2,0)), "-") -> 2331.301
A170: 98626159 | B170: Насос для стічн вод SLV.65.65.30.A.2.50D | C170: CW | F170: за запитом | G170: =IFERROR(F170*(1-VLOOKUP(C170,ГОЛОВНА!K:L,2,0)), "-") -> -
A171: 98626257 | B171: Насос для стічн вод SLV.65.65.30.A.2.51D | C171: CW | F171: за запитом | G171: =IFERROR(F171*(1-VLOOKUP(C171,ГОЛОВНА!K:L,2,0)), "-") -> -
A172: 98626604 | B172: Насос для стічн вод SLV.65.65.30.EX.2.50 | C172: CW | F172: 2419.547145 | G172: =IFERROR(F172*(1-VLOOKUP(C172,ГОЛОВНА!K:L,2,0)), "-") -> 2419.547145
A173: 98627021 | B173: Насос для стічн вод SLV.65.65.30.EX.2.50 | C173: CW | F173: 2370.75325 | G173: =IFERROR(F173*(1-VLOOKUP(C173,ГОЛОВНА!K:L,2,0)), "-") -> 2370.75325
A174: 98626657 | B174: Насос для стічн вод SLV.65.65.30.EX.2.51 | C174: CW | F174: 2419.547145 | G174: =IFERROR(F174*(1-VLOOKUP(C174,ГОЛОВНА!K:L,2,0)), "-") -> 2419.547145
A175: 98627052 | B175: Насос для стічн вод SLV.65.65.30.EX.2.51 | C175: CW | F175: 2435.359 | G175: =IFERROR(F175*(1-VLOOKUP(C175,ГОЛОВНА!K:L,2,0)), "-") -> 2435.359
A176: 98625992 | B176: Насос для стічн вод SLV.65.65.40.2.50D.C | C176: CW | F176: 2605.750285 | G176: =IFERROR(F176*(1-VLOOKUP(C176,ГОЛОВНА!K:L,2,0)), "-") -> 2605.750285
A177: 98626825 | B177: Насос для стічн вод SLV.65.65.40.2.50D.C | C177: CW | F177: 2645.86325 | G177: =IFERROR(F177*(1-VLOOKUP(C177,ГОЛОВНА!K:L,2,0)), "-") -> 2645.86325
A178: 98624254 | B178: Насос для стічн вод SLV.65.65.40.2.51D.C | C178: CW | F178: 2551.374752 | G178: =IFERROR(F178*(1-VLOOKUP(C178,ГОЛОВНА!K:L,2,0)), "-") -> 2551.374752
A179: 98626855 | B179: Насос для стічн вод SLV.65.65.40.2.51D.C | C179: CW | F179: 2630.42675 | G179: =IFERROR(F179*(1-VLOOKUP(C179,ГОЛОВНА!K:L,2,0)), "-") -> 2630.42675
A180: 98626659 | B180: Насос для стічн вод SLV.65.65.40.EX.2.51 | C180: CW | F180: 2551.374752 | G180: =IFERROR(F180*(1-VLOOKUP(C180,ГОЛОВНА!K:L,2,0)), "-") -> 2551.374752
A181: 98625961 | B181: Насос для стічн вод SLV.65.80.22.2.50D.C | C181: CW | F181: 2100.482377 | G181: =IFERROR(F181*(1-VLOOKUP(C181,ГОЛОВНА!K:L,2,0)), "-") -> 2100.482377
A182: 98626804 | B182: Насос для стічн вод SLV.65.80.22.2.50D.C | C182: CW | F182: 2201.60775 | G182: =IFERROR(F182*(1-VLOOKUP(C182,ГОЛОВНА!K:L,2,0)), "-") -> 2201.60775
A183: 98626045 | B183: Насос для стічн вод SLV.65.80.22.2.51D.C | C183: CW | F183: 2100.482377 | G183: =IFERROR(F183*(1-VLOOKUP(C183,ГОЛОВНА!K:L,2,0)), "-") -> 2100.482377
A184: 98626864 | B184: Насос для стічн вод SLV.65.80.22.2.51D.C | C184: CW | F184: 2263.446 | G184: =IFERROR(F184*(1-VLOOKUP(C184,ГОЛОВНА!K:L,2,0)), "-") -> 2263.446
A185: 98626170 | B185: Насос для стічн вод SLV.65.80.22.A.2.50D | C185: CW | F185: 2961.403452 | G185: =IFERROR(F185*(1-VLOOKUP(C185,ГОЛОВНА!K:L,2,0)), "-") -> 2961.403452
A186: 98626918 | B186: Насос для стічн вод SLV.65.80.22.A.2.50D | C186: CW | F186: за запитом | G186: =IFERROR(F186*(1-VLOOKUP(C186,ГОЛОВНА!K:L,2,0)), "-") -> -
A187: 98626268 | B187: Насос для стічн вод SLV.65.80.22.A.2.51D | C187: CW | F187: 2961.403452 | G187: =IFERROR(F187*(1-VLOOKUP(C187,ГОЛОВНА!K:L,2,0)), "-") -> 2961.403452
A188: 98626978 | B188: Насос для стічн вод SLV.65.80.22.A.2.51D | C188: CW | F188: 2754.134 | G188: =IFERROR(F188*(1-VLOOKUP(C188,ГОЛОВНА!K:L,2,0)), "-") -> 2754.134
A189: 98626607 | B189: Насос для стічн вод SLV.65.80.22.EX.2.50 | C189: CW | F189: 2200.603352 | G189: =IFERROR(F189*(1-VLOOKUP(C189,ГОЛОВНА!K:L,2,0)), "-") -> 2200.603352
A190: 98627024 | B190: Насос для стічн вод SLV.65.80.22.EX.2.50 | C190: CW | F190: 2304.82525 | G190: =IFERROR(F190*(1-VLOOKUP(C190,ГОЛОВНА!K:L,2,0)), "-") -> 2304.82525
A191: 98625942 | B191: Насос для стіч. вод SLV.65.80.30.2.50D.C | C191: CW | F191: 2332.938027 | G191: =IFERROR(F191*(1-VLOOKUP(C191,ГОЛОВНА!K:L,2,0)), "-") -> 2332.938027
A192: 98626794 | B192: Насос для стічн вод SLV.65.80.30.2.50D.C | C192: CW | F192: 2280.051 | G192: =IFERROR(F192*(1-VLOOKUP(C192,ГОЛОВНА!K:L,2,0)), "-") -> 2280.051
A193: 98626038 | B193: Насос для стічн вод SLV.65.80.30.2.51D.C | C193: CW | F193: 2176.999857 | G193: =IFERROR(F193*(1-VLOOKUP(C193,ГОЛОВНА!K:L,2,0)), "-") -> 2176.999857
A194: 98626854 | B194: Насос для стічн вод SLV.65.80.30.2.51D.C | C194: CW | F194: 2344.14425 | G194: =IFERROR(F194*(1-VLOOKUP(C194,ГОЛОВНА!K:L,2,0)), "-") -> 2344.14425
A195: 98626160 | B195: Насос для стічн вод SLV.65.80.30.A.2.50D | C195: CW | F195: за запитом | G195: =IFERROR(F195*(1-VLOOKUP(C195,ГОЛОВНА!K:L,2,0)), "-") -> -
A196: 98626258 | B196: Насос для стічн вод SLV.65.80.30.A.2.51D | C196: CW | F196: за запитом | G196: =IFERROR(F196*(1-VLOOKUP(C196,ГОЛОВНА!K:L,2,0)), "-") -> -
A197: 98626605 | B197: Насос для стічн вод SLV.65.80.30.EX.2.50 | C197: CW | F197: 2433.068945 | G197: =IFERROR(F197*(1-VLOOKUP(C197,ГОЛОВНА!K:L,2,0)), "-") -> 2433.068945
A198: 98627022 | B198: Насос для стічн вод SLV.65.80.30.EX.2.50 | C198: CW | F198: 2383.25825 | G198: =IFERROR(F198*(1-VLOOKUP(C198,ГОЛОВНА!K:L,2,0)), "-") -> 2383.25825
A199: 98627053 | B199: Насос для стічн вод SLV.65.80.30.EX.2.51 | C199: CW | F199: 2448.20225 | G199: =IFERROR(F199*(1-VLOOKUP(C199,ГОЛОВНА!K:L,2,0)), "-") -> 2448.20225
A200: 98625993 | B200: Насос для стічн вод SLV.65.80.40.2.50D.C | C200: CW | F200: 2619.987945 | G200: =IFERROR(F200*(1-VLOOKUP(C200,ГОЛОВНА!K:L,2,0)), "-") -> 2619.987945
... 145 more rows

Sheet DP, EF
A1: АРТИКУЛ | B1: НАЙМЕНУВАННЯ (УКР) | C1: PRICE GROUP | D1: ДОСТАВКА | E1: ДОДАТКОВО | F1: ЦІНА (ЕВРО БЕЗ ПДВ) | G1: ЦІНА ЗІ ЗНИЖКОЮ | H1: НА ГОЛОВНУ
A2: DP | G2: Дренажні насоси
A3: 96104200 | B3: Насос для стічних вод DP10.50.09.2.1.502 | C3: CW | F3: 1243.741662 | G3: =IFERROR(F3*(1-VLOOKUP(C3,ГОЛОВНА!K:L,2,0)), "-") -> 1243.741662
A4: 96104204 | B4: Насос для стічних вод DP10.50.09.2.50B | C4: CW | F4: 1243.741662 | G4: =IFERROR(F4*(1-VLOOKUP(C4,ГОЛОВНА!K:L,2,0)), "-") -> 1243.741662
A5: 96104202 | B5: Насос для дрен вод DP10.50.09.A.2.1.502 | C5: CW | F5: 1529.52755 | G5: =IFERROR(F5*(1-VLOOKUP(C5,ГОЛОВНА!K:L,2,0)), "-") -> 1529.52755
A6: 96104206 | B6: Насос для стічних вод DP10.50.09.A.2.50B | C6: CW | F6: 1529.52755 | G6: =IFERROR(F6*(1-VLOOKUP(C6,ГОЛОВНА!K:L,2,0)), "-") -> 1529.52755
A7: 96877476 | B7: Насос для стічних вод DP10.50.09.E.2.1.5 | C7: CW | F7: 1798.681787 | G7: =IFERROR(F7*(1-VLOOKUP(C7,ГОЛОВНА!K:L,2,0)), "-") -> 1798.681787
A8: 96877478 | B8: Насос для стічних вод DP10.50.09.E.2.50B | C8: CW | F8: 1798.681787 | G8: =IFERROR(F8*(1-VLOOKUP(C8,ГОЛОВНА!K:L,2,0)), "-") -> 1798.681787
A9: 96877479 | B9: Насос для стічних вод DP10.50.09.E.EX.2. | C9: CW | F9: 1963.479237 | G9: =IFERROR(F9*(1-VLOOKUP(C9,ГОЛОВНА!K:L,2,0)), "-") -> 1963.479237
A10: 96877502 | B10: Насос для стічних вод DP10.50.09.E.EX.2. | C10: CW | F10: 1963.479237 | G10: =IFERROR(F10*(1-VLOOKUP(C10,ГОЛОВНА!K:L,2,0)), "-") -> 1963.479237
A11: 96104201 | B11: Насос для стічних вод DP10.50.09.Ex.2.1. | C11: CW | F11: 1375.626362 | G11: =IFERROR(F11*(1-VLOOKUP(C11,ГОЛОВНА!K:L,2,0)), "-") -> 1375.626362
A12: 96104205 | B12: Насос для стічних вод DP10. 50.09.Ex.2.50B | C12: CW | F12: 1375.626362 | G12: =IFERROR(F12*(1-VLOOKUP(C12,ГОЛОВНА!K:L,2,0)), "-") -> 1375.626362
A13: 96104208 | B13: Насос для стічних вод DP10.50.15.2.50B | C13: CW | F13: 1415.2872 | G13: =IFERROR(F13*(1-VLOOKUP(C13,ГОЛОВНА!K:L,2,0)), "-") -> 1415.2872
A14: 96104210 | B14: Насос для стічних вод DP10.50.15.A.2.50 | C14: CW | F14: 1701.073087 | G14: =IFERROR(F14*(1-VLOOKUP(C14,ГОЛОВНА!K:L,2,0)), "-") -> 1701.073087
A15: 96877503 | B15: Насос для стічних вод DP10.50.15.E.2.50B | C15: CW | F15: 1955.436062 | G15: =IFERROR(F15*(1-VLOOKUP(C15,ГОЛОВНА!K:L,2,0)), "-") -> 1955.436062
A16: 96877504 | B16: Насос для стічних вод DP10.50.15.E.Ex | C16: CW | F16: 2120.194562 | G16: =IFERROR(F16*(1-VLOOKUP(C16,ГОЛОВНА!K:L,2,0)), "-") -> 2120.194562
A17: 96104209 | B17: Дренажний насос DP10.50.15.Ex.2.50B | C17: CW | F17: 1547.1719 | G17: =IFERROR(F17*(1-VLOOKUP(C17,ГОЛОВНА!K:L,2,0)), "-") -> 1547.1719
A18: 96106542 | B18: Насос для стічних вод DP10.65.26.2.50B | C18: CW | F18: 1683.555325 | G18: =IFERROR(F18*(1-VLOOKUP(C18,ГОЛОВНА!K:L,2,0)), "-") -> 1683.555325
A19: 96106544 | B19: Насос для стічних вод DP10.65.26.A.2.50B | C19: CW | F19: 1969.341212 | G19: =IFERROR(F19*(1-VLOOKUP(C19,ГОЛОВНА!K:L,2,0)), "-") -> 1969.341212
A20: 96877506 | B20: Насос для стiчних вод DP10.65.26.E.2.50B | C20: CW | F20: 2264.299825 | G20: =IFERROR(F20*(1-VLOOKUP(C20,ГОЛОВНА!K:L,2,0)), "-") -> 2264.299825
A21: 96877507 | B21: Насос для стiчних вод DP10.65.26.E.Ex | C21: CW | F21: 2429.068062 | G21: =IFERROR(F21*(1-VLOOKUP(C21,ГОЛОВНА!K:L,2,0)), "-") -> 2429.068062
A22: 96106543 | B22: Насос для стічних вод DP10.65.26.Ex.2.50 | C22: CW | F22: 1815.440025 | G22: =IFERROR(F22*(1-VLOOKUP(C22,ГОЛОВНА!K:L,2,0)), "-") -> 1815.440025
A23: EF | G23: Дренажні насоси
A24: 96106546 | B24: Насос для стічн вод EF30.50.06.2.1.502 | C24: CW | F24: 909.2195875 | G24: =IFERROR(F24*(1-VLOOKUP(C24,ГОЛОВНА!K:L,2,0)), "-") -> 909.2195875
A25: 96106550 | B25: Насос для стічн вод EF30.50.06.2.50B | C25: CW | F25: 909.2195875 | G25: =IFERROR(F25*(1-VLOOKUP(C25,ГОЛОВНА!K:L,2,0)), "-") -> 909.2195875
A26: 96106548 | B26: Насос для стічн вод EF30.50.06.A.2.1.5 | C26: CW | F26: 1195.005475 | G26: =IFERROR(F26*(1-VLOOKUP(C26,ГОЛОВНА!K:L,2,0)), "-") -> 1195.005475
A27: 96106552 | B27: Насос для стічн вод EF30.50.06.A.2.50B | C27: CW | F27: 1195.005475 | G27: =IFERROR(F27*(1-VLOOKUP(C27,ГОЛОВНА!K:L,2,0)), "-") -> 1195.005475
A28: 96877508 | B28: Насос для стічних вод EF30.50.06.E.2.1.5 | C28: CW | F28: 1463.867587 | G28: =IFERROR(F28*(1-VLOOKUP(C28,ГОЛОВНА!K:L,2,0)), "-") -> 1463.867587
A29: 96877510 | B29: Насос для стічних вод EF30.50.06.E.2.50B | C29: CW | F29: 1463.867587 | G29: =IFERROR(F29*(1-VLOOKUP(C29,ГОЛОВНА!K:L,2,0)), "-") -> 1463.867587
A30: 96877512 | B30: Насос для стічних вод EF30.50.06.E.EX.2. | C30: CW | F30: 1625.42245 | G30: =IFERROR(F30*(1-VLOOKUP(C30,ГОЛОВНА!K:L,2,0)), "-") -> 1625.42245
A31: 96877514 | B31: Насос для стічних вод EF30.50.06.E.EX.2. | C31: CW | F31: 1625.42245 | G31: =IFERROR(F31*(1-VLOOKUP(C31,ГОЛОВНА!K:L,2,0)), "-") -> 1625.42245
A32: 96106547 | B32: Насос для стічн вод EF30.50.06.Ex.2.1. | C32: CW | F32: 1041.104287 | G32: =IFERROR(F32*(1-VLOOKUP(C32,ГОЛОВНА!K:L,2,0)), "-") -> 1041.104287
A33: 96106551 | B33: Насос для стічн вод EF30.50.06.Ex.2.50 | C33: CW | F33: 1041.104287 | G33: =IFERROR(F33*(1-VLOOKUP(C33,ГОЛОВНА!K:L,2,0)), "-") -> 1041.104287
A34: 96115111 | B34: Насос для стічн вод EF30.50.09.2.1.502 | C34: CW | F34: 975.6098625 | G34: =IFERROR(F34*(1-VLOOKUP(C34,ГОЛОВНА!K:L,2,0)), "-") -> 975.6098625
A35: 96115115 | B35: Насос для сточних вод EF30.50.09.2.50B | C35: CW | F35: 975.6098625 | G35: =IFERROR(F35*(1-VLOOKUP(C35,ГОЛОВНА!K:L,2,0)), "-") -> 975.6098625
A36: 96115113 | B36: Насос для стічн вод EF30.50.09.A.2.1.5 | C36: CW | F36: 1261.3568 | G36: =IFERROR(F36*(1-VLOOKUP(C36,ГОЛОВНА!K:L,2,0)), "-") -> 1261.3568
A37: 96115117 | B37: Насос для стічн вод EF30.50.09.A.2.50B | C37: CW | F37: 1261.3568 | G37: =IFERROR(F37*(1-VLOOKUP(C37,ГОЛОВНА!K:L,2,0)), "-") -> 1261.3568
A38: 96877515 | B38: Насос для стічних вод EF30.50.09.E.2.1.5 | C38: CW | F38: 1523.315025 | G38: =IFERROR(F38*(1-VLOOKUP(C38,ГОЛОВНА!K:L,2,0)), "-") -> 1523.315025
A39: 96877516 | B39: Насос для стічних вод EF30.50.09.E.2.50B | C39: CW | F39: 1523.315025 | G39: =IFERROR(F39*(1-VLOOKUP(C39,ГОЛОВНА!K:L,2,0)), "-") -> 1523.315025
A40: 96877518 | B40: Насос для стічних вод EF30.50.09.E.EX.2. | C40: CW | F40: 1684.830937 | G40: =IFERROR(F40*(1-VLOOKUP(C40,ГОЛОВНА!K:L,2,0)), "-") -> 1684.830937
A41: 96877532 | B41: Насос для стічних вод EF30.50.09.E.EX.2. | C41: CW | F41: 1684.830937 | G41: =IFERROR(F41*(1-VLOOKUP(C41,ГОЛОВНА!K:L,2,0)), "-") -> 1684.830937
A42: 96115112 | B42: Насос для стічн вод EF30.50.09.Ex.2.1. | C42: CW | F42: 1107.484825 | G42: =IFERROR(F42*(1-VLOOKUP(C42,ГОЛОВНА!K:L,2,0)), "-") -> 1107.484825
A43: 96115114 | B43: Насос для стічн вод EF30.50.09.Ex.2.1. | C43: CW | F43: 975.6098625 | G43: =IFERROR(F43*(1-VLOOKUP(C43,ГОЛОВНА!K:L,2,0)), "-") -> 975.6098625
A44: 96115116 | B44: Насос для стічн вод EF30.50.09.Ex.2.50 | C44: CW | F44: 1107.484825 | G44: =IFERROR(F44*(1-VLOOKUP(C44,ГОЛОВНА!K:L,2,0)), "-") -> 1107.484825
A45: 96115118 | B45: Насос для стічн вод EF30.50.09.Ex.2.50 | C45: CW | F45: 975.6098625 | G45: =IFERROR(F45*(1-VLOOKUP(C45,ГОЛОВНА!K:L,2,0)), "-") -> 975.6098625
A46: 96106554 | B46: Насос для стічн вод EF30.50.11.2.1.502 | C46: CW | F46: 1043.558137 | G46: =IFERROR(F46*(1-VLOOKUP(C46,ГОЛОВНА!K:L,2,0)), "-") -> 1043.558137
A47: 96106558 | B47: Насос для стічн вод EF30.50.11.2.50B | C47: CW | F47: 1043.558137 | G47: =IFERROR(F47*(1-VLOOKUP(C47,ГОЛОВНА!K:L,2,0)), "-") -> 1043.558137
A48: 96106556 | B48: Насос для стічн вод EF30.50.11.A.2.1.5 | C48: CW | F48: 1329.353762 | G48: =IFERROR(F48*(1-VLOOKUP(C48,ГОЛОВНА!K:L,2,0)), "-") -> 1329.353762
A49: 96106560 | B49: Насос для стічн вод EF30.50.11.A.2.50B | C49: CW | F49: 1329.353762 | G49: =IFERROR(F49*(1-VLOOKUP(C49,ГОЛОВНА!K:L,2,0)), "-") -> 1329.353762
A50: 96875101 | B50: Насос для стічних вод EF30.50.11.E.2.1.5 | C50: CW | F50: 1584.184137 | G50: =IFERROR(F50*(1-VLOOKUP(C50,ГОЛОВНА!K:L,2,0)), "-") -> 1584.184137
A51: 96878445 | B51: Насос для стічних вод EF30.50.11.E.2.50B | C51: CW | F51: 1584.184137 | G51: =IFERROR(F51*(1-VLOOKUP(C51,ГОЛОВНА!K:L,2,0)), "-") -> 1584.184137
A52: 96878446 | B52: Насос для стічних вод EF30.50.11.E.EX.2. | C52: CW | F52: 1745.739 | G52: =IFERROR(F52*(1-VLOOKUP(C52,ГОЛОВНА!K:L,2,0)), "-") -> 1745.739
A53: 96106555 | B53: Насос для стічн вод EF30.50.11.Ex.2.1. | C53: CW | F53: 1175.462312 | G53: =IFERROR(F53*(1-VLOOKUP(C53,ГОЛОВНА!K:L,2,0)), "-") -> 1175.462312
A54: 96106559 | B54: Насос для стічн вод EF30.50.11.Ex.2.50 | C54: CW | F54: 1175.462312 | G54: =IFERROR(F54*(1-VLOOKUP(C54,ГОЛОВНА!K:L,2,0)), "-") -> 1175.462312
A55: 96104196 | B55: Насос для стічн вод EF30.50.15.2.50B | C55: CW | F55: 1132.23755 | G55: =IFERROR(F55*(1-VLOOKUP(C55,ГОЛОВНА!K:L,2,0)), "-") -> 1132.23755
A56: 96104198 | B56: Насос для стічн вод EF30.50.15.A.2.50B | C56: CW | F56: 1418.042912 | G56: =IFERROR(F56*(1-VLOOKUP(C56,ГОЛОВНА!K:L,2,0)), "-") -> 1418.042912
A57: 96878448 | B57: Насос для стічних вод EF30.50.15.E.2.50B | C57: CW | F57: 1663.603187 | G57: =IFERROR(F57*(1-VLOOKUP(C57,ГОЛОВНА!K:L,2,0)), "-") -> 1663.603187
A58: 96878449 | B58: Насос для стічних вод EF30.50.15.E.EX.2. | C58: CW | F58: 1825.109362 | G58: =IFERROR(F58*(1-VLOOKUP(C58,ГОЛОВНА!K:L,2,0)), "-") -> 1825.109362
A59: 96104197 | B59: Насос для стічн вод EF30.50.15.Ex.2.50 | C59: CW | F59: 1264.102775 | G59: =IFERROR(F59*(1-VLOOKUP(C59,ГОЛОВНА!K:L,2,0)), "-") -> 1264.102775
B62: Примітка:
A63: S | B63: - складська позиція (зазвичай є на скаді)
A64: FT | B64: - швидка поставка (зазвичай до 3-х тижнів)

Sheet TP (E), TPD (E)
A1: АРТИКУЛ | B1: НАЙМЕНУВАННЯ (УКР) | C1: PRICE GROUP | D1: ДОСТАВКА (ТИЖНІВ) | E1: ДОДАТКОВО | F1: ЦІНА (ЕВРО БЕЗ ПДВ) | G1: ЦІНА ЗІ ЗНИЖКОЮ | H1: НА ГОЛОВНУ
A2: TP, TPD ( E) | G2: Ін-лайн насоси для систем опалення та кондиціонування
A4: 96086673 | B4: Насос з сух.рот. ТР 32-200/2-A-F-A-BQQE 400Y 50HZ | C4: CB | D4: FT | F4: 851.6 | G4: =IFERROR(F4*(1-VLOOKUP(C4,ГОЛОВНА!K:L,2,0)), "-") -> 851.6
A5: 96086674 | B5: Насос з сух.рот. ТР 32-250/2-A-F-A-BQQE 400Y 50HZ | C5: CB | D5: FT | F5: 949.76 | G5: =IFERROR(F5*(1-VLOOKUP(C5,ГОЛОВНА!K:L,2,0)), "-") -> 949.76
A6: 96086675 | B6: Насос з сух.рот. ТР 32-320/2-A-F-A-BQQE 400Y 50HZ | C6: CB | D6: FT | F6: 1026.09 | G6: =IFERROR(F6*(1-VLOOKUP(C6,ГОЛОВНА!K:L,2,0)), "-") -> 1026.09
A7: 96086697 | B7: Насос з сух.рот. ТРD 32-200/2-A-F-A-BAQE 400Y 50HZ | C7: CB | F7: 1765.09 | G7: =IFERROR(F7*(1-VLOOKUP(C7,ГОЛОВНА!K:L,2,0)), "-") -> 1765.09
A8: 96086698 | B8: Насос з сух.рот. ТРD 32-250/2-A-F-A-BAQE 400Y 50HZ | C8: CB | F8: 1968.8 | G8: =IFERROR(F8*(1-VLOOKUP(C8,ГОЛОВНА!K:L,2,0)), "-") -> 1968.8
A9: 96086699 | B9: Насос з сух.рот. ТРD 32-320/2-A-F-A-BAQE 400Y 50HZ | C9: CB | F9: 2127.18 | G9: =IFERROR(F9*(1-VLOOKUP(C9,ГОЛОВНА!K:L,2,0)), "-") -> 2127.18
A10: 96086702 | B10: Насос з сух.рот. ТРD 32-580/2-A-F-A-BAQE 400Y 50HZ | C10: CB | F10: за запитом | G10: =IFERROR(F10*(1-VLOOKUP(C10,ГОЛОВНА!K:L,2,0)), "-") -> -
A11: 96086739 | B11: Насос з сух.рот. ТР 32-80/4-A-F-A-BQQE 400Y 50HZ | C11: CB | D11: FT | F11: 818.41 | G11: =IFERROR(F11*(1-VLOOKUP(C11,ГОЛОВНА!K:L,2,0)), "-") -> 818.41
A12: 96086741 | B12: Насос з сух.рот. ТР 32-120/4-A-F-A-BQQE 400Y 50HZ | C12: CB | D12: FT | F12: 860.25 | G12: =IFERROR(F12*(1-VLOOKUP(C12,ГОЛОВНА!K:L,2,0)), "-") -> 860.25
A13: 96086751 | B13: Насос з сух.рот. ТРD 32-80/4-A-F-A-BAQE 400Y 50HZ | C13: CB | F13: 1696.5 | G13: =IFERROR(F13*(1-VLOOKUP(C13,ГОЛОВНА!K:L,2,0)), "-") -> 1696.5
A14: 96086752 | B14: Насос з сух.рот. ТРD 32-100/4-A-F-A-BAQE 400Y 50HZ | C14: CB | F14: 1729.97 | G14: =IFERROR(F14*(1-VLOOKUP(C14,ГОЛОВНА!K:L,2,0)), "-") -> 1729.97
A15: 96086753 | B15: Насос з сух.рот. ТРD 32-120/4-A-F-A-BAQE 400Y 50HZ | C15: CB | F15: 1787.77 | G15: =IFERROR(F15*(1-VLOOKUP(C15,ГОЛОВНА!K:L,2,0)), "-") -> 1787.77
A16: 96086757 | B16: Насос з сух.рот. ТРD 32-80/4-A-F-A-BQQE 400Y 50HZ | C16: CB | D16: FT | F16: 1696.5 | G16: =IFERROR(F16*(1-VLOOKUP(C16,ГОЛОВНА!K:L,2,0)), "-") -> 1696.5
A17: 96086758 | B17: Насос з сух.рот. ТРD 32-100/4-A-F-A-BQQE 400Y 50HZ | C17: CB | D17: FT | F17: 1729.97 | G17: =IFERROR(F17*(1-VLOOKUP(C17,ГОЛОВНА!K:L,2,0)), "-") -> 1729.97
A18: 96086777 | B18: Насос з сух.рот. ТР 32-320/2-A-F-A-BQQE 400D 50HZ | C18: CB | D18: FT | F18: 1026.09 | G18: =IFERROR(F18*(1-VLOOKUP(C18,ГОЛОВНА!K:L,2,0)), "-") -> 1026.09
A19: 96086778 | B19: Насос з сух.рот. ТР 32-380/2-A-F-A-BQQE 400D 50HZ | C19: CB | D19: FT | F19: 1113.41 | G19: =IFERROR(F19*(1-VLOOKUP(C19,ГОЛОВНА!K:L,2,0)), "-") -> 1113.41
A20: 96086779 | B20: Насос з сух.рот. ТР 32-460/2-A-F-A-BQQE 400D 50HZ | C20: CB | D20: FT | F20: 1146.25 | G20: =IFERROR(F20*(1-VLOOKUP(C20,ГОЛОВНА!K:L,2,0)), "-") -> 1146.25
A21: 96086793 | B21: Насос з сух.рот. ТРD 32-320/2-A-F-A-BAQE 400D 50HZ | C21: CB | F21: 2127.18 | G21: =IFERROR(F21*(1-VLOOKUP(C21,ГОЛОВНА!K:L,2,0)), "-") -> 2127.18
A22: 96086794 | B22: Насос з сух.рот. ТРD 32-380/2-A-F-A-BAQE 400D 50HZ | C22: CB | F22: 2308.4 | G22: =IFERROR(F22*(1-VLOOKUP(C22,ГОЛОВНА!K:L,2,0)), "-") -> 2308.4
A23: 96086795 | B23: Насос з сух.рот. ТРD 32-460/2-A-F-A-BAQE 400D 50HZ | C23: CB | F23: 2376.05 | G23: =IFERROR(F23*(1-VLOOKUP(C23,ГОЛОВНА!K:L,2,0)), "-") -> 2376.05
A24: 96086796 | B24: Насос з сух.рот. ТРD 32-580/2-A-F-A-BAQE 400D 50HZ | C24: CB | F24: за запитом | G24: =IFERROR(F24*(1-VLOOKUP(C24,ГОЛОВНА!K:L,2,0)), "-") -> -
A25: 96086805 | B25: Насос з сух.рот. ТРD 32-320/2-A-F-B-BAQE 400D 50HZ | C25: CB | F25: за запитом | G25: =IFERROR(F25*(1-VLOOKUP(C25,ГОЛОВНА!K:L,2,0)), "-") -> -
A26: 96086848 | B26: Насос з сух.рот. ТРD 40-300/2-A-F-A-BAQE 400Y 50HZ | C26: CB | F26: 2425.5 | G26: =IFERROR(F26*(1-VLOOKUP(C26,ГОЛОВНА!K:L,2,0)), "-") -> 2425.5
A27: 96086858 | B27: Насос з сух.рот. ТРD 40-300/2-A-F-A-BQQE 400Y 50HZ | C27: CB | D27: FT | F27: 2425.5 | G27: =IFERROR(F27*(1-VLOOKUP(C27,ГОЛОВНА!K:L,2,0)), "-") -> 2425.5
A28: 96086883 | B28: Насос з сух.рот. ТР 40-100/4-A-F-A-BQQE 400Y 50HZ | C28: CB | D28: FT | F28: 938.75 | G28: =IFERROR(F28*(1-VLOOKUP(C28,ГОЛОВНА!K:L,2,0)), "-") -> 938.75
A29: 96086895 | B29: Насос з сух.рот. ТРD 40-100/4-A-F-A-BAQE 400Y 50HZ | C29: CB | F29: 1968.17 | G29: =IFERROR(F29*(1-VLOOKUP(C29,ГОЛОВНА!K:L,2,0)), "-") -> 1968.17
A30: 96086904 | B30: Насос з сух.рот. ТРD 40-100/4-A-F-B-BAQE 400Y 50HZ | C30: CB | F30: 2412 | G30: =IFERROR(F30*(1-VLOOKUP(C30,ГОЛОВНА!K:L,2,0)), "-") -> 2412
A31: 96086924 | B31: Насос з сух.рот. ТР 40-300/2-A-F-A-BQQE 400D 50HZ | C31: CB | D31: FT | F31: 1157.08 | G31: =IFERROR(F31*(1-VLOOKUP(C31,ГОЛОВНА!K:L,2,0)), "-") -> 1157.08
A32: 96086925 | B32: Насос з сух.рот. ТР 40-360/2-A-F-A-BQQE 400D 50HZ | C32: CB | D32: FT | F32: 1304.17 | G32: =IFERROR(F32*(1-VLOOKUP(C32,ГОЛОВНА!K:L,2,0)), "-") -> 1304.17
A33: 96086943 | B33: Насос з сух.рот. ТРD 40-240/2-A-F-A-BAQE 400D 50HZ | C33: CB | F33: 2288.47 | G33: =IFERROR(F33*(1-VLOOKUP(C33,ГОЛОВНА!K:L,2,0)), "-") -> 2288.47
A34: 96086944 | B34: Насос з сух.рот. ТРD 40-300/2-A-F-A-BAQE 400D 50HZ | C34: CB | F34: 2425.5 | G34: =IFERROR(F34*(1-VLOOKUP(C34,ГОЛОВНА!K:L,2,0)), "-") -> 2425.5
A35: 96086945 | B35: Насос з сух.рот. ТРD 40-360/2-A-F-A-BAQE 400D 50HZ | C35: CB | F35: за запитом | G35: =IFERROR(F35*(1-VLOOKUP(C35,ГОЛОВНА!K:L,2,0)), "-") -> -
A36: 96086995 | B36: Насос з сух.рот. ТР 50-160/2-A-F-A-BQQE 400Y 50HZ | C36: CB | D36: FT | F36: 965.53 | G36: =IFERROR(F36*(1-VLOOKUP(C36,ГОЛОВНА!K:L,2,0)), "-") -> 965.53
A37: 96086996 | B37: Насос з сух.рот. ТР 50-190/2-A-F-A-BQQE 400Y 50HZ | C37: CB | D37: FT | F37: 1045.58 | G37: =IFERROR(F37*(1-VLOOKUP(C37,ГОЛОВНА!K:L,2,0)), "-") -> 1045.58
A38: 96086997 | B38: Насос з сух.рот. ТР 50-240/2-A-F-A-BQQE 400Y 50HZ | C38: CB | D38: FT | F38: 1093.42 | G38: =IFERROR(F38*(1-VLOOKUP(C38,ГОЛОВНА!K:L,2,0)), "-") -> 1093.42
A39: 96087039 | B39: Насос з сух.рот. ТРD 50-160/2-A-F-A-BAQE 400Y 50HZ | C39: CB | F39: 2028.46 | G39: =IFERROR(F39*(1-VLOOKUP(C39,ГОЛОВНА!K:L,2,0)), "-") -> 2028.46
A40: 96087040 | B40: Насос з сух.рот. ТРD 50-190/2-A-F-A-BAQE 400Y 50HZ | C40: CB | F40: 2196.75 | G40: =IFERROR(F40*(1-VLOOKUP(C40,ГОЛОВНА!K:L,2,0)), "-") -> 2196.75
A41: 96087041 | B41: Насос з сух.рот. ТРD 50-240/2-A-F-A-BAQE 400Y 50HZ | C41: CB | F41: 2297.73 | G41: =IFERROR(F41*(1-VLOOKUP(C41,ГОЛОВНА!K:L,2,0)), "-") -> 2297.73
A42: 96087062 | B42: Насос з сух.рот. ТРD 50-190/2-A-F-A-BQQE 400Y 50HZ | C42: CB | D42: FT | F42: 2183.96 | G42: =IFERROR(F42*(1-VLOOKUP(C42,ГОЛОВНА!K:L,2,0)), "-") -> 2183.96
A43: 96087063 | B43: Насос з сух.рот. ТРD 50-240/2-A-F-A-BQQE 400Y 50HZ | C43: CB | D43: FT | F43: 2284.24 | G43: =IFERROR(F43*(1-VLOOKUP(C43,ГОЛОВНА!K:L,2,0)), "-") -> 2284.24
A44: 96087117 | B44: Насос з сух.рот. ТР 50-90/4-A-F-A-BQQE 400Y 50HZ | C44: CB | D44: FT | F44: 1006.26 | G44: =IFERROR(F44*(1-VLOOKUP(C44,ГОЛОВНА!K:L,2,0)), "-") -> 1006.26
A45: 96087121 | B45: Насос з сух.рот. ТР 50-190/4-A-F-A-BQQE 400Y 50HZ | C45: CB | D45: FT | F45: 1197.95 | G45: =IFERROR(F45*(1-VLOOKUP(C45,ГОЛОВНА!K:L,2,0)), "-") -> 1197.95
A46: 96087141 | B46: Насос з сух.рот. ТРD 50-90/4-A-F-A-BAQE 400Y 50HZ | C46: CB | F46: 2114.27 | G46: =IFERROR(F46*(1-VLOOKUP(C46,ГОЛОВНА!K:L,2,0)), "-") -> 2114.27
A47: 96087157 | B47: Насос з сух.рот. ТРD 50-190/4-A-F-A-BQQE 400Y 50HZ | C47: CB | D47: FT | F47: за запитом | G47: =IFERROR(F47*(1-VLOOKUP(C47,ГОЛОВНА!K:L,2,0)), "-") -> -
A48: 96087159 | B48: Насос з сух.рот. ТРD 50-90/4-A-F-B-BAQE 400Y 50HZ | C48: CB | F48: за запитом | G48: =IFERROR(F48*(1-VLOOKUP(C48,ГОЛОВНА!K:L,2,0)), "-") -> -
A49: 96087195 | B49: Насос з сух.рот. ТР 50-240/2-A-F-A-BQQE 400D 50HZ | C49: CB | D49: FT | F49: 1093.42 | G49: =IFERROR(F49*(1-VLOOKUP(C49,ГОЛОВНА!K:L,2,0)), "-") -> 1093.42
A50: 96087196 | B50: Насос з сух.рот. ТР 50-290/2-A-F-A-BQQE 400D 50HZ | C50: CB | D50: FT | F50: 1165.26 | G50: =IFERROR(F50*(1-VLOOKUP(C50,ГОЛОВНА!K:L,2,0)), "-") -> 1165.26
A51: 96087197 | B51: Насос з сух.рот. ТР 50-360/2-A-F-A-BQQE 400D 50HZ | C51: CB | D51: FT | F51: 1339.42 | G51: =IFERROR(F51*(1-VLOOKUP(C51,ГОЛОВНА!K:L,2,0)), "-") -> 1339.42
A52: 96087198 | B52: Насос з сух.рот. ТР 50-430/2-A-F-A-BQQE 400D 50HZ | C52: CB | D52: FT | F52: 1772.84 | G52: =IFERROR(F52*(1-VLOOKUP(C52,ГОЛОВНА!K:L,2,0)), "-") -> 1772.84
A53: 96087231 | B53: Насос з сух.рот. ТРD 50-240/2-A-F-A-BAQE 400D 50HZ | C53: CB | F53: 2297.73 | G53: =IFERROR(F53*(1-VLOOKUP(C53,ГОЛОВНА!K:L,2,0)), "-") -> 2297.73
A54: 96087232 | B54: Насос з сух.рот. ТРD 50-290/2-A-F-A-BAQE 400D 50HZ | C54: CB | F54: 2448.62 | G54: =IFERROR(F54*(1-VLOOKUP(C54,ГОЛОВНА!K:L,2,0)), "-") -> 2448.62
A55: 96087233 | B55: Насос з сух.рот. ТРD 50-360/2-A-F-A-BAQE 400D 50HZ | C55: CB | F55: за запитом | G55: =IFERROR(F55*(1-VLOOKUP(C55,ГОЛОВНА!K:L,2,0)), "-") -> -
A56: 96087277 | B56: Насос з сух.рот. ТРD 50-290/2-A-F-B-BQQE 400D 50HZ | C56: CB | D56: FT | F56: за запитом | G56: =IFERROR(F56*(1-VLOOKUP(C56,ГОЛОВНА!K:L,2,0)), "-") -> -
A57: 96087297 | B57: Насос з сух.рот. ТРD 50-190/4-A-F-A-BAQE 400D 50HZ | C57: CB | F57: за запитом | G57: =IFERROR(F57*(1-VLOOKUP(C57,ГОЛОВНА!K:L,2,0)), "-") -> -
A58: 96087298 | B58: Насос з сух.рот. ТРD 50-230/4-A-F-A-BAQE 400D 50HZ | C58: CB | F58: за запитом | G58: =IFERROR(F58*(1-VLOOKUP(C58,ГОЛОВНА!K:L,2,0)), "-") -> -
A59: 96087442 | B59: Насос з сух.рот. ТР 65-110/4-A-F-A-BQQE 400Y 50HZ | C59: CB | D59: FT | F59: 1176.16 | G59: =IFERROR(F59*(1-VLOOKUP(C59,ГОЛОВНА!K:L,2,0)), "-") -> 1176.16
A60: 96087443 | B60: Насос з сух.рот. ТР 65-130/4-A-F-A-BQQE 400Y 50HZ | C60: CB | D60: FT | F60: 1241.53 | G60: =IFERROR(F60*(1-VLOOKUP(C60,ГОЛОВНА!K:L,2,0)), "-") -> 1241.53
A61: 96087444 | B61: Насос з сух.рот. ТР 65-150/4-A-F-A-BQQE 400Y 50HZ | C61: CB | D61: FT | F61: 1346.21 | G61: =IFERROR(F61*(1-VLOOKUP(C61,ГОЛОВНА!K:L,2,0)), "-") -> 1346.21
A62: 96087465 | B62: Насос з сух.рот. ТРD 65-90/4-A-F-A-BAQE 400Y 50HZ | C62: CB | F62: 2379.84 | G62: =IFERROR(F62*(1-VLOOKUP(C62,ГОЛОВНА!K:L,2,0)), "-") -> 2379.84
A63: 96087466 | B63: Насос з сух.рот. ТРD 65-110/4-A-F-A-BAQE 400Y 50HZ | C63: CB | F63: 2471.37 | G63: =IFERROR(F63*(1-VLOOKUP(C63,ГОЛОВНА!K:L,2,0)), "-") -> 2471.37
A64: 96087467 | B64: Насос з сух.рот. ТРD 65-130/4-A-F-A-BAQE 400Y 50HZ | C64: CB | F64: за запитом | G64: =IFERROR(F64*(1-VLOOKUP(C64,ГОЛОВНА!K:L,2,0)), "-") -> -
A65: 96087468 | B65: Насос з сух.рот. ТРD 65-150/4-A-F-A-BAQE 400Y 50HZ | C65: CB | F65: за запитом | G65: =IFERROR(F65*(1-VLOOKUP(C65,ГОЛОВНА!K:L,2,0)), "-") -> -
A66: 96087477 | B66: Насос з сух.рот. ТРD 65-90/4-A-F-A-BQQE 400Y 50HZ | C66: CB | D66: FT | F66: 2368.55 | G66: =IFERROR(F66*(1-VLOOKUP(C66,ГОЛОВНА!K:L,2,0)), "-") -> 2368.55
A67: 96087479 | B67: Насос з сух.рот. ТРD 65-130/4-A-F-A-BQQE 400Y 50HZ | C67: CB | D67: FT | F67: за запитом | G67: =IFERROR(F67*(1-VLOOKUP(C67,ГОЛОВНА!K:L,2,0)), "-") -> -
A68: 96087524 | B68: Насос з сух.рот. ТР 65-340/2-A-F-A-BQQE 400D 50HZ | C68: CB | D68: FT | F68: 1807.74 | G68: =IFERROR(F68*(1-VLOOKUP(C68,ГОЛОВНА!K:L,2,0)), "-") -> 1807.74
A69: 96087525 | B69: Насос з сух.рот. ТР 65-410/2-A-F-A-BQQE 400D 50HZ | C69: CB | D69: FT | F69: 1895.05 | G69: =IFERROR(F69*(1-VLOOKUP(C69,ГОЛОВНА!K:L,2,0)), "-") -> 1895.05
A70: 96087526 | B70: Насос з сух.рот. ТР 65-460/2-A-F-A-BQQE 400D 50HZ | C70: CB | D70: FT | F70: за запитом | G70: =IFERROR(F70*(1-VLOOKUP(C70,ГОЛОВНА!K:L,2,0)), "-") -> -
A71: 96087627 | B71: Насос з сух.рот. ТР 65-150/4-A-F-A-BQQE 400D 50HZ | C71: CB | D71: FT | F71: 1346.21 | G71: =IFERROR(F71*(1-VLOOKUP(C71,ГОЛОВНА!K:L,2,0)), "-") -> 1346.21
A72: 96087628 | B72: Насос з сух.рот. ТР 65-170/4-A-F-A-BQQE 400D 50HZ | C72: CB | D72: FT | F72: 1404.95 | G72: =IFERROR(F72*(1-VLOOKUP(C72,ГОЛОВНА!K:L,2,0)), "-") -> 1404.95
A73: 96087629 | B73: Насос з сух.рот. ТР 65-240/4-A-F-A-BQQE 400D 50HZ | C73: CB | D73: FT | F73: 1613.53 | G73: =IFERROR(F73*(1-VLOOKUP(C73,ГОЛОВНА!K:L,2,0)), "-") -> 1613.53
A74: 96087639 | B74: Насос з сух.рот. ТРD 65-150/4-A-F-A-BAQE 400D 50HZ | C74: CB | F74: за запитом | G74: =IFERROR(F74*(1-VLOOKUP(C74,ГОЛОВНА!K:L,2,0)), "-") -> -
A75: 96087640 | B75: Насос з сух.рот. ТРD 65-170/4-A-F-A-BAQE 400D 50HZ | C75: CB | F75: за запитом | G75: =IFERROR(F75*(1-VLOOKUP(C75,ГОЛОВНА!K:L,2,0)), "-") -> -
A76: 96096283 | B76: Насос з сух.рот. ТРE 32-380/2-A-F-A-BAQE 3X400 50HZ | C76: CB | F76: за запитом | G76: =IFERROR(F76*(1-VLOOKUP(C76,ГОЛОВНА!K:L,2,0)), "-") -> -
A77: 96096284 | B77: Насос з сух.рот. ТРE 32-460/2-A-F-A-BAQE 3X400 50HZ | C77: CB | F77: за запитом | G77: =IFERROR(F77*(1-VLOOKUP(C77,ГОЛОВНА!K:L,2,0)), "-") -> -
A78: 96096293 | B78: Насос з сух.рот. ТРE 32-380/2-A-F-A-BQQE 3X400 50HZ | C78: CB | D78: FT | F78: за запитом | G78: =IFERROR(F78*(1-VLOOKUP(C78,ГОЛОВНА!K:L,2,0)), "-") -> -
A79: 96096294 | B79: Насос з сух.рот. ТРE 32-460/2-A-F-A-BQQE 3X400 50HZ | C79: CB | D79: FT | F79: за запитом | G79: =IFERROR(F79*(1-VLOOKUP(C79,ГОЛОВНА!K:L,2,0)), "-") -> -
A80: 96096298 | B80: Насос з сух.рот. ТРE 32-380/2-A-F-B-BAQE 3X400 50HZ | C80: CB | F80: за запитом | G80: =IFERROR(F80*(1-VLOOKUP(C80,ГОЛОВНА!K:L,2,0)), "-") -> -
A81: 96096299 | B81: Насос з сух.рот. ТРE 32-460/2-A-F-B-BAQE 3X400 50HZ | C81: CB | F81: за запитом | G81: =IFERROR(F81*(1-VLOOKUP(C81,ГОЛОВНА!K:L,2,0)), "-") -> -
A82: 96096308 | B82: Насос з сух.рот. ТРE 32-380/2-A-F-B-BQQE 3X400 50HZ | C82: CB | D82: FT | F82: за запитом | G82: =IFERROR(F82*(1-VLOOKUP(C82,ГОЛОВНА!K:L,2,0)), "-") -> -
A83: 96096309 | B83: Насос з сух.рот. ТРE 32-460/2-A-F-B-BQQE 3X400 50HZ | C83: CB | D83: FT | F83: за запитом | G83: =IFERROR(F83*(1-VLOOKUP(C83,ГОЛОВНА!K:L,2,0)), "-") -> -
A84: 96096415 | B84: Насос з сух.рот. ТРE 50-290/2-A-F-A-BAQE 3X400 50HZ | C84: CB | F84: за запитом | G84: =IFERROR(F84*(1-VLOOKUP(C84,ГОЛОВНА!K:L,2,0)), "-") -> -
A85: 96096416 | B85: Насос з сух.рот. ТРE 50-360/2-A-F-A-BAQE 3X400 50HZ | C85: CB | F85: за запитом | G85: =IFERROR(F85*(1-VLOOKUP(C85,ГОЛОВНА!K:L,2,0)), "-") -> -
A86: 96096435 | B86: Насос з сух.рот. ТРE 50-290/2-A-F-A-BQQE 3X400 50HZ | C86: CB | D86: FT | F86: за запитом | G86: =IFERROR(F86*(1-VLOOKUP(C86,ГОЛОВНА!K:L,2,0)), "-") -> -
A87: 96096436 | B87: Насос з сух.рот. ТРE 50-360/2-A-F-A-BQQE 3X400 50HZ | C87: CB | D87: FT | F87: за запитом | G87: =IFERROR(F87*(1-VLOOKUP(C87,ГОЛОВНА!K:L,2,0)), "-") -> -
A88: 96096445 | B88: Насос з сух.рот. ТРE 50-290/2-A-F-B-BAQE 3X400 50HZ | C88: CB | F88: за запитом | G88: =IFERROR(F88*(1-VLOOKUP(C88,ГОЛОВНА!K:L,2,0)), "-") -> -
A89: 96096465 | B89: Насос з сух.рот. ТРE 50-290/2-A-F-B-BQQE 3X400 50HZ | C89: CB | D89: FT | F89: за запитом | G89: =IFERROR(F89*(1-VLOOKUP(C89,ГОЛОВНА!K:L,2,0)), "-") -> -
A90: 96108450 | B90: Насос з сух.рот. ТР 80-330/2-A-F-A-BAQE 400Y 50HZ | C90: CB | F90: за запитом | G90: =IFERROR(F90*(1-VLOOKUP(C90,ГОЛОВНА!K:L,2,0)), "-") -> -
A91: 96108451 | B91: Насос з сух.рот. ТР 80-400/2-A-F-A-BAQE 400Y 50HZ | C91: CB | F91: за запитом | G91: =IFERROR(F91*(1-VLOOKUP(C91,ГОЛОВНА!K:L,2,0)), "-") -> -
A92: 96108465 | B92: Насос з сух.рот. ТР 80-140/2-A-F-A-BQQE 400Y 50HZ | C92: CB | D92: FT | F92: 1154.37 | G92: =IFERROR(F92*(1-VLOOKUP(C92,ГОЛОВНА!K:L,2,0)), "-") -> 1154.37
A93: 96108471 | B93: Насос з сух.рот. ТР 80-400/2-A-F-A-BQQE 400Y 50HZ | C93: CB | D93: FT | F93: за запитом | G93: =IFERROR(F93*(1-VLOOKUP(C93,ГОЛОВНА!K:L,2,0)), "-") -> -
A94: 96108515 | B94: Насос з сух.рот. ТРD 80-140/2-A-F-A-BAQE 400Y 50HZ | C94: CB | F94: 2398.55 | G94: =IFERROR(F94*(1-VLOOKUP(C94,ГОЛОВНА!K:L,2,0)), "-") -> 2398.55
A95: 96108535 | B95: Насос з сух.рот. ТРD 80-140/2-A-F-A-BQQE 400Y 50HZ | C95: CB | D95: FT | F95: 2398.55 | G95: =IFERROR(F95*(1-VLOOKUP(C95,ГОЛОВНА!K:L,2,0)), "-") -> 2398.55
A96: 96108536 | B96: Насос з сух.рот. ТРD 80-180/2-A-F-A-BQQE 400Y 50HZ | C96: CB | D96: FT | F96: за запитом | G96: =IFERROR(F96*(1-VLOOKUP(C96,ГОЛОВНА!K:L,2,0)), "-") -> -
A97: 96108585 | B97: Насос з сух.рот. ТР 80-70/4-A-F-A-BAQE 400Y 50HZ | C97: CB | F97: 1197.95 | G97: =IFERROR(F97*(1-VLOOKUP(C97,ГОЛОВНА!K:L,2,0)), "-") -> 1197.95
A98: 96108586 | B98: Насос з сух.рот. ТР 80-90/4-A-F-A-BAQE 400Y 50HZ | C98: CB | F98: 1263.32 | G98: =IFERROR(F98*(1-VLOOKUP(C98,ГОЛОВНА!K:L,2,0)), "-") -> 1263.32
A99: 96108601 | B99: Насос з сух.рот. ТР 80-70/4-A-F-A-BQQE 400Y 50HZ | C99: CB | D99: FT | F99: 1197.95 | G99: =IFERROR(F99*(1-VLOOKUP(C99,ГОЛОВНА!K:L,2,0)), "-") -> 1197.95
A100: 96108602 | B100: Насос з сух.рот. ТР 80-90/4-A-F-A-BQQE 400Y 50HZ | C100: CB | D100: FT | F100: 1263.32 | G100: =IFERROR(F100*(1-VLOOKUP(C100,ГОЛОВНА!K:L,2,0)), "-") -> 1263.32
A101: 96108603 | B101: Насос з сух.рот. ТР 80-110/4-A-F-A-BQQE 400Y 50HZ | C101: CB | D101: FT | F101: 1372.11 | G101: =IFERROR(F101*(1-VLOOKUP(C101,ГОЛОВНА!K:L,2,0)), "-") -> 1372.11
A102: 96108604 | B102: Насос з сух.рот. ТР 80-150/4-A-F-A-BQQE 400Y 50HZ | C102: CB | D102: FT | F102: 1437.63 | G102: =IFERROR(F102*(1-VLOOKUP(C102,ГОЛОВНА!K:L,2,0)), "-") -> 1437.63
A103: 96108617 | B103: Насос з сух.рот. ТР 80-70/4-A-F-B-BAQE 400Y 50HZ | C103: CB | F103: 1504.58 | G103: =IFERROR(F103*(1-VLOOKUP(C103,ГОЛОВНА!K:L,2,0)), "-") -> 1504.58
A104: 96108618 | B104: Насос з сух.рот. ТР 80-90/4-A-F-B-BAQE 400Y 50HZ | C104: CB | F104: 1569.95 | G104: =IFERROR(F104*(1-VLOOKUP(C104,ГОЛОВНА!K:L,2,0)), "-") -> 1569.95
A105: 96108641 | B105: Насос з сух.рот. ТРD 80-70/4-A-F-A-BAQE 400Y 50HZ | C105: CB | F105: 2489.27 | G105: =IFERROR(F105*(1-VLOOKUP(C105,ГОЛОВНА!K:L,2,0)), "-") -> 2489.27
A106: 96108642 | B106: Насос з сух.рот. ТРD 80-90/4-A-F-A-BAQE 400Y 50HZ | C106: CB | F106: за запитом | G106: =IFERROR(F106*(1-VLOOKUP(C106,ГОЛОВНА!K:L,2,0)), "-") -> -
A107: 96108643 | B107: Насос з сух.рот. ТРD 80-110/4-A-F-A-BAQE 400Y 50HZ | C107: CB | F107: за запитом | G107: =IFERROR(F107*(1-VLOOKUP(C107,ГОЛОВНА!K:L,2,0)), "-") -> -
A108: 96108658 | B108: Насос з сух.рот. ТРD 80-90/4-A-F-A-BQQE 400Y 50HZ | C108: CB | D108: FT | F108: за запитом | G108: =IFERROR(F108*(1-VLOOKUP(C108,ГОЛОВНА!K:L,2,0)), "-") -> -
A109: 96108702 | B109: Насос з сух.рот. ТР 80-330/2-A-F-A-BAQE 400D 50HZ | C109: CB | F109: за запитом | G109: =IFERROR(F109*(1-VLOOKUP(C109,ГОЛОВНА!K:L,2,0)), "-") -> -
A110: 96108703 | B110: Насос з сух.рот. ТР 80-400/2-A-F-A-BAQE 400D 50HZ | C110: CB | F110: за запитом | G110: =IFERROR(F110*(1-VLOOKUP(C110,ГОЛОВНА!K:L,2,0)), "-") -> -
A111: 96108718 | B111: Насос з сух.рот. ТР 80-180/2-A-F-A-BQQE 400D 50HZ | C111: CB | D111: FT | F111: 1263.32 | G111: =IFERROR(F111*(1-VLOOKUP(C111,ГОЛОВНА!K:L,2,0)), "-") -> 1263.32
A112: 96108719 | B112: Насос з сух.рот. ТР 80-210/2-A-F-A-BQQE 400D 50HZ | C112: CB | D112: FT | F112: 1417.58 | G112: =IFERROR(F112*(1-VLOOKUP(C112,ГОЛОВНА!K:L,2,0)), "-") -> 1417.58
A113: 96108720 | B113: Насос з сух.рот. ТР 80-240/2-A-F-A-BQQE 400D 50HZ | C113: CB | D113: FT | F113: 1497.63 | G113: =IFERROR(F113*(1-VLOOKUP(C113,ГОЛОВНА!K:L,2,0)), "-") -> 1497.63
A114: 96108721 | B114: Насос з сух.рот. ТР 80-250/2-A-F-A-BQQE 400D 50HZ | C114: CB | D114: FT | F114: 1938.63 | G114: =IFERROR(F114*(1-VLOOKUP(C114,ГОЛОВНА!K:L,2,0)), "-") -> 1938.63
A115: 96108722 | B115: Насос з сух.рот. ТР 80-330/2-A-F-A-BQQE 400D 50HZ | C115: CB | D115: FT | F115: за запитом | G115: =IFERROR(F115*(1-VLOOKUP(C115,ГОЛОВНА!K:L,2,0)), "-") -> -
A116: 96108723 | B116: Насос з сух.рот. ТР 80-400/2-A-F-A-BQQE 400D 50HZ | C116: CB | D116: FT | F116: за запитом | G116: =IFERROR(F116*(1-VLOOKUP(C116,ГОЛОВНА!K:L,2,0)), "-") -> -
A117: 96108724 | B117: Насос з сух.рот. ТР 80-520/2-A-F-A-BQQE 400D 50HZ | C117: CB | D117: FT | F117: за запитом | G117: =IFERROR(F117*(1-VLOOKUP(C117,ГОЛОВНА!K:L,2,0)), "-") -> -
A118: 96108742 | B118: Насос з сух.рот. ТР 80-330/2-A-F-B-BAQE 400D 50HZ | C118: CB | F118: за запитом | G118: =IFERROR(F118*(1-VLOOKUP(C118,ГОЛОВНА!K:L,2,0)), "-") -> -
A119: 96108743 | B119: Насос з сух.рот. ТР 80-400/2-A-F-B-BAQE 400D 50HZ | C119: CB | F119: за запитом | G119: =IFERROR(F119*(1-VLOOKUP(C119,ГОЛОВНА!K:L,2,0)), "-") -> -
A120: 96108767 | B120: Насос з сух.рот. ТРD 80-140/2-A-F-A-BAQE 400D 50HZ | C120: CB | F120: 2398.55 | G120: =IFERROR(F120*(1-VLOOKUP(C120,ГОЛОВНА!K:L,2,0)), "-") -> 2398.55
A121: 96108768 | B121: Насос з сух.рот. ТРD 80-180/2-A-F-A-BAQE 400D 50HZ | C121: CB | F121: за запитом | G121: =IFERROR(F121*(1-VLOOKUP(C121,ГОЛОВНА!K:L,2,0)), "-") -> -
A122: 96108769 | B122: Насос з сух.рот. ТРD 80-210/2-A-F-A-BAQE 400D 50HZ | C122: CB | F122: за запитом | G122: =IFERROR(F122*(1-VLOOKUP(C122,ГОЛОВНА!K:L,2,0)), "-") -> -
A123: 96108788 | B123: Насос з сух.рот. ТРD 80-180/2-A-F-A-BQQE 400D 50HZ | C123: CB | D123: FT | F123: за запитом | G123: =IFERROR(F123*(1-VLOOKUP(C123,ГОЛОВНА!K:L,2,0)), "-") -> -
A124: 96108789 | B124: Насос з сух.рот. ТРD 80-210/2-A-F-A-BQQE 400D 50HZ | C124: CB | D124: FT | F124: за запитом | G124: =IFERROR(F124*(1-VLOOKUP(C124,ГОЛОВНА!K:L,2,0)), "-") -> -
A125: 96108790 | B125: Насос з сух.рот. ТРD 80-240/2-A-F-A-BQQE 400D 50HZ | C125: CB | D125: FT | F125: за запитом | G125: =IFERROR(F125*(1-VLOOKUP(C125,ГОЛОВНА!K:L,2,0)), "-") -> -
A126: 96108842 | B126: Насос з сух.рот. ТР 80-340/4-A-F-A-BAQE 400D 50HZ | C126: CB | F126: за запитом | G126: =IFERROR(F126*(1-VLOOKUP(C126,ГОЛОВНА!K:L,2,0)), "-") -> -
A127: 96108849 | B127: Насос з сух.рот. ТР 80-110/4-A-F-A-BQQE 400D 50HZ | C127: CB | D127: FT | F127: 1372.11 | G127: =IFERROR(F127*(1-VLOOKUP(C127,ГОЛОВНА!K:L,2,0)), "-") -> 1372.11
A128: 96108850 | B128: Насос з сух.рот. ТР 80-150/4-A-F-A-BQQE 400D 50HZ | C128: CB | D128: FT | F128: 1437.63 | G128: =IFERROR(F128*(1-VLOOKUP(C128,ГОЛОВНА!K:L,2,0)), "-") -> 1437.63
A129: 96108851 | B129: Насос з сух.рот. ТР 80-170/4-A-F-A-BQQE 400D 50HZ | C129: CB | D129: FT | F129: 1807.74 | G129: =IFERROR(F129*(1-VLOOKUP(C129,ГОЛОВНА!K:L,2,0)), "-") -> 1807.74
A130: 96108852 | B130: Насос з сух.рот. ТР 80-240/4-A-F-A-BQQE 400D 50HZ | C130: CB | D130: FT | F130: 2070.32 | G130: =IFERROR(F130*(1-VLOOKUP(C130,ГОЛОВНА!K:L,2,0)), "-") -> 2070.32
A131: 96108853 | B131: Насос з сух.рот. ТР 80-270/4-A-F-A-BQQE 400D 50HZ | C131: CB | D131: FT | F131: 2232.95 | G131: =IFERROR(F131*(1-VLOOKUP(C131,ГОЛОВНА!K:L,2,0)), "-") -> 2232.95
A132: 96108865 | B132: Насос з сух.рот. ТР 80-270/4-A-F-B-BAQE 400D 50HZ | C132: CB | F132: за запитом | G132: =IFERROR(F132*(1-VLOOKUP(C132,ГОЛОВНА!K:L,2,0)), "-") -> -
A133: 96108879 | B133: Насос з сух.рот. ТРD 80-110/4-A-F-A-BAQE 400D 50HZ | C133: CB | F133: за запитом | G133: =IFERROR(F133*(1-VLOOKUP(C133,ГОЛОВНА!K:L,2,0)), "-") -> -
A134: 96108880 | B134: Насос з сух.рот. ТРD 80-150/4-A-F-A-BAQE 400D 50HZ | C134: CB | F134: за запитом | G134: =IFERROR(F134*(1-VLOOKUP(C134,ГОЛОВНА!K:L,2,0)), "-") -> -
A135: 96108891 | B135: Насос з сух.рот. ТРD 80-110/4-A-F-A-BQQE 400D 50HZ | C135: CB | D135: FT | F135: за запитом | G135: =IFERROR(F135*(1-VLOOKUP(C135,ГОЛОВНА!K:L,2,0)), "-") -> -
A136: 96108892 | B136: Насос з сух.рот. ТРD 80-150/4-A-F-A-BQQE 400D 50HZ | C136: CB | D136: FT | F136: за запитом | G136: =IFERROR(F136*(1-VLOOKUP(C136,ГОЛОВНА!K:L,2,0)), "-") -> -
A137: 96109035 | B137: Насос з сух.рот. ТР 100-110/4-A-F-A-BAQE 400Y 50HZ | C137: CB | F137: 1770.98 | G137: =IFERROR(F137*(1-VLOOKUP(C137,ГОЛОВНА!K:L,2,0)), "-") -> 1770.98
A138: 96109054 | B138: Насос з сух.рот. ТР 100-90/4-A-F-A-BQQE 400Y 50HZ | C138: CB | D138: FT | F138: 1662.87 | G138: =IFERROR(F138*(1-VLOOKUP(C138,ГОЛОВНА!K:L,2,0)), "-") -> 1662.87
A139: 96109124 | B139: Насос з сух.рот. ТРD 100-90/4-A-F-A-BQQE 400Y 50HZ | C139: CB | D139: FT | F139: за запитом | G139: =IFERROR(F139*(1-VLOOKUP(C139,ГОЛОВНА!K:L,2,0)), "-") -> -
A140: 96109189 | B140: Насос з сух.рот. ТР 100-160/2-A-F-A-BQQE 400D 50HZ | C140: CB | D140: FT | F140: 1269.48 | G140: =IFERROR(F140*(1-VLOOKUP(C140,ГОЛОВНА!K:L,2,0)), "-") -> 1269.48
A141: 96109190 | B141: Насос з сух.рот. ТР 100-200/2-A-F-A-BQQE 400D 50HZ | C141: CB | D141: FT | F141: 1596.96 | G141: =IFERROR(F141*(1-VLOOKUP(C141,ГОЛОВНА!K:L,2,0)), "-") -> 1596.96
A142: 96109191 | B142: Насос з сух.рот. ТР 100-240/2-A-F-A-BQQE 400D 50HZ | C142: CB | D142: FT | F142: 1662.87 | G142: =IFERROR(F142*(1-VLOOKUP(C142,ГОЛОВНА!K:L,2,0)), "-") -> 1662.87
A143: 96109192 | B143: Насос з сух.рот. ТР 100-250/2-A-F-A-BQQE 400D 50HZ | C143: CB | D143: FT | F143: за запитом | G143: =IFERROR(F143*(1-VLOOKUP(C143,ГОЛОВНА!K:L,2,0)), "-") -> -
A144: 96109193 | B144: Насос з сух.рот. ТР 100-310/2-A-F-A-BQQE 400D 50HZ | C144: CB | D144: FT | F144: за запитом | G144: =IFERROR(F144*(1-VLOOKUP(C144,ГОЛОВНА!K:L,2,0)), "-") -> -
A145: 96109195 | B145: Насос з сух.рот. ТР 100-390/2-A-F-A-BQQE 400D 50HZ | C145: CB | D145: FT | F145: за запитом | G145: =IFERROR(F145*(1-VLOOKUP(C145,ГОЛОВНА!K:L,2,0)), "-") -> -
A146: 96109229 | B146: Насос з сух.рот. ТРD 100-160/2-A-F-A-BAQE 400D 50HZ | C146: CB | F146: за запитом | G146: =IFERROR(F146*(1-VLOOKUP(C146,ГОЛОВНА!K:L,2,0)), "-") -> -
A147: 96109286 | B147: Насос з сух.рот. ТР 100-110/4-A-F-A-BAQE 400D 50HZ | C147: CB | F147: 1770.98 | G147: =IFERROR(F147*(1-VLOOKUP(C147,ГОЛОВНА!K:L,2,0)), "-") -> 1770.98
A148: 96109303 | B148: Насос з сух.рот. ТР 100-90/4-A-F-A-BQQE 400D 50HZ | C148: CB | D148: FT | F148: 1662.87 | G148: =IFERROR(F148*(1-VLOOKUP(C148,ГОЛОВНА!K:L,2,0)), "-") -> 1662.87
A149: 96109304 | B149: Насос з сух.рот. ТР 100-110/4-A-F-A-BQQE 400D 50HZ | C149: CB | D149: FT | F149: 1770.98 | G149: =IFERROR(F149*(1-VLOOKUP(C149,ГОЛОВНА!K:L,2,0)), "-") -> 1770.98
A150: 96109305 | B150: Насос з сух.рот. ТР 100-130/4-A-F-A-BQQE 400D 50HZ | C150: CB | D150: FT | F150: за запитом | G150: =IFERROR(F150*(1-VLOOKUP(C150,ГОЛОВНА!K:L,2,0)), "-") -> -
A151: 96109306 | B151: Насос з сух.рот. ТР 100-170/4-A-F-A-BQQE 400D 50HZ | C151: CB | D151: FT | F151: за запитом | G151: =IFERROR(F151*(1-VLOOKUP(C151,ГОЛОВНА!K:L,2,0)), "-") -> -
A152: 96109307 | B152: Насос з сух.рот. ТР 100-200/4-A-F-A-BQQE 400D 50HZ | C152: CB | D152: FT | F152: за запитом | G152: =IFERROR(F152*(1-VLOOKUP(C152,ГОЛОВНА!K:L,2,0)), "-") -> -
A153: 96109367 | B153: Насос з сух.рот. ТРD 100-110/4-A-F-A-BQQE 400D 50HZ | C153: CB | D153: FT | F153: за запитом | G153: =IFERROR(F153*(1-VLOOKUP(C153,ГОЛОВНА!K:L,2,0)), "-") -> -
A154: 96109368 | B154: Насос з сух.рот. ТРD 100-130/4-A-F-A-BQQE 400D 50HZ | C154: CB | D154: FT | F154: за запитом | G154: =IFERROR(F154*(1-VLOOKUP(C154,ГОЛОВНА!K:L,2,0)), "-") -> -
A155: 96109369 | B155: Насос з сух.рот. ТРD 100-170/4-A-F-A-BQQE 400D 50HZ | C155: CB | D155: FT | F155: за запитом | G155: =IFERROR(F155*(1-VLOOKUP(C155,ГОЛОВНА!K:L,2,0)), "-") -> -
A156: 96109370 | B156: Насос з сух.рот. ТРD 100-200/4-A-F-A-BQQE 400D 50HZ | C156: CB | D156: FT | F156: за запитом | G156: =IFERROR(F156*(1-VLOOKUP(C156,ГОЛОВНА!K:L,2,0)), "-") -> -
A157: 96109540 | B157: Насос з сух.рот. ТР 125-130/4-A-F-A-BQQE 400D 50HZ | C157: CB | D157: FT | F157: за запитом | G157: =IFERROR(F157*(1-VLOOKUP(C157,ГОЛОВНА!K:L,2,0)), "-") -> -
A158: 96109541 | B158: Насос з сух.рот. ТР 125-160/4-A-F-A-BQQE 400D 50HZ | C158: CB | D158: FT | F158: за запитом | G158: =IFERROR(F158*(1-VLOOKUP(C158,ГОЛОВНА!K:L,2,0)), "-") -> -
A159: 96109596 | B159: Насос з сух.рот. ТРD 125-130/4-A-F-A-BQQE 400D 50HZ | C159: CB | D159: FT | F159: за запитом | G159: =IFERROR(F159*(1-VLOOKUP(C159,ГОЛОВНА!K:L,2,0)), "-") -> -
A160: 96109871 | B160: Насос з сух.рот. ТР 150-200/4-A-F-A-BQQE 400D 50HZ | C160: CB | D160: FT | F160: за запитом | G160: =IFERROR(F160*(1-VLOOKUP(C160,ГОЛОВНА!K:L,2,0)), "-") -> -
A161: 96110042 | B161: Насос з сух.рот. ТРE 80-180/2-A-F-A-BAQE 3X400 50HZ | C161: CB | F161: за запитом | G161: =IFERROR(F161*(1-VLOOKUP(C161,ГОЛОВНА!K:L,2,0)), "-") -> -
A162: 96110170 | B162: Насос з сух.рот. ТРE 80-150/4-A-F-A-BAQE 3X400 50HZ | C162: CB | F162: за запитом | G162: =IFERROR(F162*(1-VLOOKUP(C162,ГОЛОВНА!K:L,2,0)), "-") -> -
A163: 96110279 | B163: Насос з сух.рот. ТРE 100-160/2-A-F-A-BAQE 3X400 50HZ | C163: CB | F163: за запитом | G163: =IFERROR(F163*(1-VLOOKUP(C163,ГОЛОВНА!K:L,2,0)), "-") -> -
A164: 96110377 | B164: Насос з сух.рот. ТРE 100-70/4-A-F-A-BAQE 3X400 50HZ | C164: CB | F164: за запитом | G164: =IFERROR(F164*(1-VLOOKUP(C164,ГОЛОВНА!K:L,2,0)), "-") -> -
A165: 96384279 | B165: Насос з сух.рот. ТРD 50-190/2-A-F-A-BAQE 1X230 50HZ | C165: CB | F165: за запитом | G165: =IFERROR(F165*(1-VLOOKUP(C165,ГОЛОВНА!K:L,2,0)), "-") -> -
A166: 96384280 | B166: Насос з сух.рот. ТРD 50-190/2-A-F-A-BQQE 1X230 50HZ | C166: CB | D166: FT | F166: за запитом | G166: =IFERROR(F166*(1-VLOOKUP(C166,ГОЛОВНА!K:L,2,0)), "-") -> -
A167: 96384306 | B167: Насос з сух.рот. ТР 80-90/4-A-F-A-BAQE 1X230 50HZ | C167: CB | F167: 1362.79 | G167: =IFERROR(F167*(1-VLOOKUP(C167,ГОЛОВНА!K:L,2,0)), "-") -> 1362.79
A168: 97851333 | B168: Насос з сух.рот. ТР 80-120/2-A-F-A-BQQE 400Y 50HZ | C168: CB | D168: FT | F168: 1325.68 | G168: =IFERROR(F168*(1-VLOOKUP(C168,ГОЛОВНА!K:L,2,0)), "-") -> 1325.68
A169: 97851334 | B169: Насос з сух.рот. ТР 40-120/2-A-F-A-BQQE 400Y 50HZ | C169: CB | D169: FT | F169: 702.38 | G169: =IFERROR(F169*(1-VLOOKUP(C169,ГОЛОВНА!K:L,2,0)), "-") -> 702.38
A170: 97897469 | B170: Насос з сух.рот. ТР 32-150/2-A-F-A-BQQE 400Y 50HZ | C170: CB | D170: FT | F170: 622.07 | G170: =IFERROR(F170*(1-VLOOKUP(C170,ГОЛОВНА!K:L,2,0)), "-") -> 622.07
A171: 98066916 | B171: Насос з сух.рот. ТР 40-230/2-A-F-A-BQQE 400Y 50HZ | C171: CB | D171: FT | F171: 873.36 | G171: =IFERROR(F171*(1-VLOOKUP(C171,ГОЛОВНА!K:L,2,0)), "-") -> 873.36
A172: 98076621 | B172: Насос з сух.рот. ТРE 25-90/2-A-O-A-BQQE 1X230 50HZ | C172: CB | D172: FT | F172: 1096.54 | G172: =IFERROR(F172*(1-VLOOKUP(C172,ГОЛОВНА!K:L,2,0)), "-") -> 1096.54
A173: 98083077 | B173: Насос з сух.рот. ТРD 40-120/2-A-F-A-BQQE 400Y 50HZ | C173: CB | D173: FT | F173: 1428.97 | G173: =IFERROR(F173*(1-VLOOKUP(C173,ГОЛОВНА!K:L,2,0)), "-") -> 1428.97
A174: 98112498 | B174: Насос з сух.рот. ТРE 32-80/2-A-O-A-BQQE 1X230 50HZ | C174: CB | D174: FT | F174: 1087.52 | G174: =IFERROR(F174*(1-VLOOKUP(C174,ГОЛОВНА!K:L,2,0)), "-") -> 1087.52
A175: 98112501 | B175: Насос з сух.рот. ТРE 32-90/2-A-O-A-BQQE 1X230 50HZ | C175: CB | D175: FT | F175: 1154.42 | G175: =IFERROR(F175*(1-VLOOKUP(C175,ГОЛОВНА!K:L,2,0)), "-") -> 1154.42
A176: 98112523 | B176: Насос з сух.рот. ТРE 32-250/2-A-F-B-BAQE 3X400 50HZ | C176: CB | F176: 2271.75 | G176: =IFERROR(F176*(1-VLOOKUP(C176,ГОЛОВНА!K:L,2,0)), "-") -> 2271.75
A177: 98112534 | B177: Насос з сух.рот. ТРE 32-250/2-A-F-A-BAQE 3X400 50HZ | C177: CB | F177: 2075.96 | G177: =IFERROR(F177*(1-VLOOKUP(C177,ГОЛОВНА!K:L,2,0)), "-") -> 2075.96
A178: 98112536 | B178: Насос з сух.рот. ТРE 32-250/2-A-F-A-BQQE 3X400 50HZ | C178: CB | D178: FT | F178: 2075.96 | G178: =IFERROR(F178*(1-VLOOKUP(C178,ГОЛОВНА!K:L,2,0)), "-") -> 2075.96
A179: 98112538 | B179: Насос з сух.рот. ТРE 32-250/2-S-A-F-A-BAQE 3X400 50HZ | C179: CB | F179: за запитом | G179: =IFERROR(F179*(1-VLOOKUP(C179,ГОЛОВНА!K:L,2,0)), "-") -> -
A180: 98112539 | B180: Насос з сух.рот. ТРE 32-250/2-S-A-F-A-BQQE 3X400 50HZ | C180: CB | D180: FT | F180: за запитом | G180: =IFERROR(F180*(1-VLOOKUP(C180,ГОЛОВНА!K:L,2,0)), "-") -> -
A181: 98112549 | B181: Насос з сух.рот. ТРED 32-320/2-A-F-A-BAQE 3X400 50HZ | C181: CB | F181: за запитом | G181: =IFERROR(F181*(1-VLOOKUP(C181,ГОЛОВНА!K:L,2,0)), "-") -> -
A182: 98112556 | B182: Насос з сух.рот. ТРE 32-320/2-A-F-A-BAQE 3X400 50HZ | C182: CB | F182: 2355.09 | G182: =IFERROR(F182*(1-VLOOKUP(C182,ГОЛОВНА!K:L,2,0)), "-") -> 2355.09
A183: 98112558 | B183: Насос з сух.рот. ТРE 32-320/2-A-F-A-BQQE 3X400 50HZ | C183: CB | D183: FT | F183: 2355.09 | G183: =IFERROR(F183*(1-VLOOKUP(C183,ГОЛОВНА!K:L,2,0)), "-") -> 2355.09
A184: 98112560 | B184: Насос з сух.рот. ТРE 32-320/2-S-A-F-A-BQQE 3X400 50HZ | C184: CB | D184: FT | F184: за запитом | G184: =IFERROR(F184*(1-VLOOKUP(C184,ГОЛОВНА!K:L,2,0)), "-") -> -
A185: 98112562 | B185: Насос з сух.рот. ТРE 32-320/2-S-A-F-A-BAQE 3X400 50HZ | C185: CB | F185: за запитом | G185: =IFERROR(F185*(1-VLOOKUP(C185,ГОЛОВНА!K:L,2,0)), "-") -> -
A186: 98119685 | B186: Насос з сух.рот. ТР 40-60/4-A-F-A-BQQE 400Y 50HZ | C186: CB | D186: FT | F186: 678.11 | G186: =IFERROR(F186*(1-VLOOKUP(C186,ГОЛОВНА!K:L,2,0)), "-") -> 678.11
A187: 98122409 | B187: Насос з сух.рот. ТР 40-60/2-A-F-A-BQQE 400Y 50HZ | C187: CB | D187: FT | F187: 569.14 | G187: =IFERROR(F187*(1-VLOOKUP(C187,ГОЛОВНА!K:L,2,0)), "-") -> 569.14
A188: 98133646 | B188: Насос з сух.рот. ТР 40-270/2-A-F-A-BQQE 400Y 50HZ | C188: CB | D188: FT | F188: 948.93 | G188: =IFERROR(F188*(1-VLOOKUP(C188,ГОЛОВНА!K:L,2,0)), "-") -> 948.93
A189: 98133648 | B189: Насос з сух.рот. ТР 50-180/2-A-F-A-BQQE 400Y 50HZ | C189: CB | D189: FT | F189: 953.19 | G189: =IFERROR(F189*(1-VLOOKUP(C189,ГОЛОВНА!K:L,2,0)), "-") -> 953.19
A190: 98133671 | B190: Насос з сух.рот. ТР 40-180/2-A-F-A-BQQE 400Y 50HZ | C190: CB | D190: FT | F190: 822.63 | G190: =IFERROR(F190*(1-VLOOKUP(C190,ГОЛОВНА!K:L,2,0)), "-") -> 822.63
A191: 98173086 | B191: Насос з сух.рот. ТРD 40-190/2-A-F-A-BQQE 400Y 50HZ | C191: CB | D191: FT | F191: 1724.57 | G191: =IFERROR(F191*(1-VLOOKUP(C191,ГОЛОВНА!K:L,2,0)), "-") -> 1724.57
A192: 98179119 | B192: Насос з сух.рот. ТР 50-180/2-A-F-A-BQQE 1X230 50HZ | C192: CB | D192: FT | F192: 1055.12 | G192: =IFERROR(F192*(1-VLOOKUP(C192,ГОЛОВНА!K:L,2,0)), "-") -> 1055.12
A193: 98182027 | B193: Насос з сух.рот. ТР 50-60/2-A-F-A-BQQE 400Y 50HZ | C193: CB | D193: FT | F193: 701.79 | G193: =IFERROR(F193*(1-VLOOKUP(C193,ГОЛОВНА!K:L,2,0)), "-") -> 701.79
A194: 98182511 | B194: Насос з сух.рот. ТР 80-60/4-A-F-A-BQQE 400Y 50HZ | C194: CB | D194: FT | F194: 1285.91 | G194: =IFERROR(F194*(1-VLOOKUP(C194,ГОЛОВНА!K:L,2,0)), "-") -> 1285.91
A195: 98278909 | B195: Насос з сух.рот. ТР 32-230/2-A-F-A-BQQE 400Y 50HZ | C195: CB | D195: FT | F195: 772.76 | G195: =IFERROR(F195*(1-VLOOKUP(C195,ГОЛОВНА!K:L,2,0)), "-") -> 772.76
A196: 98279255 | B196: Насос з сух.рот. ТР 50-120/2-A-F-A-BQQE 400Y 50HZ | C196: CB | D196: FT | F196: 849.72 | G196: =IFERROR(F196*(1-VLOOKUP(C196,ГОЛОВНА!K:L,2,0)), "-") -> 849.72
A197: 98281476 | B197: Насос з сух.рот. ТР 25-50/2-A-O-A-BQQE 400Y 50HZ | C197: CB | D197: FT | F197: 326.61 | G197: =IFERROR(F197*(1-VLOOKUP(C197,ГОЛОВНА!K:L,2,0)), "-") -> 326.61
A198: 98282096 | B198: Насос з сух.рот. ТР 25-80/2-A-O-A-BQQE 400Y 50HZ | C198: CB | D198: FT | F198: 365.03 | G198: =IFERROR(F198*(1-VLOOKUP(C198,ГОЛОВНА!K:L,2,0)), "-") -> 365.03
A199: 98282120 | B199: Насос з сух.рот. ТР 32-50/2-A-O-A-BQQE 400Y 50HZ | C199: CB | D199: FT | F199: 392.98 | G199: =IFERROR(F199*(1-VLOOKUP(C199,ГОЛОВНА!K:L,2,0)), "-") -> 392.98
A200: 98282133 | B200: Насос з сух.рот. ТР 25-90/2-A-O-A-BQQE 400Y 50HZ | C200: CB | D200: FT | F200: 399.96 | G200: =IFERROR(F200*(1-VLOOKUP(C200,ГОЛОВНА!K:L,2,0)), "-") -> 399.96
A201: 98282166 | B201: Насос з сух.рот. ТР 32-80/2-A-O-A-BQQE 400Y 50HZ | C201: CB | D201: FT | F201: 417.42 | G201: =IFERROR(F201*(1-VLOOKUP(C201,ГОЛОВНА!K:L,2,0)), "-") -> 417.42
... 269 more rows

Sheet NB (E), NK (E)
A1: АРТИКУЛ | B1: НАЙМЕНУВАННЯ (УКР) | C1: PRICE GROUP | D1: ДОСТАВКА | E1: ДОДАТКОВО | F1: ЦІНА (ЕВРО БЕЗ ПДВ) | G1: ЦІНА ЗІ ЗНИЖКОЮ | H1: НА ГОЛОВНУ
A2: NB (E), NK (E) | G2: Насоси для водопостачання, пожежогасіння та промисловості
A3: 98149345 | B3: NB100-200/195 A-F2-A-BQQE | C3: CW | D3: FT | F3: за запитом | G3: =IFERROR(F3*(1-VLOOKUP(C3,ГОЛОВНА!K:L,2,0)), "-") -> -
A4: 98052673 | B4: NB32-125.1/110 A-F2-A-BQQE | C4: CW | D4: FT | F4: 1048.070175 | G4: =IFERROR(F4*(1-VLOOKUP(C4,ГОЛОВНА!K:L,2,0)), "-") -> 1048.070175
A5: 98124465 | B5: NB32-125.1/121 A-F2-A-BQQE | C5: CW | D5: FT | F5: 1099.298246 | G5: =IFERROR(F5*(1-VLOOKUP(C5,ГОЛОВНА!K:L,2,0)), "-") -> 1099.298246
A6: 98042368 | B6: NB32-125/115 A-F2-A-BQQE | C6: CW | D6: FT | F6: 1111.052632 | G6: =IFERROR(F6*(1-VLOOKUP(C6,ГОЛОВНА!K:L,2,0)), "-") -> 1111.052632
A7: 98092892 | B7: NB32-125/130 A-F2-A-BQQE | C7: CW | D7: FT | F7: 1140.877193 | G7: =IFERROR(F7*(1-VLOOKUP(C7,ГОЛОВНА!K:L,2,0)), "-") -> 1140.877193
A8: 98769449 | B8: NB32-125/142 AS-F2-A-BQQE | C8: CW | D8: FT | F8: 1355.789474 | G8: =IFERROR(F8*(1-VLOOKUP(C8,ГОЛОВНА!K:L,2,0)), "-") -> 1355.789474
A9: 98052675 | B9: NB32-160.1/169 A-F2-A-BQQE | C9: CW | D9: FT | F9: 1393.157895 | G9: =IFERROR(F9*(1-VLOOKUP(C9,ГОЛОВНА!K:L,2,0)), "-") -> 1393.157895
A10: 98054003 | B10: NB32-160/151 A-F2-A-BQQE | C10: CW | D10: FT | F10: 1404.912281 | G10: =IFERROR(F10*(1-VLOOKUP(C10,ГОЛОВНА!K:L,2,0)), "-") -> 1404.912281
A11: 97925279 | B11: NB32-160/163 A-F2-A-BQQE | C11: CW | D11: FT | F11: 1570.350877 | G11: =IFERROR(F11*(1-VLOOKUP(C11,ГОЛОВНА!K:L,2,0)), "-") -> 1570.350877
A12: 97980860 | B12: NB32-160/177 A-F2-A-BQQE | C12: CW | D12: FT | F12: 1867.54386 | G12: =IFERROR(F12*(1-VLOOKUP(C12,ГОЛОВНА!K:L,2,0)), "-") -> 1867.54386
A13: 98856186 | B13: NB32-160/177 AS-F2-A-BQQE | C13: CW | D13: FT | F13: 1900.701754 | G13: =IFERROR(F13*(1-VLOOKUP(C13,ГОЛОВНА!K:L,2,0)), "-") -> 1900.701754
A14: 98177816 | B14: NB32-200.1/205 A-F2-A-BQQE | C14: CW | D14: FT | F14: 1930.350877 | G14: =IFERROR(F14*(1-VLOOKUP(C14,ГОЛОВНА!K:L,2,0)), "-") -> 1930.350877
A15: 98281463 | B15: NB32-200/190 A-F2-A-BQQE | C15: CW | D15: FT | F15: 1941.754386 | G15: =IFERROR(F15*(1-VLOOKUP(C15,ГОЛОВНА!K:L,2,0)), "-") -> 1941.754386
A16: 98269499 | B16: NB32-200/216 A-F2-A-BQQE | C16: CW | D16: FT | F16: 1137.719298 | G16: =IFERROR(F16*(1-VLOOKUP(C16,ГОЛОВНА!K:L,2,0)), "-") -> 1137.719298
A17: 98300257 | B17: NB32-200/219 AS-F2-A-BQQE | C17: CW | D17: FT | F17: за запитом | G17: =IFERROR(F17*(1-VLOOKUP(C17,ГОЛОВНА!K:L,2,0)), "-") -> -
A18: 97933634 | B18: NB40-125/127 A-F2-A-BQQE | C18: CW | D18: FT | F18: 1422.87425 | G18: =IFERROR(F18*(1-VLOOKUP(C18,ГОЛОВНА!K:L,2,0)), "-") -> 1422.87425
A19: 98701179 | B19: NB40-125/127 AS-F2-A-BQQE | C19: CW | D19: FT | F19: 1455.295 | G19: =IFERROR(F19*(1-VLOOKUP(C19,ГОЛОВНА!K:L,2,0)), "-") -> 1455.295
A20: 97964206 | B20: NB40-160/158 A-F2-A-BQQE | C20: CW | D20: FT | F20: 1932.5555 | G20: =IFERROR(F20*(1-VLOOKUP(C20,ГОЛОВНА!K:L,2,0)), "-") -> 1932.5555
A21: 98490590 | B21: NB40-160/158 AS-F2-A-BQQE | C21: CW | D21: FT | F21: 1951.69225 | G21: =IFERROR(F21*(1-VLOOKUP(C21,ГОЛОВНА!K:L,2,0)), "-") -> 1951.69225
A22: 98117939 | B22: NB40-160/172 A-F2-A-BQQE | C22: CW | D22: FT | F22: 2113.47825 | G22: =IFERROR(F22*(1-VLOOKUP(C22,ГОЛОВНА!K:L,2,0)), "-") -> 2113.47825
A23: 98833679 | B23: NB40-160/172 AS-F2-A-BQQE | C23: CW | D23: FT | F23: 2132.2255 | G23: =IFERROR(F23*(1-VLOOKUP(C23,ГОЛОВНА!K:L,2,0)), "-") -> 2132.2255
A24: 98269479 | B24: NB40-200/217 A-F2-A-BQQE | C24: CW | D24: FT | F24: 1262.68725 | G24: =IFERROR(F24*(1-VLOOKUP(C24,ГОЛОВНА!K:L,2,0)), "-") -> 1262.68725
A25: 98915632 | B25: NB40-200/219 AS-F2-A-BQQE | C25: CW | D25: FT | F25: за запитом | G25: =IFERROR(F25*(1-VLOOKUP(C25,ГОЛОВНА!K:L,2,0)), "-") -> -
A26: 97933643 | B26: NB50-125/121 A-F2-A-BQQE | C26: CW | D26: FT | F26: 1654.145 | G26: =IFERROR(F26*(1-VLOOKUP(C26,ГОЛОВНА!K:L,2,0)), "-") -> 1654.145
A27: 97933636 | B27: NB50-125/135 A-F2-A-BQQE | C27: CW | D27: FT | F27: 1946.926 | G27: =IFERROR(F27*(1-VLOOKUP(C27,ГОЛОВНА!K:L,2,0)), "-") -> 1946.926
A28: 98781395 | B28: NB50-125/144 AS-F2-A-BQQE | C28: CW | D28: FT | F28: 2148.61525 | G28: =IFERROR(F28*(1-VLOOKUP(C28,ГОЛОВНА!K:L,2,0)), "-") -> 2148.61525
A29: 97925281 | B29: NB50-160/150 A-F2-A-BQQE | C29: CW | D29: FT | F29: 2175.16275 | G29: =IFERROR(F29*(1-VLOOKUP(C29,ГОЛОВНА!K:L,2,0)), "-") -> 2175.16275
A30: 98156747 | B30: NB50-160/167 A-F2-A-BQQE | C30: CW | D30: FT | F30: 2739.0255 | G30: =IFERROR(F30*(1-VLOOKUP(C30,ГОЛОВНА!K:L,2,0)), "-") -> 2739.0255
A31: 98778278 | B31: NB50-160/167 AS-F2-A-BQQE | C31: CW | D31: FT | F31: за запитом | G31: =IFERROR(F31*(1-VLOOKUP(C31,ГОЛОВНА!K:L,2,0)), "-") -> -
A32: 98469280 | B32: NB50-160/177 AS-F2-A-BQQE | C32: CW | D32: FT | F32: за запитом | G32: =IFERROR(F32*(1-VLOOKUP(C32,ГОЛОВНА!K:L,2,0)), "-") -> -
A33: 98149348 | B33: NB50-200/210 A-F2-A-BQQE | C33: CW | D33: FT | F33: 1370.6095 | G33: =IFERROR(F33*(1-VLOOKUP(C33,ГОЛОВНА!K:L,2,0)), "-") -> 1370.6095
A34: 98062906 | B34: NB50-200/219 A-F2-A-BQQE | C34: CW | D34: FT | F34: за запитом | G34: =IFERROR(F34*(1-VLOOKUP(C34,ГОЛОВНА!K:L,2,0)), "-") -> -
A35: 97933644 | B35: NB65-125/137 A-F2-A-BQQE | C35: CW | D35: FT | F35: за запитом | G35: =IFERROR(F35*(1-VLOOKUP(C35,ГОЛОВНА!K:L,2,0)), "-") -> -
A36: 97980739 | B36: NB65-160/157 A-F2-A-BQQE | C36: CW | D36: FT | F36: за запитом | G36: =IFERROR(F36*(1-VLOOKUP(C36,ГОЛОВНА!K:L,2,0)), "-") -> -
A37: 98291563 | B37: NB65-160/157 AS-F2-A-BQQE | C37: CW | D37: FT | F37: за запитом | G37: =IFERROR(F37*(1-VLOOKUP(C37,ГОЛОВНА!K:L,2,0)), "-") -> -
A38: 98178373 | B38: NB65-160/177 A-F2-A-BQQE | C38: CW | D38: FT | F38: 1340 | G38: =IFERROR(F38*(1-VLOOKUP(C38,ГОЛОВНА!K:L,2,0)), "-") -> 1340
A39: 98967170 | B39: NB65-200/190 AS-F2-A-BQQE | C39: CW | D39: FT | F39: за запитом | G39: =IFERROR(F39*(1-VLOOKUP(C39,ГОЛОВНА!K:L,2,0)), "-") -> -
A40: 97989353 | B40: NB65-200/205 A-F2-A-BQQE | C40: CW | D40: FT | F40: 1618.421053 | G40: =IFERROR(F40*(1-VLOOKUP(C40,ГОЛОВНА!K:L,2,0)), "-") -> 1618.421053
A41: 97903595 | B41: NB80-160/151 A-F2-A-BQQE | C41: CW | D41: FT | F41: за запитом | G41: =IFERROR(F41*(1-VLOOKUP(C41,ГОЛОВНА!K:L,2,0)), "-") -> -
A42: 98354769 | B42: NB80-160/151 AS-F2-A-BQQE | C42: CW | D42: FT | F42: за запитом | G42: =IFERROR(F42*(1-VLOOKUP(C42,ГОЛОВНА!K:L,2,0)), "-") -> -
A43: 98674339 | B43: NB80-160/161 AS-F2-A-BQQE | C43: CW | D43: FT | F43: за запитом | G43: =IFERROR(F43*(1-VLOOKUP(C43,ГОЛОВНА!K:L,2,0)), "-") -> -
A44: 98423647 | B44: NB80-160/167 A-F2-A-BQQE | C44: CW | D44: FT | F44: за запитом | G44: =IFERROR(F44*(1-VLOOKUP(C44,ГОЛОВНА!K:L,2,0)), "-") -> -
A45: 98042383 | B45: NB80-200/196 A-F2-A-BQQE | C45: CW | D45: FT | F45: 2086.21325 | G45: =IFERROR(F45*(1-VLOOKUP(C45,ГОЛОВНА!K:L,2,0)), "-") -> 2086.21325
A46: 98175428 | B46: NB80-200/214 A-F2-A-BQQE | C46: CW | D46: FT | F46: за запитом | G46: =IFERROR(F46*(1-VLOOKUP(C46,ГОЛОВНА!K:L,2,0)), "-") -> -
B48: Інші NB, NK за запитом, зверніться до Вашого торгового представника
B50: Примітка:
A51: FT | B51: - швидка поставка (зазвичай до 3-х тижнів)

Sheet LS
A1: АРТИКУЛ | B1: НАЙМЕНУВАННЯ (УКР) | C1: PRICE GROUP | D1: ДОСТАВКА | E1: ДОДАТКОВО | F1: ЦІНА (ЕВРО БЕЗ ПДВ) | G1: ЦІНА ЗІ ЗНИЖКОЮ | H1: НА ГОЛОВНУ
A2: LS | G2: Насоси для систем водопостачання
A4: Дані продукти за запитом, зверніться до Вашого торгового представника

Sheet MTB
A1: АРТИКУЛ | B1: НАЙМЕНУВАННЯ (УКР) | C1: PRICE GROUP | D1: ДОСТАВКА | E1: ДОДАТКОВО | F1: ЦІНА (ЕВРО БЕЗ ПДВ) | G1: ЦІНА ЗІ ЗНИЖКОЮ | H1: НА ГОЛОВНУ
A2: MTB | G2: Насоси для водопостачання, пожежогасіння та промисловості
A4: Дані продукти за запитом, зверніться до Вашого торгового представника

Sheet MTR
A1: АРТИКУЛ | B1: НАЙМЕНУВАННЯ (УКР) | C1: PRICE GROUP | D1: ДОСТАВКА | E1: ДОДАТКОВО | F1: ЦІНА (ЕВРО БЕЗ ПДВ) | G1: ЦІНА ЗІ ЗНИЖКОЮ | H1: НА ГОЛОВНУ
A2: MTR | G2: Напівзанурені насоси
A4: Дані продукти за запитом, зверніться до Вашого торгового представника

Sheet CM (E), CMB (E)
A1: АРТИКУЛ | B1: НАЙМЕНУВАННЯ (УКР) | C1: PRICE GROUP | D1: ДОСТАВКА | E1: ДОДАТКОВО | F1: ЦІНА (ЕВРО БЕЗ ПДВ) | G1: ЦІНА ЗІ ЗНИЖКОЮ | H1: НА ГОЛОВНУ
A2: CM, CMB, CMBE | G2: Самовсмоктуючі насоси для систем водопостачання
A3: 98478334 | B3: Горизонт насос CM3-3 O-R-I-E-AVBE C-A-A- | C3: GI | F3: 377.59 | G3: =IFERROR(F3*(1-VLOOKUP(C3,ГОЛОВНА!K:L,2,0)), "-") -> 377.59
A4: 98478335 | B4: Горизонт насос CM3-4 O-R-I-E-AVBE C-A-A- | C4: GI | F4: 401.75 | G4: =IFERROR(F4*(1-VLOOKUP(C4,ГОЛОВНА!K:L,2,0)), "-") -> 401.75
A5: 98478336 | B5: Горизонт насос CM3-5 O-R-I-E-AVBE C-A-A-N | C5: GI | F5: 433.82 | G5: =IFERROR(F5*(1-VLOOKUP(C5,ГОЛОВНА!K:L,2,0)), "-") -> 433.82
A6: 98478337 | B6: Горизонт насос CM3-6 O-R-I-E-AVBE C-A-A- | C6: GI | F6: 482.12 | G6: =IFERROR(F6*(1-VLOOKUP(C6,ГОЛОВНА!K:L,2,0)), "-") -> 482.12
A7: 98478414 | B7: Горизонт насос CM5-3 O-R-I-E-AVBE C-A-A-N | C7: GI | F7: 402.71 | G7: =IFERROR(F7*(1-VLOOKUP(C7,ГОЛОВНА!K:L,2,0)), "-") -> 402.71
A8: 98478415 | B8: Горизонт насос CM5-4 O-R-I-E-AVBE C-A-A-N | C8: GI | F8: 506.9 | G8: =IFERROR(F8*(1-VLOOKUP(C8,ГОЛОВНА!K:L,2,0)), "-") -> 506.9
A9: 98482188 | B9: Горизонт насос CM5-5 O-R-I-E-AQQE C-A-A- | C9: GI | D9: FT | F9: 540.61 | G9: =IFERROR(F9*(1-VLOOKUP(C9,ГОЛОВНА!K:L,2,0)), "-") -> 540.61
A10: 98478416 | B10: Горизонт насос CM5-5 O-R-I-E-AVBE C-A-A- | C10: GI | F10: 561.14 | G10: =IFERROR(F10*(1-VLOOKUP(C10,ГОЛОВНА!K:L,2,0)), "-") -> 561.14
A11: 98478417 | B11: Горизонт насос CM5-6 O-R-I-E-AVBE C-A-A- | C11: GI | F11: 693.85 | G11: =IFERROR(F11*(1-VLOOKUP(C11,ГОЛОВНА!K:L,2,0)), "-") -> 693.85
A12: 98478418 | B12: Горизонт насос CM5-7 O-R-I-E-AVBE C-A-A- | C12: GI | F12: 805.9 | G12: =IFERROR(F12*(1-VLOOKUP(C12,ГОЛОВНА!K:L,2,0)), "-") -> 805.9
A13: 97530001 | B13: Насосна установка CMB1-27 A-C-A-C-C-A | C13: DC | F13: 391.3 | G13: =IFERROR(F13*(1-VLOOKUP(C13,ГОЛОВНА!K:L,2,0)), "-") -> 391.3
A14: 97766979 | B14: Насосна установка CMB5-46 A-C-A-C-P-B 1x | C14: DC | F14: 685.75 | G14: =IFERROR(F14*(1-VLOOKUP(C14,ГОЛОВНА!K:L,2,0)), "-") -> 685.75
A15: 98374717 | B15: Насосна установка CMBE3-62 I-U-C-G-D-A 1x | C15: DC | F15: 1256.45 | G15: =IFERROR(F15*(1-VLOOKUP(C15,ГОЛОВНА!K:L,2,0)), "-") -> 1256.45
A16: 98374704 | B16: Насосна установка CMBE5-62 I-U-C-C-D-B 1x20 | C16: DC | F16: 1830.24 | G16: =IFERROR(F16*(1-VLOOKUP(C16,ГОЛОВНА!K:L,2,0)), "-") -> 1830.24
A17: 98374696 | B17: Насосна установка CMBE5-62 I-U-C-D-D-B 1 | C17: DC | F17: 1830.25 | G17: =IFERROR(F17*(1-VLOOKUP(C17,ГОЛОВНА!K:L,2,0)), "-") -> 1830.25
A18: 98507632 | B18: Насосна установка CMB-SP 5-47 I-C-A-C-C-A | C18: DC | F18: 765 | G18: =IFERROR(F18*(1-VLOOKUP(C18,ГОЛОВНА!K:L,2,0)), "-") -> 765
A19: 98507587 | B19: Насосна установка CMB-SP SET 3-37 I-C-A-C-A | C19: DC | F19: 431.08 | G19: =IFERROR(F19*(1-VLOOKUP(C19,ГОЛОВНА!K:L,2,0)), "-") -> 431.08
A20: 98507638 | B20: Насосна установка CMB-SP SET 3-37 I-C-A-C-C | C20: DC | F20: 499.98 | G20: =IFERROR(F20*(1-VLOOKUP(C20,ГОЛОВНА!K:L,2,0)), "-") -> 499.98
A21: 98507588 | B21: Насосна установка CMB-SP SET 3-47 I-C-A-C-B | C21: DC | F21: 477.02 | G21: =IFERROR(F21*(1-VLOOKUP(C21,ГОЛОВНА!K:L,2,0)), "-") -> 477.02
A22: 98507639 | B22: Насосна установка CMB-SP SET 3-47 I-C-A-C-C | C22: DC | F22: 524.73 | G22: =IFERROR(F22*(1-VLOOKUP(C22,ГОЛОВНА!K:L,2,0)), "-") -> 524.73
A23: 98507589 | B23: Насосна установка CMB-SP SET 3-56 I-C-A-C-B | C23: DC | F23: 512.37 | G23: =IFERROR(F23*(1-VLOOKUP(C23,ГОЛОВНА!K:L,2,0)), "-") -> 512.37
A24: 98507640 | B24: Насосна установка CMB-SP SET 3-56 I-C-A-C-C | C24: DC | F24: 561.89 | G24: =IFERROR(F24*(1-VLOOKUP(C24,ГОЛОВНА!K:L,2,0)), "-") -> 561.89
A26: CM (E) | G26: Насоси для систем водопостачання
A27: 97516576 | B27: Горизонт насос CM10-1 A-R-A-E-AQQE C-A-A | C27: DC | D27: FT | F27: 367.87 | G27: =IFERROR(F27*(1-VLOOKUP(C27,ГОЛОВНА!K:L,2,0)), "-") -> 367.87
A28: 97516577 | B28: Горизонт насос CM10-1 A-R-A-E-AQQE F-A-A | C28: DC | D28: FT | F28: 351.96 | G28: =IFERROR(F28*(1-VLOOKUP(C28,ГОЛОВНА!K:L,2,0)), "-") -> 351.96
A29: 96806942 | B29: Горизонт насос CM10-1 A-R-A-E-AVBE C-A-A-N | C29: DC | F29: 348.07 | G29: =IFERROR(F29*(1-VLOOKUP(C29,ГОЛОВНА!K:L,2,0)), "-") -> 348.07
A30: 97516621 | B30: Горизонт. насос CM10-1 A-R-A-V-AQQV C-A | C30: DC | F30: 375.83 | G30: =IFERROR(F30*(1-VLOOKUP(C30,ГОЛОВНА!K:L,2,0)), "-") -> 375.83
A31: 97516622 | B31: Горизонт насос CM10-1 A-R-A-V-AQQV F-A-A-N | C31: DC | F31: 359.9 | G31: =IFERROR(F31*(1-VLOOKUP(C31,ГОЛОВНА!K:L,2,0)), "-") -> 359.9
A32: 97516660 | B32: Горизонт насос CM10-1 A-R-G-E-AQQE C-A-A-N | C32: GI | F32: 599.26 | G32: =IFERROR(F32*(1-VLOOKUP(C32,ГОЛОВНА!K:L,2,0)), "-") -> 599.26
A33: 96943183 | B33: Горизонт. насос CM10-1 A-R-G-E-AQQE F-A | C33: GI | D33: FT | F33: 583.6 | G33: =IFERROR(F33*(1-VLOOKUP(C33,ГОЛОВНА!K:L,2,0)), "-") -> 583.6
A34: 97516720 | B34: Горизонт. насос CM10-1 A-R-G-V-AQQV C-A | C34: GI | F34: 618.78 | G34: =IFERROR(F34*(1-VLOOKUP(C34,ГОЛОВНА!K:L,2,0)), "-") -> 618.78
A35: 96806982 | B35: Горизонт. насос CM10-1 A-R-G-V-AQQV F-A | C35: GI | F35: 603.1 | G35: =IFERROR(F35*(1-VLOOKUP(C35,ГОЛОВНА!K:L,2,0)), "-") -> 603.1
A36: 97515062 | B36: Горизонт. насос CM10-1 A-R-I-E-AQQE C-A | C36: GI | F36: 501.02 | G36: =IFERROR(F36*(1-VLOOKUP(C36,ГОЛОВНА!K:L,2,0)), "-") -> 501.02
A37: 97515133 | B37: Горизонт. насос CM10-1 A-R-I-E-AQQE F-A | C37: GI | D37: FT | F37: 485.34 | G37: =IFERROR(F37*(1-VLOOKUP(C37,ГОЛОВНА!K:L,2,0)), "-") -> 485.34
A38: 97516403 | B38: Горизонт. насос CM10-1 A-R-I-V-AQQV C-A | C38: GI | F38: 520.52 | G38: =IFERROR(F38*(1-VLOOKUP(C38,ГОЛОВНА!K:L,2,0)), "-") -> 520.52
A39: 97516404 | B39: Горизонт. насос CM10-1 A-R-I-V-AQQV F-A | C39: GI | F39: 504.83 | G39: =IFERROR(F39*(1-VLOOKUP(C39,ГОЛОВНА!K:L,2,0)), "-") -> 504.83
A40: 96943216 | B40: Горизонт насос CM10-1 T-R-G-E-AQQE G-A-A | C40: GI | F40: 742.97 | G40: =IFERROR(F40*(1-VLOOKUP(C40,ГОЛОВНА!K:L,2,0)), "-") -> 742.97
A41: 96943344 | B41: Горизонт насос CM10-2 A-R-A-E-AQQE C-A-A-N | C41: DC | F41: 540.45 | G41: =IFERROR(F41*(1-VLOOKUP(C41,ГОЛОВНА!K:L,2,0)), "-") -> 540.45
A42: 96943345 | B42: Горизонт насос CM10-2 A-R-A-E-AQQE F-A-A-N | C42: DC | D42: S | F42: 384.19 | G42: =IFERROR(F42*(1-VLOOKUP(C42,ГОЛОВНА!K:L,2,0)), "-") -> 384.19
A43: 97516623 | B43: Горизонт. насос CM10-2 A-R-A-V-AQQV C-A | C43: DC | F43: 548.43 | G43: =IFERROR(F43*(1-VLOOKUP(C43,ГОЛОВНА!K:L,2,0)), "-") -> 548.43
A44: 96943347 | B44: Горизонт. насос CM10-2 A-R-A-V-AQQV F-A | C44: DC | D44: FT | F44: 392 | G44: =IFERROR(F44*(1-VLOOKUP(C44,ГОЛОВНА!K:L,2,0)), "-") -> 392
A45: 96943217 | B45: Горизонт. насос CM10-2 A-R-G-E-AQQE C-A | C45: GI | F45: 826.93 | G45: =IFERROR(F45*(1-VLOOKUP(C45,ГОЛОВНА!K:L,2,0)), "-") -> 826.93
A46: 96943219 | B46: Горизонт. насос CM10-2 A-R-G-E-AQQE F-A | C46: GI | F46: 676.89 | G46: =IFERROR(F46*(1-VLOOKUP(C46,ГОЛОВНА!K:L,2,0)), "-") -> 676.89
A47: 96943232 | B47: Горизонт. насос CM10-2 A-R-G-V-AQQV C-A | C47: GI | F47: 846.43 | G47: =IFERROR(F47*(1-VLOOKUP(C47,ГОЛОВНА!K:L,2,0)), "-") -> 846.43
A48: 96806983 | B48: Горизонт. насос CM10-2 A-R-G-V-AQQV F-A | C48: GI | F48: 695.76 | G48: =IFERROR(F48*(1-VLOOKUP(C48,ГОЛОВНА!K:L,2,0)), "-") -> 695.76
A49: 96946004 | B49: Горизонт насос CM10-2 A-R-I-E-AQQE C-A-A-N | C49: GI | F49: 674.58 | G49: =IFERROR(F49*(1-VLOOKUP(C49,ГОЛОВНА!K:L,2,0)), "-") -> 674.58
A50: 96945992 | B50: Горизонт насос CM10-2 A-R-I-E-AQQE F-A-A-N | C50: GI | F50: 545.98 | G50: =IFERROR(F50*(1-VLOOKUP(C50,ГОЛОВНА!K:L,2,0)), "-") -> 545.98
A51: 96946007 | B51: Горизонт. насос CM10-2 A-R-I-E-AQQE G-A | C51: GI | F51: 626.43 | G51: =IFERROR(F51*(1-VLOOKUP(C51,ГОЛОВНА!K:L,2,0)), "-") -> 626.43
A52: 96945999 | B52: Горизонт. насос CM10-2 A-R-I-V-AQQV C-A | C52: GI | F52: 694.09 | G52: =IFERROR(F52*(1-VLOOKUP(C52,ГОЛОВНА!K:L,2,0)), "-") -> 694.09
A53: 96945995 | B53: Горизонт. насос CM10-2 A-R-I-V-AQQV F-A | C53: GI | F53: 545.58 | G53: =IFERROR(F53*(1-VLOOKUP(C53,ГОЛОВНА!K:L,2,0)), "-") -> 545.58
A54: 96946029 | B54: Горизонт. насос CM10-2 A-R-I-V-AQQV G-A | C54: GI | F54: 645.4 | G54: =IFERROR(F54*(1-VLOOKUP(C54,ГОЛОВНА!K:L,2,0)), "-") -> 645.4
A55: 97516578 | B55: Горизонт насос CM10-3 A-R-A-E-AQQE C-A-A-N | C55: DC | F55: 738.27 | G55: =IFERROR(F55*(1-VLOOKUP(C55,ГОЛОВНА!K:L,2,0)), "-") -> 738.27
A56: 96943353 | B56: Горизонт насос CM10-3 A-R-A-E-AQQE F-A-A-N | C56: DC | D56: S | F56: 568.66 | G56: =IFERROR(F56*(1-VLOOKUP(C56,ГОЛОВНА!K:L,2,0)), "-") -> 568.66
A57: 96806943 | B57: Горизонт насос CM10-3 A-R-A-E-AVBE C-A-A-N | C57: DC | D57: FT | F57: 718.47 | G57: =IFERROR(F57*(1-VLOOKUP(C57,ГОЛОВНА!K:L,2,0)), "-") -> 718.47
A58: 96943355 | B58: Горизонт. насос CM10-3 A-R-A-V-AQQV C-A | C58: DC | F58: 746.22 | G58: =IFERROR(F58*(1-VLOOKUP(C58,ГОЛОВНА!K:L,2,0)), "-") -> 746.22
A59: 96943357 | B59: Горизонт насос CM10-3 A-R-A-V-AQQV F-A-A-N | C59: DC | F59: 576.4 | G59: =IFERROR(F59*(1-VLOOKUP(C59,ГОЛОВНА!K:L,2,0)), "-") -> 576.4
A60: 96943250 | B60: Горизонт. насос CM10-3 A-R-G-E-AQQE C-A | C60: GI | F60: 1010.83 | G60: =IFERROR(F60*(1-VLOOKUP(C60,ГОЛОВНА!K:L,2,0)), "-") -> 1010.83
A61: 96943251 | B61: Горизонт насос CM10-3 A-R-G-E-AQQE F-A-A | C61: GI | F61: 848.46 | G61: =IFERROR(F61*(1-VLOOKUP(C61,ГОЛОВНА!K:L,2,0)), "-") -> 848.46
A62: 96806981 | B62: Горизонт. насос CM10-3 A-R-G-V-AQQV C-A | C62: GI | F62: 1030.32 | G62: =IFERROR(F62*(1-VLOOKUP(C62,ГОЛОВНА!K:L,2,0)), "-") -> 1030.32
A63: 96806984 | B63: Горизонт. насос CM10-3 A-R-G-V-AQQV F-A | C63: GI | F63: 867.32 | G63: =IFERROR(F63*(1-VLOOKUP(C63,ГОЛОВНА!K:L,2,0)), "-") -> 867.32
A64: 96946005 | B64: Горизонт. насос CM10-3 A-R-I-E-AQQE C-A | C64: GI | F64: 824.07 | G64: =IFERROR(F64*(1-VLOOKUP(C64,ГОЛОВНА!K:L,2,0)), "-") -> 824.07
A65: 96945996 | B65: Горизонт насос CM10-3 A-R-I-E-AQQE F-A-A-N | C65: GI | F65: 664.42 | G65: =IFERROR(F65*(1-VLOOKUP(C65,ГОЛОВНА!K:L,2,0)), "-") -> 664.42
A66: 96946000 | B66: Горизонт. насос CM10-3 A-R-I-V-AQQV C-A | C66: GI | F66: 843.55 | G66: =IFERROR(F66*(1-VLOOKUP(C66,ГОЛОВНА!K:L,2,0)), "-") -> 843.55
A67: 96945993 | B67: Горизонт. насос CM10-3 A-R-I-V-AQQV F-A | C67: GI | F67: 683.39 | G67: =IFERROR(F67*(1-VLOOKUP(C67,ГОЛОВНА!K:L,2,0)), "-") -> 683.39
A68: 96943360 | B68: Горизонт насос CM10-4 A-R-A-E-AQQE F-A-A-N | C68: DC | D68: S | F68: 749.2 | G68: =IFERROR(F68*(1-VLOOKUP(C68,ГОЛОВНА!K:L,2,0)), "-") -> 749.2
A69: 96935485 | B69: Горизонт насос CM10-4 A-R-A-E-AVBE F-A | C69: DC | D69: FT | F69: 729.34 | G69: =IFERROR(F69*(1-VLOOKUP(C69,ГОЛОВНА!K:L,2,0)), "-") -> 729.34
A70: 96943374 | B70: Горизонт. насос CM10-4 A-R-A-V-AQQV F-A | C70: DC | F70: 756.75 | G70: =IFERROR(F70*(1-VLOOKUP(C70,ГОЛОВНА!K:L,2,0)), "-") -> 756.75
A71: 96943261 | B71: Горизонт насос CM10-4 A-R-G-E-AQQE F-A-A-N | C71: GI | F71: 1116.29 | G71: =IFERROR(F71*(1-VLOOKUP(C71,ГОЛОВНА!K:L,2,0)), "-") -> 1116.29
A72: 96806985 | B72: Горизонт. насос CM10-4 A-R-G-V-AQQV F-A | C72: GI | F72: 1135.15 | G72: =IFERROR(F72*(1-VLOOKUP(C72,ГОЛОВНА!K:L,2,0)), "-") -> 1135.15
A73: 96945979 | B73: Горизонт. насос CM10-4 A-R-I-E-AQQE F-A | C73: GI | F73: 907.68 | G73: =IFERROR(F73*(1-VLOOKUP(C73,ГОЛОВНА!K:L,2,0)), "-") -> 907.68
A74: 96945980 | B74: Горизонт. насос CM10-4 A-R-I-V-AQQV F-A | C74: GI | F74: 926.66 | G74: =IFERROR(F74*(1-VLOOKUP(C74,ГОЛОВНА!K:L,2,0)), "-") -> 926.66
A75: 97509520 | B75: Горизонт.насос CM10-5 A-R-A-E-AQQE F-A-A | C75: DC | D75: S | F75: 882.26 | G75: =IFERROR(F75*(1-VLOOKUP(C75,ГОЛОВНА!K:L,2,0)), "-") -> 882.26
A76: 97516624 | B76: Горизонт насос CM10-5 A-R-A-V-AQQV F-A-A-N | C76: DC | F76: 889.75 | G76: =IFERROR(F76*(1-VLOOKUP(C76,ГОЛОВНА!K:L,2,0)), "-") -> 889.75
A77: 96943269 | B77: Горизонт насос CM10-5 A-R-G-E-AQQE F-A-A-N | C77: GI | F77: 1176.45 | G77: =IFERROR(F77*(1-VLOOKUP(C77,ГОЛОВНА!K:L,2,0)), "-") -> 1176.45
A78: 96943270 | B78: Горизонт насос CM10-5 A-R-G-V-AQQV F-A-A-N | C78: GI | F78: 1195.31 | G78: =IFERROR(F78*(1-VLOOKUP(C78,ГОЛОВНА!K:L,2,0)), "-") -> 1195.31
A79: 96945994 | B79: Горизонт насос CM10-5 A-R-I-E-AQQE F-A-A-N | C79: GI | F79: 981.95 | G79: =IFERROR(F79*(1-VLOOKUP(C79,ГОЛОВНА!K:L,2,0)), "-") -> 981.95
A80: 96945978 | B80: Горизонт насос CM10-5 A-R-I-V-AQQV F-A-A-N | C80: GI | F80: 1000.93 | G80: =IFERROR(F80*(1-VLOOKUP(C80,ГОЛОВНА!K:L,2,0)), "-") -> 1000.93
A81: 97515303 | B81: Горизонт. насос CM10-6 A-R-G-E-AQQE F-A | C81: GI | F81: 1262.05 | G81: =IFERROR(F81*(1-VLOOKUP(C81,ГОЛОВНА!K:L,2,0)), "-") -> 1262.05
A82: 97516721 | B82: Горизонт. насос CM10-6 A-R-G-V-AQQV F-A | C82: GI | F82: 1280.92 | G82: =IFERROR(F82*(1-VLOOKUP(C82,ГОЛОВНА!K:L,2,0)), "-") -> 1280.92
A83: 97644355 | B83: Горизонт насос CM10-6 A-R-I-E-AQQE F-A-A | C83: GI | F83: 988.6 | G83: =IFERROR(F83*(1-VLOOKUP(C83,ГОЛОВНА!K:L,2,0)), "-") -> 988.6
A84: 97574708 | B84: Горизонт. насос CM10-6 A-R-I-E-AVBE F-A | C84: GI | F84: 981.59 | G84: =IFERROR(F84*(1-VLOOKUP(C84,ГОЛОВНА!K:L,2,0)), "-") -> 981.59
A85: 96935489 | B85: Горизонт насос CM10-7 A-R-G-E-AQQE F-A-A-N | C85: GI | F85: 1364.85 | G85: =IFERROR(F85*(1-VLOOKUP(C85,ГОЛОВНА!K:L,2,0)), "-") -> 1364.85
A86: 97951015 | B86: Горизонт насос CM10-7 A-R-G-K-AQQK F-A-A | C86: GI | F86: 2260.93 | G86: =IFERROR(F86*(1-VLOOKUP(C86,ГОЛОВНА!K:L,2,0)), "-") -> 2260.93
A87: 97516722 | B87: Горизонт. насос CM10-7 A-R-G-V-AQQV F-A | C87: GI | F87: 1383.71 | G87: =IFERROR(F87*(1-VLOOKUP(C87,ГОЛОВНА!K:L,2,0)), "-") -> 1383.71
A88: 97574709 | B88: Горизонт насос CM10-7 A-R-I-E-AQQE F-A-A-N | C88: GI | F88: 1081.23 | G88: =IFERROR(F88*(1-VLOOKUP(C88,ГОЛОВНА!K:L,2,0)), "-") -> 1081.23
A89: 96935490 | B89: Горизонт насос CM10-8 A-R-G-E-AQQE F-A-A-N | C89: GI | F89: 1626.49 | G89: =IFERROR(F89*(1-VLOOKUP(C89,ГОЛОВНА!K:L,2,0)), "-") -> 1626.49
A90: 96806987 | B90: Горизонт. насос CM10-8 A-R-G-V-AQQV F-A | C90: GI | F90: 1645.35 | G90: =IFERROR(F90*(1-VLOOKUP(C90,ГОЛОВНА!K:L,2,0)), "-") -> 1645.35
A91: 97574710 | B91: Горизонт. насос CM10-8 A-R-I-E-AQQE F-A | C91: GI | F91: 1288.59 | G91: =IFERROR(F91*(1-VLOOKUP(C91,ГОЛОВНА!K:L,2,0)), "-") -> 1288.59
A92: 97515026 | B92: Горизонт насос CM1-10 A-R-G-E-AQQE C-A-A | C92: GI | F92: 655.26 | G92: =IFERROR(F92*(1-VLOOKUP(C92,ГОЛОВНА!K:L,2,0)), "-") -> 655.26
A93: 97515125 | B93: Горизонт насос CM1-10 A-R-G-E-AQQE F-A-A | C93: GI | F93: 638.42 | G93: =IFERROR(F93*(1-VLOOKUP(C93,ГОЛОВНА!K:L,2,0)), "-") -> 638.42
A94: 97516686 | B94: Горизонт насос CM1-10 A-R-G-V-AQQV C-A-A | C94: GI | F94: 665.11 | G94: =IFERROR(F94*(1-VLOOKUP(C94,ГОЛОВНА!K:L,2,0)), "-") -> 665.11
A95: 97516687 | B95: Горизонт насос CM1-10 A-R-G-V-AQQV F-A-A | C95: GI | F95: 647.96 | G95: =IFERROR(F95*(1-VLOOKUP(C95,ГОЛОВНА!K:L,2,0)), "-") -> 647.96
A96: 97644334 | B96: Горизонт насос CM1-10 A-R-I-E-AQQE | C96: GI | D96: S | F96: 519.38 | G96: =IFERROR(F96*(1-VLOOKUP(C96,ГОЛОВНА!K:L,2,0)), "-") -> 519.38
A97: 97627483 | B97: Горизонт насос CM1-10 A-R-I-E-AQQE F-A-A | C97: GI | F97: 502.35 | G97: =IFERROR(F97*(1-VLOOKUP(C97,ГОЛОВНА!K:L,2,0)), "-") -> 502.35
A98: 97821360 | B98: Горизонт насос CM1-10 A-R-I-E-AVBE C-A-A | C98: GI | F98: 509.15 | G98: =IFERROR(F98*(1-VLOOKUP(C98,ГОЛОВНА!K:L,2,0)), "-") -> 509.15
A99: 96935421 | B99: Горизонт насос CM1-11 A-R-G-E-AQQE C-A-A | C99: GI | F99: 700.44 | G99: =IFERROR(F99*(1-VLOOKUP(C99,ГОЛОВНА!K:L,2,0)), "-") -> 700.44
A100: 96935422 | B100: Горизонт насос CM1-11 A-R-G-E-AQQE F-A-A | C100: GI | F100: 685.77 | G100: =IFERROR(F100*(1-VLOOKUP(C100,ГОЛОВНА!K:L,2,0)), "-") -> 685.77
A101: 97516688 | B101: Горизонт насос CM1-11 A-R-G-V-AQQV C-A-A | C101: GI | F101: 710.29 | G101: =IFERROR(F101*(1-VLOOKUP(C101,ГОЛОВНА!K:L,2,0)), "-") -> 710.29
A102: 97516689 | B102: Горизонт насос CM1-11 A-R-G-V-AQQV F-A-A | C102: GI | F102: 695.31 | G102: =IFERROR(F102*(1-VLOOKUP(C102,ГОЛОВНА!K:L,2,0)), "-") -> 695.31
A103: 97644335 | B103: Горизонт насос CM1-11 A-R-I-E-AQQE C-A-A | C103: GI | F103: 563.95 | G103: =IFERROR(F103*(1-VLOOKUP(C103,ГОЛОВНА!K:L,2,0)), "-") -> 563.95
A104: 97574670 | B104: Горизонт насос CM1-11 A-R-I-E-AQQE F-A-A | C104: GI | F104: 540.34 | G104: =IFERROR(F104*(1-VLOOKUP(C104,ГОЛОВНА!K:L,2,0)), "-") -> 540.34
A105: 96935423 | B105: Горизонт насос CM1-12 A-R-G-E-AQQE C-A-A | C105: GI | F105: 751.99 | G105: =IFERROR(F105*(1-VLOOKUP(C105,ГОЛОВНА!K:L,2,0)), "-") -> 751.99
A106: 96935424 | B106: Горизонт насос CM1-12 A-R-G-E-AQQE F-A-A-N | C106: GI | F106: 737.44 | G106: =IFERROR(F106*(1-VLOOKUP(C106,ГОЛОВНА!K:L,2,0)), "-") -> 737.44
A107: 97516690 | B107: Горизонт насос CM1-12 A-R-G-V-AQQV C-A-A | C107: GI | F107: 761.81 | G107: =IFERROR(F107*(1-VLOOKUP(C107,ГОЛОВНА!K:L,2,0)), "-") -> 761.81
A108: 96806839 | B108: Горизонт насос CM1-12 A-R-G-V-AQQV F-A-A-N | C108: GI | F108: 746.98 | G108: =IFERROR(F108*(1-VLOOKUP(C108,ГОЛОВНА!K:L,2,0)), "-") -> 746.98
A109: 97644336 | B109: Горизонт насос CM1-12 A-R-I-E-AQQE C-A-A | C109: GI | F109: 604.06 | G109: =IFERROR(F109*(1-VLOOKUP(C109,ГОЛОВНА!K:L,2,0)), "-") -> 604.06
A110: 96935425 | B110: Горизонт насос CM1-13 A-R-G-E-AQQE C-A-A | C110: GI | F110: 786.53 | G110: =IFERROR(F110*(1-VLOOKUP(C110,ГОЛОВНА!K:L,2,0)), "-") -> 786.53
A111: 96935426 | B111: Горизонт насос CM1-13 A-R-G-E-AQQE F-A-A | C111: GI | F111: 771.68 | G111: =IFERROR(F111*(1-VLOOKUP(C111,ГОЛОВНА!K:L,2,0)), "-") -> 771.68
A112: 97516691 | B112: Горизонт насос CM1-13 A-R-G-V-AQQV C-A-A | C112: GI | F112: 796.36 | G112: =IFERROR(F112*(1-VLOOKUP(C112,ГОЛОВНА!K:L,2,0)), "-") -> 796.36
A113: 97516692 | B113: Горизонт насос CM1-13 A-R-G-V-AQQV F-A-A | C113: GI | F113: 781.22 | G113: =IFERROR(F113*(1-VLOOKUP(C113,ГОЛОВНА!K:L,2,0)), "-") -> 781.22
A114: 97574681 | B114: Горизонт насос CM1-13 A-R-I-E-AQQE F-A-A | C114: GI | F114: 607.92 | G114: =IFERROR(F114*(1-VLOOKUP(C114,ГОЛОВНА!K:L,2,0)), "-") -> 607.92
A115: 96935427 | B115: Горизонт насос CM1-14 A-R-G-E-AQQE C-A-A | C115: GI | F115: 1047.47 | G115: =IFERROR(F115*(1-VLOOKUP(C115,ГОЛОВНА!K:L,2,0)), "-") -> 1047.47
A116: 96935428 | B116: Горизонт насос CM1-14 A-R-G-E-AQQE F-A-A | C116: GI | F116: 900.44 | G116: =IFERROR(F116*(1-VLOOKUP(C116,ГОЛОВНА!K:L,2,0)), "-") -> 900.44
A117: 97516693 | B117: Горизонт насос CM1-14 A-R-G-V-AQQV C-A-A | C117: GI | F117: 1057.31 | G117: =IFERROR(F117*(1-VLOOKUP(C117,ГОЛОВНА!K:L,2,0)), "-") -> 1057.31
A118: 96806783 | B118: Горизонт насос CM1-14 A-R-G-V-AQQV F-A-A | C118: GI | F118: 909.98 | G118: =IFERROR(F118*(1-VLOOKUP(C118,ГОЛОВНА!K:L,2,0)), "-") -> 909.98
A119: 97644337 | B119: Горизонт насос CM1-14 A-R-I-E-AQQE C-A-A | C119: GI | F119: 855.62 | G119: =IFERROR(F119*(1-VLOOKUP(C119,ГОЛОВНА!K:L,2,0)), "-") -> 855.62
A120: 97516557 | B120: Горизонт насос CM1-2 A-R-A-E-AQQE C-A-A-N | C120: DC | F120: 221.49 | G120: =IFERROR(F120*(1-VLOOKUP(C120,ГОЛОВНА!K:L,2,0)), "-") -> 221.49
A121: 97516558 | B121: Горизонт насос CM1-2 A-R-A-E-AQQE F-A-A- | C121: DC | D121: FT | F121: 213.55 | G121: =IFERROR(F121*(1-VLOOKUP(C121,ГОЛОВНА!K:L,2,0)), "-") -> 213.55
A122: 96935383 | B122: Горизонт насос CM1-2 A-R-A-E-AVBE C-A-A- | C122: DC | D122: FT | F122: 211.59 | G122: =IFERROR(F122*(1-VLOOKUP(C122,ГОЛОВНА!K:L,2,0)), "-") -> 211.59
A123: 97516586 | B123: Горизонт насос CM1-2 A-R-A-V-AQQV C-A-A- | C123: DC | F123: 225.39 | G123: =IFERROR(F123*(1-VLOOKUP(C123,ГОЛОВНА!K:L,2,0)), "-") -> 225.39
A124: 97516587 | B124: Горизонт насос CM1-2 A-R-A-V-AQQV F-A-A- | C124: DC | F124: 217.43 | G124: =IFERROR(F124*(1-VLOOKUP(C124,ГОЛОВНА!K:L,2,0)), "-") -> 217.43
A125: 97516635 | B125: Горизонт насос CM1-2 A-R-G-E-AQQE C-A-A- | C125: GI | D125: FT | F125: 419.62 | G125: =IFERROR(F125*(1-VLOOKUP(C125,ГОЛОВНА!K:L,2,0)), "-") -> 419.62
A126: 97509582 | B126: Горизонт насос CM1-2 A-R-G-E-AQQE F-A-A- | C126: GI | D126: FT | F126: 411.7 | G126: =IFERROR(F126*(1-VLOOKUP(C126,ГОЛОВНА!K:L,2,0)), "-") -> 411.7
A127: 97516670 | B127: Горизонт насос CM1-2 A-R-G-V-AQQV C-A-A- | C127: GI | F127: 429.45 | G127: =IFERROR(F127*(1-VLOOKUP(C127,ГОЛОВНА!K:L,2,0)), "-") -> 429.45
A128: 97516671 | B128: Горизонт насос CM1-2 A-R-G-V-AQQV F-A-A- | C128: GI | F128: 421.54 | G128: =IFERROR(F128*(1-VLOOKUP(C128,ГОЛОВНА!K:L,2,0)), "-") -> 421.54
A129: 97514162 | B129: Горизонт насос CM1-2 A-R-I-E-AQQE C-A-A-N | C129: GI | D129: FT | F129: 334.11 | G129: =IFERROR(F129*(1-VLOOKUP(C129,ГОЛОВНА!K:L,2,0)), "-") -> 334.11
A130: 97514413 | B130: Горизонт насос CM1-2 A-R-I-E-AQQE F-A-A- | C130: GI | D130: FT | F130: 326.2 | G130: =IFERROR(F130*(1-VLOOKUP(C130,ГОЛОВНА!K:L,2,0)), "-") -> 326.2
A131: 98084540 | B131: Горизонт насос CM1-2 A-R-I-K-AQQK F-A-A- | C131: GI | F131: 1015.23 | G131: =IFERROR(F131*(1-VLOOKUP(C131,ГОЛОВНА!K:L,2,0)), "-") -> 1015.23
A132: 97516381 | B132: Горизонт насос CM1-2 A-R-I-V-AQQV C-A-A- | C132: GI | F132: 343.94 | G132: =IFERROR(F132*(1-VLOOKUP(C132,ГОЛОВНА!K:L,2,0)), "-") -> 343.94
A133: 97516382 | B133: Горизонт насос CM1-2 A-R-I-V-AQQV F-A-A- | C133: GI | F133: 336.02 | G133: =IFERROR(F133*(1-VLOOKUP(C133,ГОЛОВНА!K:L,2,0)), "-") -> 336.02
A134: 96807016 | B134: Горизонт насос CM1-3 A-R-A-E-AQQE C-A-A- | C134: DC | D134: FT | F134: 240.93 | G134: =IFERROR(F134*(1-VLOOKUP(C134,ГОЛОВНА!K:L,2,0)), "-") -> 240.93
A135: 97516559 | B135: Горизонт насос CM1-3 A-R-A-E-AQQE F-A-A- | C135: DC | D135: FT | F135: 232.95 | G135: =IFERROR(F135*(1-VLOOKUP(C135,ГОЛОВНА!K:L,2,0)), "-") -> 232.95
A136: 96935387 | B136: Горизонт насос CM1-3 A-R-A-E-AVBE F-A-A- | C136: DC | D136: FT | F136: 223.06 | G136: =IFERROR(F136*(1-VLOOKUP(C136,ГОЛОВНА!K:L,2,0)), "-") -> 223.06
A137: 96935683 | B137: Горизонт насос CM1-3 A-R-A-E-AVBE J-A-A- | C137: DC | F137: 236.26 | G137: =IFERROR(F137*(1-VLOOKUP(C137,ГОЛОВНА!K:L,2,0)), "-") -> 236.26
A138: 97516588 | B138: Горизонт насос CM1-3 A-R-A-V-AQQV C-A-A- | C138: DC | F138: 244.81 | G138: =IFERROR(F138*(1-VLOOKUP(C138,ГОЛОВНА!K:L,2,0)), "-") -> 244.81
A139: 97516589 | B139: Горизонт насос CM1-3 A-R-A-V-AQQV F-A-A- | C139: DC | F139: 236.84 | G139: =IFERROR(F139*(1-VLOOKUP(C139,ГОЛОВНА!K:L,2,0)), "-") -> 236.84
A140: 97516636 | B140: Горизонт насос CM1-3 A-R-G-E-AQQE C-A-A- | C140: GI | D140: FT | F140: 464.78 | G140: =IFERROR(F140*(1-VLOOKUP(C140,ГОЛОВНА!K:L,2,0)), "-") -> 464.78
A141: 97516637 | B141: Горизонт насос CM1-3 A-R-G-E-AQQE F-A-A- | C141: GI | D141: FT | F141: 456.86 | G141: =IFERROR(F141*(1-VLOOKUP(C141,ГОЛОВНА!K:L,2,0)), "-") -> 456.86
A142: 97516672 | B142: Горизонт насос CM1-3 A-R-G-V-AQQV C-A-A- | C142: GI | F142: 474.63 | G142: =IFERROR(F142*(1-VLOOKUP(C142,ГОЛОВНА!K:L,2,0)), "-") -> 474.63
A143: 97516673 | B143: Горизонт насос CM1-3 A-R-G-V-AQQV F-A-A- | C143: GI | F143: 466.69 | G143: =IFERROR(F143*(1-VLOOKUP(C143,ГОЛОВНА!K:L,2,0)), "-") -> 466.69
A144: 97514439 | B144: Горизонт насос CM1-3 A-R-I-E-AQQE C-A-A- | C144: GI | D144: FT | F144: 365.74 | G144: =IFERROR(F144*(1-VLOOKUP(C144,ГОЛОВНА!K:L,2,0)), "-") -> 365.74
A145: 97515109 | B145: Горизонт насос CM1-3 A-R-I-E-AQQE F-A-A- | C145: GI | D145: FT | F145: 357.85 | G145: =IFERROR(F145*(1-VLOOKUP(C145,ГОЛОВНА!K:L,2,0)), "-") -> 357.85
A146: 97516383 | B146: Горизонт насос CM1-3 A-R-I-V-AQQV C-A-A- | C146: GI | F146: 375.61 | G146: =IFERROR(F146*(1-VLOOKUP(C146,ГОЛОВНА!K:L,2,0)), "-") -> 375.61
A147: 97516384 | B147: Горизонт насос CM1-3 A-R-I-V-AQQV F-A-A- | C147: GI | F147: 367.71 | G147: =IFERROR(F147*(1-VLOOKUP(C147,ГОЛОВНА!K:L,2,0)), "-") -> 367.71
A148: 98477811 | B148: Горизонт насос CM1-3 S-R-I-E-AVBE C-A-A- | C148: GI | F148: 384.39 | G148: =IFERROR(F148*(1-VLOOKUP(C148,ГОЛОВНА!K:L,2,0)), "-") -> 384.39
A149: 97516560 | B149: Горизонт насос CM1-4 A-R-A-E-AQQE C-A-A-N | C149: DC | D149: FT | F149: 264.01 | G149: =IFERROR(F149*(1-VLOOKUP(C149,ГОЛОВНА!K:L,2,0)), "-") -> 264.01
A150: 97514257 | B150: Горизонт насос CM1-4 A-R-A-E-AQQE F-A-A- | C150: DC | D150: FT | F150: 252.18 | G150: =IFERROR(F150*(1-VLOOKUP(C150,ГОЛОВНА!K:L,2,0)), "-") -> 252.18
A151: 96935390 | B151: Горизонт насос CM1-4 A-R-A-E-AVBE C-A-A- | C151: DC | D151: FT | F151: 254.13 | G151: =IFERROR(F151*(1-VLOOKUP(C151,ГОЛОВНА!K:L,2,0)), "-") -> 254.13
A152: 97516590 | B152: Горизонт насос CM1-4 A-R-A-V-AQQV C-A-A- | C152: DC | D152: FT | F152: 267.89 | G152: =IFERROR(F152*(1-VLOOKUP(C152,ГОЛОВНА!K:L,2,0)), "-") -> 267.89
A153: 96989472 | B153: Горизонт насос CM1-4 A-R-A-V-AQQV F-A-A- | C153: DC | F153: 256.08 | G153: =IFERROR(F153*(1-VLOOKUP(C153,ГОЛОВНА!K:L,2,0)), "-") -> 256.08
A154: 97516638 | B154: Горизонт насос CM1-4 A-R-G-E-AQQE C-A-A- | C154: GI | F154: 496.43 | G154: =IFERROR(F154*(1-VLOOKUP(C154,ГОЛОВНА!K:L,2,0)), "-") -> 496.43
A155: 97516639 | B155: Горизонт насос CM1-4 A-R-G-E-AQQE F-A-A- | C155: GI | D155: FT | F155: 484.67 | G155: =IFERROR(F155*(1-VLOOKUP(C155,ГОЛОВНА!K:L,2,0)), "-") -> 484.67
A156: 97516674 | B156: Горизонт насос CM1-4 A-R-G-V-AQQV C-A-A- | C156: GI | F156: 506.25 | G156: =IFERROR(F156*(1-VLOOKUP(C156,ГОЛОВНА!K:L,2,0)), "-") -> 506.25
A157: 97516675 | B157: Горизонт насос CM1-4 A-R-G-V-AQQV F-A-A- | C157: GI | F157: 494.5 | G157: =IFERROR(F157*(1-VLOOKUP(C157,ГОЛОВНА!K:L,2,0)), "-") -> 494.5
A158: 97514999 | B158: Горизонт насос CM1-4 A-R-I-E-AQQE C-A-A- | C158: GI | D158: FT | F158: 394.9 | G158: =IFERROR(F158*(1-VLOOKUP(C158,ГОЛОВНА!K:L,2,0)), "-") -> 394.9
A159: 97515121 | B159: Горизонт насос CM1-4 A-R-I-E-AQQE F-A-A- | C159: GI | D159: FT | F159: 383.13 | G159: =IFERROR(F159*(1-VLOOKUP(C159,ГОЛОВНА!K:L,2,0)), "-") -> 383.13
A160: 97516385 | B160: Горизонт насос CM1-4 A-R-I-V-AQQV C-A-A- | C160: GI | F160: 404.75 | G160: =IFERROR(F160*(1-VLOOKUP(C160,ГОЛОВНА!K:L,2,0)), "-") -> 404.75
A161: 97516386 | B161: Горизонт насос CM1-4 A-R-I-V-AQQV F-A-A- | C161: GI | F161: 392.98 | G161: =IFERROR(F161*(1-VLOOKUP(C161,ГОЛОВНА!K:L,2,0)), "-") -> 392.98
A162: 96807018 | B162: Горизонт насос CM1-5 A-R-A-E-AQQE C-A-A- | C162: DC | D162: FT | F162: 278.96 | G162: =IFERROR(F162*(1-VLOOKUP(C162,ГОЛОВНА!K:L,2,0)), "-") -> 278.96
A163: 97516561 | B163: Горизонт насос CM1-5 A-R-A-E-AQQE F-A-A- | C163: DC | D163: FT | F163: 267.1 | G163: =IFERROR(F163*(1-VLOOKUP(C163,ГОЛОВНА!K:L,2,0)), "-") -> 267.1
A164: 96806794 | B164: Горизонт насос CM1-5 A-R-A-E-AVBE C-A-A- | C164: DC | D164: FT | F164: 269.07 | G164: =IFERROR(F164*(1-VLOOKUP(C164,ГОЛОВНА!K:L,2,0)), "-") -> 269.07
A165: 97516591 | B165: Горизонт насос CM1-5 A-R-A-V-AQQV C-A-A- | C165: DC | F165: 282.86 | G165: =IFERROR(F165*(1-VLOOKUP(C165,ГОЛОВНА!K:L,2,0)), "-") -> 282.86
A166: 97516592 | B166: Горизонт насос CM1-5 A-R-A-V-AQQV F-A-A- | C166: DC | F166: 271 | G166: =IFERROR(F166*(1-VLOOKUP(C166,ГОЛОВНА!K:L,2,0)), "-") -> 271
A167: 97516640 | B167: Горизонт насос CM1-5 A-R-G-E-AQQE C-A-A- | C167: GI | F167: 526.53 | G167: =IFERROR(F167*(1-VLOOKUP(C167,ГОЛОВНА!K:L,2,0)), "-") -> 526.53
A168: 97516641 | B168: Горизонт насос CM1-5 A-R-G-E-AQQE F-A-A- | C168: GI | F168: 514.75 | G168: =IFERROR(F168*(1-VLOOKUP(C168,ГОЛОВНА!K:L,2,0)), "-") -> 514.75
A169: 97516676 | B169: Горизонт насос CM1-5 A-R-G-V-AQQV C-A-A- | C169: GI | F169: 536.38 | G169: =IFERROR(F169*(1-VLOOKUP(C169,ГОЛОВНА!K:L,2,0)), "-") -> 536.38
A170: 97516677 | B170: Горизонт насос CM1-5 A-R-G-V-AQQV F-A-A- | C170: GI | F170: 524.6 | G170: =IFERROR(F170*(1-VLOOKUP(C170,ГОЛОВНА!K:L,2,0)), "-") -> 524.6
A171: 97515000 | B171: Горизонт насос CM1-5 A-R-I-E-AQQE C-A-A- | C171: GI | D171: FT | F171: 422.3 | G171: =IFERROR(F171*(1-VLOOKUP(C171,ГОЛОВНА!K:L,2,0)), "-") -> 422.3
A172: 96807014 | B172: Горизонт насос CM1-5 A-R-I-E-AQQE F-A-A- | C172: GI | F172: 410.54 | G172: =IFERROR(F172*(1-VLOOKUP(C172,ГОЛОВНА!K:L,2,0)), "-") -> 410.54
A173: 97516387 | B173: Горизонт насос CM1-5 A-R-I-V-AQQV C-A-A- | C173: GI | F173: 432.16 | G173: =IFERROR(F173*(1-VLOOKUP(C173,ГОЛОВНА!K:L,2,0)), "-") -> 432.16
A174: 97516388 | B174: Горизонт насос CM1-5 A-R-I-V-AQQV F-A-A- | C174: GI | D174: FT | F174: 420.39 | G174: =IFERROR(F174*(1-VLOOKUP(C174,ГОЛОВНА!K:L,2,0)), "-") -> 420.39
A175: 97516579 | B175: Горизонт насос CM15-1 A-R-A-E-AQQE C-A-A | C175: DC | F175: 847.43 | G175: =IFERROR(F175*(1-VLOOKUP(C175,ГОЛОВНА!K:L,2,0)), "-") -> 847.43
A176: 97516580 | B176: Горизонт насос CM15-1 A-R-A-E-AQQE F-A-A | C176: DC | F176: 699.13 | G176: =IFERROR(F176*(1-VLOOKUP(C176,ГОЛОВНА!K:L,2,0)), "-") -> 699.13
A177: 96806957 | B177: Горизонт насос CM15-1 A-R-A-E-AVBE C-A-A | C177: DC | F177: 828.62 | G177: =IFERROR(F177*(1-VLOOKUP(C177,ГОЛОВНА!K:L,2,0)), "-") -> 828.62
A178: 97516625 | B178: Горизонт насос CM15-1 A-R-A-V-AQQV C-A-A | C178: DC | F178: 854.97 | G178: =IFERROR(F178*(1-VLOOKUP(C178,ГОЛОВНА!K:L,2,0)), "-") -> 854.97
A179: 97516626 | B179: Горизонт насос CM15-1 A-R-A-V-AQQV F-A-A | C179: DC | F179: 706.62 | G179: =IFERROR(F179*(1-VLOOKUP(C179,ГОЛОВНА!K:L,2,0)), "-") -> 706.62
A180: 97516661 | B180: Горизонт насос CM15-1 A-R-G-E-AQQE C-A-A | C180: GI | F180: 1124.94 | G180: =IFERROR(F180*(1-VLOOKUP(C180,ГОЛОВНА!K:L,2,0)), "-") -> 1124.94
A181: 96806998 | B181: Горизонт насос CM15-1 A-R-G-E-AQQE F-A-A | C181: GI | F181: 973.06 | G181: =IFERROR(F181*(1-VLOOKUP(C181,ГОЛОВНА!K:L,2,0)), "-") -> 973.06
A182: 97516723 | B182: Горизонт насос CM15-1 A-R-G-V-AQQV C-A-A | C182: GI | F182: 1144.44 | G182: =IFERROR(F182*(1-VLOOKUP(C182,ГОЛОВНА!K:L,2,0)), "-") -> 1144.44
A183: 97516724 | B183: Горизонт насос CM15-1 A-R-G-V-AQQV F-A-A | C183: GI | F183: 992.05 | G183: =IFERROR(F183*(1-VLOOKUP(C183,ГОЛОВНА!K:L,2,0)), "-") -> 992.05
A184: 97515064 | B184: Горизонт насос CM15-1 A-R-I-E-AQQE C-A-A | C184: GI | F184: 950.42 | G184: =IFERROR(F184*(1-VLOOKUP(C184,ГОЛОВНА!K:L,2,0)), "-") -> 950.42
A185: 97515263 | B185: Горизонт насос CM15-1 A-R-I-E-AQQE F-A-A | C185: GI | F185: 797.99 | G185: =IFERROR(F185*(1-VLOOKUP(C185,ГОЛОВНА!K:L,2,0)), "-") -> 797.99
A186: 97516405 | B186: Горизонт насос CM15-1 A-R-I-V-AQQV C-A-A | C186: GI | F186: 969.93 | G186: =IFERROR(F186*(1-VLOOKUP(C186,ГОЛОВНА!K:L,2,0)), "-") -> 969.93
A187: 97516406 | B187: Горизонт насос CM15-1 A-R-I-V-AQQV F-A-A | C187: GI | F187: 816.97 | G187: =IFERROR(F187*(1-VLOOKUP(C187,ГОЛОВНА!K:L,2,0)), "-") -> 816.97
A188: 98316190 | B188: Горизонт насос CM15-2 A-F-I-E-AVBE F-A-A | C188: GI | F188: 1097.06 | G188: =IFERROR(F188*(1-VLOOKUP(C188,ГОЛОВНА!K:L,2,0)), "-") -> 1097.06
A189: 97516581 | B189: Горизонт насос CM15-2 A-R-A-E-AQQE C-A-A | C189: DC | F189: 966.19 | G189: =IFERROR(F189*(1-VLOOKUP(C189,ГОЛОВНА!K:L,2,0)), "-") -> 966.19
A190: 97507759 | B190: Горизонт насос CM15-2 A-R-A-E-AQQE F-A-A | C190: DC | F190: 804.95 | G190: =IFERROR(F190*(1-VLOOKUP(C190,ГОЛОВНА!K:L,2,0)), "-") -> 804.95
A191: 96806958 | B191: Горизонт насос CM15-2 A-R-A-E-AVBE F-A-A | C191: DC | D191: FT | F191: 786.31 | G191: =IFERROR(F191*(1-VLOOKUP(C191,ГОЛОВНА!K:L,2,0)), "-") -> 786.31
A192: 97516627 | B192: Горизонт насос CM15-2 A-R-A-V-AQQV C-A-A | C192: DC | F192: 973.74 | G192: =IFERROR(F192*(1-VLOOKUP(C192,ГОЛОВНА!K:L,2,0)), "-") -> 973.74
A193: 97516628 | B193: Горизонт насос CM15-2 A-R-A-V-AQQV F-A-A | C193: DC | F193: 812.45 | G193: =IFERROR(F193*(1-VLOOKUP(C193,ГОЛОВНА!K:L,2,0)), "-") -> 812.45
A194: 97516662 | B194: Горизонт насос CM15-2 A-R-G-E-AQQE C-A-A | C194: GI | F194: 1278.83 | G194: =IFERROR(F194*(1-VLOOKUP(C194,ГОЛОВНА!K:L,2,0)), "-") -> 1278.83
A195: 97516663 | B195: Горизонт насос CM15-2 A-R-G-E-AQQE F-A-A | C195: GI | F195: 1113.55 | G195: =IFERROR(F195*(1-VLOOKUP(C195,ГОЛОВНА!K:L,2,0)), "-") -> 1113.55
A196: 97516725 | B196: Горизонт насос CM15-2 A-R-G-V-AQQV C-A-A | C196: GI | F196: 1298.32 | G196: =IFERROR(F196*(1-VLOOKUP(C196,ГОЛОВНА!K:L,2,0)), "-") -> 1298.32
A197: 97516726 | B197: Горизонт насос CM15-2 A-R-G-V-AQQV F-A-A | C197: GI | F197: 1132.52 | G197: =IFERROR(F197*(1-VLOOKUP(C197,ГОЛОВНА!K:L,2,0)), "-") -> 1132.52
A198: 97515063 | B198: Горизонт насос CM15-2 A-R-I-E-AQQE C-A-A | C198: GI | D198: FT | F198: 1079.08 | G198: =IFERROR(F198*(1-VLOOKUP(C198,ГОЛОВНА!K:L,2,0)), "-") -> 1079.08
A199: 97515106 | B199: Горизонт насос CM15-2 A-R-I-E-AQQE F-A-A | C199: GI | F199: 913.35 | G199: =IFERROR(F199*(1-VLOOKUP(C199,ГОЛОВНА!K:L,2,0)), "-") -> 913.35
A200: 97516444 | B200: Горизонт насос CM15-2 A-R-I-E-AVBE F-A-A | C200: GI | F200: 894.37 | G200: =IFERROR(F200*(1-VLOOKUP(C200,ГОЛОВНА!K:L,2,0)), "-") -> 894.37
A201: 97516407 | B201: Горизонт насос CM15-2 A-R-I-V-AQQV C-A-A | C201: GI | F201: 1098.57 | G201: =IFERROR(F201*(1-VLOOKUP(C201,ГОЛОВНА!K:L,2,0)), "-") -> 1098.57
... 671 more rows

Sheet CR (E), CRI (E),CRN (E)
A1: АРТИКУЛ | B1: НАЙМЕНУВАННЯ (УКР) | C1: PRICE GROUP | D1: ДОСТАВКА (ТИЖНІВ) | E1: ДОДАТКОВО | F1: ЦІНА (ЕВРО БЕЗ ПДВ) | G1: ЦІНА ЗІ ЗНИЖКОЮ | H1: НА ГОЛОВНУ
A2: CR, CRI, CRN, CRT (E) | G2: Насоси для водопостачання, пожежогасіння та промисловості
A3: 96501710 | B3: Верт. насос CR15-01 A-A-A-E-HQQE 3x23 | C3: CW | F3: 912.40375 | G3: =IFERROR(F3*(1-VLOOKUP(C3,ГОЛОВНА!K:L,2,0)), "-") -> 912.40375
A4: 96501683 | B4: Верт. насос CR15-01 A-A-A-V-HQQV 1x22 | C4: CW | F4: 1058.21 | G4: =IFERROR(F4*(1-VLOOKUP(C4,ГОЛОВНА!K:L,2,0)), "-") -> 1058.21
A5: 96501808 | B5: Верт. насос CR15-01 A-A-A-V-HQQV 3x23 | C5: CW | F5: 935.169 | G5: =IFERROR(F5*(1-VLOOKUP(C5,ГОЛОВНА!K:L,2,0)), "-") -> 935.169
A6: 96501665 | B6: Верт. насос CR15-01 A-F-A-E-HQQE 1x22 | C6: CW | F6: 1068.85975 | G6: =IFERROR(F6*(1-VLOOKUP(C6,ГОЛОВНА!K:L,2,0)), "-") -> 1068.85975
A7: 96501697 | B7: Верт. насос CR15-01 A-F-A-E-HQQE 3x23 | C7: CW | F7: 945.829 | G7: =IFERROR(F7*(1-VLOOKUP(C7,ГОЛОВНА!K:L,2,0)), "-") -> 945.829
A8: 96501681 | B8: Верт. насос CR15-01 A-F-A-V-HQQV 1x22 | C8: CW | F8: 1091.6455 | G8: =IFERROR(F8*(1-VLOOKUP(C8,ГОЛОВНА!K:L,2,0)), "-") -> 1091.6455
A9: 96501795 | B9: Верт. насос CR15-01 A-F-A-V-HQQV 3x23 | C9: CW | F9: 968.59425 | G9: =IFERROR(F9*(1-VLOOKUP(C9,ГОЛОВНА!K:L,2,0)), "-") -> 968.59425
A10: 96501668 | B10: Верт. насос CR15-02 A-A-A-E-HQQE 1x22 | C10: CW | F10: 1337.748 | G10: =IFERROR(F10*(1-VLOOKUP(C10,ГОЛОВНА!K:L,2,0)), "-") -> 1337.748
A11: 96501711 | B11: Верт. насос CR15-02 A-A-A-E-HQQE 3x23 | C11: CW | F11: 1158.48575 | G11: =IFERROR(F11*(1-VLOOKUP(C11,ГОЛОВНА!K:L,2,0)), "-") -> 1158.48575
A12: 96501905 | B12: Верт. насос CR15-02 A-A-A-E-HQQE 3x40 | C12: CW | F12: 1158.48575 | G12: =IFERROR(F12*(1-VLOOKUP(C12,ГОЛОВНА!K:L,2,0)), "-") -> 1158.48575
A13: 96501684 | B13: Верт. насос CR15-02 A-A-A-V-HQQV 1x22 | C13: CW | F13: 1360.503 | G13: =IFERROR(F13*(1-VLOOKUP(C13,ГОЛОВНА!K:L,2,0)), "-") -> 1360.503
A14: 96501809 | B14: Верт. насос CR15-02 A-A-A-V-HQQV 3x23 | C14: CW | F14: 1181.2715 | G14: =IFERROR(F14*(1-VLOOKUP(C14,ГОЛОВНА!K:L,2,0)), "-") -> 1181.2715
A15: 96501995 | B15: Верт. насос CR15-02 A-A-A-V-HQQV 3x40 | C15: CW | F15: 1181.2715 | G15: =IFERROR(F15*(1-VLOOKUP(C15,ГОЛОВНА!K:L,2,0)), "-") -> 1181.2715
A16: 96501666 | B16: Верт. насос CR15-02 A-F-A-E-HQQE 1x22 | C16: CW | F16: 1371.17325 | G16: =IFERROR(F16*(1-VLOOKUP(C16,ГОЛОВНА!K:L,2,0)), "-") -> 1371.17325
A17: 96501698 | B17: Верт. насос CR15-02 A-F-A-E-HQQE 3x23 | C17: CW | F17: 1191.92125 | G17: =IFERROR(F17*(1-VLOOKUP(C17,ГОЛОВНА!K:L,2,0)), "-") -> 1191.92125
A18: 96501893 | B18: Верт. насос CR15-02 A-F-A-E-HQQE 3x40 | C18: CW | D18: FT | F18: 1191.92125 | G18: =IFERROR(F18*(1-VLOOKUP(C18,ГОЛОВНА!K:L,2,0)), "-") -> 1191.92125
A19: 96501682 | B19: Верт. насос CR15-02 A-F-A-V-HQQV 1x22 | C19: CW | F19: 1393.9385 | G19: =IFERROR(F19*(1-VLOOKUP(C19,ГОЛОВНА!K:L,2,0)), "-") -> 1393.9385
A20: 96501796 | B20: Верт. насос CR15-02 A-F-A-V-HQQV 3x23 | C20: CW | F20: 1214.6865 | G20: =IFERROR(F20*(1-VLOOKUP(C20,ГОЛОВНА!K:L,2,0)), "-") -> 1214.6865
A21: 96501983 | B21: Верт. насос CR15-02 A-F-A-V-HQQV 3x40 | C21: CW | F21: 1214.6865 | G21: =IFERROR(F21*(1-VLOOKUP(C21,ГОЛОВНА!K:L,2,0)), "-") -> 1214.6865
A22: 96501712 | B22: Верт. насос CR15-03 A-A-A-E-HQQE 3x23 | C22: CW | F22: 1344.5335 | G22: =IFERROR(F22*(1-VLOOKUP(C22,ГОЛОВНА!K:L,2,0)), "-") -> 1344.5335
A23: 96501906 | B23: Верт. насос CR15-03 A-A-A-E-HQQE 3x40 | C23: CW | F23: 1344.5335 | G23: =IFERROR(F23*(1-VLOOKUP(C23,ГОЛОВНА!K:L,2,0)), "-") -> 1344.5335
A24: 96501810 | B24: Верт. насос CR15-03 A-A-A-V-HQQV 3x23 | C24: CW | F24: 1367.309 | G24: =IFERROR(F24*(1-VLOOKUP(C24,ГОЛОВНА!K:L,2,0)), "-") -> 1367.309
A25: 96501996 | B25: Верт. насос CR15-03 A-A-A-V-HQQV 3x40 | C25: CW | F25: 1367.309 | G25: =IFERROR(F25*(1-VLOOKUP(C25,ГОЛОВНА!K:L,2,0)), "-") -> 1367.309
A26: 96501699 | B26: Верт. насос CR15-03 A-F-A-E-HQQE 3x23 | C26: CW | F26: 1377.9485 | G26: =IFERROR(F26*(1-VLOOKUP(C26,ГОЛОВНА!K:L,2,0)), "-") -> 1377.9485
A27: 96501894 | B27: Верт. насос CR15-03 A-F-A-E-HQQE 3x40 | C27: CW | D27: FT | F27: 1377.9485 | G27: =IFERROR(F27*(1-VLOOKUP(C27,ГОЛОВНА!K:L,2,0)), "-") -> 1377.9485
A28: 96501797 | B28: Верт. насос CR15-03 A-F-A-V-HQQV 3x23 | C28: CW | F28: 1400.7445 | G28: =IFERROR(F28*(1-VLOOKUP(C28,ГОЛОВНА!K:L,2,0)), "-") -> 1400.7445
A29: 96501984 | B29: Верт. насос CR15-03 A-F-A-V-HQQV 3x40 | C29: CW | F29: 1400.7445 | G29: =IFERROR(F29*(1-VLOOKUP(C29,ГОЛОВНА!K:L,2,0)), "-") -> 1400.7445
A30: 96501713 | B30: Верт. насос CR15-04 A-A-A-E-HQQE 3x23 | C30: CW | F30: 1566.938 | G30: =IFERROR(F30*(1-VLOOKUP(C30,ГОЛОВНА!K:L,2,0)), "-") -> 1566.938
A31: 96501907 | B31: Верт. насос CR15-04 A-A-A-E-HQQE 3x40 | C31: CW | F31: 1566.938 | G31: =IFERROR(F31*(1-VLOOKUP(C31,ГОЛОВНА!K:L,2,0)), "-") -> 1566.938
A32: 96501811 | B32: Верт. насос CR15-04 A-A-A-V-HQQV 3x23 | C32: CW | F32: 1589.70325 | G32: =IFERROR(F32*(1-VLOOKUP(C32,ГОЛОВНА!K:L,2,0)), "-") -> 1589.70325
A33: 96501997 | B33: Верт. насос CR15-04 A-A-A-V-HQQV 3x40 | C33: CW | F33: 1589.70325 | G33: =IFERROR(F33*(1-VLOOKUP(C33,ГОЛОВНА!K:L,2,0)), "-") -> 1589.70325
A34: 96501700 | B34: Верт. насос CR15-04 A-F-A-E-HQQE 3x23 | C34: CW | F34: 1600.36325 | G34: =IFERROR(F34*(1-VLOOKUP(C34,ГОЛОВНА!K:L,2,0)), "-") -> 1600.36325
A35: 96501895 | B35: Верт. насос CR15-04 A-F-A-E-HQQE 3x40 | C35: CW | D35: FT | F35: 1600.36325 | G35: =IFERROR(F35*(1-VLOOKUP(C35,ГОЛОВНА!K:L,2,0)), "-") -> 1600.36325
A36: 96501798 | B36: Верт. насос CR15-04 A-F-A-V-HQQV 3x23 | C36: CW | F36: 1623.13875 | G36: =IFERROR(F36*(1-VLOOKUP(C36,ГОЛОВНА!K:L,2,0)), "-") -> 1623.13875
A37: 96501985 | B37: Верт. насос CR15-04 A-F-A-V-HQQV 3x40 | C37: CW | F37: 1623.13875 | G37: =IFERROR(F37*(1-VLOOKUP(C37,ГОЛОВНА!K:L,2,0)), "-") -> 1623.13875
A38: 96501714 | B38: Верт. насос CR15-05 A-A-A-E-HQQE 3x23 | C38: CW | F38: 1646.28325 | G38: =IFERROR(F38*(1-VLOOKUP(C38,ГОЛОВНА!K:L,2,0)), "-") -> 1646.28325
A39: 96501908 | B39: Верт. насос CR15-05 A-A-A-E-HQQE 3x40 | C39: CW | F39: 1646.28325 | G39: =IFERROR(F39*(1-VLOOKUP(C39,ГОЛОВНА!K:L,2,0)), "-") -> 1646.28325
A40: 96501812 | B40: Верт. насос CR15-05 A-A-A-V-HQQV 3x23 | C40: CW | F40: 1669.0485 | G40: =IFERROR(F40*(1-VLOOKUP(C40,ГОЛОВНА!K:L,2,0)), "-") -> 1669.0485
A41: 96501998 | B41: Верт. насос CR15-05 A-A-A-V-HQQV 3x40 | C41: CW | F41: 1669.0485 | G41: =IFERROR(F41*(1-VLOOKUP(C41,ГОЛОВНА!K:L,2,0)), "-") -> 1669.0485
A42: 96501701 | B42: Верт. насос CR15-05 A-F-A-E-HQQE 3x23 | C42: CW | F42: 1679.69825 | G42: =IFERROR(F42*(1-VLOOKUP(C42,ГОЛОВНА!K:L,2,0)), "-") -> 1679.69825
A43: 96501896 | B43: Верт. насос CR15-05 A-F-A-E-HQQE | C43: CW | D43: FT | F43: 1679.69825 | G43: =IFERROR(F43*(1-VLOOKUP(C43,ГОЛОВНА!K:L,2,0)), "-") -> 1679.69825
A44: 96501799 | B44: Верт. насос CR15-05 A-F-A-V-HQQV 3x23 | C44: CW | F44: 1702.484 | G44: =IFERROR(F44*(1-VLOOKUP(C44,ГОЛОВНА!K:L,2,0)), "-") -> 1702.484
A45: 96501986 | B45: Верт. насос CR15-05 A-F-A-V-HQQV 3x40 | C45: CW | F45: 1702.484 | G45: =IFERROR(F45*(1-VLOOKUP(C45,ГОЛОВНА!K:L,2,0)), "-") -> 1702.484
A46: 96501715 | B46: Верт. насос CR15-06 A-A-A-E-HQQE 3x23 | C46: CW | F46: 1965.09925 | G46: =IFERROR(F46*(1-VLOOKUP(C46,ГОЛОВНА!K:L,2,0)), "-") -> 1965.09925
A47: 96501909 | B47: Верт. насос CR15-06 A-A-A-E-HQQE 3x40 | C47: CW | F47: 1965.09925 | G47: =IFERROR(F47*(1-VLOOKUP(C47,ГОЛОВНА!K:L,2,0)), "-") -> 1965.09925
A48: 96501813 | B48: Верт. насос CR15-06 A-A-A-V-HQQV 3x23 | C48: CW | F48: 1987.885 | G48: =IFERROR(F48*(1-VLOOKUP(C48,ГОЛОВНА!K:L,2,0)), "-") -> 1987.885
A49: 96501999 | B49: Верт. насос CR15-06 A-A-A-V-HQQV 3x40 | C49: CW | F49: 1987.885 | G49: =IFERROR(F49*(1-VLOOKUP(C49,ГОЛОВНА!K:L,2,0)), "-") -> 1987.885
A50: 96501702 | B50: Верт. насос CR15-06 A-F-A-E-HQQE 3x23 | C50: CW | F50: 1998.5245 | G50: =IFERROR(F50*(1-VLOOKUP(C50,ГОЛОВНА!K:L,2,0)), "-") -> 1998.5245
A51: 96501897 | B51: Верт. насос CR15-06 A-F-A-E-HQQE 3x40 | C51: CW | F51: 1998.5245 | G51: =IFERROR(F51*(1-VLOOKUP(C51,ГОЛОВНА!K:L,2,0)), "-") -> 1998.5245
A52: 96501800 | B52: Верт. насос CR15-06 A-F-A-V-HQQV 3x23 | C52: CW | F52: 2021.3 | G52: =IFERROR(F52*(1-VLOOKUP(C52,ГОЛОВНА!K:L,2,0)), "-") -> 2021.3
A53: 96501987 | B53: Верт. насос CR15-06 A-F-A-V-HQQV 3x40 | C53: CW | F53: 2021.3 | G53: =IFERROR(F53*(1-VLOOKUP(C53,ГОЛОВНА!K:L,2,0)), "-") -> 2021.3
A54: 96501716 | B54: Верт. насос CR15-07 A-A-A-E-HQQE 3x23 | C54: CW | F54: 2044.24975 | G54: =IFERROR(F54*(1-VLOOKUP(C54,ГОЛОВНА!K:L,2,0)), "-") -> 2044.24975
A55: 96501910 | B55: Верт. насос CR15-07 A-A-A-E-HQQE 3x40 | C55: CW | F55: 2044.24975 | G55: =IFERROR(F55*(1-VLOOKUP(C55,ГОЛОВНА!K:L,2,0)), "-") -> 2044.24975
A56: 96501814 | B56: Верт. насос CR15-07 A-A-A-V-HQQV 3x23 | C56: CW | F56: 2067.02525 | G56: =IFERROR(F56*(1-VLOOKUP(C56,ГОЛОВНА!K:L,2,0)), "-") -> 2067.02525
A57: 96502000 | B57: Верт. насос CR15-07 A-A-A-V-HQQV 3x40 | C57: CW | F57: 2067.02525 | G57: =IFERROR(F57*(1-VLOOKUP(C57,ГОЛОВНА!K:L,2,0)), "-") -> 2067.02525
A58: 96501703 | B58: Верт. насос CR15-07 A-F-A-E-HQQE 3x23 | C58: CW | F58: 2077.675 | G58: =IFERROR(F58*(1-VLOOKUP(C58,ГОЛОВНА!K:L,2,0)), "-") -> 2077.675
A59: 96501898 | B59: Верт. насос CR15-07 A-F-A-E-HQQE 3x40 | C59: CW | D59: FT | F59: 2077.675 | G59: =IFERROR(F59*(1-VLOOKUP(C59,ГОЛОВНА!K:L,2,0)), "-") -> 2077.675
A60: 96501801 | B60: Верт. насос CR15-07 A-F-A-V-HQQV 3x23 | C60: CW | F60: 2100.46075 | G60: =IFERROR(F60*(1-VLOOKUP(C60,ГОЛОВНА!K:L,2,0)), "-") -> 2100.46075
A61: 96501988 | B61: Верт. насос CR15-07 A-F-A-V-HQQV 3x40 | C61: CW | F61: 2100.46075 | G61: =IFERROR(F61*(1-VLOOKUP(C61,ГОЛОВНА!K:L,2,0)), "-") -> 2100.46075
A62: 96501704 | B62: Верт. насос CR15-08 A-F-A-E-HQQE 3x23 | C62: CW | F62: 2417.6265 | G62: =IFERROR(F62*(1-VLOOKUP(C62,ГОЛОВНА!K:L,2,0)), "-") -> 2417.6265
A63: 96501899 | B63: Верт. насос CR15-08 A-F-A-E-HQQE 3x40 | C63: CW | F63: 2417.6265 | G63: =IFERROR(F63*(1-VLOOKUP(C63,ГОЛОВНА!K:L,2,0)), "-") -> 2417.6265
A64: 96501802 | B64: Верт. насос CR15-08 A-F-A-V-HQQV 3x23 | C64: CW | F64: 2440.39175 | G64: =IFERROR(F64*(1-VLOOKUP(C64,ГОЛОВНА!K:L,2,0)), "-") -> 2440.39175
A65: 96501989 | B65: Верт. насос CR15-08 A-F-A-V-HQQV 3x40 | C65: CW | F65: 2440.39175 | G65: =IFERROR(F65*(1-VLOOKUP(C65,ГОЛОВНА!K:L,2,0)), "-") -> 2440.39175
A66: 96501705 | B66: Верт. насос CR15-09 A-F-A-E-HQQE 3x23 | C66: CW | F66: 2498.9705 | G66: =IFERROR(F66*(1-VLOOKUP(C66,ГОЛОВНА!K:L,2,0)), "-") -> 2498.9705
A67: 96501900 | B67: Верт. насос CR15-09 A-F-A-E-HQQE 3x40 | C67: CW | D67: FT | F67: 2498.9705 | G67: =IFERROR(F67*(1-VLOOKUP(C67,ГОЛОВНА!K:L,2,0)), "-") -> 2498.9705
A68: 96501803 | B68: Верт. насос CR15-09 A-F-A-V-HQQV 3x23 | C68: CW | F68: за запитом | G68: =IFERROR(F68*(1-VLOOKUP(C68,ГОЛОВНА!K:L,2,0)), "-") -> -
A69: 96501990 | B69: Верт. насос CR15-09 A-F-A-V-HQQV 3x40 | C69: CW | F69: за запитом | G69: =IFERROR(F69*(1-VLOOKUP(C69,ГОЛОВНА!K:L,2,0)), "-") -> -
A70: 96501706 | B70: Верт. насос CR15-10 A-F-A-E-HQQE 3x23 | C70: CW | F70: за запитом | G70: =IFERROR(F70*(1-VLOOKUP(C70,ГОЛОВНА!K:L,2,0)), "-") -> -
A71: 96501901 | B71: Верт. насос CR15-10 A-F-A-E-HQQE 3x40 | C71: CW | F71: за запитом | G71: =IFERROR(F71*(1-VLOOKUP(C71,ГОЛОВНА!K:L,2,0)), "-") -> -
A72: 96501991 | B72: Верт. насос CR15-10 A-F-A-V-HQQV 3x40 | C72: CW | F72: за запитом | G72: =IFERROR(F72*(1-VLOOKUP(C72,ГОЛОВНА!K:L,2,0)), "-") -> -
A73: 96501707 | B73: Верт. насос CR15-12 A-F-A-E-HQQE 3x23 | C73: CW | F73: за запитом | G73: =IFERROR(F73*(1-VLOOKUP(C73,ГОЛОВНА!K:L,2,0)), "-") -> -
A74: 96501902 | B74: Верт. насос CR15-12 A-F-A-E-HQQE 3x40 | C74: CW | F74: за запитом | G74: =IFERROR(F74*(1-VLOOKUP(C74,ГОЛОВНА!K:L,2,0)), "-") -> -
A75: 96528176 | B75: Верт. насос CR15-12 A-F-A-E-HQQE FF30 | C75: CW | F75: 2249.76225 | G75: =IFERROR(F75*(1-VLOOKUP(C75,ГОЛОВНА!K:L,2,0)), "-") -> 2249.76225
A76: 96501805 | B76: Верт. насос CR15-12 A-F-A-V-HQQV 3x23 | C76: CW | F76: за запитом | G76: =IFERROR(F76*(1-VLOOKUP(C76,ГОЛОВНА!K:L,2,0)), "-") -> -
A77: 96501992 | B77: Верт. насос CR15-12 A-F-A-V-HQQV 3x40 | C77: CW | F77: за запитом | G77: =IFERROR(F77*(1-VLOOKUP(C77,ГОЛОВНА!K:L,2,0)), "-") -> -
A78: 96500186 | B78: Верт. насос CR20-01 A-A-A-E-HQQE 1x22 | C78: CW | F78: 1066.497535 | G78: =IFERROR(F78*(1-VLOOKUP(C78,ГОЛОВНА!K:L,2,0)), "-") -> 1066.497535
A79: 96500338 | B79: Верт. насос CR20-01 A-A-A-E-HQQE 3x23 | C79: CW | F79: 939.7758625 | G79: =IFERROR(F79*(1-VLOOKUP(C79,ГОЛОВНА!K:L,2,0)), "-") -> 939.7758625
A80: 96500312 | B80: Верт. насос CR20-01 A-A-A-V-HQQV 1x22 | C80: CW | F80: 1089.9563 | G80: =IFERROR(F80*(1-VLOOKUP(C80,ГОЛОВНА!K:L,2,0)), "-") -> 1089.9563
A81: 96500429 | B81: Верт. насос CR20-01 A-A-A-V-HQQV 3x23 | C81: CW | F81: 963.22407 | G81: =IFERROR(F81*(1-VLOOKUP(C81,ГОЛОВНА!K:L,2,0)), "-") -> 963.22407
A82: 96500184 | B82: Верт. насос CR20-01 A-F-A-E-HQQE 1x22 | C82: CW | F82: 1100.925542 | G82: =IFERROR(F82*(1-VLOOKUP(C82,ГОЛОВНА!K:L,2,0)), "-") -> 1100.925542
A83: 96500326 | B83: Верт. насос CR20-01 A-F-A-E-HQQE 3x23 | C83: CW | F83: 974.20387 | G83: =IFERROR(F83*(1-VLOOKUP(C83,ГОЛОВНА!K:L,2,0)), "-") -> 974.20387
A84: 96500310 | B84: Верт. насос CR20-01 A-F-A-V-HQQV 1x22 | C84: CW | F84: 1124.394865 | G84: =IFERROR(F84*(1-VLOOKUP(C84,ГОЛОВНА!K:L,2,0)), "-") -> 1124.394865
A85: 96500417 | B85: Верт. насос CR20-01 A-F-A-V-HQQV 3x23 | C85: CW | F85: 997.6520775 | G85: =IFERROR(F85*(1-VLOOKUP(C85,ГОЛОВНА!K:L,2,0)), "-") -> 997.6520775
A86: 96500339 | B86: Верт. насос CR20-02 A-A-A-E-HQQE 3x23 | C86: CW | F86: 1193.240322 | G86: =IFERROR(F86*(1-VLOOKUP(C86,ГОЛОВНА!K:L,2,0)), "-") -> 1193.240322
A87: 96500519 | B87: Верт. насос CR20-02 A-A-A-E-HQQE 3x40 | C87: CW | F87: 1193.240322 | G87: =IFERROR(F87*(1-VLOOKUP(C87,ГОЛОВНА!K:L,2,0)), "-") -> 1193.240322
A88: 96500313 | B88: Верт. насос CR20-02 A-A-A-V-HQQV 1x22 | C88: CW | F88: 1401.31809 | G88: =IFERROR(F88*(1-VLOOKUP(C88,ГОЛОВНА!K:L,2,0)), "-") -> 1401.31809
A89: 96500430 | B89: Верт. насос CR20-02 A-A-A-V-HQQV 3x23 | C89: CW | F89: 1216.709645 | G89: =IFERROR(F89*(1-VLOOKUP(C89,ГОЛОВНА!K:L,2,0)), "-") -> 1216.709645
A90: 96500602 | B90: Верт. насос CR20-02 A-A-A-V-HQQV 3x40 | C90: CW | F90: 1216.709645 | G90: =IFERROR(F90*(1-VLOOKUP(C90,ГОЛОВНА!K:L,2,0)), "-") -> 1216.709645
A91: 96500185 | B91: Верт. насос CR20-02 A-F-A-E-HQQE 1x22 | C91: CW | F91: 1412.308447 | G91: =IFERROR(F91*(1-VLOOKUP(C91,ГОЛОВНА!K:L,2,0)), "-") -> 1412.308447
A92: 96500327 | B92: Верт. насос CR20-02 A-F-A-E-HQQE 3x23 | C92: CW | F92: 1227.678887 | G92: =IFERROR(F92*(1-VLOOKUP(C92,ГОЛОВНА!K:L,2,0)), "-") -> 1227.678887
A93: 96500508 | B93: Верт. насос CR20-02 A-F-A-E-HQQE 3x40 | C93: CW | F93: 1227.678887 | G93: =IFERROR(F93*(1-VLOOKUP(C93,ГОЛОВНА!K:L,2,0)), "-") -> 1227.678887
A94: 96500311 | B94: Верт. насос CR20-02 A-F-A-V-HQQV 1x22 | C94: CW | F94: 1435.756655 | G94: =IFERROR(F94*(1-VLOOKUP(C94,ГОЛОВНА!K:L,2,0)), "-") -> 1435.756655
A95: 96500418 | B95: Верт. насос CR20-02 A-F-A-V-HQQV 3x23 | C95: CW | F95: 1251.127095 | G95: =IFERROR(F95*(1-VLOOKUP(C95,ГОЛОВНА!K:L,2,0)), "-") -> 1251.127095
A96: 96500591 | B96: Верт. насос CR20-02 A-F-A-V-HQQV 3x40 | C96: CW | F96: 1251.127095 | G96: =IFERROR(F96*(1-VLOOKUP(C96,ГОЛОВНА!K:L,2,0)), "-") -> 1251.127095
A97: 96500340 | B97: Верт. насос CR20-03 A-A-A-E-HQQE 3x23 | C97: CW | F97: 1695.671748 | G97: =IFERROR(F97*(1-VLOOKUP(C97,ГОЛОВНА!K:L,2,0)), "-") -> 1695.671748
A98: 96500520 | B98: Верт. насос CR20-03 A-A-A-E-HQQE 3x40 | C98: CW | F98: 1695.671748 | G98: =IFERROR(F98*(1-VLOOKUP(C98,ГОЛОВНА!K:L,2,0)), "-") -> 1695.671748
A99: 96500431 | B99: Верт. насос CR20-03 A-A-A-V-HQQV 3x23 | C99: CW | F99: 1719.119955 | G99: =IFERROR(F99*(1-VLOOKUP(C99,ГОЛОВНА!K:L,2,0)), "-") -> 1719.119955
A100: 96500603 | B100: Верт. насос CR20-03 A-A-A-V-HQQV 3x40 | C100: CW | F100: 1719.119955 | G100: =IFERROR(F100*(1-VLOOKUP(C100,ГОЛОВНА!K:L,2,0)), "-") -> 1719.119955
A101: 96500328 | B101: Верт. насос CR20-03 A-F-A-E-HQQE 3x23 | C101: CW | F101: 1730.089197 | G101: =IFERROR(F101*(1-VLOOKUP(C101,ГОЛОВНА!K:L,2,0)), "-") -> 1730.089197
A102: 96500509 | B102: Верт. насос CR20-03 A-F-A-E-HQQE 3x40 | C102: CW | D102: FT | F102: 1730.089197 | G102: =IFERROR(F102*(1-VLOOKUP(C102,ГОЛОВНА!K:L,2,0)), "-") -> 1730.089197
A103: 96500419 | B103: Верт. насос CR20-03 A-F-A-V-HQQV 3x23 | C103: CW | F103: 1753.55852 | G103: =IFERROR(F103*(1-VLOOKUP(C103,ГОЛОВНА!K:L,2,0)), "-") -> 1753.55852
A104: 96500592 | B104: Верт. насос CR20-03 A-F-A-V-HQQV 3x40 | C104: CW | F104: 1753.55852 | G104: =IFERROR(F104*(1-VLOOKUP(C104,ГОЛОВНА!K:L,2,0)), "-") -> 1753.55852
A105: 96500341 | B105: Верт. насос CR20-04 A-A-A-E-HQQE 3x23 | C105: CW | F105: 2010.601972 | G105: =IFERROR(F105*(1-VLOOKUP(C105,ГОЛОВНА!K:L,2,0)), "-") -> 2010.601972
A106: 96500521 | B106: Верт. насос CR20-04 A-A-A-E-HQQE 3x40 | C106: CW | F106: 2010.601972 | G106: =IFERROR(F106*(1-VLOOKUP(C106,ГОЛОВНА!K:L,2,0)), "-") -> 2010.601972
A107: 96500604 | B107: Верт. насос CR20-04 A-A-A-V-HQQV 3x40 | C107: CW | F107: 2034.081852 | G107: =IFERROR(F107*(1-VLOOKUP(C107,ГОЛОВНА!K:L,2,0)), "-") -> 2034.081852
A108: 96500329 | B108: Верт. насос CR20-04 A-F-A-E-HQQE 3x23 | C108: CW | F108: 2045.051095 | G108: =IFERROR(F108*(1-VLOOKUP(C108,ГОЛОВНА!K:L,2,0)), "-") -> 2045.051095
A109: 96500510 | B109: Верт. насос CR20-04 A-F-A-E-HQQE 3x40 | C109: CW | D109: FT | F109: 2045.051095 | G109: =IFERROR(F109*(1-VLOOKUP(C109,ГОЛОВНА!K:L,2,0)), "-") -> 2045.051095
A110: 96500593 | B110: Верт. насос CR20-04 A-F-A-V-HQQV 3x40 | C110: CW | F110: 2068.50986 | G110: =IFERROR(F110*(1-VLOOKUP(C110,ГОЛОВНА!K:L,2,0)), "-") -> 2068.50986
A111: 96500342 | B111: Верт. насос CR20-05 A-A-A-E-HQQE 3x23 | C111: CW | F111: 2105.577243 | G111: =IFERROR(F111*(1-VLOOKUP(C111,ГОЛОВНА!K:L,2,0)), "-") -> 2105.577243
A112: 96500522 | B112: Верт. насос CR20-05 A-A-A-E-HQQE 3x40 | C112: CW | F112: 2105.577243 | G112: =IFERROR(F112*(1-VLOOKUP(C112,ГОЛОВНА!K:L,2,0)), "-") -> 2105.577243
A113: 96500433 | B113: Верт. насос CR20-05 A-A-A-V-HQQV 3x23 | C113: CW | F113: 2129.036007 | G113: =IFERROR(F113*(1-VLOOKUP(C113,ГОЛОВНА!K:L,2,0)), "-") -> 2129.036007
A114: 96500605 | B114: Верт. насос CR20-05 A-A-A-V-HQQV 3x40 | C114: CW | F114: 2129.036007 | G114: =IFERROR(F114*(1-VLOOKUP(C114,ГОЛОВНА!K:L,2,0)), "-") -> 2129.036007
A115: 96500330 | B115: Верт. насос CR20-05 A-F-A-E-HQQE 3x23 | C115: CW | F115: 2140.00525 | G115: =IFERROR(F115*(1-VLOOKUP(C115,ГОЛОВНА!K:L,2,0)), "-") -> 2140.00525
A116: 96500511 | B116: Верт. насос CR20-05 A-F-A-E-HQQE 3x40 | C116: CW | D116: FT | F116: 2140.00525 | G116: =IFERROR(F116*(1-VLOOKUP(C116,ГОЛОВНА!K:L,2,0)), "-") -> 2140.00525
A117: 96500421 | B117: Верт. насос CR20-05 A-F-A-V-HQQV 3x23 | C117: CW | F117: 2163.474572 | G117: =IFERROR(F117*(1-VLOOKUP(C117,ГОЛОВНА!K:L,2,0)), "-") -> 2163.474572
A118: 96500594 | B118: Верт. насос CR20-05 A-F-A-V-HQQV 3x40 | C118: CW | F118: 2163.474572 | G118: =IFERROR(F118*(1-VLOOKUP(C118,ГОЛОВНА!K:L,2,0)), "-") -> 2163.474572
A119: 96500343 | B119: Верт. насос CR20-06 A-A-A-E-HQQE 3x23 | C119: CW | F119: 2442.678217 | G119: =IFERROR(F119*(1-VLOOKUP(C119,ГОЛОВНА!K:L,2,0)), "-") -> 2442.678217
A120: 96500523 | B120: Верт. насос CR20-06 A-A-A-E-HQQE 3x40 | C120: CW | F120: 2442.678217 | G120: =IFERROR(F120*(1-VLOOKUP(C120,ГОЛОВНА!K:L,2,0)), "-") -> 2442.678217
A121: 96500434 | B121: Верт. насос CR20-06 A-A-A-V-HQQV 3x23 | C121: CW | F121: 2466.136982 | G121: =IFERROR(F121*(1-VLOOKUP(C121,ГОЛОВНА!K:L,2,0)), "-") -> 2466.136982
A122: 96500606 | B122: Верт. насос CR20-06 A-A-A-V-HQQV 3x40 | C122: CW | F122: 2466.136982 | G122: =IFERROR(F122*(1-VLOOKUP(C122,ГОЛОВНА!K:L,2,0)), "-") -> 2466.136982
A123: 96500331 | B123: Верт. насос CR20-06 A-F-A-E-HQQE 3x23 | C123: CW | F123: 2477.106225 | G123: =IFERROR(F123*(1-VLOOKUP(C123,ГОЛОВНА!K:L,2,0)), "-") -> 2477.106225
A124: 96500512 | B124: Верт. насос CR20-06 A-F-A-E-HQQE 3x40 | C124: CW | F124: 2477.106225 | G124: =IFERROR(F124*(1-VLOOKUP(C124,ГОЛОВНА!K:L,2,0)), "-") -> 2477.106225
A125: 96500422 | B125: Верт. насос CR20-06 A-F-A-V-HQQV 3x23 | C125: CW | F125: за запитом | G125: =IFERROR(F125*(1-VLOOKUP(C125,ГОЛОВНА!K:L,2,0)), "-") -> -
A126: 96500595 | B126: Верт. насос CR20-06 A-F-A-V-HQQV 3x40 | C126: CW | F126: за запитом | G126: =IFERROR(F126*(1-VLOOKUP(C126,ГОЛОВНА!K:L,2,0)), "-") -> -
A127: 96500344 | B127: Верт. насос CR20-07 A-A-A-E-HQQE 3x23 | C127: CW | F127: за запитом | G127: =IFERROR(F127*(1-VLOOKUP(C127,ГОЛОВНА!K:L,2,0)), "-") -> -
A128: 96500524 | B128: Верт. насос CR20-07 A-A-A-E-HQQE 3x40 | C128: CW | F128: за запитом | G128: =IFERROR(F128*(1-VLOOKUP(C128,ГОЛОВНА!K:L,2,0)), "-") -> -
A129: 96500435 | B129: Верт. насос CR20-07 A-A-A-V-HQQV 3x23 | C129: CW | F129: за запитом | G129: =IFERROR(F129*(1-VLOOKUP(C129,ГОЛОВНА!K:L,2,0)), "-") -> -
A130: 96500607 | B130: Верт. насос CR20-07 A-A-A-V-HQQV 3x40 | C130: CW | F130: за запитом | G130: =IFERROR(F130*(1-VLOOKUP(C130,ГОЛОВНА!K:L,2,0)), "-") -> -
A131: 96500332 | B131: Верт. насос CR20-07 A-F-A-E-HQQE 3x23 | C131: CW | F131: за запитом | G131: =IFERROR(F131*(1-VLOOKUP(C131,ГОЛОВНА!K:L,2,0)), "-") -> -
A132: 96500513 | B132: Верт. насос CR20-07 A-F-A-E-HQQE 3x40 | C132: CW | D132: FT | F132: за запитом | G132: =IFERROR(F132*(1-VLOOKUP(C132,ГОЛОВНА!K:L,2,0)), "-") -> -
A133: 96500423 | B133: Верт. насос CR20-07 A-F-A-V-HQQV 3x23 | C133: CW | F133: за запитом | G133: =IFERROR(F133*(1-VLOOKUP(C133,ГОЛОВНА!K:L,2,0)), "-") -> -
A134: 96500596 | B134: Верт. насос CR20-07 A-F-A-V-HQQV 3x40 | C134: CW | F134: за запитом | G134: =IFERROR(F134*(1-VLOOKUP(C134,ГОЛОВНА!K:L,2,0)), "-") -> -
A135: 96500333 | B135: Верт. насос CR20-08 A-F-A-E-HQQE 3x23 | C135: CW | F135: за запитом | G135: =IFERROR(F135*(1-VLOOKUP(C135,ГОЛОВНА!K:L,2,0)), "-") -> -
A136: 96500514 | B136: Верт. насос CR20-08 A-F-A-E-HQQE 3x40 | C136: CW | F136: за запитом | G136: =IFERROR(F136*(1-VLOOKUP(C136,ГОЛОВНА!K:L,2,0)), "-") -> -
A137: 96121951 | B137: Верт. насос CR32-1 A-F-A-E-HQQE 3x230 | C137: CW | F137: 1498.542108 | G137: =IFERROR(F137*(1-VLOOKUP(C137,ГОЛОВНА!K:L,2,0)), "-") -> 1498.542108
A138: 96122007 | B138: Верт. насос CR32-1 A-F-A-E-HQQE 3x400 | C138: CW | F138: 1498.542108 | G138: =IFERROR(F138*(1-VLOOKUP(C138,ГОЛОВНА!K:L,2,0)), "-") -> 1498.542108
A139: 96122035 | B139: Верт. насос CR32-1 A-F-A-V-HQQV 3x400 | C139: CW | F139: 1532.220532 | G139: =IFERROR(F139*(1-VLOOKUP(C139,ГОЛОВНА!K:L,2,0)), "-") -> 1532.220532
A140: 96121950 | B140: Верт. насос CR32-1-1 A-F-A-E-HQQE 3x2 | C140: CW | F140: 1402.648335 | G140: =IFERROR(F140*(1-VLOOKUP(C140,ГОЛОВНА!K:L,2,0)), "-") -> 1402.648335
A141: 96122006 | B141: Верт. насос CR32-1-1 A-F-A-E-HQQE 3x4 | C141: CW | F141: 1402.648335 | G141: =IFERROR(F141*(1-VLOOKUP(C141,ГОЛОВНА!K:L,2,0)), "-") -> 1402.648335
A142: 96121978 | B142: Верт. насос CR32-1-1 A-F-A-V-HQQV 3x2 | C142: CW | F142: 1436.32676 | G142: =IFERROR(F142*(1-VLOOKUP(C142,ГОЛОВНА!K:L,2,0)), "-") -> 1436.32676
A143: 96122034 | B143: Верт. насос CR32-1-1 A-F-A-V-HQQV 3x4 | C143: CW | F143: 1436.32676 | G143: =IFERROR(F143*(1-VLOOKUP(C143,ГОЛОВНА!K:L,2,0)), "-") -> 1436.32676
A144: 96121953 | B144: Верт. насос CR32-2 A-F-A-E-HQQE 3x230 | C144: CW | F144: 2027.84237 | G144: =IFERROR(F144*(1-VLOOKUP(C144,ГОЛОВНА!K:L,2,0)), "-") -> 2027.84237
A145: 96122009 | B145: Верт. насос CR32-2 A-F-A-E-HQQE | C145: CW | F145: 2027.84237 | G145: =IFERROR(F145*(1-VLOOKUP(C145,ГОЛОВНА!K:L,2,0)), "-") -> 2027.84237
A146: 96121981 | B146: Верт. насос CR32-2 A-F-A-V-HQQV 3x230 | C146: CW | F146: 2061.49968 | G146: =IFERROR(F146*(1-VLOOKUP(C146,ГОЛОВНА!K:L,2,0)), "-") -> 2061.49968
A147: 96122037 | B147: Верт. насос CR32-2 A-F-A-V-HQQV 3x400 | C147: CW | F147: 2061.49968 | G147: =IFERROR(F147*(1-VLOOKUP(C147,ГОЛОВНА!K:L,2,0)), "-") -> 2061.49968
A148: 96121952 | B148: Верт. насос CR32-2-2 A-F-A-E-HQQE 3x2 | C148: CW | F148: 1731.21885 | G148: =IFERROR(F148*(1-VLOOKUP(C148,ГОЛОВНА!K:L,2,0)), "-") -> 1731.21885
A149: 96122008 | B149: Верт. насос CR32-2-2 A-F-A-E-HQQE | C149: CW | F149: 1731.21885 | G149: =IFERROR(F149*(1-VLOOKUP(C149,ГОЛОВНА!K:L,2,0)), "-") -> 1731.21885
A150: 96121980 | B150: Верт. насос CR32-2-2 A-F-A-V-HQQV 3x2 | C150: CW | F150: 1764.897275 | G150: =IFERROR(F150*(1-VLOOKUP(C150,ГОЛОВНА!K:L,2,0)), "-") -> 1764.897275
A151: 96122036 | B151: Верт. насос CR32-2-2 A-F-A-V-HQQV 3x4 | C151: CW | F151: 1764.897275 | G151: =IFERROR(F151*(1-VLOOKUP(C151,ГОЛОВНА!K:L,2,0)), "-") -> 1764.897275
A152: 96121955 | B152: Верт. насос CR32-3 A-F-A-E-HQQE 3x230 | C152: CW | F152: за запитом | G152: =IFERROR(F152*(1-VLOOKUP(C152,ГОЛОВНА!K:L,2,0)), "-") -> -
A153: 96122011 | B153: Верт. насос CR32-3 A-F-A-E-HQQE 3x400 | C153: CW | F153: за запитом | G153: =IFERROR(F153*(1-VLOOKUP(C153,ГОЛОВНА!K:L,2,0)), "-") -> -
A154: 96122039 | B154: Верт. насос CR32-3 A-F-A-V-HQQV 3x400 | C154: CW | F154: за запитом | G154: =IFERROR(F154*(1-VLOOKUP(C154,ГОЛОВНА!K:L,2,0)), "-") -> -
A155: 96121954 | B155: Верт. насос CR32-3-2 A-F-A-E-HQQE 3x2 | C155: CW | F155: за запитом | G155: =IFERROR(F155*(1-VLOOKUP(C155,ГОЛОВНА!K:L,2,0)), "-") -> -
A156: 96122010 | B156: Верт. насос CR32-3-2 A-F-A-E-HQQE 3x4 | C156: CW | F156: за запитом | G156: =IFERROR(F156*(1-VLOOKUP(C156,ГОЛОВНА!K:L,2,0)), "-") -> -
A157: 96121982 | B157: Верт. насос CR32-3-2 A-F-A-V-HQQV 3x2 | C157: CW | F157: за запитом | G157: =IFERROR(F157*(1-VLOOKUP(C157,ГОЛОВНА!K:L,2,0)), "-") -> -
A158: 96122038 | B158: Верт. насос CR32-3-2 A-F-A-V-HQQV 3x4 | C158: CW | F158: за запитом | G158: =IFERROR(F158*(1-VLOOKUP(C158,ГОЛОВНА!K:L,2,0)), "-") -> -
A159: 96121957 | B159: Верт. насос CR32-4 A-F-A-E-HQQE 3x230 | C159: CW | F159: за запитом | G159: =IFERROR(F159*(1-VLOOKUP(C159,ГОЛОВНА!K:L,2,0)), "-") -> -
A160: 96122013 | B160: Верт. насос CR32-4 A-F-A-E-HQQE | C160: CW | F160: за запитом | G160: =IFERROR(F160*(1-VLOOKUP(C160,ГОЛОВНА!K:L,2,0)), "-") -> -
A161: 96121956 | B161: Верт. насос CR32-4-2 A-F-A-E-HQQE 3x2 | C161: CW | F161: за запитом | G161: =IFERROR(F161*(1-VLOOKUP(C161,ГОЛОВНА!K:L,2,0)), "-") -> -
A162: 96122012 | B162: Верт. насос CR32-4-2 A-F-A-E-HQQE 3x4 | C162: CW | F162: за запитом | G162: =IFERROR(F162*(1-VLOOKUP(C162,ГОЛОВНА!K:L,2,0)), "-") -> -
A163: 96122747 | B163: Верт. насос CR45-1 A-F-A-E-HQQE 3x230 | C163: CW | F163: 1984.51439 | G163: =IFERROR(F163*(1-VLOOKUP(C163,ГОЛОВНА!K:L,2,0)), "-") -> 1984.51439
A164: 96122797 | B164: Верт. насос CR45-1 A-F-A-E-HQQE 3x400 | C164: CW | F164: 1984.51439 | G164: =IFERROR(F164*(1-VLOOKUP(C164,ГОЛОВНА!K:L,2,0)), "-") -> 1984.51439
A165: 96122772 | B165: Верт. насос CR45-1 A-F-A-V-HQQV 3x230 | C165: CW | F165: 2018.182257 | G165: =IFERROR(F165*(1-VLOOKUP(C165,ГОЛОВНА!K:L,2,0)), "-") -> 2018.182257
A166: 96122822 | B166: Верт. насос CR45-1 A-F-A-V-HQQV 3x400 | C166: CW | F166: 2018.182257 | G166: =IFERROR(F166*(1-VLOOKUP(C166,ГОЛОВНА!K:L,2,0)), "-") -> 2018.182257
A167: 96122746 | B167: Верт. насос CR45-1-1 A-F-A-E-HQQE 3x2 | C167: CW | F167: 1653.85349 | G167: =IFERROR(F167*(1-VLOOKUP(C167,ГОЛОВНА!K:L,2,0)), "-") -> 1653.85349
A168: 96122796 | B168: Верт. насос CR45-1-1 A-F-A-E-HQQE 3x4 | C168: CW | F168: 1653.85349 | G168: =IFERROR(F168*(1-VLOOKUP(C168,ГОЛОВНА!K:L,2,0)), "-") -> 1653.85349
A169: 96122771 | B169: Верт. насос CR45-1-1 A-F-A-V-HQQV 3x2 | C169: CW | F169: 1687.521358 | G169: =IFERROR(F169*(1-VLOOKUP(C169,ГОЛОВНА!K:L,2,0)), "-") -> 1687.521358
A170: 96122821 | B170: Верт. насос CR45-1-1 A-F-A-V-HQQV 3x4 | C170: CW | F170: 1687.521358 | G170: =IFERROR(F170*(1-VLOOKUP(C170,ГОЛОВНА!K:L,2,0)), "-") -> 1687.521358
A171: 96122748 | B171: Верт. насос CR45-2-2 A-F-A-E-HQQE 3x2 | C171: CW | F171: за запитом | G171: =IFERROR(F171*(1-VLOOKUP(C171,ГОЛОВНА!K:L,2,0)), "-") -> -
A172: 96122798 | B172: Верт. насос CR45-2-2 A-F-A-E-HQQE 3x4 | C172: CW | F172: за запитом | G172: =IFERROR(F172*(1-VLOOKUP(C172,ГОЛОВНА!K:L,2,0)), "-") -> -
A173: 96122773 | B173: Верт. насос CR45-2-2 A-F-A-V-HQQV 3x2 | C173: CW | F173: за запитом | G173: =IFERROR(F173*(1-VLOOKUP(C173,ГОЛОВНА!K:L,2,0)), "-") -> -
A174: 96122823 | B174: Верт. насос CR45-2-2 A-F-A-V-HQQV 3x4 | C174: CW | F174: за запитом | G174: =IFERROR(F174*(1-VLOOKUP(C174,ГОЛОВНА!K:L,2,0)), "-") -> -
A175: 96123483 | B175: Верт. насос CR64-1 A-F-A-E-HQQE 3x230 | C175: CW | F175: за запитом | G175: =IFERROR(F175*(1-VLOOKUP(C175,ГОЛОВНА!K:L,2,0)), "-") -> -
A176: 96123527 | B176: Верт. насос CR64-1 A-F-A-E-HQQE 3x400 | C176: CW | F176: за запитом | G176: =IFERROR(F176*(1-VLOOKUP(C176,ГОЛОВНА!K:L,2,0)), "-") -> -
A177: 96123505 | B177: Верт. насос CR64-1 A-F-A-V-HQQV 3x230 | C177: CW | F177: за запитом | G177: =IFERROR(F177*(1-VLOOKUP(C177,ГОЛОВНА!K:L,2,0)), "-") -> -
A178: 96123549 | B178: Верт. насос CR64-1 A-F-A-V-HQQV 3x400 | C178: CW | F178: за запитом | G178: =IFERROR(F178*(1-VLOOKUP(C178,ГОЛОВНА!K:L,2,0)), "-") -> -
A179: 96123482 | B179: Верт. насос CR64-1-1 A-F-A-E-HQQE 3x2 | C179: CW | F179: 1961.636287 | G179: =IFERROR(F179*(1-VLOOKUP(C179,ГОЛОВНА!K:L,2,0)), "-") -> 1961.636287
A180: 96123526 | B180: Верт. насос CR64-1-1 A-F-A-E-HQQE 3x4 | C180: CW | F180: 1961.636287 | G180: =IFERROR(F180*(1-VLOOKUP(C180,ГОЛОВНА!K:L,2,0)), "-") -> 1961.636287
A181: 96123504 | B181: Верт. насос CR64-1-1 A-F-A-V-HQQV 3x2 | C181: CW | F181: 1995.293598 | G181: =IFERROR(F181*(1-VLOOKUP(C181,ГОЛОВНА!K:L,2,0)), "-") -> 1995.293598
A182: 96123548 | B182: Верт. насос CR64-1-1 A-F-A-V-HQQV 3x4 | C182: CW | F182: 1995.293598 | G182: =IFERROR(F182*(1-VLOOKUP(C182,ГОЛОВНА!K:L,2,0)), "-") -> 1995.293598
A183: 96123484 | B183: Верт. насос CR64-2-2 A-F-A-E-HQQE 3x2 | C183: CW | F183: за запитом | G183: =IFERROR(F183*(1-VLOOKUP(C183,ГОЛОВНА!K:L,2,0)), "-") -> -
A184: 96123528 | B184: Верт. насос CR64-2-2 A-F-A-E-HQQE 3x4 | C184: CW | F184: за запитом | G184: =IFERROR(F184*(1-VLOOKUP(C184,ГОЛОВНА!K:L,2,0)), "-") -> -
A185: 96123506 | B185: Верт. насос CR64-2-2 A-F-A-V-HQQV 3x2 | C185: CW | F185: за запитом | G185: =IFERROR(F185*(1-VLOOKUP(C185,ГОЛОВНА!K:L,2,0)), "-") -> -
A186: 96123550 | B186: Верт. насос CR64-2-2 A-F-A-V-HQQV 3x4 | C186: CW | F186: за запитом | G186: =IFERROR(F186*(1-VLOOKUP(C186,ГОЛОВНА!K:L,2,0)), "-") -> -
A187: 96501673 | B187: Верт. насос CRI15-01 A-CA-I-E-HQQE | C187: CW | F187: 1237.497363 | G187: =IFERROR(F187*(1-VLOOKUP(C187,ГОЛОВНА!K:L,2,0)), "-") -> 1237.497363
A188: 96501743 | B188: Верт. насос CRI15-01 A-CA-I-E-HQQE | C188: CW | F188: 1110.77569 | G188: =IFERROR(F188*(1-VLOOKUP(C188,ГОЛОВНА!K:L,2,0)), "-") -> 1110.77569
A189: 96501689 | B189: Верт. насос CRI15-01 A-CA-I-V-HQQV | C189: CW | F189: 1260.966685 | G189: =IFERROR(F189*(1-VLOOKUP(C189,ГОЛОВНА!K:L,2,0)), "-") -> 1260.966685
A190: 96501841 | B190: Верт. насос CRI15-01 A-CA-I-V-HQQV | C190: CW | F190: 1134.223898 | G190: =IFERROR(F190*(1-VLOOKUP(C190,ГОЛОВНА!K:L,2,0)), "-") -> 1134.223898
